Workbook

Sheet Dashboard
F2: Отчеты по состоянию на | L2: 2022-06-30 | O2: =EOMONTH(O4,0) -> 2021-07-31 | P2: =EOMONTH(P4,0) -> 2021-08-31 | Q2: 2021-09-30 | R2: 2021-10-31 | S2: 2021-11-30 | T2: 2021-12-31 | U2: 2022-01-31 | V2: 2022-02-28 | W2: 2022-03-31 | X2: 2022-04-30 | Y2: 2022-05-31 | Z2: 2022-06-30
O3: =MONTH(O4) -> 7 | P3: =MONTH(P4) -> 8 | Q3: 9 | R3: 10 | S3: 11 | T3: 12 | U3: 1 | V3: 2 | W3: 3 | X3: 4 | Y3: 5 | Z3: 6
F4: Продажи и склад | L4: =L2 -> 2022-06-30 | O4: =EOMONTH(P4,-2)+1 -> 2021-07-01 | P4: 2021-08-01 | Q4: 2021-09-01 | R4: 2021-10-01 | S4: 2021-11-01 | T4: 2021-12-01 | U4: 2022-01-01 | V4: 2022-02-01 | W4: 2022-03-01 | X4: 2022-04-01 | Y4: =EOMONTH(Z4,-2)+1 -> 2022-05-01 | Z4: =EOMONTH($L$2,-1)+1 -> 2022-06-01
F6: Продажи | K6: всего | M6: тыс.руб. | O6: =SUMIFS(comparison!$AC:$AC,comparison!$AA:$AA,">="&O$4,comparison!$AA:$AA,"<="&EOMONTH(O$4,0),comparison!$AJ:$AJ,"<>"&0)/1000 -> 2191.26 | P6: =SUMIFS(comparison!$AC:$AC,comparison!$AA:$AA,">="&P$4,comparison!$AA:$AA,"<="&EOMONTH(P$4,0),comparison!$AJ:$AJ,"<>"&0)/1000 -> 1724.37 | Q6: =SUMIFS(comparison!$AC:$AC,comparison!$AA:$AA,">="&Q$4,comparison!$AA:$AA,"<="&EOMONTH(Q$4,0),comparison!$AJ:$AJ,"<>"&0)/1000 -> 4229.745 | R6: =SUMIFS(comparison!$AC:$AC,comparison!$AA:$AA,">="&R$4,comparison!$AA:$AA,"<="&EOMONTH(R$4,0),comparison!$AJ:$AJ,"<>"&0)/1000 -> 3515.2155 | S6: =SUMIFS(comparison!$AC:$AC,comparison!$AA:$AA,">="&S$4,comparison!$AA:$AA,"<="&EOMONTH(S$4,0),comparison!$AJ:$AJ,"<>"&0)/1000 -> 5877.093 | T6: =SUMIFS(comparison!$AC:$AC,comparison!$AA:$AA,">="&T$4,comparison!$AA:$AA,"<="&EOMONTH(T$4,0),comparison!$AJ:$AJ,"<>"&0)/1000 -> 6863.523 | U6: =SUMIFS(comparison!$AC:$AC,comparison!$AA:$AA,">="&U$4,comparison!$AA:$AA,"<="&EOMONTH(U$4,0),comparison!$AJ:$AJ,"<>"&0)/1000 -> 3073.38 | V6: =SUMIFS(comparison!$AC:$AC,comparison!$AA:$AA,">="&V$4,comparison!$AA:$AA,"<="&EOMONTH(V$4,0),comparison!$AJ:$AJ,"<>"&0)/1000 -> 3197.265 | W6: =SUMIFS(comparison!$AC:$AC,comparison!$AA:$AA,">="&W$4,comparison!$AA:$AA,"<="&EOMONTH(W$4,0),comparison!$AJ:$AJ,"<>"&0)/1000 -> 3079.38 | X6: =SUMIFS(comparison!$AC:$AC,comparison!$AA:$AA,">="&X$4,comparison!$AA:$AA,"<="&EOMONTH(X$4,0),comparison!$AJ:$AJ,"<>"&0)/1000 -> 2668.41 | Y6: =SUMIFS(comparison!$AC:$AC,comparison!$AA:$AA,">="&Y$4,comparison!$AA:$AA,"<="&EOMONTH(Y$4,0),comparison!$AJ:$AJ,"<>"&0)/1000 -> 2582.967 | Z6: =SUMIFS(comparison!$AC:$AC,comparison!$AA:$AA,">="&Z$4,comparison!$AA:$AA,"<="&EOMONTH(Z$4,0),comparison!$AJ:$AJ,"<>"&0)/1000 -> 4799.19 | AB6: =SUM(N6:AA6) -> 43801.7985
F14: Себестоимость | M14: тыс.руб. | O14: =SUMIFS(comparison!$U:$U,comparison!$AA:$AA,">="&O$4,comparison!$AA:$AA,"<="&EOMONTH(O$4,0),comparison!$AJ:$AJ,"<>"&0)/1000 -> 813.4152735 | P14: =SUMIFS(comparison!$U:$U,comparison!$AA:$AA,">="&P$4,comparison!$AA:$AA,"<="&EOMONTH(P$4,0),comparison!$AJ:$AJ,"<>"&0)/1000 -> 399.8233584 | Q14: =SUMIFS(comparison!$U:$U,comparison!$AA:$AA,">="&Q$4,comparison!$AA:$AA,"<="&EOMONTH(Q$4,0),comparison!$AJ:$AJ,"<>"&0)/1000 -> 1718.087382 | R14: =SUMIFS(comparison!$U:$U,comparison!$AA:$AA,">="&R$4,comparison!$AA:$AA,"<="&EOMONTH(R$4,0),comparison!$AJ:$AJ,"<>"&0)/1000 -> 1205.196356 | S14: =SUMIFS(comparison!$U:$U,comparison!$AA:$AA,">="&S$4,comparison!$AA:$AA,"<="&EOMONTH(S$4,0),comparison!$AJ:$AJ,"<>"&0)/1000 -> 1916.771447 | T14: =SUMIFS(comparison!$U:$U,comparison!$AA:$AA,">="&T$4,comparison!$AA:$AA,"<="&EOMONTH(T$4,0),comparison!$AJ:$AJ,"<>"&0)/1000 -> 2016.474552 | U14: =SUMIFS(comparison!$U:$U,comparison!$AA:$AA,">="&U$4,comparison!$AA:$AA,"<="&EOMONTH(U$4,0),comparison!$AJ:$AJ,"<>"&0)/1000 -> 753.3876259 | V14: =SUMIFS(comparison!$U:$U,comparison!$AA:$AA,">="&V$4,comparison!$AA:$AA,"<="&EOMONTH(V$4,0),comparison!$AJ:$AJ,"<>"&0)/1000 -> 1154.069195 | W14: =SUMIFS(comparison!$U:$U,comparison!$AA:$AA,">="&W$4,comparison!$AA:$AA,"<="&EOMONTH(W$4,0),comparison!$AJ:$AJ,"<>"&0)/1000 -> 1497.179844 | X14: =SUMIFS(comparison!$U:$U,comparison!$AA:$AA,">="&X$4,comparison!$AA:$AA,"<="&EOMONTH(X$4,0),comparison!$AJ:$AJ,"<>"&0)/1000 -> 697.007515 | Y14: =SUMIFS(comparison!$U:$U,comparison!$AA:$AA,">="&Y$4,comparison!$AA:$AA,"<="&EOMONTH(Y$4,0),comparison!$AJ:$AJ,"<>"&0)/1000 -> 714.5790393 | Z14: =SUMIFS(comparison!$U:$U,comparison!$AA:$AA,">="&Z$4,comparison!$AA:$AA,"<="&EOMONTH(Z$4,0),comparison!$AJ:$AJ,"<>"&0)/1000 -> 1980.722782 | AB14: =SUM(N14:AA14) -> 14866.71437
F15: Валовая прибыль | M15: тыс.руб. | O15: =O6-O14 -> 1377.844727 | P15: =P6-P14 -> 1324.546642 | Q15: 2511.657618 | R15: 2310.019144 | S15: 3960.321553 | T15: 4847.048448 | U15: 2319.992374 | V15: 2043.195805 | W15: 1582.200156 | X15: 1971.402485 | Y15: 1868.387961 | Z15: 2818.467218 | AB15: 28935.08413
F17: Количество товаров | K17: всего | M17: шт | O17: =SUMIFS(comparison!$AB:$AB,comparison!$AA:$AA,">="&O$4,comparison!$AA:$AA,"<="&EOMONTH(O$4,0),comparison!$AJ:$AJ,"<>"&0) -> 250 | P17: =SUMIFS(comparison!$AB:$AB,comparison!$AA:$AA,">="&P$4,comparison!$AA:$AA,"<="&EOMONTH(P$4,0),comparison!$AJ:$AJ,"<>"&0) -> 370 | Q17: =SUMIFS(comparison!$AB:$AB,comparison!$AA:$AA,">="&Q$4,comparison!$AA:$AA,"<="&EOMONTH(Q$4,0),comparison!$AJ:$AJ,"<>"&0) -> 580 | R17: =SUMIFS(comparison!$AB:$AB,comparison!$AA:$AA,">="&R$4,comparison!$AA:$AA,"<="&EOMONTH(R$4,0),comparison!$AJ:$AJ,"<>"&0) -> 740 | S17: =SUMIFS(comparison!$AB:$AB,comparison!$AA:$AA,">="&S$4,comparison!$AA:$AA,"<="&EOMONTH(S$4,0),comparison!$AJ:$AJ,"<>"&0) -> 1240 | T17: =SUMIFS(comparison!$AB:$AB,comparison!$AA:$AA,">="&T$4,comparison!$AA:$AA,"<="&EOMONTH(T$4,0),comparison!$AJ:$AJ,"<>"&0) -> 1580 | U17: =SUMIFS(comparison!$AB:$AB,comparison!$AA:$AA,">="&U$4,comparison!$AA:$AA,"<="&EOMONTH(U$4,0),comparison!$AJ:$AJ,"<>"&0) -> 440 | V17: =SUMIFS(comparison!$AB:$AB,comparison!$AA:$AA,">="&V$4,comparison!$AA:$AA,"<="&EOMONTH(V$4,0),comparison!$AJ:$AJ,"<>"&0) -> 510 | W17: =SUMIFS(comparison!$AB:$AB,comparison!$AA:$AA,">="&W$4,comparison!$AA:$AA,"<="&EOMONTH(W$4,0),comparison!$AJ:$AJ,"<>"&0) -> 800 | X17: =SUMIFS(comparison!$AB:$AB,comparison!$AA:$AA,">="&X$4,comparison!$AA:$AA,"<="&EOMONTH(X$4,0),comparison!$AJ:$AJ,"<>"&0) -> 510 | Y17: =SUMIFS(comparison!$AB:$AB,comparison!$AA:$AA,">="&Y$4,comparison!$AA:$AA,"<="&EOMONTH(Y$4,0),comparison!$AJ:$AJ,"<>"&0) -> 540 | Z17: =SUMIFS(comparison!$AB:$AB,comparison!$AA:$AA,">="&Z$4,comparison!$AA:$AA,"<="&EOMONTH(Z$4,0),comparison!$AJ:$AJ,"<>"&0) -> 600 | AB17: =SUM(N17:AA17) -> 8160
F27: Остатки товара на Wh | K27: всего | M27: шт | O27: =SUMIFS(comparison!$K:$K,comparison!$J:$J,"<="&EOMONTH(O$4,0))-SUMIFS(comparison!$AB:$AB,comparison!$AA:$AA,"<="&EOMONTH(O$4,0),comparison!$AJ:$AJ,"<>"&0) -> 13820 | P27: =SUMIFS(comparison!$K:$K,comparison!$J:$J,"<="&EOMONTH(P$4,0))-SUMIFS(comparison!$AB:$AB,comparison!$AA:$AA,"<="&EOMONTH(P$4,0),comparison!$AJ:$AJ,"<>"&0) -> 13450 | Q27: =SUMIFS(comparison!$K:$K,comparison!$J:$J,"<="&EOMONTH(Q$4,0))-SUMIFS(comparison!$AB:$AB,comparison!$AA:$AA,"<="&EOMONTH(Q$4,0),comparison!$AJ:$AJ,"<>"&0) -> 12960 | R27: =SUMIFS(comparison!$K:$K,comparison!$J:$J,"<="&EOMONTH(R$4,0))-SUMIFS(comparison!$AB:$AB,comparison!$AA:$AA,"<="&EOMONTH(R$4,0),comparison!$AJ:$AJ,"<>"&0) -> 12620 | S27: =SUMIFS(comparison!$K:$K,comparison!$J:$J,"<="&EOMONTH(S$4,0))-SUMIFS(comparison!$AB:$AB,comparison!$AA:$AA,"<="&EOMONTH(S$4,0),comparison!$AJ:$AJ,"<>"&0) -> 12350 | T27: =SUMIFS(comparison!$K:$K,comparison!$J:$J,"<="&EOMONTH(T$4,0))-SUMIFS(comparison!$AB:$AB,comparison!$AA:$AA,"<="&EOMONTH(T$4,0),comparison!$AJ:$AJ,"<>"&0) -> 12560 | U27: =SUMIFS(comparison!$K:$K,comparison!$J:$J,"<="&EOMONTH(U$4,0))-SUMIFS(comparison!$AB:$AB,comparison!$AA:$AA,"<="&EOMONTH(U$4,0),comparison!$AJ:$AJ,"<>"&0) -> 12120 | V27: =SUMIFS(comparison!$K:$K,comparison!$J:$J,"<="&EOMONTH(V$4,0))-SUMIFS(comparison!$AB:$AB,comparison!$AA:$AA,"<="&EOMONTH(V$4,0),comparison!$AJ:$AJ,"<>"&0) -> 11690 | W27: =SUMIFS(comparison!$K:$K,comparison!$J:$J,"<="&EOMONTH(W$4,0))-SUMIFS(comparison!$AB:$AB,comparison!$AA:$AA,"<="&EOMONTH(W$4,0),comparison!$AJ:$AJ,"<>"&0) -> 11150 | X27: =SUMIFS(comparison!$K:$K,comparison!$J:$J,"<="&EOMONTH(X$4,0))-SUMIFS(comparison!$AB:$AB,comparison!$AA:$AA,"<="&EOMONTH(X$4,0),comparison!$AJ:$AJ,"<>"&0) -> 10700 | Y27: =SUMIFS(comparison!$K:$K,comparison!$J:$J,"<="&EOMONTH(Y$4,0))-SUMIFS(comparison!$AB:$AB,comparison!$AA:$AA,"<="&EOMONTH(Y$4,0),comparison!$AJ:$AJ,"<>"&0) -> 13230 | Z27: =SUMIFS(comparison!$K:$K,comparison!$J:$J,"<="&EOMONTH(Z$4,0))-SUMIFS(comparison!$AB:$AB,comparison!$AA:$AA,"<="&EOMONTH(Z$4,0),comparison!$AJ:$AJ,"<>"&0) -> 12700 | AB27: =Z27 -> 12700
F36: Ворастная структура Wh | M36: шт
F37: от 0 до 90 дн | M37: =M36 -> шт | O37: 2950 | P37: 2950 | Q37: 2660 | R37: 300 | S37: 1130 | T37: 2810 | U37: 2530 | V37: 1700 | W37: 170 | X37: 190 | Y37: 2940 | Z37: =SUMIFS(comparison!$O:$O,comparison!$AN:$AN,$F37) -> 2690 | AB37: =Z37 -> 2690
F38: от 90 до 180 дн | M38: =M37 -> шт | O38: 3100 | P38: 3000 | Q38: 0 | R38: 2560 | S38: 2410 | T38: 2200 | U38: 270 | V38: 1080 | W38: 2570 | X38: 2270 | Y38: 1530 | Z38: =SUMIFS(comparison!$O:$O,comparison!$AN:$AN,$F38) -> 90 | AB38: =Z38 -> 90
F39: от 180 до 365 дн | M39: шт | O39: 6670 | P39: 6440 | Q39: 9260 | R39: 8730 | S39: 7840 | T39: 3110 | U39: 5040 | V39: 3870 | W39: 3650 | X39: 1900 | Y39: 2530 | Z39: =SUMIFS(comparison!$O:$O,comparison!$AN:$AN,$F39) -> 3830 | AB39: 3830
F40: более 365 дн | M40: шт | O40: 1090 | P40: 1050 | Q40: 1030 | R40: 1030 | S40: 970 | T40: 4430 | U40: 4270 | V40: 5030 | W40: 4750 | X40: 6330 | Y40: 6220 | Z40: =SUMIFS(comparison!$O:$O,comparison!$AN:$AN,$F40) -> 6080 | AB40: 6080
F41: от 0 до 90 дн | M41: % | O41: =IF(SUM(O37:O40)=0,0,O37/SUM(O37:O40)) -> 0.2136133237 | P41: =IF(SUM(P37:P40)=0,0,P37/SUM(P37:P40)) -> 0.2194940476 | Q41: 0.2054054054 | R41: 0.02377179081 | S41: 0.09149797571 | T41: 0.2239043825 | U41: 0.2089182494 | V41: 0.1455479452 | W41: 0.01526032316 | X41: 0.01777362021 | Y41: 0.2223903177 | Z41: 0.2119779354 | AB41: 0.2119779354
F42: от 90 до 180 дн | M42: % | O42: =IF(SUM(O37:O40)=0,0,O38/SUM(O37:O40)) -> 0.2244750181 | P42: =IF(SUM(P37:P40)=0,0,P38/SUM(P37:P40)) -> 0.2232142857 | Q42: 0 | R42: 0.2028526149 | S42: 0.1951417004 | T42: 0.1752988048 | U42: 0.02229562345 | V42: 0.09246575342 | W42: 0.2307001795 | X42: 0.2123479888 | Y42: 0.1157337368 | Z42: 0.007092198582 | AB42: 0.007092198582
F43: от 180 до 365 дн | M43: % | O43: =IF(SUM(O37:O40)=0,0,O39/SUM(O37:O40)) -> 0.4829833454 | P43: =IF(SUM(P37:P40)=0,0,P39/SUM(P37:P40)) -> 0.4791666667 | Q43: 0.7150579151 | R43: 0.6917591125 | S43: 0.6348178138 | T43: 0.2478087649 | U43: 0.4161849711 | V43: 0.3313356164 | W43: 0.3276481149 | X43: 0.1777362021 | Y43: 0.191376702 | Z43: 0.3018124507 | AB43: 0.3018124507
F44: более 365 дн | M44: % | O44: =IF(SUM(O37:O40)=0,0,O40/SUM(O37:O40)) -> 0.07892831282 | P44: =IF(SUM(P37:P40)=0,0,P40/SUM(P37:P40)) -> 0.078125 | Q44: 0.07953667954 | R44: 0.08161648177 | S44: 0.07854251012 | T44: 0.3529880478 | U44: 0.3526011561 | V44: 0.4306506849 | W44: 0.4263913824 | X44: 0.592142189 | Y44: 0.4704992436 | Z44: 0.4791174153 | AB44: 0.4791174153
F55: Ворастная структура Wh | M55: тыс.руб. | O55: 19598.46791 | P55: 19198.64455 | Q55: 18384.60717 | R55: 18176.85979 | S55: 17222.30984 | T55: 16233.04567 | U55: 15479.65804 | V55: 14749.33285 | W55: 14124.44758 | X55: 13701.70607 | Y55: 18689.29459 | Z55: =SUM(comparison!$P:$P)/1000 -> 17612.92781 | AB55: =Z55 -> 17612.92781
F56: от 0 до 90 дн | M56: =M55 -> тыс.руб. | O56: 4718.16066 | P56: 4718.16066 | Q56: 4201.99377 | R56: 568.00941 | S56: 842.9762687 | T56: 1806.884042 | U56: 1287.74828 | V56: 958.330377 | W56: 61.79634 | X56: 321.6279 | Y56: 5617.485727 | Z56: =SUMIFS(comparison!$P:$P,comparison!$AN:$AN,$F56)/1000 -> 4838.837378 | AB56: =Z56 -> 4838.837378
F57: от 90 до 180 дн | M57: =M56 -> тыс.руб. | O57: 5261.066848 | P57: 5112.067802 | Q57: 0 | R57: 4022.475302 | S57: 3663.701193 | T57: 3359.860299 | U57: 509.652282 | V57: 823.597142 | W57: 1686.752325 | X57: 1202.748363 | Y57: 898.301071 | Z57: =SUMIFS(comparison!$P:$P,comparison!$AN:$AN,$F57)/1000 -> 33.8274 | AB57: 33.8274
F58: от 180 до 365 дн | M58: тыс.руб. | O58: 7122.190629 | P58: 6902.50662 | Q58: 11751.73677 | R58: 11155.49844 | S58: 10348.11762 | T58: 4864.629201 | U58: 7725.80629 | V58: 6279.616791 | W58: 5956.145434 | X58: 2897.380771 | Y58: 2992.781086 | Z58: =SUMIFS(comparison!$P:$P,comparison!$AN:$AN,$F58)/1000 -> 3750.6847 | AB58: 3750.6847
F59: более 365 дн | M59: тыс.руб. | O59: 2497.049776 | P59: 2465.909473 | Q59: 2430.876635 | R59: 2430.876635 | S59: 2367.514765 | T59: 6201.672127 | U59: 5956.451191 | V59: 6687.788537 | W59: 6419.753485 | X59: 9279.949034 | Y59: 9180.726705 | Z59: =SUMIFS(comparison!$P:$P,comparison!$AN:$AN,$F59)/1000 -> 8989.57833 | AB59: 8989.57833
F60: от 0 до 90 дн | M60: % | O60: =IF(SUM(O56:O59)=0,0,O56/SUM(O56:O59)) -> 0.2407413008 | P60: =IF(SUM(P56:P59)=0,0,P56/SUM(P56:P59)) -> 0.2457548837 | Q60: =IF(SUM(Q56:Q59)=0,0,Q56/SUM(Q56:Q59)) -> 0.2285604327 | R60: =IF(SUM(R56:R59)=0,0,R56/SUM(R56:R59)) -> 0.03124903952 | S60: =IF(SUM(S56:S59)=0,0,S56/SUM(S56:S59)) -> 0.04894676012 | T60: =IF(SUM(T56:T59)=0,0,T56/SUM(T56:T59)) -> 0.1113089976 | U60: =IF(SUM(U56:U59)=0,0,U56/SUM(U56:U59)) -> 0.08318971107 | V60: =IF(SUM(V56:V59)=0,0,V56/SUM(V56:V59)) -> 0.06497448982 | W60: =IF(SUM(W56:W59)=0,0,W56/SUM(W56:W59)) -> 0.004375133232 | X60: =IF(SUM(X56:X59)=0,0,X56/SUM(X56:X59)) -> 0.02347356588 | Y60: =IF(SUM(Y56:Y59)=0,0,Y56/SUM(Y56:Y59)) -> 0.3005723785 | Z60: =IF(SUM(Z56:Z59)=0,0,Z56/SUM(Z56:Z59)) -> 0.2747321417 | AB60: 0.2747321417
F61: от 90 до 180 дн | M61: % | O61: =IF(SUM(O56:O59)=0,0,O57/SUM(O56:O59)) -> 0.2684427615 | P61: =IF(SUM(P56:P59)=0,0,P57/SUM(P56:P59)) -> 0.2662723292 | Q61: 0 | R61: 0.2212964917 | S61: 0.2127299547 | T61: 0.2069765815 | U61: 0.03292400133 | V61: 0.05583962004 | W61: 0.1194207642 | X61: 0.08778091993 | Y61: 0.04806500677 | Z61: 0.001920600616 | AB61: 0.001920600616
F62: от 180 до 365 дн | M62: % | O62: =IF(SUM(O56:O59)=0,0,O58/SUM(O56:O59)) -> 0.3634054795 | P62: =IF(SUM(P56:P59)=0,0,P58/SUM(P56:P59)) -> 0.3595309346 | Q62: 0.639216093 | R62: 0.6137197828 | S62: 0.6008553853 | T62: 0.2996744603 | U62: 0.4990941188 | V62: 0.4257559888 | W62: 0.421690505 | X62: 0.2114613142 | Y62: 0.1601334428 | Z62: 0.2129506656 | AB62: 0.2129506656
F63: более 365 дн | M63: % | O63: =IF(SUM(O56:O59)=0,0,O59/SUM(O56:O59)) -> 0.1274104582 | P63: =IF(SUM(P56:P59)=0,0,P59/SUM(P56:P59)) -> 0.1284418525 | Q63: 0.1322234744 | R63: 0.1337346859 | S63: 0.1374678998 | T63: 0.3820399606 | U63: 0.3847921688 | V63: 0.4534299013 | W63: 0.4545135975 | X63: 0.6772842 | Y63: 0.4912291719 | Z63: 0.5103965921 | AB63: 0.5103965921
F74: Валовый расчет необходимой закупки - оценка
F75: Средние продажи в месяц | L75: =AB17/12 -> 680 | M75: шт
F76: Средние продажи за полгода | L76: =L75*6 -> 4080 | M76: шт
F77: Остаток ликвидного товара | L77: =AB37 -> 2690 | M77: шт
F78: Масштабирование бизнеса - CAGR | L78: 0.1
F79: Расчет текущей потребности | L79: =L76*(1+L78)-L77 -> 1798 | M79: шт
F80: Средняя текущ. стоимость за штуку | L80: =IF(AB37=0,0,AB56*1000/AB37) -> 1798.824304 | M80: руб.
F81: Прогноз индексации цен | L81: 0.05
F82: Расчет текущей потребности | L82: =L79*L80*(1+L81)/1000 -> 3396.000403 | M82: тыс.руб.
F83: Курс евро | L83: 65 | M83: руб.
F84: Расчет текущей потребности | L84: =L82*1000/L83 -> 52246.16005 | M84: евро
F86: Распродажа неликвида
F87: среднеликвидный товар | L87: =AB57 -> 33.8274 | M87: тыс.руб.
F88: низколиквидный товар | L88: =AB58 -> 3750.6847 | M88: тыс.руб.
F89: залежалый товар | L89: =AB59 -> 8989.57833 | M89: тыс.руб.
F90: стандартная наценка | L90: 3.5 | M90: раз
F91: Стоимость продажи при стандарте | L91: =SUM(L87:L89)*L90 -> 44709.31651 | M91: тыс.руб.
F92: Скидка на неликвид | L92: 0.6
F93: Оценка выручки за неликвид | L93: =L91*(1-L92) -> 17883.7266 | M93: тыс.руб.
F94: Оценка валовой прибыли | L94: =L93-SUM(L87:L89) -> 5109.636172 | M94: тыс.руб.
F96: Структура продаж по группам ТОП-10 | M96: тыс.руб. | O96: =SUMIFS(comparison!$AC:$AC,comparison!$AA:$AA,">="&O$4,comparison!$AA:$AA,"<="&EOMONTH(O$4,0),comparison!$AJ:$AJ,"<>"&0)/1000 -> 2191.26 | P96: =SUMIFS(comparison!$AC:$AC,comparison!$AA:$AA,">="&P$4,comparison!$AA:$AA,"<="&EOMONTH(P$4,0),comparison!$AJ:$AJ,"<>"&0)/1000 -> 1724.37 | Q96: =SUMIFS(comparison!$AC:$AC,comparison!$AA:$AA,">="&Q$4,comparison!$AA:$AA,"<="&EOMONTH(Q$4,0),comparison!$AJ:$AJ,"<>"&0)/1000 -> 4229.745 | R96: =SUMIFS(comparison!$AC:$AC,comparison!$AA:$AA,">="&R$4,comparison!$AA:$AA,"<="&EOMONTH(R$4,0),comparison!$AJ:$AJ,"<>"&0)/1000 -> 3515.2155 | S96: =SUMIFS(comparison!$AC:$AC,comparison!$AA:$AA,">="&S$4,comparison!$AA:$AA,"<="&EOMONTH(S$4,0),comparison!$AJ:$AJ,"<>"&0)/1000 -> 5877.093 | T96: =SUMIFS(comparison!$AC:$AC,comparison!$AA:$AA,">="&T$4,comparison!$AA:$AA,"<="&EOMONTH(T$4,0),comparison!$AJ:$AJ,"<>"&0)/1000 -> 6863.523 | U96: =SUMIFS(comparison!$AC:$AC,comparison!$AA:$AA,">="&U$4,comparison!$AA:$AA,"<="&EOMONTH(U$4,0),comparison!$AJ:$AJ,"<>"&0)/1000 -> 3073.38 | V96: =SUMIFS(comparison!$AC:$AC,comparison!$AA:$AA,">="&V$4,comparison!$AA:$AA,"<="&EOMONTH(V$4,0),comparison!$AJ:$AJ,"<>"&0)/1000 -> 3197.265 | W96: =SUMIFS(comparison!$AC:$AC,comparison!$AA:$AA,">="&W$4,comparison!$AA:$AA,"<="&EOMONTH(W$4,0),comparison!$AJ:$AJ,"<>"&0)/1000 -> 3079.38 | X96: =SUMIFS(comparison!$AC:$AC,comparison!$AA:$AA,">="&X$4,comparison!$AA:$AA,"<="&EOMONTH(X$4,0),comparison!$AJ:$AJ,"<>"&0)/1000 -> 2668.41 | Y96: =SUMIFS(comparison!$AC:$AC,comparison!$AA:$AA,">="&Y$4,comparison!$AA:$AA,"<="&EOMONTH(Y$4,0),comparison!$AJ:$AJ,"<>"&0)/1000 -> 2582.967 | Z96: =SUMIFS(comparison!$AC:$AC,comparison!$AA:$AA,">="&Z$4,comparison!$AA:$AA,"<="&EOMONTH(Z$4,0),comparison!$AJ:$AJ,"<>"&0)/1000 -> 4799.19 | AB96: =SUM(N96:AA96) -> 43801.7985
F97: Комплект евро | M97: =M96 -> тыс.руб. | O97: =SUMIFS(comparison!$AC:$AC,comparison!$AK:$AK,$F97,comparison!$AA:$AA,">="&O$4,comparison!$AA:$AA,"<="&EOMONTH(O$4,0),comparison!$AJ:$AJ,"<>"&0)/1000 -> 0 | P97: =SUMIFS(comparison!$AC:$AC,comparison!$AK:$AK,$F97,comparison!$AA:$AA,">="&P$4,comparison!$AA:$AA,"<="&EOMONTH(P$4,0),comparison!$AJ:$AJ,"<>"&0)/1000 -> 369 | Q97: =SUMIFS(comparison!$AC:$AC,comparison!$AK:$AK,$F97,comparison!$AA:$AA,">="&Q$4,comparison!$AA:$AA,"<="&EOMONTH(Q$4,0),comparison!$AJ:$AJ,"<>"&0)/1000 -> 73.5 | R97: =SUMIFS(comparison!$AC:$AC,comparison!$AK:$AK,$F97,comparison!$AA:$AA,">="&R$4,comparison!$AA:$AA,"<="&EOMONTH(R$4,0),comparison!$AJ:$AJ,"<>"&0)/1000 -> 777.525 | S97: =SUMIFS(comparison!$AC:$AC,comparison!$AK:$AK,$F97,comparison!$AA:$AA,">="&S$4,comparison!$AA:$AA,"<="&EOMONTH(S$4,0),comparison!$AJ:$AJ,"<>"&0)/1000 -> 1205.22 | T97: =SUMIFS(comparison!$AC:$AC,comparison!$AK:$AK,$F97,comparison!$AA:$AA,">="&T$4,comparison!$AA:$AA,"<="&EOMONTH(T$4,0),comparison!$AJ:$AJ,"<>"&0)/1000 -> 1852.65 | U97: =SUMIFS(comparison!$AC:$AC,comparison!$AK:$AK,$F97,comparison!$AA:$AA,">="&U$4,comparison!$AA:$AA,"<="&EOMONTH(U$4,0),comparison!$AJ:$AJ,"<>"&0)/1000 -> 1033.2 | V97: =SUMIFS(comparison!$AC:$AC,comparison!$AK:$AK,$F97,comparison!$AA:$AA,">="&V$4,comparison!$AA:$AA,"<="&EOMONTH(V$4,0),comparison!$AJ:$AJ,"<>"&0)/1000 -> 1088.4 | W97: =SUMIFS(comparison!$AC:$AC,comparison!$AK:$AK,$F97,comparison!$AA:$AA,">="&W$4,comparison!$AA:$AA,"<="&EOMONTH(W$4,0),comparison!$AJ:$AJ,"<>"&0)/1000 -> 672 | X97: =SUMIFS(comparison!$AC:$AC,comparison!$AK:$AK,$F97,comparison!$AA:$AA,">="&X$4,comparison!$AA:$AA,"<="&EOMONTH(X$4,0),comparison!$AJ:$AJ,"<>"&0)/1000 -> 898.05 | Y97: =SUMIFS(comparison!$AC:$AC,comparison!$AK:$AK,$F97,comparison!$AA:$AA,">="&Y$4,comparison!$AA:$AA,"<="&EOMONTH(Y$4,0),comparison!$AJ:$AJ,"<>"&0)/1000 -> 814.275 | Z97: =SUMIFS(comparison!$AC:$AC,comparison!$AK:$AK,$F97,comparison!$AA:$AA,">="&Z$4,comparison!$AA:$AA,"<="&EOMONTH(Z$4,0),comparison!$AJ:$AJ,"<>"&0)/1000 -> 1009.2 | AB97: =SUM(N97:AA97) -> 9793.02
F98: Комплект | M98: =M97 -> тыс.руб. | O98: =SUMIFS(comparison!$AC:$AC,comparison!$AK:$AK,$F98,comparison!$AA:$AA,">="&O$4,comparison!$AA:$AA,"<="&EOMONTH(O$4,0),comparison!$AJ:$AJ,"<>"&0)/1000 -> 1011.15 | P98: =SUMIFS(comparison!$AC:$AC,comparison!$AK:$AK,$F98,comparison!$AA:$AA,">="&P$4,comparison!$AA:$AA,"<="&EOMONTH(P$4,0),comparison!$AJ:$AJ,"<>"&0)/1000 -> 514.95 | Q98: =SUMIFS(comparison!$AC:$AC,comparison!$AK:$AK,$F98,comparison!$AA:$AA,">="&Q$4,comparison!$AA:$AA,"<="&EOMONTH(Q$4,0),comparison!$AJ:$AJ,"<>"&0)/1000 -> 992.7 | R98: =SUMIFS(comparison!$AC:$AC,comparison!$AK:$AK,$F98,comparison!$AA:$AA,">="&R$4,comparison!$AA:$AA,"<="&EOMONTH(R$4,0),comparison!$AJ:$AJ,"<>"&0)/1000 -> 439.05 | S98: =SUMIFS(comparison!$AC:$AC,comparison!$AK:$AK,$F98,comparison!$AA:$AA,">="&S$4,comparison!$AA:$AA,"<="&EOMONTH(S$4,0),comparison!$AJ:$AJ,"<>"&0)/1000 -> 498.54 | T98: =SUMIFS(comparison!$AC:$AC,comparison!$AK:$AK,$F98,comparison!$AA:$AA,">="&T$4,comparison!$AA:$AA,"<="&EOMONTH(T$4,0),comparison!$AJ:$AJ,"<>"&0)/1000 -> 1286.475 | U98: =SUMIFS(comparison!$AC:$AC,comparison!$AK:$AK,$F98,comparison!$AA:$AA,">="&U$4,comparison!$AA:$AA,"<="&EOMONTH(U$4,0),comparison!$AJ:$AJ,"<>"&0)/1000 -> 534.6 | V98: =SUMIFS(comparison!$AC:$AC,comparison!$AK:$AK,$F98,comparison!$AA:$AA,">="&V$4,comparison!$AA:$AA,"<="&EOMONTH(V$4,0),comparison!$AJ:$AJ,"<>"&0)/1000 -> 274.86 | W98: =SUMIFS(comparison!$AC:$AC,comparison!$AK:$AK,$F98,comparison!$AA:$AA,">="&W$4,comparison!$AA:$AA,"<="&EOMONTH(W$4,0),comparison!$AJ:$AJ,"<>"&0)/1000 -> 610.2 | X98: =SUMIFS(comparison!$AC:$AC,comparison!$AK:$AK,$F98,comparison!$AA:$AA,">="&X$4,comparison!$AA:$AA,"<="&EOMONTH(X$4,0),comparison!$AJ:$AJ,"<>"&0)/1000 -> 274.44 | Y98: =SUMIFS(comparison!$AC:$AC,comparison!$AK:$AK,$F98,comparison!$AA:$AA,">="&Y$4,comparison!$AA:$AA,"<="&EOMONTH(Y$4,0),comparison!$AJ:$AJ,"<>"&0)/1000 -> 86.625 | Z98: =SUMIFS(comparison!$AC:$AC,comparison!$AK:$AK,$F98,comparison!$AA:$AA,">="&Z$4,comparison!$AA:$AA,"<="&EOMONTH(Z$4,0),comparison!$AJ:$AJ,"<>"&0)/1000 -> 540.855 | AB98: =SUM(N98:AA98) -> 7064.445
F99: Простыня | M99: тыс.руб. | O99: =SUMIFS(comparison!$AC:$AC,comparison!$AK:$AK,$F99,comparison!$AA:$AA,">="&O$4,comparison!$AA:$AA,"<="&EOMONTH(O$4,0),comparison!$AJ:$AJ,"<>"&0)/1000 -> 247.887 | P99: =SUMIFS(comparison!$AC:$AC,comparison!$AK:$AK,$F99,comparison!$AA:$AA,">="&P$4,comparison!$AA:$AA,"<="&EOMONTH(P$4,0),comparison!$AJ:$AJ,"<>"&0)/1000 -> 336.42 | Q99: =SUMIFS(comparison!$AC:$AC,comparison!$AK:$AK,$F99,comparison!$AA:$AA,">="&Q$4,comparison!$AA:$AA,"<="&EOMONTH(Q$4,0),comparison!$AJ:$AJ,"<>"&0)/1000 -> 515.61 | R99: =SUMIFS(comparison!$AC:$AC,comparison!$AK:$AK,$F99,comparison!$AA:$AA,">="&R$4,comparison!$AA:$AA,"<="&EOMONTH(R$4,0),comparison!$AJ:$AJ,"<>"&0)/1000 -> 486.267 | S99: =SUMIFS(comparison!$AC:$AC,comparison!$AK:$AK,$F99,comparison!$AA:$AA,">="&S$4,comparison!$AA:$AA,"<="&EOMONTH(S$4,0),comparison!$AJ:$AJ,"<>"&0)/1000 -> 1018.536 | T99: =SUMIFS(comparison!$AC:$AC,comparison!$AK:$AK,$F99,comparison!$AA:$AA,">="&T$4,comparison!$AA:$AA,"<="&EOMONTH(T$4,0),comparison!$AJ:$AJ,"<>"&0)/1000 -> 865.503 | U99: =SUMIFS(comparison!$AC:$AC,comparison!$AK:$AK,$F99,comparison!$AA:$AA,">="&U$4,comparison!$AA:$AA,"<="&EOMONTH(U$4,0),comparison!$AJ:$AJ,"<>"&0)/1000 -> 507.12 | V99: =SUMIFS(comparison!$AC:$AC,comparison!$AK:$AK,$F99,comparison!$AA:$AA,">="&V$4,comparison!$AA:$AA,"<="&EOMONTH(V$4,0),comparison!$AJ:$AJ,"<>"&0)/1000 -> 371.955 | W99: =SUMIFS(comparison!$AC:$AC,comparison!$AK:$AK,$F99,comparison!$AA:$AA,">="&W$4,comparison!$AA:$AA,"<="&EOMONTH(W$4,0),comparison!$AJ:$AJ,"<>"&0)/1000 -> 332.1 | X99: =SUMIFS(comparison!$AC:$AC,comparison!$AK:$AK,$F99,comparison!$AA:$AA,">="&X$4,comparison!$AA:$AA,"<="&EOMONTH(X$4,0),comparison!$AJ:$AJ,"<>"&0)/1000 -> 349.2 | Y99: =SUMIFS(comparison!$AC:$AC,comparison!$AK:$AK,$F99,comparison!$AA:$AA,">="&Y$4,comparison!$AA:$AA,"<="&EOMONTH(Y$4,0),comparison!$AJ:$AJ,"<>"&0)/1000 -> 538.011 | Z99: =SUMIFS(comparison!$AC:$AC,comparison!$AK:$AK,$F99,comparison!$AA:$AA,">="&Z$4,comparison!$AA:$AA,"<="&EOMONTH(Z$4,0),comparison!$AJ:$AJ,"<>"&0)/1000 -> 545.205 | AB99: 6113.814
F100: Одеяло | M100: тыс.руб. | O100: =SUMIFS(comparison!$AC:$AC,comparison!$AK:$AK,$F100,comparison!$AA:$AA,">="&O$4,comparison!$AA:$AA,"<="&EOMONTH(O$4,0),comparison!$AJ:$AJ,"<>"&0)/1000 -> 547.2 | P100: =SUMIFS(comparison!$AC:$AC,comparison!$AK:$AK,$F100,comparison!$AA:$AA,">="&P$4,comparison!$AA:$AA,"<="&EOMONTH(P$4,0),comparison!$AJ:$AJ,"<>"&0)/1000 -> 0 | Q100: =SUMIFS(comparison!$AC:$AC,comparison!$AK:$AK,$F100,comparison!$AA:$AA,">="&Q$4,comparison!$AA:$AA,"<="&EOMONTH(Q$4,0),comparison!$AJ:$AJ,"<>"&0)/1000 -> 386.46 | R100: =SUMIFS(comparison!$AC:$AC,comparison!$AK:$AK,$F100,comparison!$AA:$AA,">="&R$4,comparison!$AA:$AA,"<="&EOMONTH(R$4,0),comparison!$AJ:$AJ,"<>"&0)/1000 -> 225.834 | S100: =SUMIFS(comparison!$AC:$AC,comparison!$AK:$AK,$F100,comparison!$AA:$AA,">="&S$4,comparison!$AA:$AA,"<="&EOMONTH(S$4,0),comparison!$AJ:$AJ,"<>"&0)/1000 -> 554.538 | T100: =SUMIFS(comparison!$AC:$AC,comparison!$AK:$AK,$F100,comparison!$AA:$AA,">="&T$4,comparison!$AA:$AA,"<="&EOMONTH(T$4,0),comparison!$AJ:$AJ,"<>"&0)/1000 -> 0 | U100: =SUMIFS(comparison!$AC:$AC,comparison!$AK:$AK,$F100,comparison!$AA:$AA,">="&U$4,comparison!$AA:$AA,"<="&EOMONTH(U$4,0),comparison!$AJ:$AJ,"<>"&0)/1000 -> 0 | V100: =SUMIFS(comparison!$AC:$AC,comparison!$AK:$AK,$F100,comparison!$AA:$AA,">="&V$4,comparison!$AA:$AA,"<="&EOMONTH(V$4,0),comparison!$AJ:$AJ,"<>"&0)/1000 -> 153.33 | W100: =SUMIFS(comparison!$AC:$AC,comparison!$AK:$AK,$F100,comparison!$AA:$AA,">="&W$4,comparison!$AA:$AA,"<="&EOMONTH(W$4,0),comparison!$AJ:$AJ,"<>"&0)/1000 -> 519.6 | X100: =SUMIFS(comparison!$AC:$AC,comparison!$AK:$AK,$F100,comparison!$AA:$AA,">="&X$4,comparison!$AA:$AA,"<="&EOMONTH(X$4,0),comparison!$AJ:$AJ,"<>"&0)/1000 -> 0 | Y100: =SUMIFS(comparison!$AC:$AC,comparison!$AK:$AK,$F100,comparison!$AA:$AA,">="&Y$4,comparison!$AA:$AA,"<="&EOMONTH(Y$4,0),comparison!$AJ:$AJ,"<>"&0)/1000 -> 70.38 | Z100: =SUMIFS(comparison!$AC:$AC,comparison!$AK:$AK,$F100,comparison!$AA:$AA,">="&Z$4,comparison!$AA:$AA,"<="&EOMONTH(Z$4,0),comparison!$AJ:$AJ,"<>"&0)/1000 -> 1315.2 | AB100: 3772.542
F101: Подушка | M101: =M100 -> тыс.руб. | O101: =SUMIFS(comparison!$AC:$AC,comparison!$AK:$AK,$F101,comparison!$AA:$AA,">="&O$4,comparison!$AA:$AA,"<="&EOMONTH(O$4,0),comparison!$AJ:$AJ,"<>"&0)/1000 -> 248.52 | P101: =SUMIFS(comparison!$AC:$AC,comparison!$AK:$AK,$F101,comparison!$AA:$AA,">="&P$4,comparison!$AA:$AA,"<="&EOMONTH(P$4,0),comparison!$AJ:$AJ,"<>"&0)/1000 -> 0 | Q101: =SUMIFS(comparison!$AC:$AC,comparison!$AK:$AK,$F101,comparison!$AA:$AA,">="&Q$4,comparison!$AA:$AA,"<="&EOMONTH(Q$4,0),comparison!$AJ:$AJ,"<>"&0)/1000 -> 764.25 | R101: =SUMIFS(comparison!$AC:$AC,comparison!$AK:$AK,$F101,comparison!$AA:$AA,">="&R$4,comparison!$AA:$AA,"<="&EOMONTH(R$4,0),comparison!$AJ:$AJ,"<>"&0)/1000 -> 276.126 | S101: =SUMIFS(comparison!$AC:$AC,comparison!$AK:$AK,$F101,comparison!$AA:$AA,">="&S$4,comparison!$AA:$AA,"<="&EOMONTH(S$4,0),comparison!$AJ:$AJ,"<>"&0)/1000 -> 380.262 | T101: =SUMIFS(comparison!$AC:$AC,comparison!$AK:$AK,$F101,comparison!$AA:$AA,">="&T$4,comparison!$AA:$AA,"<="&EOMONTH(T$4,0),comparison!$AJ:$AJ,"<>"&0)/1000 -> 0 | U101: =SUMIFS(comparison!$AC:$AC,comparison!$AK:$AK,$F101,comparison!$AA:$AA,">="&U$4,comparison!$AA:$AA,"<="&EOMONTH(U$4,0),comparison!$AJ:$AJ,"<>"&0)/1000 -> 0 | V101: =SUMIFS(comparison!$AC:$AC,comparison!$AK:$AK,$F101,comparison!$AA:$AA,">="&V$4,comparison!$AA:$AA,"<="&EOMONTH(V$4,0),comparison!$AJ:$AJ,"<>"&0)/1000 -> 389.7 | W101: =SUMIFS(comparison!$AC:$AC,comparison!$AK:$AK,$F101,comparison!$AA:$AA,">="&W$4,comparison!$AA:$AA,"<="&EOMONTH(W$4,0),comparison!$AJ:$AJ,"<>"&0)/1000 -> 193.2 | X101: =SUMIFS(comparison!$AC:$AC,comparison!$AK:$AK,$F101,comparison!$AA:$AA,">="&X$4,comparison!$AA:$AA,"<="&EOMONTH(X$4,0),comparison!$AJ:$AJ,"<>"&0)/1000 -> 0 | Y101: =SUMIFS(comparison!$AC:$AC,comparison!$AK:$AK,$F101,comparison!$AA:$AA,">="&Y$4,comparison!$AA:$AA,"<="&EOMONTH(Y$4,0),comparison!$AJ:$AJ,"<>"&0)/1000 -> 0 | Z101: =SUMIFS(comparison!$AC:$AC,comparison!$AK:$AK,$F101,comparison!$AA:$AA,">="&Z$4,comparison!$AA:$AA,"<="&EOMONTH(Z$4,0),comparison!$AJ:$AJ,"<>"&0)/1000 -> 649.68 | AB101: 2901.738
F102: Плед | M102: =M101 -> тыс.руб. | O102: =SUMIFS(comparison!$AC:$AC,comparison!$AK:$AK,$F102,comparison!$AA:$AA,">="&O$4,comparison!$AA:$AA,"<="&EOMONTH(O$4,0),comparison!$AJ:$AJ,"<>"&0)/1000 -> 0 | P102: =SUMIFS(comparison!$AC:$AC,comparison!$AK:$AK,$F102,comparison!$AA:$AA,">="&P$4,comparison!$AA:$AA,"<="&EOMONTH(P$4,0),comparison!$AJ:$AJ,"<>"&0)/1000 -> 43.5 | Q102: =SUMIFS(comparison!$AC:$AC,comparison!$AK:$AK,$F102,comparison!$AA:$AA,">="&Q$4,comparison!$AA:$AA,"<="&EOMONTH(Q$4,0),comparison!$AJ:$AJ,"<>"&0)/1000 -> 305.175 | R102: =SUMIFS(comparison!$AC:$AC,comparison!$AK:$AK,$F102,comparison!$AA:$AA,">="&R$4,comparison!$AA:$AA,"<="&EOMONTH(R$4,0),comparison!$AJ:$AJ,"<>"&0)/1000 -> 333.9 | S102: =SUMIFS(comparison!$AC:$AC,comparison!$AK:$AK,$F102,comparison!$AA:$AA,">="&S$4,comparison!$AA:$AA,"<="&EOMONTH(S$4,0),comparison!$AJ:$AJ,"<>"&0)/1000 -> 813.6 | T102: =SUMIFS(comparison!$AC:$AC,comparison!$AK:$AK,$F102,comparison!$AA:$AA,">="&T$4,comparison!$AA:$AA,"<="&EOMONTH(T$4,0),comparison!$AJ:$AJ,"<>"&0)/1000 -> 1058.025 | U102: =SUMIFS(comparison!$AC:$AC,comparison!$AK:$AK,$F102,comparison!$AA:$AA,">="&U$4,comparison!$AA:$AA,"<="&EOMONTH(U$4,0),comparison!$AJ:$AJ,"<>"&0)/1000 -> 43.5 | V102: =SUMIFS(comparison!$AC:$AC,comparison!$AK:$AK,$F102,comparison!$AA:$AA,">="&V$4,comparison!$AA:$AA,"<="&EOMONTH(V$4,0),comparison!$AJ:$AJ,"<>"&0)/1000 -> 233.1 | W102: =SUMIFS(comparison!$AC:$AC,comparison!$AK:$AK,$F102,comparison!$AA:$AA,">="&W$4,comparison!$AA:$AA,"<="&EOMONTH(W$4,0),comparison!$AJ:$AJ,"<>"&0)/1000 -> 66.6 | X102: =SUMIFS(comparison!$AC:$AC,comparison!$AK:$AK,$F102,comparison!$AA:$AA,">="&X$4,comparison!$AA:$AA,"<="&EOMONTH(X$4,0),comparison!$AJ:$AJ,"<>"&0)/1000 -> 0 | Y102: =SUMIFS(comparison!$AC:$AC,comparison!$AK:$AK,$F102,comparison!$AA:$AA,">="&Y$4,comparison!$AA:$AA,"<="&EOMONTH(Y$4,0),comparison!$AJ:$AJ,"<>"&0)/1000 -> 0 | Z102: =SUMIFS(comparison!$AC:$AC,comparison!$AK:$AK,$F102,comparison!$AA:$AA,">="&Z$4,comparison!$AA:$AA,"<="&EOMONTH(Z$4,0),comparison!$AJ:$AJ,"<>"&0)/1000 -> 0 | AB102: 2897.4
F103: Комплект наволочек | M103: тыс.руб. | O103: =SUMIFS(comparison!$AC:$AC,comparison!$AK:$AK,$F103,comparison!$AA:$AA,">="&O$4,comparison!$AA:$AA,"<="&EOMONTH(O$4,0),comparison!$AJ:$AJ,"<>"&0)/1000 -> 136.5 | P103: =SUMIFS(comparison!$AC:$AC,comparison!$AK:$AK,$F103,comparison!$AA:$AA,">="&P$4,comparison!$AA:$AA,"<="&EOMONTH(P$4,0),comparison!$AJ:$AJ,"<>"&0)/1000 -> 0 | Q103: =SUMIFS(comparison!$AC:$AC,comparison!$AK:$AK,$F103,comparison!$AA:$AA,">="&Q$4,comparison!$AA:$AA,"<="&EOMONTH(Q$4,0),comparison!$AJ:$AJ,"<>"&0)/1000 -> 403.35 | R103: =SUMIFS(comparison!$AC:$AC,comparison!$AK:$AK,$F103,comparison!$AA:$AA,">="&R$4,comparison!$AA:$AA,"<="&EOMONTH(R$4,0),comparison!$AJ:$AJ,"<>"&0)/1000 -> 169.275 | S103: =SUMIFS(comparison!$AC:$AC,comparison!$AK:$AK,$F103,comparison!$AA:$AA,">="&S$4,comparison!$AA:$AA,"<="&EOMONTH(S$4,0),comparison!$AJ:$AJ,"<>"&0)/1000 -> 333.747 | T103: =SUMIFS(comparison!$AC:$AC,comparison!$AK:$AK,$F103,comparison!$AA:$AA,">="&T$4,comparison!$AA:$AA,"<="&EOMONTH(T$4,0),comparison!$AJ:$AJ,"<>"&0)/1000 -> 269.46 | U103: =SUMIFS(comparison!$AC:$AC,comparison!$AK:$AK,$F103,comparison!$AA:$AA,">="&U$4,comparison!$AA:$AA,"<="&EOMONTH(U$4,0),comparison!$AJ:$AJ,"<>"&0)/1000 -> 256.86 | V103: =SUMIFS(comparison!$AC:$AC,comparison!$AK:$AK,$F103,comparison!$AA:$AA,">="&V$4,comparison!$AA:$AA,"<="&EOMONTH(V$4,0),comparison!$AJ:$AJ,"<>"&0)/1000 -> 299.145 | W103: =SUMIFS(comparison!$AC:$AC,comparison!$AK:$AK,$F103,comparison!$AA:$AA,">="&W$4,comparison!$AA:$AA,"<="&EOMONTH(W$4,0),comparison!$AJ:$AJ,"<>"&0)/1000 -> 141.9 | X103: =SUMIFS(comparison!$AC:$AC,comparison!$AK:$AK,$F103,comparison!$AA:$AA,">="&X$4,comparison!$AA:$AA,"<="&EOMONTH(X$4,0),comparison!$AJ:$AJ,"<>"&0)/1000 -> 127.2 | Y103: =SUMIFS(comparison!$AC:$AC,comparison!$AK:$AK,$F103,comparison!$AA:$AA,">="&Y$4,comparison!$AA:$AA,"<="&EOMONTH(Y$4,0),comparison!$AJ:$AJ,"<>"&0)/1000 -> 259.533 | Z103: =SUMIFS(comparison!$AC:$AC,comparison!$AK:$AK,$F103,comparison!$AA:$AA,">="&Z$4,comparison!$AA:$AA,"<="&EOMONTH(Z$4,0),comparison!$AJ:$AJ,"<>"&0)/1000 -> 301.005 | AB103: 2697.975
F104: Полотенце | M104: тыс.руб. | O104: =SUMIFS(comparison!$AC:$AC,comparison!$AK:$AK,$F104,comparison!$AA:$AA,">="&O$4,comparison!$AA:$AA,"<="&EOMONTH(O$4,0),comparison!$AJ:$AJ,"<>"&0)/1000 -> 0.003 | P104: =SUMIFS(comparison!$AC:$AC,comparison!$AK:$AK,$F104,comparison!$AA:$AA,">="&P$4,comparison!$AA:$AA,"<="&EOMONTH(P$4,0),comparison!$AJ:$AJ,"<>"&0)/1000 -> 406.5 | Q104: =SUMIFS(comparison!$AC:$AC,comparison!$AK:$AK,$F104,comparison!$AA:$AA,">="&Q$4,comparison!$AA:$AA,"<="&EOMONTH(Q$4,0),comparison!$AJ:$AJ,"<>"&0)/1000 -> 0 | R104: =SUMIFS(comparison!$AC:$AC,comparison!$AK:$AK,$F104,comparison!$AA:$AA,">="&R$4,comparison!$AA:$AA,"<="&EOMONTH(R$4,0),comparison!$AJ:$AJ,"<>"&0)/1000 -> 337.35 | S104: =SUMIFS(comparison!$AC:$AC,comparison!$AK:$AK,$F104,comparison!$AA:$AA,">="&S$4,comparison!$AA:$AA,"<="&EOMONTH(S$4,0),comparison!$AJ:$AJ,"<>"&0)/1000 -> 334.8 | T104: =SUMIFS(comparison!$AC:$AC,comparison!$AK:$AK,$F104,comparison!$AA:$AA,">="&T$4,comparison!$AA:$AA,"<="&EOMONTH(T$4,0),comparison!$AJ:$AJ,"<>"&0)/1000 -> 768.15 | U104: =SUMIFS(comparison!$AC:$AC,comparison!$AK:$AK,$F104,comparison!$AA:$AA,">="&U$4,comparison!$AA:$AA,"<="&EOMONTH(U$4,0),comparison!$AJ:$AJ,"<>"&0)/1000 -> 0 | V104: =SUMIFS(comparison!$AC:$AC,comparison!$AK:$AK,$F104,comparison!$AA:$AA,">="&V$4,comparison!$AA:$AA,"<="&EOMONTH(V$4,0),comparison!$AJ:$AJ,"<>"&0)/1000 -> 36.075 | W104: =SUMIFS(comparison!$AC:$AC,comparison!$AK:$AK,$F104,comparison!$AA:$AA,">="&W$4,comparison!$AA:$AA,"<="&EOMONTH(W$4,0),comparison!$AJ:$AJ,"<>"&0)/1000 -> 206.7 | X104: =SUMIFS(comparison!$AC:$AC,comparison!$AK:$AK,$F104,comparison!$AA:$AA,">="&X$4,comparison!$AA:$AA,"<="&EOMONTH(X$4,0),comparison!$AJ:$AJ,"<>"&0)/1000 -> 273.75 | Y104: =SUMIFS(comparison!$AC:$AC,comparison!$AK:$AK,$F104,comparison!$AA:$AA,">="&Y$4,comparison!$AA:$AA,"<="&EOMONTH(Y$4,0),comparison!$AJ:$AJ,"<>"&0)/1000 -> 123.756 | Z104: =SUMIFS(comparison!$AC:$AC,comparison!$AK:$AK,$F104,comparison!$AA:$AA,">="&Z$4,comparison!$AA:$AA,"<="&EOMONTH(Z$4,0),comparison!$AJ:$AJ,"<>"&0)/1000 -> 43.875 | AB104: 2530.959
F105: Комплект семейный | M105: =M104 -> тыс.руб. | O105: =SUMIFS(comparison!$AC:$AC,comparison!$AK:$AK,$F105,comparison!$AA:$AA,">="&O$4,comparison!$AA:$AA,"<="&EOMONTH(O$4,0),comparison!$AJ:$AJ,"<>"&0)/1000 -> 0 | P105: =SUMIFS(comparison!$AC:$AC,comparison!$AK:$AK,$F105,comparison!$AA:$AA,">="&P$4,comparison!$AA:$AA,"<="&EOMONTH(P$4,0),comparison!$AJ:$AJ,"<>"&0)/1000 -> 0 | Q105: =SUMIFS(comparison!$AC:$AC,comparison!$AK:$AK,$F105,comparison!$AA:$AA,">="&Q$4,comparison!$AA:$AA,"<="&EOMONTH(Q$4,0),comparison!$AJ:$AJ,"<>"&0)/1000 -> 0 | R105: =SUMIFS(comparison!$AC:$AC,comparison!$AK:$AK,$F105,comparison!$AA:$AA,">="&R$4,comparison!$AA:$AA,"<="&EOMONTH(R$4,0),comparison!$AJ:$AJ,"<>"&0)/1000 -> 357 | S105: =SUMIFS(comparison!$AC:$AC,comparison!$AK:$AK,$F105,comparison!$AA:$AA,">="&S$4,comparison!$AA:$AA,"<="&EOMONTH(S$4,0),comparison!$AJ:$AJ,"<>"&0)/1000 -> 499.8 | T105: =SUMIFS(comparison!$AC:$AC,comparison!$AK:$AK,$F105,comparison!$AA:$AA,">="&T$4,comparison!$AA:$AA,"<="&EOMONTH(T$4,0),comparison!$AJ:$AJ,"<>"&0)/1000 -> 82.95 | U105: =SUMIFS(comparison!$AC:$AC,comparison!$AK:$AK,$F105,comparison!$AA:$AA,">="&U$4,comparison!$AA:$AA,"<="&EOMONTH(U$4,0),comparison!$AJ:$AJ,"<>"&0)/1000 -> 0 | V105: =SUMIFS(comparison!$AC:$AC,comparison!$AK:$AK,$F105,comparison!$AA:$AA,">="&V$4,comparison!$AA:$AA,"<="&EOMONTH(V$4,0),comparison!$AJ:$AJ,"<>"&0)/1000 -> 219.45 | W105: =SUMIFS(comparison!$AC:$AC,comparison!$AK:$AK,$F105,comparison!$AA:$AA,">="&W$4,comparison!$AA:$AA,"<="&EOMONTH(W$4,0),comparison!$AJ:$AJ,"<>"&0)/1000 -> 0 | X105: =SUMIFS(comparison!$AC:$AC,comparison!$AK:$AK,$F105,comparison!$AA:$AA,">="&X$4,comparison!$AA:$AA,"<="&EOMONTH(X$4,0),comparison!$AJ:$AJ,"<>"&0)/1000 -> 71.1 | Y105: =SUMIFS(comparison!$AC:$AC,comparison!$AK:$AK,$F105,comparison!$AA:$AA,">="&Y$4,comparison!$AA:$AA,"<="&EOMONTH(Y$4,0),comparison!$AJ:$AJ,"<>"&0)/1000 -> 409.125 | Z105: =SUMIFS(comparison!$AC:$AC,comparison!$AK:$AK,$F105,comparison!$AA:$AA,">="&Z$4,comparison!$AA:$AA,"<="&EOMONTH(Z$4,0),comparison!$AJ:$AJ,"<>"&0)/1000 -> 267.15 | AB105: 1906.575
F106: Покрывало | M106: =M105 -> тыс.руб. | O106: =SUMIFS(comparison!$AC:$AC,comparison!$AK:$AK,$F106,comparison!$AA:$AA,">="&O$4,comparison!$AA:$AA,"<="&EOMONTH(O$4,0),comparison!$AJ:$AJ,"<>"&0)/1000 -> 0 | P106: =SUMIFS(comparison!$AC:$AC,comparison!$AK:$AK,$F106,comparison!$AA:$AA,">="&P$4,comparison!$AA:$AA,"<="&EOMONTH(P$4,0),comparison!$AJ:$AJ,"<>"&0)/1000 -> 0 | Q106: =SUMIFS(comparison!$AC:$AC,comparison!$AK:$AK,$F106,comparison!$AA:$AA,">="&Q$4,comparison!$AA:$AA,"<="&EOMONTH(Q$4,0),comparison!$AJ:$AJ,"<>"&0)/1000 -> 133.5 | R106: =SUMIFS(comparison!$AC:$AC,comparison!$AK:$AK,$F106,comparison!$AA:$AA,">="&R$4,comparison!$AA:$AA,"<="&EOMONTH(R$4,0),comparison!$AJ:$AJ,"<>"&0)/1000 -> 0 | S106: =SUMIFS(comparison!$AC:$AC,comparison!$AK:$AK,$F106,comparison!$AA:$AA,">="&S$4,comparison!$AA:$AA,"<="&EOMONTH(S$4,0),comparison!$AJ:$AJ,"<>"&0)/1000 -> 145.95 | T106: =SUMIFS(comparison!$AC:$AC,comparison!$AK:$AK,$F106,comparison!$AA:$AA,">="&T$4,comparison!$AA:$AA,"<="&EOMONTH(T$4,0),comparison!$AJ:$AJ,"<>"&0)/1000 -> 104.25 | U106: =SUMIFS(comparison!$AC:$AC,comparison!$AK:$AK,$F106,comparison!$AA:$AA,">="&U$4,comparison!$AA:$AA,"<="&EOMONTH(U$4,0),comparison!$AJ:$AJ,"<>"&0)/1000 -> 341.4 | V106: =SUMIFS(comparison!$AC:$AC,comparison!$AK:$AK,$F106,comparison!$AA:$AA,">="&V$4,comparison!$AA:$AA,"<="&EOMONTH(V$4,0),comparison!$AJ:$AJ,"<>"&0)/1000 -> 0 | W106: =SUMIFS(comparison!$AC:$AC,comparison!$AK:$AK,$F106,comparison!$AA:$AA,">="&W$4,comparison!$AA:$AA,"<="&EOMONTH(W$4,0),comparison!$AJ:$AJ,"<>"&0)/1000 -> 0 | X106: =SUMIFS(comparison!$AC:$AC,comparison!$AK:$AK,$F106,comparison!$AA:$AA,">="&X$4,comparison!$AA:$AA,"<="&EOMONTH(X$4,0),comparison!$AJ:$AJ,"<>"&0)/1000 -> 603.6 | Y106: =SUMIFS(comparison!$AC:$AC,comparison!$AK:$AK,$F106,comparison!$AA:$AA,">="&Y$4,comparison!$AA:$AA,"<="&EOMONTH(Y$4,0),comparison!$AJ:$AJ,"<>"&0)/1000 -> 0 | Z106: =SUMIFS(comparison!$AC:$AC,comparison!$AK:$AK,$F106,comparison!$AA:$AA,">="&Z$4,comparison!$AA:$AA,"<="&EOMONTH(Z$4,0),comparison!$AJ:$AJ,"<>"&0)/1000 -> 0 | AB106: 1328.7
F108: =F97 -> Комплект евро | M108: % | O108: =IF(O$96=0,0,O97/O$96) -> 0 | P108: =IF(P$96=0,0,P97/P$96) -> 0.2139911968 | Q108: 0.01737693407 | R108: 0.2211884307 | S108: 0.2050707722 | T108: 0.2699269748 | U108: 0.3361771079 | V108: 0.3404159493 | W108: 0.2182257467 | X108: 0.3365487313 | Y108: 0.31524793 | Z108: 0.2102854857 | AB108: 0.2235757511
F109: =F98 -> Комплект | M109: % | O109: =IF(O$96=0,0,O98/O$96) -> 0.4614468388 | P109: 0.2986308043 | Q109: 0.2346949993 | R109: 0.1248998817 | S109: 0.08482765204 | T109: 0.1874365395 | U109: 0.173945298 | V109: 0.08596722511 | W109: 0.1981567718 | X109: 0.1028477633 | Y109: 0.03353701383 | Z109: 0.1126971426 | AB109: =IF(AB$96=0,0,AB98/AB$96) -> 0.1612820761
F110: Простыня | M110: % | O110: =IF(O$96=0,0,O99/O$96) -> 0.1131253252 | P110: 0.1950973399 | Q110: 0.1219009657 | R110: 0.1383320596 | S110: 0.1733060886 | T110: 0.1261018576 | U110: 0.1650040021 | V110: 0.1163353679 | W110: 0.1078463847 | X110: 0.1308644474 | Y110: 0.2082918597 | Z110: 0.1136035456 | AB110: =IF(AB$96=0,0,AB99/AB$96) -> 0.1395790632
F111: Одеяло | M111: % | O111: =IF(O$96=0,0,O100/O$96) -> 0.2497193396 | P111: 0 | Q111: 0.09136721008 | R111: 0.06424470989 | S111: 0.09435583204 | T111: 0 | U111: 0 | V111: 0.04795661292 | W111: 0.1687352649 | X111: 0 | Y111: 0.02724773487 | Z111: 0.2740462453 | AB111: =IF(AB$96=0,0,AB100/AB$96) -> 0.08612755935
F112: Подушка | M112: % | O112: =IF(O$96=0,0,O101/O$96) -> 0.1134142 | P112: 0 | Q112: 0.1806846512 | R112: 0.07855165636 | S112: 0.06470239624 | T112: 0 | U112: 0 | V112: 0.1218854239 | W112: 0.06273990219 | X112: 0 | Y112: 0 | Z112: 0.1353728442 | AB112: =IF(AB$96=0,0,AB101/AB$96) -> 0.06624700582
F113: Плед | M113: % | O113: =IF(O$96=0,0,O102/O$96) -> 0 | P113: 0.0252266045 | Q113: 0.07214973952 | R113: 0.09498706409 | S113: 0.1384357879 | T113: 0.1541518838 | U113: 0.0141537981 | V113: 0.0729060619 | W113: 0.02162773026 | X113: 0 | Y113: 0 | Z113: 0 | AB113: =IF(AB$96=0,0,AB102/AB$96) -> 0.06614796879
F114: Комплект наволочек | M114: % | O114: =IF(O$96=0,0,O103/O$96) -> 0.06229292736 | P114: 0 | Q114: 0.0953603586 | R114: 0.04815494242 | S114: 0.05678776906 | T114: 0.03925972128 | U114: 0.08357573746 | V114: 0.09356277944 | W114: 0.04608070456 | X114: 0.0476688365 | Y114: 0.1004786356 | Z114: 0.06271995899 | AB114: =IF(AB$96=0,0,AB103/AB$96) -> 0.06159507354
F115: Полотенце | M115: % | O115: =IF(O$96=0,0,O104/O$96) -> 1.369075327e-06 | P115: 0.2357382696 | Q115: 0 | R115: 0.09596851175 | S115: 0.05696693927 | T115: 0.1119177425 | U115: 0 | V115: 0.01128308101 | W115: 0.06712390156 | X115: 0.1025891823 | Y115: 0.04791234267 | Z115: 0.009142167741 | AB115: =IF(AB$96=0,0,AB104/AB$96) -> 0.05778207943
F116: Комплект семейный | M116: % | O116: =IF(O$96=0,0,O105/O$96) -> 0 | P116: 0 | Q116: 0 | R116: 0.1015584962 | S116: 0.08504204375 | T116: 0.01208563008 | U116: 0 | V116: 0.068636788 | W116: 0 | X116: 0.02664508078 | Y116: 0.158393429 | Z116: 0.05566564358 | AB116: =IF(AB$96=0,0,AB105/AB$96) -> 0.04352732229
F117: Покрывало | M117: % | O117: =IF(O$96=0,0,O106/O$96) -> 0 | P117: 0 | Q117: 0.03156218637 | R117: 0 | S117: 0.02483370605 | T117: 0.01518899259 | U117: 0.111082912 | V117: 0 | W117: 0 | X117: 0.2262021204 | Y117: 0 | Z117: 0 | AB117: =IF(AB$96=0,0,AB106/AB$96) -> 0.03033437086
F119: Структура прибыли по группам ТОП-10 | M119: тыс.руб. | O119: =SUMIFS(comparison!$AC:$AC,comparison!$AA:$AA,">="&O$4,comparison!$AA:$AA,"<="&EOMONTH(O$4,0),comparison!$AJ:$AJ,"<>"&0)/1000-SUMIFS(comparison!$U:$U,comparison!$AA:$AA,">="&O$4,comparison!$AA:$AA,"<="&EOMONTH(O$4,0),comparison!$AJ:$AJ,"<>"&0)/1000 -> 1377.844727 | P119: =SUMIFS(comparison!$AC:$AC,comparison!$AA:$AA,">="&P$4,comparison!$AA:$AA,"<="&EOMONTH(P$4,0),comparison!$AJ:$AJ,"<>"&0)/1000-SUMIFS(comparison!$U:$U,comparison!$AA:$AA,">="&P$4,comparison!$AA:$AA,"<="&EOMONTH(P$4,0),comparison!$AJ:$AJ,"<>"&0)/1000 -> 1324.546642 | Q119: =SUMIFS(comparison!$AC:$AC,comparison!$AA:$AA,">="&Q$4,comparison!$AA:$AA,"<="&EOMONTH(Q$4,0),comparison!$AJ:$AJ,"<>"&0)/1000-SUMIFS(comparison!$U:$U,comparison!$AA:$AA,">="&Q$4,comparison!$AA:$AA,"<="&EOMONTH(Q$4,0),comparison!$AJ:$AJ,"<>"&0)/1000 -> 2511.657618 | R119: =SUMIFS(comparison!$AC:$AC,comparison!$AA:$AA,">="&R$4,comparison!$AA:$AA,"<="&EOMONTH(R$4,0),comparison!$AJ:$AJ,"<>"&0)/1000-SUMIFS(comparison!$U:$U,comparison!$AA:$AA,">="&R$4,comparison!$AA:$AA,"<="&EOMONTH(R$4,0),comparison!$AJ:$AJ,"<>"&0)/1000 -> 2310.019144 | S119: =SUMIFS(comparison!$AC:$AC,comparison!$AA:$AA,">="&S$4,comparison!$AA:$AA,"<="&EOMONTH(S$4,0),comparison!$AJ:$AJ,"<>"&0)/1000-SUMIFS(comparison!$U:$U,comparison!$AA:$AA,">="&S$4,comparison!$AA:$AA,"<="&EOMONTH(S$4,0),comparison!$AJ:$AJ,"<>"&0)/1000 -> 3960.321553 | T119: =SUMIFS(comparison!$AC:$AC,comparison!$AA:$AA,">="&T$4,comparison!$AA:$AA,"<="&EOMONTH(T$4,0),comparison!$AJ:$AJ,"<>"&0)/1000-SUMIFS(comparison!$U:$U,comparison!$AA:$AA,">="&T$4,comparison!$AA:$AA,"<="&EOMONTH(T$4,0),comparison!$AJ:$AJ,"<>"&0)/1000 -> 4847.048448 | U119: =SUMIFS(comparison!$AC:$AC,comparison!$AA:$AA,">="&U$4,comparison!$AA:$AA,"<="&EOMONTH(U$4,0),comparison!$AJ:$AJ,"<>"&0)/1000-SUMIFS(comparison!$U:$U,comparison!$AA:$AA,">="&U$4,comparison!$AA:$AA,"<="&EOMONTH(U$4,0),comparison!$AJ:$AJ,"<>"&0)/1000 -> 2319.992374 | V119: =SUMIFS(comparison!$AC:$AC,comparison!$AA:$AA,">="&V$4,comparison!$AA:$AA,"<="&EOMONTH(V$4,0),comparison!$AJ:$AJ,"<>"&0)/1000-SUMIFS(comparison!$U:$U,comparison!$AA:$AA,">="&V$4,comparison!$AA:$AA,"<="&EOMONTH(V$4,0),comparison!$AJ:$AJ,"<>"&0)/1000 -> 2043.195805 | W119: =SUMIFS(comparison!$AC:$AC,comparison!$AA:$AA,">="&W$4,comparison!$AA:$AA,"<="&EOMONTH(W$4,0),comparison!$AJ:$AJ,"<>"&0)/1000-SUMIFS(comparison!$U:$U,comparison!$AA:$AA,">="&W$4,comparison!$AA:$AA,"<="&EOMONTH(W$4,0),comparison!$AJ:$AJ,"<>"&0)/1000 -> 1582.200156 | X119: =SUMIFS(comparison!$AC:$AC,comparison!$AA:$AA,">="&X$4,comparison!$AA:$AA,"<="&EOMONTH(X$4,0),comparison!$AJ:$AJ,"<>"&0)/1000-SUMIFS(comparison!$U:$U,comparison!$AA:$AA,">="&X$4,comparison!$AA:$AA,"<="&EOMONTH(X$4,0),comparison!$AJ:$AJ,"<>"&0)/1000 -> 1971.402485 | Y119: =SUMIFS(comparison!$AC:$AC,comparison!$AA:$AA,">="&Y$4,comparison!$AA:$AA,"<="&EOMONTH(Y$4,0),comparison!$AJ:$AJ,"<>"&0)/1000-SUMIFS(comparison!$U:$U,comparison!$AA:$AA,">="&Y$4,comparison!$AA:$AA,"<="&EOMONTH(Y$4,0),comparison!$AJ:$AJ,"<>"&0)/1000 -> 1868.387961 | Z119: =SUMIFS(comparison!$AC:$AC,comparison!$AA:$AA,">="&Z$4,comparison!$AA:$AA,"<="&EOMONTH(Z$4,0),comparison!$AJ:$AJ,"<>"&0)/1000-SUMIFS(comparison!$U:$U,comparison!$AA:$AA,">="&Z$4,comparison!$AA:$AA,"<="&EOMONTH(Z$4,0),comparison!$AJ:$AJ,"<>"&0)/1000 -> 2818.467218 | AB119: =SUM(N119:AA119) -> 28935.08413
F120: Комплект евро | M120: =M119 -> тыс.руб. | O120: =SUMIFS(comparison!$AC:$AC,comparison!$AK:$AK,$F120,comparison!$AA:$AA,">="&O$4,comparison!$AA:$AA,"<="&EOMONTH(O$4,0),comparison!$AJ:$AJ,"<>"&0)/1000-SUMIFS(comparison!$U:$U,comparison!$AK:$AK,$F120,comparison!$AA:$AA,">="&O$4,comparison!$AA:$AA,"<="&EOMONTH(O$4,0),comparison!$AJ:$AJ,"<>"&0)/1000 -> 0 | P120: =SUMIFS(comparison!$AC:$AC,comparison!$AK:$AK,$F120,comparison!$AA:$AA,">="&P$4,comparison!$AA:$AA,"<="&EOMONTH(P$4,0),comparison!$AJ:$AJ,"<>"&0)/1000-SUMIFS(comparison!$U:$U,comparison!$AK:$AK,$F120,comparison!$AA:$AA,">="&P$4,comparison!$AA:$AA,"<="&EOMONTH(P$4,0),comparison!$AJ:$AJ,"<>"&0)/1000 -> 269.3234362 | Q120: =SUMIFS(comparison!$AC:$AC,comparison!$AK:$AK,$F120,comparison!$AA:$AA,">="&Q$4,comparison!$AA:$AA,"<="&EOMONTH(Q$4,0),comparison!$AJ:$AJ,"<>"&0)/1000-SUMIFS(comparison!$U:$U,comparison!$AK:$AK,$F120,comparison!$AA:$AA,">="&Q$4,comparison!$AA:$AA,"<="&EOMONTH(Q$4,0),comparison!$AJ:$AJ,"<>"&0)/1000 -> 50.9336625 | R120: =SUMIFS(comparison!$AC:$AC,comparison!$AK:$AK,$F120,comparison!$AA:$AA,">="&R$4,comparison!$AA:$AA,"<="&EOMONTH(R$4,0),comparison!$AJ:$AJ,"<>"&0)/1000-SUMIFS(comparison!$U:$U,comparison!$AK:$AK,$F120,comparison!$AA:$AA,">="&R$4,comparison!$AA:$AA,"<="&EOMONTH(R$4,0),comparison!$AJ:$AJ,"<>"&0)/1000 -> 522.7867971 | S120: =SUMIFS(comparison!$AC:$AC,comparison!$AK:$AK,$F120,comparison!$AA:$AA,">="&S$4,comparison!$AA:$AA,"<="&EOMONTH(S$4,0),comparison!$AJ:$AJ,"<>"&0)/1000-SUMIFS(comparison!$U:$U,comparison!$AK:$AK,$F120,comparison!$AA:$AA,">="&S$4,comparison!$AA:$AA,"<="&EOMONTH(S$4,0),comparison!$AJ:$AJ,"<>"&0)/1000 -> 831.4249397 | T120: =SUMIFS(comparison!$AC:$AC,comparison!$AK:$AK,$F120,comparison!$AA:$AA,">="&T$4,comparison!$AA:$AA,"<="&EOMONTH(T$4,0),comparison!$AJ:$AJ,"<>"&0)/1000-SUMIFS(comparison!$U:$U,comparison!$AK:$AK,$F120,comparison!$AA:$AA,">="&T$4,comparison!$AA:$AA,"<="&EOMONTH(T$4,0),comparison!$AJ:$AJ,"<>"&0)/1000 -> 1300.223489 | U120: =SUMIFS(comparison!$AC:$AC,comparison!$AK:$AK,$F120,comparison!$AA:$AA,">="&U$4,comparison!$AA:$AA,"<="&EOMONTH(U$4,0),comparison!$AJ:$AJ,"<>"&0)/1000-SUMIFS(comparison!$U:$U,comparison!$AK:$AK,$F120,comparison!$AA:$AA,">="&U$4,comparison!$AA:$AA,"<="&EOMONTH(U$4,0),comparison!$AJ:$AJ,"<>"&0)/1000 -> 770.4305057 | V120: =SUMIFS(comparison!$AC:$AC,comparison!$AK:$AK,$F120,comparison!$AA:$AA,">="&V$4,comparison!$AA:$AA,"<="&EOMONTH(V$4,0),comparison!$AJ:$AJ,"<>"&0)/1000-SUMIFS(comparison!$U:$U,comparison!$AK:$AK,$F120,comparison!$AA:$AA,">="&V$4,comparison!$AA:$AA,"<="&EOMONTH(V$4,0),comparison!$AJ:$AJ,"<>"&0)/1000 -> 800.4043414 | W120: =SUMIFS(comparison!$AC:$AC,comparison!$AK:$AK,$F120,comparison!$AA:$AA,">="&W$4,comparison!$AA:$AA,"<="&EOMONTH(W$4,0),comparison!$AJ:$AJ,"<>"&0)/1000-SUMIFS(comparison!$U:$U,comparison!$AK:$AK,$F120,comparison!$AA:$AA,">="&W$4,comparison!$AA:$AA,"<="&EOMONTH(W$4,0),comparison!$AJ:$AJ,"<>"&0)/1000 -> 466.0516692 | X120: =SUMIFS(comparison!$AC:$AC,comparison!$AK:$AK,$F120,comparison!$AA:$AA,">="&X$4,comparison!$AA:$AA,"<="&EOMONTH(X$4,0),comparison!$AJ:$AJ,"<>"&0)/1000-SUMIFS(comparison!$U:$U,comparison!$AK:$AK,$F120,comparison!$AA:$AA,">="&X$4,comparison!$AA:$AA,"<="&EOMONTH(X$4,0),comparison!$AJ:$AJ,"<>"&0)/1000 -> 643.9704957 | Y120: =SUMIFS(comparison!$AC:$AC,comparison!$AK:$AK,$F120,comparison!$AA:$AA,">="&Y$4,comparison!$AA:$AA,"<="&EOMONTH(Y$4,0),comparison!$AJ:$AJ,"<>"&0)/1000-SUMIFS(comparison!$U:$U,comparison!$AK:$AK,$F120,comparison!$AA:$AA,">="&Y$4,comparison!$AA:$AA,"<="&EOMONTH(Y$4,0),comparison!$AJ:$AJ,"<>"&0)/1000 -> 590.706354 | Z120: =SUMIFS(comparison!$AC:$AC,comparison!$AK:$AK,$F120,comparison!$AA:$AA,">="&Z$4,comparison!$AA:$AA,"<="&EOMONTH(Z$4,0),comparison!$AJ:$AJ,"<>"&0)/1000-SUMIFS(comparison!$U:$U,comparison!$AK:$AK,$F120,comparison!$AA:$AA,">="&Z$4,comparison!$AA:$AA,"<="&EOMONTH(Z$4,0),comparison!$AJ:$AJ,"<>"&0)/1000 -> 819.1361175 | AB120: =SUM(N120:AA120) -> 7065.391809
F121: Комплект | M121: =M120 -> тыс.руб. | O121: =SUMIFS(comparison!$AC:$AC,comparison!$AK:$AK,$F121,comparison!$AA:$AA,">="&O$4,comparison!$AA:$AA,"<="&EOMONTH(O$4,0),comparison!$AJ:$AJ,"<>"&0)/1000-SUMIFS(comparison!$U:$U,comparison!$AK:$AK,$F121,comparison!$AA:$AA,">="&O$4,comparison!$AA:$AA,"<="&EOMONTH(O$4,0),comparison!$AJ:$AJ,"<>"&0)/1000 -> 777.601723 | P121: =SUMIFS(comparison!$AC:$AC,comparison!$AK:$AK,$F121,comparison!$AA:$AA,">="&P$4,comparison!$AA:$AA,"<="&EOMONTH(P$4,0),comparison!$AJ:$AJ,"<>"&0)/1000-SUMIFS(comparison!$U:$U,comparison!$AK:$AK,$F121,comparison!$AA:$AA,">="&P$4,comparison!$AA:$AA,"<="&EOMONTH(P$4,0),comparison!$AJ:$AJ,"<>"&0)/1000 -> 392.9894275 | Q121: =SUMIFS(comparison!$AC:$AC,comparison!$AK:$AK,$F121,comparison!$AA:$AA,">="&Q$4,comparison!$AA:$AA,"<="&EOMONTH(Q$4,0),comparison!$AJ:$AJ,"<>"&0)/1000-SUMIFS(comparison!$U:$U,comparison!$AK:$AK,$F121,comparison!$AA:$AA,">="&Q$4,comparison!$AA:$AA,"<="&EOMONTH(Q$4,0),comparison!$AJ:$AJ,"<>"&0)/1000 -> 726.9605625 | R121: =SUMIFS(comparison!$AC:$AC,comparison!$AK:$AK,$F121,comparison!$AA:$AA,">="&R$4,comparison!$AA:$AA,"<="&EOMONTH(R$4,0),comparison!$AJ:$AJ,"<>"&0)/1000-SUMIFS(comparison!$U:$U,comparison!$AK:$AK,$F121,comparison!$AA:$AA,">="&R$4,comparison!$AA:$AA,"<="&EOMONTH(R$4,0),comparison!$AJ:$AJ,"<>"&0)/1000 -> 333.7815975 | S121: =SUMIFS(comparison!$AC:$AC,comparison!$AK:$AK,$F121,comparison!$AA:$AA,">="&S$4,comparison!$AA:$AA,"<="&EOMONTH(S$4,0),comparison!$AJ:$AJ,"<>"&0)/1000-SUMIFS(comparison!$U:$U,comparison!$AK:$AK,$F121,comparison!$AA:$AA,">="&S$4,comparison!$AA:$AA,"<="&EOMONTH(S$4,0),comparison!$AJ:$AJ,"<>"&0)/1000 -> 305.568561 | T121: =SUMIFS(comparison!$AC:$AC,comparison!$AK:$AK,$F121,comparison!$AA:$AA,">="&T$4,comparison!$AA:$AA,"<="&EOMONTH(T$4,0),comparison!$AJ:$AJ,"<>"&0)/1000-SUMIFS(comparison!$U:$U,comparison!$AK:$AK,$F121,comparison!$AA:$AA,">="&T$4,comparison!$AA:$AA,"<="&EOMONTH(T$4,0),comparison!$AJ:$AJ,"<>"&0)/1000 -> 906.8164652 | U121: =SUMIFS(comparison!$AC:$AC,comparison!$AK:$AK,$F121,comparison!$AA:$AA,">="&U$4,comparison!$AA:$AA,"<="&EOMONTH(U$4,0),comparison!$AJ:$AJ,"<>"&0)/1000-SUMIFS(comparison!$U:$U,comparison!$AK:$AK,$F121,comparison!$AA:$AA,">="&U$4,comparison!$AA:$AA,"<="&EOMONTH(U$4,0),comparison!$AJ:$AJ,"<>"&0)/1000 -> 377.3704868 | V121: =SUMIFS(comparison!$AC:$AC,comparison!$AK:$AK,$F121,comparison!$AA:$AA,">="&V$4,comparison!$AA:$AA,"<="&EOMONTH(V$4,0),comparison!$AJ:$AJ,"<>"&0)/1000-SUMIFS(comparison!$U:$U,comparison!$AK:$AK,$F121,comparison!$AA:$AA,">="&V$4,comparison!$AA:$AA,"<="&EOMONTH(V$4,0),comparison!$AJ:$AJ,"<>"&0)/1000 -> 161.5147475 | W121: =SUMIFS(comparison!$AC:$AC,comparison!$AK:$AK,$F121,comparison!$AA:$AA,">="&W$4,comparison!$AA:$AA,"<="&EOMONTH(W$4,0),comparison!$AJ:$AJ,"<>"&0)/1000-SUMIFS(comparison!$U:$U,comparison!$AK:$AK,$F121,comparison!$AA:$AA,">="&W$4,comparison!$AA:$AA,"<="&EOMONTH(W$4,0),comparison!$AJ:$AJ,"<>"&0)/1000 -> 388.8411848 | X121: =SUMIFS(comparison!$AC:$AC,comparison!$AK:$AK,$F121,comparison!$AA:$AA,">="&X$4,comparison!$AA:$AA,"<="&EOMONTH(X$4,0),comparison!$AJ:$AJ,"<>"&0)/1000-SUMIFS(comparison!$U:$U,comparison!$AK:$AK,$F121,comparison!$AA:$AA,">="&X$4,comparison!$AA:$AA,"<="&EOMONTH(X$4,0),comparison!$AJ:$AJ,"<>"&0)/1000 -> 208.4110725 | Y121: =SUMIFS(comparison!$AC:$AC,comparison!$AK:$AK,$F121,comparison!$AA:$AA,">="&Y$4,comparison!$AA:$AA,"<="&EOMONTH(Y$4,0),comparison!$AJ:$AJ,"<>"&0)/1000-SUMIFS(comparison!$U:$U,comparison!$AK:$AK,$F121,comparison!$AA:$AA,">="&Y$4,comparison!$AA:$AA,"<="&EOMONTH(Y$4,0),comparison!$AJ:$AJ,"<>"&0)/1000 -> 63.74056875 | Z121: =SUMIFS(comparison!$AC:$AC,comparison!$AK:$AK,$F121,comparison!$AA:$AA,">="&Z$4,comparison!$AA:$AA,"<="&EOMONTH(Z$4,0),comparison!$AJ:$AJ,"<>"&0)/1000-SUMIFS(comparison!$U:$U,comparison!$AK:$AK,$F121,comparison!$AA:$AA,">="&Z$4,comparison!$AA:$AA,"<="&EOMONTH(Z$4,0),comparison!$AJ:$AJ,"<>"&0)/1000 -> 415.9329255 | AB121: 5059.529323
F122: Простыня | M122: тыс.руб. | O122: =SUMIFS(comparison!$AC:$AC,comparison!$AK:$AK,$F122,comparison!$AA:$AA,">="&O$4,comparison!$AA:$AA,"<="&EOMONTH(O$4,0),comparison!$AJ:$AJ,"<>"&0)/1000-SUMIFS(comparison!$U:$U,comparison!$AK:$AK,$F122,comparison!$AA:$AA,">="&O$4,comparison!$AA:$AA,"<="&EOMONTH(O$4,0),comparison!$AJ:$AJ,"<>"&0)/1000 -> 192.9868945 | P122: =SUMIFS(comparison!$AC:$AC,comparison!$AK:$AK,$F122,comparison!$AA:$AA,">="&P$4,comparison!$AA:$AA,"<="&EOMONTH(P$4,0),comparison!$AJ:$AJ,"<>"&0)/1000-SUMIFS(comparison!$U:$U,comparison!$AK:$AK,$F122,comparison!$AA:$AA,">="&P$4,comparison!$AA:$AA,"<="&EOMONTH(P$4,0),comparison!$AJ:$AJ,"<>"&0)/1000 -> 269.4208158 | Q122: =SUMIFS(comparison!$AC:$AC,comparison!$AK:$AK,$F122,comparison!$AA:$AA,">="&Q$4,comparison!$AA:$AA,"<="&EOMONTH(Q$4,0),comparison!$AJ:$AJ,"<>"&0)/1000-SUMIFS(comparison!$U:$U,comparison!$AK:$AK,$F122,comparison!$AA:$AA,">="&Q$4,comparison!$AA:$AA,"<="&EOMONTH(Q$4,0),comparison!$AJ:$AJ,"<>"&0)/1000 -> 363.1091988 | R122: =SUMIFS(comparison!$AC:$AC,comparison!$AK:$AK,$F122,comparison!$AA:$AA,">="&R$4,comparison!$AA:$AA,"<="&EOMONTH(R$4,0),comparison!$AJ:$AJ,"<>"&0)/1000-SUMIFS(comparison!$U:$U,comparison!$AK:$AK,$F122,comparison!$AA:$AA,">="&R$4,comparison!$AA:$AA,"<="&EOMONTH(R$4,0),comparison!$AJ:$AJ,"<>"&0)/1000 -> 350.8329855 | S122: =SUMIFS(comparison!$AC:$AC,comparison!$AK:$AK,$F122,comparison!$AA:$AA,">="&S$4,comparison!$AA:$AA,"<="&EOMONTH(S$4,0),comparison!$AJ:$AJ,"<>"&0)/1000-SUMIFS(comparison!$U:$U,comparison!$AK:$AK,$F122,comparison!$AA:$AA,">="&S$4,comparison!$AA:$AA,"<="&EOMONTH(S$4,0),comparison!$AJ:$AJ,"<>"&0)/1000 -> 724.6332471 | T122: =SUMIFS(comparison!$AC:$AC,comparison!$AK:$AK,$F122,comparison!$AA:$AA,">="&T$4,comparison!$AA:$AA,"<="&EOMONTH(T$4,0),comparison!$AJ:$AJ,"<>"&0)/1000-SUMIFS(comparison!$U:$U,comparison!$AK:$AK,$F122,comparison!$AA:$AA,">="&T$4,comparison!$AA:$AA,"<="&EOMONTH(T$4,0),comparison!$AJ:$AJ,"<>"&0)/1000 -> 599.6746004 | U122: =SUMIFS(comparison!$AC:$AC,comparison!$AK:$AK,$F122,comparison!$AA:$AA,">="&U$4,comparison!$AA:$AA,"<="&EOMONTH(U$4,0),comparison!$AJ:$AJ,"<>"&0)/1000-SUMIFS(comparison!$U:$U,comparison!$AK:$AK,$F122,comparison!$AA:$AA,">="&U$4,comparison!$AA:$AA,"<="&EOMONTH(U$4,0),comparison!$AJ:$AJ,"<>"&0)/1000 -> 397.6047232 | V122: =SUMIFS(comparison!$AC:$AC,comparison!$AK:$AK,$F122,comparison!$AA:$AA,">="&V$4,comparison!$AA:$AA,"<="&EOMONTH(V$4,0),comparison!$AJ:$AJ,"<>"&0)/1000-SUMIFS(comparison!$U:$U,comparison!$AK:$AK,$F122,comparison!$AA:$AA,">="&V$4,comparison!$AA:$AA,"<="&EOMONTH(V$4,0),comparison!$AJ:$AJ,"<>"&0)/1000 -> 281.9374837 | W122: =SUMIFS(comparison!$AC:$AC,comparison!$AK:$AK,$F122,comparison!$AA:$AA,">="&W$4,comparison!$AA:$AA,"<="&EOMONTH(W$4,0),comparison!$AJ:$AJ,"<>"&0)/1000-SUMIFS(comparison!$U:$U,comparison!$AK:$AK,$F122,comparison!$AA:$AA,">="&W$4,comparison!$AA:$AA,"<="&EOMONTH(W$4,0),comparison!$AJ:$AJ,"<>"&0)/1000 -> 237.2473758 | X122: =SUMIFS(comparison!$AC:$AC,comparison!$AK:$AK,$F122,comparison!$AA:$AA,">="&X$4,comparison!$AA:$AA,"<="&EOMONTH(X$4,0),comparison!$AJ:$AJ,"<>"&0)/1000-SUMIFS(comparison!$U:$U,comparison!$AK:$AK,$F122,comparison!$AA:$AA,">="&X$4,comparison!$AA:$AA,"<="&EOMONTH(X$4,0),comparison!$AJ:$AJ,"<>"&0)/1000 -> 257.7808948 | Y122: =SUMIFS(comparison!$AC:$AC,comparison!$AK:$AK,$F122,comparison!$AA:$AA,">="&Y$4,comparison!$AA:$AA,"<="&EOMONTH(Y$4,0),comparison!$AJ:$AJ,"<>"&0)/1000-SUMIFS(comparison!$U:$U,comparison!$AK:$AK,$F122,comparison!$AA:$AA,">="&Y$4,comparison!$AA:$AA,"<="&EOMONTH(Y$4,0),comparison!$AJ:$AJ,"<>"&0)/1000 -> 412.43513 | Z122: =SUMIFS(comparison!$AC:$AC,comparison!$AK:$AK,$F122,comparison!$AA:$AA,">="&Z$4,comparison!$AA:$AA,"<="&EOMONTH(Z$4,0),comparison!$AJ:$AJ,"<>"&0)/1000-SUMIFS(comparison!$U:$U,comparison!$AK:$AK,$F122,comparison!$AA:$AA,">="&Z$4,comparison!$AA:$AA,"<="&EOMONTH(Z$4,0),comparison!$AJ:$AJ,"<>"&0)/1000 -> 425.2954792 | AB122: 4512.958829
F123: Одеяло | M123: тыс.руб. | O123: =SUMIFS(comparison!$AC:$AC,comparison!$AK:$AK,$F123,comparison!$AA:$AA,">="&O$4,comparison!$AA:$AA,"<="&EOMONTH(O$4,0),comparison!$AJ:$AJ,"<>"&0)/1000-SUMIFS(comparison!$U:$U,comparison!$AK:$AK,$F123,comparison!$AA:$AA,">="&O$4,comparison!$AA:$AA,"<="&EOMONTH(O$4,0),comparison!$AJ:$AJ,"<>"&0)/1000 -> 205.2 | P123: =SUMIFS(comparison!$AC:$AC,comparison!$AK:$AK,$F123,comparison!$AA:$AA,">="&P$4,comparison!$AA:$AA,"<="&EOMONTH(P$4,0),comparison!$AJ:$AJ,"<>"&0)/1000-SUMIFS(comparison!$U:$U,comparison!$AK:$AK,$F123,comparison!$AA:$AA,">="&P$4,comparison!$AA:$AA,"<="&EOMONTH(P$4,0),comparison!$AJ:$AJ,"<>"&0)/1000 -> 0 | Q123: =SUMIFS(comparison!$AC:$AC,comparison!$AK:$AK,$F123,comparison!$AA:$AA,">="&Q$4,comparison!$AA:$AA,"<="&EOMONTH(Q$4,0),comparison!$AJ:$AJ,"<>"&0)/1000-SUMIFS(comparison!$U:$U,comparison!$AK:$AK,$F123,comparison!$AA:$AA,">="&Q$4,comparison!$AA:$AA,"<="&EOMONTH(Q$4,0),comparison!$AJ:$AJ,"<>"&0)/1000 -> 64.41 | R123: =SUMIFS(comparison!$AC:$AC,comparison!$AK:$AK,$F123,comparison!$AA:$AA,">="&R$4,comparison!$AA:$AA,"<="&EOMONTH(R$4,0),comparison!$AJ:$AJ,"<>"&0)/1000-SUMIFS(comparison!$U:$U,comparison!$AK:$AK,$F123,comparison!$AA:$AA,">="&R$4,comparison!$AA:$AA,"<="&EOMONTH(R$4,0),comparison!$AJ:$AJ,"<>"&0)/1000 -> 59.8215 | S123: =SUMIFS(comparison!$AC:$AC,comparison!$AK:$AK,$F123,comparison!$AA:$AA,">="&S$4,comparison!$AA:$AA,"<="&EOMONTH(S$4,0),comparison!$AJ:$AJ,"<>"&0)/1000-SUMIFS(comparison!$U:$U,comparison!$AK:$AK,$F123,comparison!$AA:$AA,">="&S$4,comparison!$AA:$AA,"<="&EOMONTH(S$4,0),comparison!$AJ:$AJ,"<>"&0)/1000 -> 2.334 | T123: =SUMIFS(comparison!$AC:$AC,comparison!$AK:$AK,$F123,comparison!$AA:$AA,">="&T$4,comparison!$AA:$AA,"<="&EOMONTH(T$4,0),comparison!$AJ:$AJ,"<>"&0)/1000-SUMIFS(comparison!$U:$U,comparison!$AK:$AK,$F123,comparison!$AA:$AA,">="&T$4,comparison!$AA:$AA,"<="&EOMONTH(T$4,0),comparison!$AJ:$AJ,"<>"&0)/1000 -> 0 | U123: =SUMIFS(comparison!$AC:$AC,comparison!$AK:$AK,$F123,comparison!$AA:$AA,">="&U$4,comparison!$AA:$AA,"<="&EOMONTH(U$4,0),comparison!$AJ:$AJ,"<>"&0)/1000-SUMIFS(comparison!$U:$U,comparison!$AK:$AK,$F123,comparison!$AA:$AA,">="&U$4,comparison!$AA:$AA,"<="&EOMONTH(U$4,0),comparison!$AJ:$AJ,"<>"&0)/1000 -> 0 | V123: =SUMIFS(comparison!$AC:$AC,comparison!$AK:$AK,$F123,comparison!$AA:$AA,">="&V$4,comparison!$AA:$AA,"<="&EOMONTH(V$4,0),comparison!$AJ:$AJ,"<>"&0)/1000-SUMIFS(comparison!$U:$U,comparison!$AK:$AK,$F123,comparison!$AA:$AA,">="&V$4,comparison!$AA:$AA,"<="&EOMONTH(V$4,0),comparison!$AJ:$AJ,"<>"&0)/1000 -> 0 | W123: =SUMIFS(comparison!$AC:$AC,comparison!$AK:$AK,$F123,comparison!$AA:$AA,">="&W$4,comparison!$AA:$AA,"<="&EOMONTH(W$4,0),comparison!$AJ:$AJ,"<>"&0)/1000-SUMIFS(comparison!$U:$U,comparison!$AK:$AK,$F123,comparison!$AA:$AA,">="&W$4,comparison!$AA:$AA,"<="&EOMONTH(W$4,0),comparison!$AJ:$AJ,"<>"&0)/1000 -> 50.898 | X123: =SUMIFS(comparison!$AC:$AC,comparison!$AK:$AK,$F123,comparison!$AA:$AA,">="&X$4,comparison!$AA:$AA,"<="&EOMONTH(X$4,0),comparison!$AJ:$AJ,"<>"&0)/1000-SUMIFS(comparison!$U:$U,comparison!$AK:$AK,$F123,comparison!$AA:$AA,">="&X$4,comparison!$AA:$AA,"<="&EOMONTH(X$4,0),comparison!$AJ:$AJ,"<>"&0)/1000 -> 0 | Y123: =SUMIFS(comparison!$AC:$AC,comparison!$AK:$AK,$F123,comparison!$AA:$AA,">="&Y$4,comparison!$AA:$AA,"<="&EOMONTH(Y$4,0),comparison!$AJ:$AJ,"<>"&0)/1000-SUMIFS(comparison!$U:$U,comparison!$AK:$AK,$F123,comparison!$AA:$AA,">="&Y$4,comparison!$AA:$AA,"<="&EOMONTH(Y$4,0),comparison!$AJ:$AJ,"<>"&0)/1000 -> 18.63 | Z123: =SUMIFS(comparison!$AC:$AC,comparison!$AK:$AK,$F123,comparison!$AA:$AA,">="&Z$4,comparison!$AA:$AA,"<="&EOMONTH(Z$4,0),comparison!$AJ:$AJ,"<>"&0)/1000-SUMIFS(comparison!$U:$U,comparison!$AK:$AK,$F123,comparison!$AA:$AA,">="&Z$4,comparison!$AA:$AA,"<="&EOMONTH(Z$4,0),comparison!$AJ:$AJ,"<>"&0)/1000 -> 411 | AB123: 812.2935
F124: Подушка | M124: =M123 -> тыс.руб. | O124: =SUMIFS(comparison!$AC:$AC,comparison!$AK:$AK,$F124,comparison!$AA:$AA,">="&O$4,comparison!$AA:$AA,"<="&EOMONTH(O$4,0),comparison!$AJ:$AJ,"<>"&0)/1000-SUMIFS(comparison!$U:$U,comparison!$AK:$AK,$F124,comparison!$AA:$AA,">="&O$4,comparison!$AA:$AA,"<="&EOMONTH(O$4,0),comparison!$AJ:$AJ,"<>"&0)/1000 -> 93.195 | P124: =SUMIFS(comparison!$AC:$AC,comparison!$AK:$AK,$F124,comparison!$AA:$AA,">="&P$4,comparison!$AA:$AA,"<="&EOMONTH(P$4,0),comparison!$AJ:$AJ,"<>"&0)/1000-SUMIFS(comparison!$U:$U,comparison!$AK:$AK,$F124,comparison!$AA:$AA,">="&P$4,comparison!$AA:$AA,"<="&EOMONTH(P$4,0),comparison!$AJ:$AJ,"<>"&0)/1000 -> 0 | Q124: =SUMIFS(comparison!$AC:$AC,comparison!$AK:$AK,$F124,comparison!$AA:$AA,">="&Q$4,comparison!$AA:$AA,"<="&EOMONTH(Q$4,0),comparison!$AJ:$AJ,"<>"&0)/1000-SUMIFS(comparison!$U:$U,comparison!$AK:$AK,$F124,comparison!$AA:$AA,">="&Q$4,comparison!$AA:$AA,"<="&EOMONTH(Q$4,0),comparison!$AJ:$AJ,"<>"&0)/1000 -> 182.25 | R124: =SUMIFS(comparison!$AC:$AC,comparison!$AK:$AK,$F124,comparison!$AA:$AA,">="&R$4,comparison!$AA:$AA,"<="&EOMONTH(R$4,0),comparison!$AJ:$AJ,"<>"&0)/1000-SUMIFS(comparison!$U:$U,comparison!$AK:$AK,$F124,comparison!$AA:$AA,">="&R$4,comparison!$AA:$AA,"<="&EOMONTH(R$4,0),comparison!$AJ:$AJ,"<>"&0)/1000 -> 87.0885 | S124: =SUMIFS(comparison!$AC:$AC,comparison!$AK:$AK,$F124,comparison!$AA:$AA,">="&S$4,comparison!$AA:$AA,"<="&EOMONTH(S$4,0),comparison!$AJ:$AJ,"<>"&0)/1000-SUMIFS(comparison!$U:$U,comparison!$AK:$AK,$F124,comparison!$AA:$AA,">="&S$4,comparison!$AA:$AA,"<="&EOMONTH(S$4,0),comparison!$AJ:$AJ,"<>"&0)/1000 -> 307.4445 | T124: =SUMIFS(comparison!$AC:$AC,comparison!$AK:$AK,$F124,comparison!$AA:$AA,">="&T$4,comparison!$AA:$AA,"<="&EOMONTH(T$4,0),comparison!$AJ:$AJ,"<>"&0)/1000-SUMIFS(comparison!$U:$U,comparison!$AK:$AK,$F124,comparison!$AA:$AA,">="&T$4,comparison!$AA:$AA,"<="&EOMONTH(T$4,0),comparison!$AJ:$AJ,"<>"&0)/1000 -> 0 | U124: =SUMIFS(comparison!$AC:$AC,comparison!$AK:$AK,$F124,comparison!$AA:$AA,">="&U$4,comparison!$AA:$AA,"<="&EOMONTH(U$4,0),comparison!$AJ:$AJ,"<>"&0)/1000-SUMIFS(comparison!$U:$U,comparison!$AK:$AK,$F124,comparison!$AA:$AA,">="&U$4,comparison!$AA:$AA,"<="&EOMONTH(U$4,0),comparison!$AJ:$AJ,"<>"&0)/1000 -> 0 | V124: =SUMIFS(comparison!$AC:$AC,comparison!$AK:$AK,$F124,comparison!$AA:$AA,">="&V$4,comparison!$AA:$AA,"<="&EOMONTH(V$4,0),comparison!$AJ:$AJ,"<>"&0)/1000-SUMIFS(comparison!$U:$U,comparison!$AK:$AK,$F124,comparison!$AA:$AA,">="&V$4,comparison!$AA:$AA,"<="&EOMONTH(V$4,0),comparison!$AJ:$AJ,"<>"&0)/1000 -> 119.286 | W124: =SUMIFS(comparison!$AC:$AC,comparison!$AK:$AK,$F124,comparison!$AA:$AA,">="&W$4,comparison!$AA:$AA,"<="&EOMONTH(W$4,0),comparison!$AJ:$AJ,"<>"&0)/1000-SUMIFS(comparison!$U:$U,comparison!$AK:$AK,$F124,comparison!$AA:$AA,">="&W$4,comparison!$AA:$AA,"<="&EOMONTH(W$4,0),comparison!$AJ:$AJ,"<>"&0)/1000 -> 23.5104 | X124: =SUMIFS(comparison!$AC:$AC,comparison!$AK:$AK,$F124,comparison!$AA:$AA,">="&X$4,comparison!$AA:$AA,"<="&EOMONTH(X$4,0),comparison!$AJ:$AJ,"<>"&0)/1000-SUMIFS(comparison!$U:$U,comparison!$AK:$AK,$F124,comparison!$AA:$AA,">="&X$4,comparison!$AA:$AA,"<="&EOMONTH(X$4,0),comparison!$AJ:$AJ,"<>"&0)/1000 -> 0 | Y124: =SUMIFS(comparison!$AC:$AC,comparison!$AK:$AK,$F124,comparison!$AA:$AA,">="&Y$4,comparison!$AA:$AA,"<="&EOMONTH(Y$4,0),comparison!$AJ:$AJ,"<>"&0)/1000-SUMIFS(comparison!$U:$U,comparison!$AK:$AK,$F124,comparison!$AA:$AA,">="&Y$4,comparison!$AA:$AA,"<="&EOMONTH(Y$4,0),comparison!$AJ:$AJ,"<>"&0)/1000 -> 0 | Z124: =SUMIFS(comparison!$AC:$AC,comparison!$AK:$AK,$F124,comparison!$AA:$AA,">="&Z$4,comparison!$AA:$AA,"<="&EOMONTH(Z$4,0),comparison!$AJ:$AJ,"<>"&0)/1000-SUMIFS(comparison!$U:$U,comparison!$AK:$AK,$F124,comparison!$AA:$AA,">="&Z$4,comparison!$AA:$AA,"<="&EOMONTH(Z$4,0),comparison!$AJ:$AJ,"<>"&0)/1000 -> 203.025 | AB124: 1015.7994
F125: Плед | M125: =M124 -> тыс.руб. | O125: =SUMIFS(comparison!$AC:$AC,comparison!$AK:$AK,$F125,comparison!$AA:$AA,">="&O$4,comparison!$AA:$AA,"<="&EOMONTH(O$4,0),comparison!$AJ:$AJ,"<>"&0)/1000-SUMIFS(comparison!$U:$U,comparison!$AK:$AK,$F125,comparison!$AA:$AA,">="&O$4,comparison!$AA:$AA,"<="&EOMONTH(O$4,0),comparison!$AJ:$AJ,"<>"&0)/1000 -> 0 | P125: =SUMIFS(comparison!$AC:$AC,comparison!$AK:$AK,$F125,comparison!$AA:$AA,">="&P$4,comparison!$AA:$AA,"<="&EOMONTH(P$4,0),comparison!$AJ:$AJ,"<>"&0)/1000-SUMIFS(comparison!$U:$U,comparison!$AK:$AK,$F125,comparison!$AA:$AA,">="&P$4,comparison!$AA:$AA,"<="&EOMONTH(P$4,0),comparison!$AJ:$AJ,"<>"&0)/1000 -> 36.910455 | Q125: =SUMIFS(comparison!$AC:$AC,comparison!$AK:$AK,$F125,comparison!$AA:$AA,">="&Q$4,comparison!$AA:$AA,"<="&EOMONTH(Q$4,0),comparison!$AJ:$AJ,"<>"&0)/1000-SUMIFS(comparison!$U:$U,comparison!$AK:$AK,$F125,comparison!$AA:$AA,">="&Q$4,comparison!$AA:$AA,"<="&EOMONTH(Q$4,0),comparison!$AJ:$AJ,"<>"&0)/1000 -> 206.088012 | R125: =SUMIFS(comparison!$AC:$AC,comparison!$AK:$AK,$F125,comparison!$AA:$AA,">="&R$4,comparison!$AA:$AA,"<="&EOMONTH(R$4,0),comparison!$AJ:$AJ,"<>"&0)/1000-SUMIFS(comparison!$U:$U,comparison!$AK:$AK,$F125,comparison!$AA:$AA,">="&R$4,comparison!$AA:$AA,"<="&EOMONTH(R$4,0),comparison!$AJ:$AJ,"<>"&0)/1000 -> 255.4463842 | S125: =SUMIFS(comparison!$AC:$AC,comparison!$AK:$AK,$F125,comparison!$AA:$AA,">="&S$4,comparison!$AA:$AA,"<="&EOMONTH(S$4,0),comparison!$AJ:$AJ,"<>"&0)/1000-SUMIFS(comparison!$U:$U,comparison!$AK:$AK,$F125,comparison!$AA:$AA,">="&S$4,comparison!$AA:$AA,"<="&EOMONTH(S$4,0),comparison!$AJ:$AJ,"<>"&0)/1000 -> 754.3067175 | T125: =SUMIFS(comparison!$AC:$AC,comparison!$AK:$AK,$F125,comparison!$AA:$AA,">="&T$4,comparison!$AA:$AA,"<="&EOMONTH(T$4,0),comparison!$AJ:$AJ,"<>"&0)/1000-SUMIFS(comparison!$U:$U,comparison!$AK:$AK,$F125,comparison!$AA:$AA,">="&T$4,comparison!$AA:$AA,"<="&EOMONTH(T$4,0),comparison!$AJ:$AJ,"<>"&0)/1000 -> 806.9817023 | U125: =SUMIFS(comparison!$AC:$AC,comparison!$AK:$AK,$F125,comparison!$AA:$AA,">="&U$4,comparison!$AA:$AA,"<="&EOMONTH(U$4,0),comparison!$AJ:$AJ,"<>"&0)/1000-SUMIFS(comparison!$U:$U,comparison!$AK:$AK,$F125,comparison!$AA:$AA,">="&U$4,comparison!$AA:$AA,"<="&EOMONTH(U$4,0),comparison!$AJ:$AJ,"<>"&0)/1000 -> 36.91676625 | V125: =SUMIFS(comparison!$AC:$AC,comparison!$AK:$AK,$F125,comparison!$AA:$AA,">="&V$4,comparison!$AA:$AA,"<="&EOMONTH(V$4,0),comparison!$AJ:$AJ,"<>"&0)/1000-SUMIFS(comparison!$U:$U,comparison!$AK:$AK,$F125,comparison!$AA:$AA,">="&V$4,comparison!$AA:$AA,"<="&EOMONTH(V$4,0),comparison!$AJ:$AJ,"<>"&0)/1000 -> 195.035769 | W125: =SUMIFS(comparison!$AC:$AC,comparison!$AK:$AK,$F125,comparison!$AA:$AA,">="&W$4,comparison!$AA:$AA,"<="&EOMONTH(W$4,0),comparison!$AJ:$AJ,"<>"&0)/1000-SUMIFS(comparison!$U:$U,comparison!$AK:$AK,$F125,comparison!$AA:$AA,">="&W$4,comparison!$AA:$AA,"<="&EOMONTH(W$4,0),comparison!$AJ:$AJ,"<>"&0)/1000 -> 32.793849 | X125: =SUMIFS(comparison!$AC:$AC,comparison!$AK:$AK,$F125,comparison!$AA:$AA,">="&X$4,comparison!$AA:$AA,"<="&EOMONTH(X$4,0),comparison!$AJ:$AJ,"<>"&0)/1000-SUMIFS(comparison!$U:$U,comparison!$AK:$AK,$F125,comparison!$AA:$AA,">="&X$4,comparison!$AA:$AA,"<="&EOMONTH(X$4,0),comparison!$AJ:$AJ,"<>"&0)/1000 -> 0 | Y125: =SUMIFS(comparison!$AC:$AC,comparison!$AK:$AK,$F125,comparison!$AA:$AA,">="&Y$4,comparison!$AA:$AA,"<="&EOMONTH(Y$4,0),comparison!$AJ:$AJ,"<>"&0)/1000-SUMIFS(comparison!$U:$U,comparison!$AK:$AK,$F125,comparison!$AA:$AA,">="&Y$4,comparison!$AA:$AA,"<="&EOMONTH(Y$4,0),comparison!$AJ:$AJ,"<>"&0)/1000 -> 0 | Z125: =SUMIFS(comparison!$AC:$AC,comparison!$AK:$AK,$F125,comparison!$AA:$AA,">="&Z$4,comparison!$AA:$AA,"<="&EOMONTH(Z$4,0),comparison!$AJ:$AJ,"<>"&0)/1000-SUMIFS(comparison!$U:$U,comparison!$AK:$AK,$F125,comparison!$AA:$AA,">="&Z$4,comparison!$AA:$AA,"<="&EOMONTH(Z$4,0),comparison!$AJ:$AJ,"<>"&0)/1000 -> 0 | AB125: 2324.479655
F126: Комплект наволочек | M126: тыс.руб. | O126: =SUMIFS(comparison!$AC:$AC,comparison!$AK:$AK,$F126,comparison!$AA:$AA,">="&O$4,comparison!$AA:$AA,"<="&EOMONTH(O$4,0),comparison!$AJ:$AJ,"<>"&0)/1000-SUMIFS(comparison!$U:$U,comparison!$AK:$AK,$F126,comparison!$AA:$AA,">="&O$4,comparison!$AA:$AA,"<="&EOMONTH(O$4,0),comparison!$AJ:$AJ,"<>"&0)/1000 -> 110.8773235 | P126: =SUMIFS(comparison!$AC:$AC,comparison!$AK:$AK,$F126,comparison!$AA:$AA,">="&P$4,comparison!$AA:$AA,"<="&EOMONTH(P$4,0),comparison!$AJ:$AJ,"<>"&0)/1000-SUMIFS(comparison!$U:$U,comparison!$AK:$AK,$F126,comparison!$AA:$AA,">="&P$4,comparison!$AA:$AA,"<="&EOMONTH(P$4,0),comparison!$AJ:$AJ,"<>"&0)/1000 -> 0 | Q126: =SUMIFS(comparison!$AC:$AC,comparison!$AK:$AK,$F126,comparison!$AA:$AA,">="&Q$4,comparison!$AA:$AA,"<="&EOMONTH(Q$4,0),comparison!$AJ:$AJ,"<>"&0)/1000-SUMIFS(comparison!$U:$U,comparison!$AK:$AK,$F126,comparison!$AA:$AA,">="&Q$4,comparison!$AA:$AA,"<="&EOMONTH(Q$4,0),comparison!$AJ:$AJ,"<>"&0)/1000 -> 316.635675 | R126: =SUMIFS(comparison!$AC:$AC,comparison!$AK:$AK,$F126,comparison!$AA:$AA,">="&R$4,comparison!$AA:$AA,"<="&EOMONTH(R$4,0),comparison!$AJ:$AJ,"<>"&0)/1000-SUMIFS(comparison!$U:$U,comparison!$AK:$AK,$F126,comparison!$AA:$AA,">="&R$4,comparison!$AA:$AA,"<="&EOMONTH(R$4,0),comparison!$AJ:$AJ,"<>"&0)/1000 -> 132.47766 | S126: =SUMIFS(comparison!$AC:$AC,comparison!$AK:$AK,$F126,comparison!$AA:$AA,">="&S$4,comparison!$AA:$AA,"<="&EOMONTH(S$4,0),comparison!$AJ:$AJ,"<>"&0)/1000-SUMIFS(comparison!$U:$U,comparison!$AK:$AK,$F126,comparison!$AA:$AA,">="&S$4,comparison!$AA:$AA,"<="&EOMONTH(S$4,0),comparison!$AJ:$AJ,"<>"&0)/1000 -> 255.1678438 | T126: =SUMIFS(comparison!$AC:$AC,comparison!$AK:$AK,$F126,comparison!$AA:$AA,">="&T$4,comparison!$AA:$AA,"<="&EOMONTH(T$4,0),comparison!$AJ:$AJ,"<>"&0)/1000-SUMIFS(comparison!$U:$U,comparison!$AK:$AK,$F126,comparison!$AA:$AA,">="&T$4,comparison!$AA:$AA,"<="&EOMONTH(T$4,0),comparison!$AJ:$AJ,"<>"&0)/1000 -> 143.5704652 | U126: =SUMIFS(comparison!$AC:$AC,comparison!$AK:$AK,$F126,comparison!$AA:$AA,">="&U$4,comparison!$AA:$AA,"<="&EOMONTH(U$4,0),comparison!$AJ:$AJ,"<>"&0)/1000-SUMIFS(comparison!$U:$U,comparison!$AK:$AK,$F126,comparison!$AA:$AA,">="&U$4,comparison!$AA:$AA,"<="&EOMONTH(U$4,0),comparison!$AJ:$AJ,"<>"&0)/1000 -> 195.4214185 | V126: =SUMIFS(comparison!$AC:$AC,comparison!$AK:$AK,$F126,comparison!$AA:$AA,">="&V$4,comparison!$AA:$AA,"<="&EOMONTH(V$4,0),comparison!$AJ:$AJ,"<>"&0)/1000-SUMIFS(comparison!$U:$U,comparison!$AK:$AK,$F126,comparison!$AA:$AA,">="&V$4,comparison!$AA:$AA,"<="&EOMONTH(V$4,0),comparison!$AJ:$AJ,"<>"&0)/1000 -> 198.6241142 | W126: =SUMIFS(comparison!$AC:$AC,comparison!$AK:$AK,$F126,comparison!$AA:$AA,">="&W$4,comparison!$AA:$AA,"<="&EOMONTH(W$4,0),comparison!$AJ:$AJ,"<>"&0)/1000-SUMIFS(comparison!$U:$U,comparison!$AK:$AK,$F126,comparison!$AA:$AA,">="&W$4,comparison!$AA:$AA,"<="&EOMONTH(W$4,0),comparison!$AJ:$AJ,"<>"&0)/1000 -> 100.3835945 | X126: =SUMIFS(comparison!$AC:$AC,comparison!$AK:$AK,$F126,comparison!$AA:$AA,">="&X$4,comparison!$AA:$AA,"<="&EOMONTH(X$4,0),comparison!$AJ:$AJ,"<>"&0)/1000-SUMIFS(comparison!$U:$U,comparison!$AK:$AK,$F126,comparison!$AA:$AA,">="&X$4,comparison!$AA:$AA,"<="&EOMONTH(X$4,0),comparison!$AJ:$AJ,"<>"&0)/1000 -> 97.8763625 | Y126: =SUMIFS(comparison!$AC:$AC,comparison!$AK:$AK,$F126,comparison!$AA:$AA,">="&Y$4,comparison!$AA:$AA,"<="&EOMONTH(Y$4,0),comparison!$AJ:$AJ,"<>"&0)/1000-SUMIFS(comparison!$U:$U,comparison!$AK:$AK,$F126,comparison!$AA:$AA,">="&Y$4,comparison!$AA:$AA,"<="&EOMONTH(Y$4,0),comparison!$AJ:$AJ,"<>"&0)/1000 -> 182.81647 | Z126: =SUMIFS(comparison!$AC:$AC,comparison!$AK:$AK,$F126,comparison!$AA:$AA,">="&Z$4,comparison!$AA:$AA,"<="&EOMONTH(Z$4,0),comparison!$AJ:$AJ,"<>"&0)/1000-SUMIFS(comparison!$U:$U,comparison!$AK:$AK,$F126,comparison!$AA:$AA,">="&Z$4,comparison!$AA:$AA,"<="&EOMONTH(Z$4,0),comparison!$AJ:$AJ,"<>"&0)/1000 -> 227.562072 | AB126: 1961.412999
F127: Полотенце | M127: тыс.руб. | O127: =SUMIFS(comparison!$AC:$AC,comparison!$AK:$AK,$F127,comparison!$AA:$AA,">="&O$4,comparison!$AA:$AA,"<="&EOMONTH(O$4,0),comparison!$AJ:$AJ,"<>"&0)/1000-SUMIFS(comparison!$U:$U,comparison!$AK:$AK,$F127,comparison!$AA:$AA,">="&O$4,comparison!$AA:$AA,"<="&EOMONTH(O$4,0),comparison!$AJ:$AJ,"<>"&0)/1000 -> -2.0162145 | P127: =SUMIFS(comparison!$AC:$AC,comparison!$AK:$AK,$F127,comparison!$AA:$AA,">="&P$4,comparison!$AA:$AA,"<="&EOMONTH(P$4,0),comparison!$AJ:$AJ,"<>"&0)/1000-SUMIFS(comparison!$U:$U,comparison!$AK:$AK,$F127,comparison!$AA:$AA,">="&P$4,comparison!$AA:$AA,"<="&EOMONTH(P$4,0),comparison!$AJ:$AJ,"<>"&0)/1000 -> 312.133194 | Q127: =SUMIFS(comparison!$AC:$AC,comparison!$AK:$AK,$F127,comparison!$AA:$AA,">="&Q$4,comparison!$AA:$AA,"<="&EOMONTH(Q$4,0),comparison!$AJ:$AJ,"<>"&0)/1000-SUMIFS(comparison!$U:$U,comparison!$AK:$AK,$F127,comparison!$AA:$AA,">="&Q$4,comparison!$AA:$AA,"<="&EOMONTH(Q$4,0),comparison!$AJ:$AJ,"<>"&0)/1000 -> 0 | R127: =SUMIFS(comparison!$AC:$AC,comparison!$AK:$AK,$F127,comparison!$AA:$AA,">="&R$4,comparison!$AA:$AA,"<="&EOMONTH(R$4,0),comparison!$AJ:$AJ,"<>"&0)/1000-SUMIFS(comparison!$U:$U,comparison!$AK:$AK,$F127,comparison!$AA:$AA,">="&R$4,comparison!$AA:$AA,"<="&EOMONTH(R$4,0),comparison!$AJ:$AJ,"<>"&0)/1000 -> 247.4390398 | S127: =SUMIFS(comparison!$AC:$AC,comparison!$AK:$AK,$F127,comparison!$AA:$AA,">="&S$4,comparison!$AA:$AA,"<="&EOMONTH(S$4,0),comparison!$AJ:$AJ,"<>"&0)/1000-SUMIFS(comparison!$U:$U,comparison!$AK:$AK,$F127,comparison!$AA:$AA,">="&S$4,comparison!$AA:$AA,"<="&EOMONTH(S$4,0),comparison!$AJ:$AJ,"<>"&0)/1000 -> 222.833597 | T127: =SUMIFS(comparison!$AC:$AC,comparison!$AK:$AK,$F127,comparison!$AA:$AA,">="&T$4,comparison!$AA:$AA,"<="&EOMONTH(T$4,0),comparison!$AJ:$AJ,"<>"&0)/1000-SUMIFS(comparison!$U:$U,comparison!$AK:$AK,$F127,comparison!$AA:$AA,">="&T$4,comparison!$AA:$AA,"<="&EOMONTH(T$4,0),comparison!$AJ:$AJ,"<>"&0)/1000 -> 565.634902 | U127: =SUMIFS(comparison!$AC:$AC,comparison!$AK:$AK,$F127,comparison!$AA:$AA,">="&U$4,comparison!$AA:$AA,"<="&EOMONTH(U$4,0),comparison!$AJ:$AJ,"<>"&0)/1000-SUMIFS(comparison!$U:$U,comparison!$AK:$AK,$F127,comparison!$AA:$AA,">="&U$4,comparison!$AA:$AA,"<="&EOMONTH(U$4,0),comparison!$AJ:$AJ,"<>"&0)/1000 -> 0 | V127: =SUMIFS(comparison!$AC:$AC,comparison!$AK:$AK,$F127,comparison!$AA:$AA,">="&V$4,comparison!$AA:$AA,"<="&EOMONTH(V$4,0),comparison!$AJ:$AJ,"<>"&0)/1000-SUMIFS(comparison!$U:$U,comparison!$AK:$AK,$F127,comparison!$AA:$AA,">="&V$4,comparison!$AA:$AA,"<="&EOMONTH(V$4,0),comparison!$AJ:$AJ,"<>"&0)/1000 -> 22.042214 | W127: =SUMIFS(comparison!$AC:$AC,comparison!$AK:$AK,$F127,comparison!$AA:$AA,">="&W$4,comparison!$AA:$AA,"<="&EOMONTH(W$4,0),comparison!$AJ:$AJ,"<>"&0)/1000-SUMIFS(comparison!$U:$U,comparison!$AK:$AK,$F127,comparison!$AA:$AA,">="&W$4,comparison!$AA:$AA,"<="&EOMONTH(W$4,0),comparison!$AJ:$AJ,"<>"&0)/1000 -> 126.9842025 | X127: =SUMIFS(comparison!$AC:$AC,comparison!$AK:$AK,$F127,comparison!$AA:$AA,">="&X$4,comparison!$AA:$AA,"<="&EOMONTH(X$4,0),comparison!$AJ:$AJ,"<>"&0)/1000-SUMIFS(comparison!$U:$U,comparison!$AK:$AK,$F127,comparison!$AA:$AA,">="&X$4,comparison!$AA:$AA,"<="&EOMONTH(X$4,0),comparison!$AJ:$AJ,"<>"&0)/1000 -> 224.6853862 | Y127: =SUMIFS(comparison!$AC:$AC,comparison!$AK:$AK,$F127,comparison!$AA:$AA,">="&Y$4,comparison!$AA:$AA,"<="&EOMONTH(Y$4,0),comparison!$AJ:$AJ,"<>"&0)/1000-SUMIFS(comparison!$U:$U,comparison!$AK:$AK,$F127,comparison!$AA:$AA,">="&Y$4,comparison!$AA:$AA,"<="&EOMONTH(Y$4,0),comparison!$AJ:$AJ,"<>"&0)/1000 -> 87.904392 | Z127: =SUMIFS(comparison!$AC:$AC,comparison!$AK:$AK,$F127,comparison!$AA:$AA,">="&Z$4,comparison!$AA:$AA,"<="&EOMONTH(Z$4,0),comparison!$AJ:$AJ,"<>"&0)/1000-SUMIFS(comparison!$U:$U,comparison!$AK:$AK,$F127,comparison!$AA:$AA,">="&Z$4,comparison!$AA:$AA,"<="&EOMONTH(Z$4,0),comparison!$AJ:$AJ,"<>"&0)/1000 -> 33.195705 | AB127: 1840.836418
F128: Комплект семейный | M128: =M127 -> тыс.руб. | O128: =SUMIFS(comparison!$AC:$AC,comparison!$AK:$AK,$F128,comparison!$AA:$AA,">="&O$4,comparison!$AA:$AA,"<="&EOMONTH(O$4,0),comparison!$AJ:$AJ,"<>"&0)/1000-SUMIFS(comparison!$U:$U,comparison!$AK:$AK,$F128,comparison!$AA:$AA,">="&O$4,comparison!$AA:$AA,"<="&EOMONTH(O$4,0),comparison!$AJ:$AJ,"<>"&0)/1000 -> 0 | P128: =SUMIFS(comparison!$AC:$AC,comparison!$AK:$AK,$F128,comparison!$AA:$AA,">="&P$4,comparison!$AA:$AA,"<="&EOMONTH(P$4,0),comparison!$AJ:$AJ,"<>"&0)/1000-SUMIFS(comparison!$U:$U,comparison!$AK:$AK,$F128,comparison!$AA:$AA,">="&P$4,comparison!$AA:$AA,"<="&EOMONTH(P$4,0),comparison!$AJ:$AJ,"<>"&0)/1000 -> 0 | Q128: =SUMIFS(comparison!$AC:$AC,comparison!$AK:$AK,$F128,comparison!$AA:$AA,">="&Q$4,comparison!$AA:$AA,"<="&EOMONTH(Q$4,0),comparison!$AJ:$AJ,"<>"&0)/1000-SUMIFS(comparison!$U:$U,comparison!$AK:$AK,$F128,comparison!$AA:$AA,">="&Q$4,comparison!$AA:$AA,"<="&EOMONTH(Q$4,0),comparison!$AJ:$AJ,"<>"&0)/1000 -> 0 | R128: =SUMIFS(comparison!$AC:$AC,comparison!$AK:$AK,$F128,comparison!$AA:$AA,">="&R$4,comparison!$AA:$AA,"<="&EOMONTH(R$4,0),comparison!$AJ:$AJ,"<>"&0)/1000-SUMIFS(comparison!$U:$U,comparison!$AK:$AK,$F128,comparison!$AA:$AA,">="&R$4,comparison!$AA:$AA,"<="&EOMONTH(R$4,0),comparison!$AJ:$AJ,"<>"&0)/1000 -> 275.85618 | S128: =SUMIFS(comparison!$AC:$AC,comparison!$AK:$AK,$F128,comparison!$AA:$AA,">="&S$4,comparison!$AA:$AA,"<="&EOMONTH(S$4,0),comparison!$AJ:$AJ,"<>"&0)/1000-SUMIFS(comparison!$U:$U,comparison!$AK:$AK,$F128,comparison!$AA:$AA,">="&S$4,comparison!$AA:$AA,"<="&EOMONTH(S$4,0),comparison!$AJ:$AJ,"<>"&0)/1000 -> 368.38092 | T128: =SUMIFS(comparison!$AC:$AC,comparison!$AK:$AK,$F128,comparison!$AA:$AA,">="&T$4,comparison!$AA:$AA,"<="&EOMONTH(T$4,0),comparison!$AJ:$AJ,"<>"&0)/1000-SUMIFS(comparison!$U:$U,comparison!$AK:$AK,$F128,comparison!$AA:$AA,">="&T$4,comparison!$AA:$AA,"<="&EOMONTH(T$4,0),comparison!$AJ:$AJ,"<>"&0)/1000 -> 56.92905 | U128: =SUMIFS(comparison!$AC:$AC,comparison!$AK:$AK,$F128,comparison!$AA:$AA,">="&U$4,comparison!$AA:$AA,"<="&EOMONTH(U$4,0),comparison!$AJ:$AJ,"<>"&0)/1000-SUMIFS(comparison!$U:$U,comparison!$AK:$AK,$F128,comparison!$AA:$AA,">="&U$4,comparison!$AA:$AA,"<="&EOMONTH(U$4,0),comparison!$AJ:$AJ,"<>"&0)/1000 -> 0 | V128: =SUMIFS(comparison!$AC:$AC,comparison!$AK:$AK,$F128,comparison!$AA:$AA,">="&V$4,comparison!$AA:$AA,"<="&EOMONTH(V$4,0),comparison!$AJ:$AJ,"<>"&0)/1000-SUMIFS(comparison!$U:$U,comparison!$AK:$AK,$F128,comparison!$AA:$AA,">="&V$4,comparison!$AA:$AA,"<="&EOMONTH(V$4,0),comparison!$AJ:$AJ,"<>"&0)/1000 -> 159.81525 | W128: =SUMIFS(comparison!$AC:$AC,comparison!$AK:$AK,$F128,comparison!$AA:$AA,">="&W$4,comparison!$AA:$AA,"<="&EOMONTH(W$4,0),comparison!$AJ:$AJ,"<>"&0)/1000-SUMIFS(comparison!$U:$U,comparison!$AK:$AK,$F128,comparison!$AA:$AA,">="&W$4,comparison!$AA:$AA,"<="&EOMONTH(W$4,0),comparison!$AJ:$AJ,"<>"&0)/1000 -> 0 | X128: =SUMIFS(comparison!$AC:$AC,comparison!$AK:$AK,$F128,comparison!$AA:$AA,">="&X$4,comparison!$AA:$AA,"<="&EOMONTH(X$4,0),comparison!$AJ:$AJ,"<>"&0)/1000-SUMIFS(comparison!$U:$U,comparison!$AK:$AK,$F128,comparison!$AA:$AA,">="&X$4,comparison!$AA:$AA,"<="&EOMONTH(X$4,0),comparison!$AJ:$AJ,"<>"&0)/1000 -> 44.26437 | Y128: =SUMIFS(comparison!$AC:$AC,comparison!$AK:$AK,$F128,comparison!$AA:$AA,">="&Y$4,comparison!$AA:$AA,"<="&EOMONTH(Y$4,0),comparison!$AJ:$AJ,"<>"&0)/1000-SUMIFS(comparison!$U:$U,comparison!$AK:$AK,$F128,comparison!$AA:$AA,">="&Y$4,comparison!$AA:$AA,"<="&EOMONTH(Y$4,0),comparison!$AJ:$AJ,"<>"&0)/1000 -> 309.85944 | Z128: =SUMIFS(comparison!$AC:$AC,comparison!$AK:$AK,$F128,comparison!$AA:$AA,">="&Z$4,comparison!$AA:$AA,"<="&EOMONTH(Z$4,0),comparison!$AJ:$AJ,"<>"&0)/1000-SUMIFS(comparison!$U:$U,comparison!$AK:$AK,$F128,comparison!$AA:$AA,">="&Z$4,comparison!$AA:$AA,"<="&EOMONTH(Z$4,0),comparison!$AJ:$AJ,"<>"&0)/1000 -> 192.02733 | AB128: 1407.13254
F129: Покрывало | M129: =M128 -> тыс.руб. | O129: =SUMIFS(comparison!$AC:$AC,comparison!$AK:$AK,$F129,comparison!$AA:$AA,">="&O$4,comparison!$AA:$AA,"<="&EOMONTH(O$4,0),comparison!$AJ:$AJ,"<>"&0)/1000-SUMIFS(comparison!$U:$U,comparison!$AK:$AK,$F129,comparison!$AA:$AA,">="&O$4,comparison!$AA:$AA,"<="&EOMONTH(O$4,0),comparison!$AJ:$AJ,"<>"&0)/1000 -> 0 | P129: =SUMIFS(comparison!$AC:$AC,comparison!$AK:$AK,$F129,comparison!$AA:$AA,">="&P$4,comparison!$AA:$AA,"<="&EOMONTH(P$4,0),comparison!$AJ:$AJ,"<>"&0)/1000-SUMIFS(comparison!$U:$U,comparison!$AK:$AK,$F129,comparison!$AA:$AA,">="&P$4,comparison!$AA:$AA,"<="&EOMONTH(P$4,0),comparison!$AJ:$AJ,"<>"&0)/1000 -> 0 | Q129: =SUMIFS(comparison!$AC:$AC,comparison!$AK:$AK,$F129,comparison!$AA:$AA,">="&Q$4,comparison!$AA:$AA,"<="&EOMONTH(Q$4,0),comparison!$AJ:$AJ,"<>"&0)/1000-SUMIFS(comparison!$U:$U,comparison!$AK:$AK,$F129,comparison!$AA:$AA,">="&Q$4,comparison!$AA:$AA,"<="&EOMONTH(Q$4,0),comparison!$AJ:$AJ,"<>"&0)/1000 -> 111.6585375 | R129: =SUMIFS(comparison!$AC:$AC,comparison!$AK:$AK,$F129,comparison!$AA:$AA,">="&R$4,comparison!$AA:$AA,"<="&EOMONTH(R$4,0),comparison!$AJ:$AJ,"<>"&0)/1000-SUMIFS(comparison!$U:$U,comparison!$AK:$AK,$F129,comparison!$AA:$AA,">="&R$4,comparison!$AA:$AA,"<="&EOMONTH(R$4,0),comparison!$AJ:$AJ,"<>"&0)/1000 -> 0 | S129: =SUMIFS(comparison!$AC:$AC,comparison!$AK:$AK,$F129,comparison!$AA:$AA,">="&S$4,comparison!$AA:$AA,"<="&EOMONTH(S$4,0),comparison!$AJ:$AJ,"<>"&0)/1000-SUMIFS(comparison!$U:$U,comparison!$AK:$AK,$F129,comparison!$AA:$AA,">="&S$4,comparison!$AA:$AA,"<="&EOMONTH(S$4,0),comparison!$AJ:$AJ,"<>"&0)/1000 -> 124.1085375 | T129: =SUMIFS(comparison!$AC:$AC,comparison!$AK:$AK,$F129,comparison!$AA:$AA,">="&T$4,comparison!$AA:$AA,"<="&EOMONTH(T$4,0),comparison!$AJ:$AJ,"<>"&0)/1000-SUMIFS(comparison!$U:$U,comparison!$AK:$AK,$F129,comparison!$AA:$AA,">="&T$4,comparison!$AA:$AA,"<="&EOMONTH(T$4,0),comparison!$AJ:$AJ,"<>"&0)/1000 -> 64.94527125 | U129: =SUMIFS(comparison!$AC:$AC,comparison!$AK:$AK,$F129,comparison!$AA:$AA,">="&U$4,comparison!$AA:$AA,"<="&EOMONTH(U$4,0),comparison!$AJ:$AJ,"<>"&0)/1000-SUMIFS(comparison!$U:$U,comparison!$AK:$AK,$F129,comparison!$AA:$AA,">="&U$4,comparison!$AA:$AA,"<="&EOMONTH(U$4,0),comparison!$AJ:$AJ,"<>"&0)/1000 -> 280.2538087 | V129: =SUMIFS(comparison!$AC:$AC,comparison!$AK:$AK,$F129,comparison!$AA:$AA,">="&V$4,comparison!$AA:$AA,"<="&EOMONTH(V$4,0),comparison!$AJ:$AJ,"<>"&0)/1000-SUMIFS(comparison!$U:$U,comparison!$AK:$AK,$F129,comparison!$AA:$AA,">="&V$4,comparison!$AA:$AA,"<="&EOMONTH(V$4,0),comparison!$AJ:$AJ,"<>"&0)/1000 -> 0 | W129: =SUMIFS(comparison!$AC:$AC,comparison!$AK:$AK,$F129,comparison!$AA:$AA,">="&W$4,comparison!$AA:$AA,"<="&EOMONTH(W$4,0),comparison!$AJ:$AJ,"<>"&0)/1000-SUMIFS(comparison!$U:$U,comparison!$AK:$AK,$F129,comparison!$AA:$AA,">="&W$4,comparison!$AA:$AA,"<="&EOMONTH(W$4,0),comparison!$AJ:$AJ,"<>"&0)/1000 -> 0 | X129: =SUMIFS(comparison!$AC:$AC,comparison!$AK:$AK,$F129,comparison!$AA:$AA,">="&X$4,comparison!$AA:$AA,"<="&EOMONTH(X$4,0),comparison!$AJ:$AJ,"<>"&0)/1000-SUMIFS(comparison!$U:$U,comparison!$AK:$AK,$F129,comparison!$AA:$AA,">="&X$4,comparison!$AA:$AA,"<="&EOMONTH(X$4,0),comparison!$AJ:$AJ,"<>"&0)/1000 -> 449.40607 | Y129: =SUMIFS(comparison!$AC:$AC,comparison!$AK:$AK,$F129,comparison!$AA:$AA,">="&Y$4,comparison!$AA:$AA,"<="&EOMONTH(Y$4,0),comparison!$AJ:$AJ,"<>"&0)/1000-SUMIFS(comparison!$U:$U,comparison!$AK:$AK,$F129,comparison!$AA:$AA,">="&Y$4,comparison!$AA:$AA,"<="&EOMONTH(Y$4,0),comparison!$AJ:$AJ,"<>"&0)/1000 -> 0 | Z129: =SUMIFS(comparison!$AC:$AC,comparison!$AK:$AK,$F129,comparison!$AA:$AA,">="&Z$4,comparison!$AA:$AA,"<="&EOMONTH(Z$4,0),comparison!$AJ:$AJ,"<>"&0)/1000-SUMIFS(comparison!$U:$U,comparison!$AK:$AK,$F129,comparison!$AA:$AA,">="&Z$4,comparison!$AA:$AA,"<="&EOMONTH(Z$4,0),comparison!$AJ:$AJ,"<>"&0)/1000 -> 0 | AB129: 1030.372225
F131: =F120 -> Комплект евро | M131: % | O131: =IF(O$119=0,0,O120/O$119) -> 0 | P131: =IF(P$119=0,0,P120/P$119) -> 0.2033325425 | Q131: 0.02027890351 | R131: 0.2263127552 | S131: 0.2099387458 | T131: 0.268250566 | U131: 0.3320832061 | V131: 0.3917413786 | W131: 0.2945592361 | X131: 0.3266560231 | Y131: 0.316158296 | Z131: 0.2906317704 | AB131: =IF(AB$119=0,0,AB120/AB$119) -> 0.2441807937
F132: =F121 -> Комплект | M132: % | O132: =IF(O$119=0,0,O121/O$119) -> 0.564360924 | P132: 0.2966973115 | Q132: 0.2894345779 | R132: 0.1444930006 | S132: 0.07715751282 | T132: 0.1870863217 | U132: 0.1626602272 | V132: 0.0790500583 | W132: 0.2457597943 | X132: 0.1057171603 | Y132: 0.03411527482 | Z132: 0.1475741576 | AB132: 0.1748579441
F133: Простыня | M133: % | O133: =IF(O$119=0,0,O122/O$119) -> 0.1400643271 | P133: 0.2034060617 | Q133: 0.1445695449 | R133: 0.1518744927 | S133: 0.1829733362 | T133: 0.1237195392 | U133: 0.1713819095 | V133: 0.1379884801 | W133: 0.1499477641 | X133: 0.1307601551 | Y133: 0.2207438384 | Z133: 0.1508960177 | AB133: 0.1559684018
F134: Одеяло | M134: % | O134: =IF(O$119=0,0,O123/O$119) -> 0.1489282472 | P134: 0 | Q134: 0.02564441886 | R134: 0.02589653863 | S134: 0.0005893460843 | T134: 0 | U134: 0 | V134: 0 | W134: 0.03216912842 | X134: 0 | Y134: 0.009971162516 | Z134: 0.1458239419 | AB134: 0.0280729614
F135: Подушка | M135: % | O135: =IF(O$119=0,0,O124/O$119) -> 0.06763824559 | P135: 0 | Q135: 0.07256164163 | R135: 0.03770033691 | S135: 0.07763119632 | T135: 0 | U135: 0 | V135: 0.05838206975 | W135: 0.01485930836 | X135: 0 | Y135: 0 | Z135: 0.0720338341 | AB135: 0.03510614987
F136: Плед | M136: % | O136: =IF(O$119=0,0,O125/O$119) -> 0 | P136: 0.02786648189 | Q136: 0.08205258969 | R136: 0.1105819339 | S136: 0.1904660284 | T136: 0.1664892998 | U136: 0.01591245155 | V136: 0.09545623015 | W136: 0.02072673857 | X136: 0 | Y136: 0 | Z136: 0 | AB136: 0.08033429745
F137: Комплект наволочек | M137: % | O137: =IF(O$119=0,0,O126/O$119) -> 0.08047156647 | P137: 0 | Q137: 0.1260664163 | R137: 0.05734916108 | S137: 0.06443109236 | T137: 0.02962018365 | U137: 0.08423364692 | V137: 0.09721247162 | W137: 0.06344557238 | X137: 0.04964808721 | Y137: 0.09784716763 | Z137: 0.08073965542 | AB137: 0.06778666999
F138: Полотенце | M138: % | O138: =IF(O$119=0,0,O127/O$119) -> -0.001463310387 | P138: 0.2356528522 | Q138: 0 | R138: 0.1071155797 | S138: 0.05626654149 | T138: 0.1166967708 | U138: 0 | V138: 0.01078810653 | W138: 0.08025798888 | X138: 0.1139723562 | Y138: 0.04704825435 | Z138: 0.01177792837 | AB138: 0.06361952879
F139: Комплект семейный | M139: % | O139: =IF(O$119=0,0,O128/O$119) -> 0 | P139: 0 | Q139: 0 | R139: 0.1194172701 | S139: 0.09301793176 | T139: 0.01174509614 | U139: 0 | V139: 0.07821827434 | W139: 0 | X139: 0.02245323841 | Y139: 0.1658432009 | Z139: 0.06813183022 | AB139: 0.04863067042
F140: Покрывало | M140: % | O140: =IF(O$119=0,0,O129/O$119) -> 0 | P140: 0 | Q140: 0.04445611404 | R140: 0 | S140: 0.03133799512 | T140: 0.01339893173 | U140: 0.1207994526 | V140: 0 | W140: 0 | X140: 0.2279626172 | Y140: 0 | Z140: 0 | AB140: 0.03560978846
F142: Маржинальность по группам ТОП-10 | M142: % | O142: =IF(O96=0,0,O119/O96) -> 0.628791073 | P142: =IF(P96=0,0,P119/P96) -> 0.7681336613 | Q142: 0.5938082835 | R142: 0.6571486568 | S142: 0.6738572204 | T142: 0.7062041532 | U142: 0.7548667507 | V142: 0.6390448727 | W142: 0.5138047775 | X142: 0.738792946 | Y142: 0.7233495282 | Z142: 0.5872797739 | AB142: =IF(AB96=0,0,AB119/AB96) -> 0.6605912342
F143: =F131 -> Комплект евро | M143: % | O143: =IF(O97=0,0,O120/O97) -> 0 | P143: 0.729873811 | Q143: 0.692975 | R143: 0.6723729747 | S143: 0.6898532548 | T143: 0.7018182007 | U143: 0.7456741248 | V143: 0.735395389 | W143: 0.6935292697 | X143: 0.7170764386 | Y143: 0.725438401 | Z143: 0.8116687649 | AB143: 0.7214722127
F144: =F132 -> Комплект | M144: % | O144: =IF(O98=0,0,O121/O98) -> 0.7690270712 | P144: 0.7631603602 | Q144: 0.7323063992 | R144: 0.7602359583 | S144: 0.6129268685 | T144: 0.7048846385 | U144: 0.7058931664 | V144: 0.5876255094 | W144: 0.6372356354 | X144: 0.7594048699 | Y144: 0.7358218615 | Z144: 0.7690285298 | AB144: 0.7161962932
F145: Простыня | M145: % | O145: =IF(O99=0,0,O122/O99) -> 0.7785276941 | P145: 0.8008466079 | Q145: 0.7042322662 | R145: 0.7214822012 | S145: 0.7114458861 | T145: 0.6928625324 | U145: 0.7840446505 | V145: 0.7579881538 | W145: 0.7143853531 | X145: 0.738204166 | Y145: 0.7665923745 | Z145: 0.7800652584 | AB145: 0.7381576915
F146: Одеяло | M146: % | O146: =IF(O100=0,0,O123/O100) -> 0.375 | P146: 0 | Q146: 0.1666666667 | R146: 0.264891469 | S146: 0.004208909038 | T146: 0 | U146: 0 | V146: 0 | W146: 0.09795612009 | X146: 0 | Y146: 0.2647058824 | Z146: 0.3125 | AB146: 0.2153172847
F147: Подушка | M147: % | O147: =IF(O101=0,0,O124/O101) -> 0.375 | P147: 0 | Q147: 0.2384690873 | R147: 0.3153940592 | S147: 0.8085070294 | T147: 0 | U147: 0 | V147: 0.3060969977 | W147: 0.121689441 | X147: 0 | Y147: 0 | Z147: 0.3125 | AB147: 0.3500658571
F148: Плед | M148: % | O148: =IF(O102=0,0,O125/O102) -> 0 | P148: 0.8485162069 | Q148: 0.6753109265 | R148: 0.7650385872 | S148: 0.9271223175 | T148: 0.7627246069 | U148: 0.8486612931 | V148: 0.8367042857 | W148: 0.4924001351 | X148: 0 | Y148: 0 | Z148: 0 | AB148: 0.8022639799
F149: Комплект наволочек | M149: % | O149: =IF(O103=0,0,O126/O103) -> 0.8122880842 | P149: 0 | Q149: 0.7850146895 | R149: 0.7826179885 | S149: 0.7645547188 | T149: 0.5328080799 | U149: 0.760809073 | V149: 0.6639727029 | W149: 0.7074249084 | X149: 0.7694682586 | Y149: 0.7044054899 | Z149: 0.7560076145 | AB149: 0.7269945048
F150: Полотенце | M150: % | O150: =IF(O104=0,0,O127/O104) -> -672.0715 | P150: 0.7678553358 | Q150: 0 | R150: 0.7334787009 | S150: 0.665572273 | T150: 0.7363599583 | U150: 0 | V150: 0.6110107831 | W150: 0.6143406023 | X150: 0.8207685342 | Y150: 0.7103040822 | Z150: 0.756597265 | AB150: 0.7273276327
F151: Комплект семейный | M151: % | O151: =IF(O105=0,0,O128/O105) -> 0 | P151: 0 | Q151: 0 | R151: 0.7727063866 | S151: 0.7370566627 | T151: 0.6863056058 | U151: 0 | V151: 0.7282535885 | W151: 0 | X151: 0.6225649789 | Y151: 0.7573710724 | Z151: 0.7187996631 | AB151: 0.7380420597
F152: Покрывало | M152: % | O152: =IF(O106=0,0,O129/O106) -> 0 | P152: 0 | Q152: 0.8363935393 | R152: 0 | S152: 0.8503496917 | T152: 0.622976223 | U152: 0.8208957491 | V152: 0 | W152: 0 | X152: 0.7445428595 | Y152: 0 | Z152: 0 | AB152: 0.7754739407
F154: Структура фин. оборач-сти по гр. ТОП-10 | M154: дни | O154: =IF(OR(O96=0,O96-O119=0),0,(SUMIFS(comparison!$AI:$AI,comparison!$AA:$AA,">="&O$4,comparison!$AA:$AA,"<="&EOMONTH(O$4,0),comparison!$AJ:$AJ,"<>"&0)/(1000*O96)-SUMIFS(comparison!$AJ:$AJ,comparison!$AA:$AA,">="&O$4,comparison!$AA:$AA,"<="&EOMONTH(O$4,0),comparison!$AJ:$AJ,"<>"&0)/(1000*(O96-O119)))) -> 196.1528406 | P154: =IF(OR(P96=0,P96-P119=0),0,(SUMIFS(comparison!$AI:$AI,comparison!$AA:$AA,">="&P$4,comparison!$AA:$AA,"<="&EOMONTH(P$4,0),comparison!$AJ:$AJ,"<>"&0)/(1000*P96)-SUMIFS(comparison!$AJ:$AJ,comparison!$AA:$AA,">="&P$4,comparison!$AA:$AA,"<="&EOMONTH(P$4,0),comparison!$AJ:$AJ,"<>"&0)/(1000*(P96-P119)))) -> 246.7124183 | Q154: =IF(OR(Q96=0,Q96-Q119=0),0,(SUMIFS(comparison!$AI:$AI,comparison!$AA:$AA,">="&Q$4,comparison!$AA:$AA,"<="&EOMONTH(Q$4,0),comparison!$AJ:$AJ,"<>"&0)/(1000*Q96)-SUMIFS(comparison!$AJ:$AJ,comparison!$AA:$AA,">="&Q$4,comparison!$AA:$AA,"<="&EOMONTH(Q$4,0),comparison!$AJ:$AJ,"<>"&0)/(1000*(Q96-Q119)))) -> 65.57806481 | R154: =IF(OR(R96=0,R96-R119=0),0,(SUMIFS(comparison!$AI:$AI,comparison!$AA:$AA,">="&R$4,comparison!$AA:$AA,"<="&EOMONTH(R$4,0),comparison!$AJ:$AJ,"<>"&0)/(1000*R96)-SUMIFS(comparison!$AJ:$AJ,comparison!$AA:$AA,">="&R$4,comparison!$AA:$AA,"<="&EOMONTH(R$4,0),comparison!$AJ:$AJ,"<>"&0)/(1000*(R96-R119)))) -> 136.3463024 | S154: =IF(OR(S96=0,S96-S119=0),0,(SUMIFS(comparison!$AI:$AI,comparison!$AA:$AA,">="&S$4,comparison!$AA:$AA,"<="&EOMONTH(S$4,0),comparison!$AJ:$AJ,"<>"&0)/(1000*S96)-SUMIFS(comparison!$AJ:$AJ,comparison!$AA:$AA,">="&S$4,comparison!$AA:$AA,"<="&EOMONTH(S$4,0),comparison!$AJ:$AJ,"<>"&0)/(1000*(S96-S119)))) -> 177.5524081 | T154: =IF(OR(T96=0,T96-T119=0),0,(SUMIFS(comparison!$AI:$AI,comparison!$AA:$AA,">="&T$4,comparison!$AA:$AA,"<="&EOMONTH(T$4,0),comparison!$AJ:$AJ,"<>"&0)/(1000*T96)-SUMIFS(comparison!$AJ:$AJ,comparison!$AA:$AA,">="&T$4,comparison!$AA:$AA,"<="&EOMONTH(T$4,0),comparison!$AJ:$AJ,"<>"&0)/(1000*(T96-T119)))) -> 311.7439341 | U154: =IF(OR(U96=0,U96-U119=0),0,(SUMIFS(comparison!$AI:$AI,comparison!$AA:$AA,">="&U$4,comparison!$AA:$AA,"<="&EOMONTH(U$4,0),comparison!$AJ:$AJ,"<>"&0)/(1000*U96)-SUMIFS(comparison!$AJ:$AJ,comparison!$AA:$AA,">="&U$4,comparison!$AA:$AA,"<="&EOMONTH(U$4,0),comparison!$AJ:$AJ,"<>"&0)/(1000*(U96-U119)))) -> 310.2865344 | V154: =IF(OR(V96=0,V96-V119=0),0,(SUMIFS(comparison!$AI:$AI,comparison!$AA:$AA,">="&V$4,comparison!$AA:$AA,"<="&EOMONTH(V$4,0),comparison!$AJ:$AJ,"<>"&0)/(1000*V96)-SUMIFS(comparison!$AJ:$AJ,comparison!$AA:$AA,">="&V$4,comparison!$AA:$AA,"<="&EOMONTH(V$4,0),comparison!$AJ:$AJ,"<>"&0)/(1000*(V96-V119)))) -> 202.2613785 | W154: =IF(OR(W96=0,W96-W119=0),0,(SUMIFS(comparison!$AI:$AI,comparison!$AA:$AA,">="&W$4,comparison!$AA:$AA,"<="&EOMONTH(W$4,0),comparison!$AJ:$AJ,"<>"&0)/(1000*W96)-SUMIFS(comparison!$AJ:$AJ,comparison!$AA:$AA,">="&W$4,comparison!$AA:$AA,"<="&EOMONTH(W$4,0),comparison!$AJ:$AJ,"<>"&0)/(1000*(W96-W119)))) -> 153.6951163 | X154: =IF(OR(X96=0,X96-X119=0),0,(SUMIFS(comparison!$AI:$AI,comparison!$AA:$AA,">="&X$4,comparison!$AA:$AA,"<="&EOMONTH(X$4,0),comparison!$AJ:$AJ,"<>"&0)/(1000*X96)-SUMIFS(comparison!$AJ:$AJ,comparison!$AA:$AA,">="&X$4,comparison!$AA:$AA,"<="&EOMONTH(X$4,0),comparison!$AJ:$AJ,"<>"&0)/(1000*(X96-X119)))) -> 512.3100636 | Y154: =IF(OR(Y96=0,Y96-Y119=0),0,(SUMIFS(comparison!$AI:$AI,comparison!$AA:$AA,">="&Y$4,comparison!$AA:$AA,"<="&EOMONTH(Y$4,0),comparison!$AJ:$AJ,"<>"&0)/(1000*Y96)-SUMIFS(comparison!$AJ:$AJ,comparison!$AA:$AA,">="&Y$4,comparison!$AA:$AA,"<="&EOMONTH(Y$4,0),comparison!$AJ:$AJ,"<>"&0)/(1000*(Y96-Y119)))) -> 170.9595758 | Z154: =IF(OR(Z96=0,Z96-Z119=0),0,(SUMIFS(comparison!$AI:$AI,comparison!$AA:$AA,">="&Z$4,comparison!$AA:$AA,"<="&EOMONTH(Z$4,0),comparison!$AJ:$AJ,"<>"&0)/(1000*Z96)-SUMIFS(comparison!$AJ:$AJ,comparison!$AA:$AA,">="&Z$4,comparison!$AA:$AA,"<="&EOMONTH(Z$4,0),comparison!$AJ:$AJ,"<>"&0)/(1000*(Z96-Z119)))) -> 90.25794961 | AB154: =IF(OR(AB96=0,AB96-AB119=0),0,(SUMIFS(comparison!$AI:$AI,comparison!$AA:$AA,">="&O$4,comparison!$AA:$AA,"<="&EOMONTH(O$4,11),comparison!$AJ:$AJ,"<>"&0)/(1000*AB96)-SUMIFS(comparison!$AJ:$AJ,comparison!$AA:$AA,">="&O$4,comparison!$AA:$AA,"<="&EOMONTH(O$4,11),comparison!$AJ:$AJ,"<>"&0)/(1000*(AB96-AB119)))) -> 189.8453561
F155: Комплект евро | M155: =M154 -> дни | O155: =IF(OR(O97=0,O97-O120=0),0,(SUMIFS(comparison!$AI:$AI,comparison!$AK:$AK,$F155,comparison!$AA:$AA,">="&O$4,comparison!$AA:$AA,"<="&EOMONTH(O$4,0),comparison!$AJ:$AJ,"<>"&0)/(1000*O97)-SUMIFS(comparison!$AJ:$AJ,comparison!$AK:$AK,$F155,comparison!$AA:$AA,">="&O$4,comparison!$AA:$AA,"<="&EOMONTH(O$4,0),comparison!$AJ:$AJ,"<>"&0)/(1000*(O97-O120)))) -> 0 | P155: =IF(OR(P97=0,P97-P120=0),0,(SUMIFS(comparison!$AI:$AI,comparison!$AK:$AK,$F155,comparison!$AA:$AA,">="&P$4,comparison!$AA:$AA,"<="&EOMONTH(P$4,0),comparison!$AJ:$AJ,"<>"&0)/(1000*P97)-SUMIFS(comparison!$AJ:$AJ,comparison!$AK:$AK,$F155,comparison!$AA:$AA,">="&P$4,comparison!$AA:$AA,"<="&EOMONTH(P$4,0),comparison!$AJ:$AJ,"<>"&0)/(1000*(P97-P120)))) -> 137.7113821 | Q155: =IF(OR(Q97=0,Q97-Q120=0),0,(SUMIFS(comparison!$AI:$AI,comparison!$AK:$AK,$F155,comparison!$AA:$AA,">="&Q$4,comparison!$AA:$AA,"<="&EOMONTH(Q$4,0),comparison!$AJ:$AJ,"<>"&0)/(1000*Q97)-SUMIFS(comparison!$AJ:$AJ,comparison!$AK:$AK,$F155,comparison!$AA:$AA,">="&Q$4,comparison!$AA:$AA,"<="&EOMONTH(Q$4,0),comparison!$AJ:$AJ,"<>"&0)/(1000*(Q97-Q120)))) -> 160 | R155: =IF(OR(R97=0,R97-R120=0),0,(SUMIFS(comparison!$AI:$AI,comparison!$AK:$AK,$F155,comparison!$AA:$AA,">="&R$4,comparison!$AA:$AA,"<="&EOMONTH(R$4,0),comparison!$AJ:$AJ,"<>"&0)/(1000*R97)-SUMIFS(comparison!$AJ:$AJ,comparison!$AK:$AK,$F155,comparison!$AA:$AA,">="&R$4,comparison!$AA:$AA,"<="&EOMONTH(R$4,0),comparison!$AJ:$AJ,"<>"&0)/(1000*(R97-R120)))) -> 144.6845007 | S155: =IF(OR(S97=0,S97-S120=0),0,(SUMIFS(comparison!$AI:$AI,comparison!$AK:$AK,$F155,comparison!$AA:$AA,">="&S$4,comparison!$AA:$AA,"<="&EOMONTH(S$4,0),comparison!$AJ:$AJ,"<>"&0)/(1000*S97)-SUMIFS(comparison!$AJ:$AJ,comparison!$AK:$AK,$F155,comparison!$AA:$AA,">="&S$4,comparison!$AA:$AA,"<="&EOMONTH(S$4,0),comparison!$AJ:$AJ,"<>"&0)/(1000*(S97-S120)))) -> 175.1906841 | T155: =IF(OR(T97=0,T97-T120=0),0,(SUMIFS(comparison!$AI:$AI,comparison!$AK:$AK,$F155,comparison!$AA:$AA,">="&T$4,comparison!$AA:$AA,"<="&EOMONTH(T$4,0),comparison!$AJ:$AJ,"<>"&0)/(1000*T97)-SUMIFS(comparison!$AJ:$AJ,comparison!$AK:$AK,$F155,comparison!$AA:$AA,">="&T$4,comparison!$AA:$AA,"<="&EOMONTH(T$4,0),comparison!$AJ:$AJ,"<>"&0)/(1000*(T97-T120)))) -> 220.6310233 | U155: =IF(OR(U97=0,U97-U120=0),0,(SUMIFS(comparison!$AI:$AI,comparison!$AK:$AK,$F155,comparison!$AA:$AA,">="&U$4,comparison!$AA:$AA,"<="&EOMONTH(U$4,0),comparison!$AJ:$AJ,"<>"&0)/(1000*U97)-SUMIFS(comparison!$AJ:$AJ,comparison!$AK:$AK,$F155,comparison!$AA:$AA,">="&U$4,comparison!$AA:$AA,"<="&EOMONTH(U$4,0),comparison!$AJ:$AJ,"<>"&0)/(1000*(U97-U120)))) -> 225.7118408 | V155: =IF(OR(V97=0,V97-V120=0),0,(SUMIFS(comparison!$AI:$AI,comparison!$AK:$AK,$F155,comparison!$AA:$AA,">="&V$4,comparison!$AA:$AA,"<="&EOMONTH(V$4,0),comparison!$AJ:$AJ,"<>"&0)/(1000*V97)-SUMIFS(comparison!$AJ:$AJ,comparison!$AK:$AK,$F155,comparison!$AA:$AA,">="&V$4,comparison!$AA:$AA,"<="&EOMONTH(V$4,0),comparison!$AJ:$AJ,"<>"&0)/(1000*(V97-V120)))) -> 255.027383 | W155: =IF(OR(W97=0,W97-W120=0),0,(SUMIFS(comparison!$AI:$AI,comparison!$AK:$AK,$F155,comparison!$AA:$AA,">="&W$4,comparison!$AA:$AA,"<="&EOMONTH(W$4,0),comparison!$AJ:$AJ,"<>"&0)/(1000*W97)-SUMIFS(comparison!$AJ:$AJ,comparison!$AK:$AK,$F155,comparison!$AA:$AA,">="&W$4,comparison!$AA:$AA,"<="&EOMONTH(W$4,0),comparison!$AJ:$AJ,"<>"&0)/(1000*(W97-W120)))) -> 279.469902 | X155: =IF(OR(X97=0,X97-X120=0),0,(SUMIFS(comparison!$AI:$AI,comparison!$AK:$AK,$F155,comparison!$AA:$AA,">="&X$4,comparison!$AA:$AA,"<="&EOMONTH(X$4,0),comparison!$AJ:$AJ,"<>"&0)/(1000*X97)-SUMIFS(comparison!$AJ:$AJ,comparison!$AK:$AK,$F155,comparison!$AA:$AA,">="&X$4,comparison!$AA:$AA,"<="&EOMONTH(X$4,0),comparison!$AJ:$AJ,"<>"&0)/(1000*(X97-X120)))) -> 292.5490242 | Y155: =IF(OR(Y97=0,Y97-Y120=0),0,(SUMIFS(comparison!$AI:$AI,comparison!$AK:$AK,$F155,comparison!$AA:$AA,">="&Y$4,comparison!$AA:$AA,"<="&EOMONTH(Y$4,0),comparison!$AJ:$AJ,"<>"&0)/(1000*Y97)-SUMIFS(comparison!$AJ:$AJ,comparison!$AK:$AK,$F155,comparison!$AA:$AA,">="&Y$4,comparison!$AA:$AA,"<="&EOMONTH(Y$4,0),comparison!$AJ:$AJ,"<>"&0)/(1000*(Y97-Y120)))) -> 142.3556748 | Z155: =IF(OR(Z97=0,Z97-Z120=0),0,(SUMIFS(comparison!$AI:$AI,comparison!$AK:$AK,$F155,comparison!$AA:$AA,">="&Z$4,comparison!$AA:$AA,"<="&EOMONTH(Z$4,0),comparison!$AJ:$AJ,"<>"&0)/(1000*Z97)-SUMIFS(comparison!$AJ:$AJ,comparison!$AK:$AK,$F155,comparison!$AA:$AA,">="&Z$4,comparison!$AA:$AA,"<="&EOMONTH(Z$4,0),comparison!$AJ:$AJ,"<>"&0)/(1000*(Z97-Z120)))) -> 66.7905472 | AB155: =IF(OR(AB97=0,AB97-AB120=0),0,(SUMIFS(comparison!$AI:$AI,comparison!$AK:$AK,$F155,comparison!$AA:$AA,">="&O$4,comparison!$AA:$AA,"<="&EOMONTH(O$4,11),comparison!$AJ:$AJ,"<>"&0)/(1000*AB97)-SUMIFS(comparison!$AJ:$AJ,comparison!$AK:$AK,$F155,comparison!$AA:$AA,">="&O$4,comparison!$AA:$AA,"<="&EOMONTH(O$4,11),comparison!$AJ:$AJ,"<>"&0)/(1000*(AB97-AB120)))) -> 209.030135
F156: Комплект | M156: =M155 -> дни | O156: =IF(OR(O98=0,O98-O121=0),0,(SUMIFS(comparison!$AI:$AI,comparison!$AK:$AK,$F156,comparison!$AA:$AA,">="&O$4,comparison!$AA:$AA,"<="&EOMONTH(O$4,0),comparison!$AJ:$AJ,"<>"&0)/(1000*O98)-SUMIFS(comparison!$AJ:$AJ,comparison!$AK:$AK,$F156,comparison!$AA:$AA,">="&O$4,comparison!$AA:$AA,"<="&EOMONTH(O$4,0),comparison!$AJ:$AJ,"<>"&0)/(1000*(O98-O121)))) -> 586.9355181 | P156: =IF(OR(P98=0,P98-P121=0),0,(SUMIFS(comparison!$AI:$AI,comparison!$AK:$AK,$F156,comparison!$AA:$AA,">="&P$4,comparison!$AA:$AA,"<="&EOMONTH(P$4,0),comparison!$AJ:$AJ,"<>"&0)/(1000*P98)-SUMIFS(comparison!$AJ:$AJ,comparison!$AK:$AK,$F156,comparison!$AA:$AA,">="&P$4,comparison!$AA:$AA,"<="&EOMONTH(P$4,0),comparison!$AJ:$AJ,"<>"&0)/(1000*(P98-P121)))) -> 249.4879114 | Q156: =IF(OR(Q98=0,Q98-Q121=0),0,(SUMIFS(comparison!$AI:$AI,comparison!$AK:$AK,$F156,comparison!$AA:$AA,">="&Q$4,comparison!$AA:$AA,"<="&EOMONTH(Q$4,0),comparison!$AJ:$AJ,"<>"&0)/(1000*Q98)-SUMIFS(comparison!$AJ:$AJ,comparison!$AK:$AK,$F156,comparison!$AA:$AA,">="&Q$4,comparison!$AA:$AA,"<="&EOMONTH(Q$4,0),comparison!$AJ:$AJ,"<>"&0)/(1000*(Q98-Q121)))) -> 68.06729048 | R156: =IF(OR(R98=0,R98-R121=0),0,(SUMIFS(comparison!$AI:$AI,comparison!$AK:$AK,$F156,comparison!$AA:$AA,">="&R$4,comparison!$AA:$AA,"<="&EOMONTH(R$4,0),comparison!$AJ:$AJ,"<>"&0)/(1000*R98)-SUMIFS(comparison!$AJ:$AJ,comparison!$AK:$AK,$F156,comparison!$AA:$AA,">="&R$4,comparison!$AA:$AA,"<="&EOMONTH(R$4,0),comparison!$AJ:$AJ,"<>"&0)/(1000*(R98-R121)))) -> 298.8517253 | S156: =IF(OR(S98=0,S98-S121=0),0,(SUMIFS(comparison!$AI:$AI,comparison!$AK:$AK,$F156,comparison!$AA:$AA,">="&S$4,comparison!$AA:$AA,"<="&EOMONTH(S$4,0),comparison!$AJ:$AJ,"<>"&0)/(1000*S98)-SUMIFS(comparison!$AJ:$AJ,comparison!$AK:$AK,$F156,comparison!$AA:$AA,">="&S$4,comparison!$AA:$AA,"<="&EOMONTH(S$4,0),comparison!$AJ:$AJ,"<>"&0)/(1000*(S98-S121)))) -> 261.5399115 | T156: =IF(OR(T98=0,T98-T121=0),0,(SUMIFS(comparison!$AI:$AI,comparison!$AK:$AK,$F156,comparison!$AA:$AA,">="&T$4,comparison!$AA:$AA,"<="&EOMONTH(T$4,0),comparison!$AJ:$AJ,"<>"&0)/(1000*T98)-SUMIFS(comparison!$AJ:$AJ,comparison!$AK:$AK,$F156,comparison!$AA:$AA,">="&T$4,comparison!$AA:$AA,"<="&EOMONTH(T$4,0),comparison!$AJ:$AJ,"<>"&0)/(1000*(T98-T121)))) -> 425.1318201 | U156: =IF(OR(U98=0,U98-U121=0),0,(SUMIFS(comparison!$AI:$AI,comparison!$AK:$AK,$F156,comparison!$AA:$AA,">="&U$4,comparison!$AA:$AA,"<="&EOMONTH(U$4,0),comparison!$AJ:$AJ,"<>"&0)/(1000*U98)-SUMIFS(comparison!$AJ:$AJ,comparison!$AK:$AK,$F156,comparison!$AA:$AA,">="&U$4,comparison!$AA:$AA,"<="&EOMONTH(U$4,0),comparison!$AJ:$AJ,"<>"&0)/(1000*(U98-U121)))) -> 406.1203704 | V156: =IF(OR(V98=0,V98-V121=0),0,(SUMIFS(comparison!$AI:$AI,comparison!$AK:$AK,$F156,comparison!$AA:$AA,">="&V$4,comparison!$AA:$AA,"<="&EOMONTH(V$4,0),comparison!$AJ:$AJ,"<>"&0)/(1000*V98)-SUMIFS(comparison!$AJ:$AJ,comparison!$AK:$AK,$F156,comparison!$AA:$AA,">="&V$4,comparison!$AA:$AA,"<="&EOMONTH(V$4,0),comparison!$AJ:$AJ,"<>"&0)/(1000*(V98-V121)))) -> 431.8246016 | W156: =IF(OR(W98=0,W98-W121=0),0,(SUMIFS(comparison!$AI:$AI,comparison!$AK:$AK,$F156,comparison!$AA:$AA,">="&W$4,comparison!$AA:$AA,"<="&EOMONTH(W$4,0),comparison!$AJ:$AJ,"<>"&0)/(1000*W98)-SUMIFS(comparison!$AJ:$AJ,comparison!$AK:$AK,$F156,comparison!$AA:$AA,">="&W$4,comparison!$AA:$AA,"<="&EOMONTH(W$4,0),comparison!$AJ:$AJ,"<>"&0)/(1000*(W98-W121)))) -> 383.2435334 | X156: =IF(OR(X98=0,X98-X121=0),0,(SUMIFS(comparison!$AI:$AI,comparison!$AK:$AK,$F156,comparison!$AA:$AA,">="&X$4,comparison!$AA:$AA,"<="&EOMONTH(X$4,0),comparison!$AJ:$AJ,"<>"&0)/(1000*X98)-SUMIFS(comparison!$AJ:$AJ,comparison!$AK:$AK,$F156,comparison!$AA:$AA,">="&X$4,comparison!$AA:$AA,"<="&EOMONTH(X$4,0),comparison!$AJ:$AJ,"<>"&0)/(1000*(X98-X121)))) -> 395.8766938 | Y156: =IF(OR(Y98=0,Y98-Y121=0),0,(SUMIFS(comparison!$AI:$AI,comparison!$AK:$AK,$F156,comparison!$AA:$AA,">="&Y$4,comparison!$AA:$AA,"<="&EOMONTH(Y$4,0),comparison!$AJ:$AJ,"<>"&0)/(1000*Y98)-SUMIFS(comparison!$AJ:$AJ,comparison!$AK:$AK,$F156,comparison!$AA:$AA,">="&Y$4,comparison!$AA:$AA,"<="&EOMONTH(Y$4,0),comparison!$AJ:$AJ,"<>"&0)/(1000*(Y98-Y121)))) -> 524 | Z156: =IF(OR(Z98=0,Z98-Z121=0),0,(SUMIFS(comparison!$AI:$AI,comparison!$AK:$AK,$F156,comparison!$AA:$AA,">="&Z$4,comparison!$AA:$AA,"<="&EOMONTH(Z$4,0),comparison!$AJ:$AJ,"<>"&0)/(1000*Z98)-SUMIFS(comparison!$AJ:$AJ,comparison!$AK:$AK,$F156,comparison!$AA:$AA,">="&Z$4,comparison!$AA:$AA,"<="&EOMONTH(Z$4,0),comparison!$AJ:$AJ,"<>"&0)/(1000*(Z98-Z121)))) -> 555.8019802 | AB156: =IF(OR(AB98=0,AB98-AB121=0),0,(SUMIFS(comparison!$AI:$AI,comparison!$AK:$AK,$F156,comparison!$AA:$AA,">="&O$4,comparison!$AA:$AA,"<="&EOMONTH(O$4,11),comparison!$AJ:$AJ,"<>"&0)/(1000*AB98)-SUMIFS(comparison!$AJ:$AJ,comparison!$AK:$AK,$F156,comparison!$AA:$AA,">="&O$4,comparison!$AA:$AA,"<="&EOMONTH(O$4,11),comparison!$AJ:$AJ,"<>"&0)/(1000*(AB98-AB121)))) -> 359.780629
F157: Простыня | M157: дни | O157: =IF(OR(O99=0,O99-O122=0),0,(SUMIFS(comparison!$AI:$AI,comparison!$AK:$AK,$F157,comparison!$AA:$AA,">="&O$4,comparison!$AA:$AA,"<="&EOMONTH(O$4,0),comparison!$AJ:$AJ,"<>"&0)/(1000*O99)-SUMIFS(comparison!$AJ:$AJ,comparison!$AK:$AK,$F157,comparison!$AA:$AA,">="&O$4,comparison!$AA:$AA,"<="&EOMONTH(O$4,0),comparison!$AJ:$AJ,"<>"&0)/(1000*(O99-O122)))) -> 294.3704571 | P157: =IF(OR(P99=0,P99-P122=0),0,(SUMIFS(comparison!$AI:$AI,comparison!$AK:$AK,$F157,comparison!$AA:$AA,">="&P$4,comparison!$AA:$AA,"<="&EOMONTH(P$4,0),comparison!$AJ:$AJ,"<>"&0)/(1000*P99)-SUMIFS(comparison!$AJ:$AJ,comparison!$AK:$AK,$F157,comparison!$AA:$AA,">="&P$4,comparison!$AA:$AA,"<="&EOMONTH(P$4,0),comparison!$AJ:$AJ,"<>"&0)/(1000*(P99-P122)))) -> 477.4826514 | Q157: =IF(OR(Q99=0,Q99-Q122=0),0,(SUMIFS(comparison!$AI:$AI,comparison!$AK:$AK,$F157,comparison!$AA:$AA,">="&Q$4,comparison!$AA:$AA,"<="&EOMONTH(Q$4,0),comparison!$AJ:$AJ,"<>"&0)/(1000*Q99)-SUMIFS(comparison!$AJ:$AJ,comparison!$AK:$AK,$F157,comparison!$AA:$AA,">="&Q$4,comparison!$AA:$AA,"<="&EOMONTH(Q$4,0),comparison!$AJ:$AJ,"<>"&0)/(1000*(Q99-Q122)))) -> 217.2427831 | R157: =IF(OR(R99=0,R99-R122=0),0,(SUMIFS(comparison!$AI:$AI,comparison!$AK:$AK,$F157,comparison!$AA:$AA,">="&R$4,comparison!$AA:$AA,"<="&EOMONTH(R$4,0),comparison!$AJ:$AJ,"<>"&0)/(1000*R99)-SUMIFS(comparison!$AJ:$AJ,comparison!$AK:$AK,$F157,comparison!$AA:$AA,">="&R$4,comparison!$AA:$AA,"<="&EOMONTH(R$4,0),comparison!$AJ:$AJ,"<>"&0)/(1000*(R99-R122)))) -> 265.6741663 | S157: =IF(OR(S99=0,S99-S122=0),0,(SUMIFS(comparison!$AI:$AI,comparison!$AK:$AK,$F157,comparison!$AA:$AA,">="&S$4,comparison!$AA:$AA,"<="&EOMONTH(S$4,0),comparison!$AJ:$AJ,"<>"&0)/(1000*S99)-SUMIFS(comparison!$AJ:$AJ,comparison!$AK:$AK,$F157,comparison!$AA:$AA,">="&S$4,comparison!$AA:$AA,"<="&EOMONTH(S$4,0),comparison!$AJ:$AJ,"<>"&0)/(1000*(S99-S122)))) -> 373.5259419 | T157: =IF(OR(T99=0,T99-T122=0),0,(SUMIFS(comparison!$AI:$AI,comparison!$AK:$AK,$F157,comparison!$AA:$AA,">="&T$4,comparison!$AA:$AA,"<="&EOMONTH(T$4,0),comparison!$AJ:$AJ,"<>"&0)/(1000*T99)-SUMIFS(comparison!$AJ:$AJ,comparison!$AK:$AK,$F157,comparison!$AA:$AA,">="&T$4,comparison!$AA:$AA,"<="&EOMONTH(T$4,0),comparison!$AJ:$AJ,"<>"&0)/(1000*(T99-T122)))) -> 316.4651159 | U157: =IF(OR(U99=0,U99-U122=0),0,(SUMIFS(comparison!$AI:$AI,comparison!$AK:$AK,$F157,comparison!$AA:$AA,">="&U$4,comparison!$AA:$AA,"<="&EOMONTH(U$4,0),comparison!$AJ:$AJ,"<>"&0)/(1000*U99)-SUMIFS(comparison!$AJ:$AJ,comparison!$AK:$AK,$F157,comparison!$AA:$AA,">="&U$4,comparison!$AA:$AA,"<="&EOMONTH(U$4,0),comparison!$AJ:$AJ,"<>"&0)/(1000*(U99-U122)))) -> 346.0524416 | V157: =IF(OR(V99=0,V99-V122=0),0,(SUMIFS(comparison!$AI:$AI,comparison!$AK:$AK,$F157,comparison!$AA:$AA,">="&V$4,comparison!$AA:$AA,"<="&EOMONTH(V$4,0),comparison!$AJ:$AJ,"<>"&0)/(1000*V99)-SUMIFS(comparison!$AJ:$AJ,comparison!$AK:$AK,$F157,comparison!$AA:$AA,">="&V$4,comparison!$AA:$AA,"<="&EOMONTH(V$4,0),comparison!$AJ:$AJ,"<>"&0)/(1000*(V99-V122)))) -> 302.5879572 | W157: =IF(OR(W99=0,W99-W122=0),0,(SUMIFS(comparison!$AI:$AI,comparison!$AK:$AK,$F157,comparison!$AA:$AA,">="&W$4,comparison!$AA:$AA,"<="&EOMONTH(W$4,0),comparison!$AJ:$AJ,"<>"&0)/(1000*W99)-SUMIFS(comparison!$AJ:$AJ,comparison!$AK:$AK,$F157,comparison!$AA:$AA,">="&W$4,comparison!$AA:$AA,"<="&EOMONTH(W$4,0),comparison!$AJ:$AJ,"<>"&0)/(1000*(W99-W122)))) -> 286.7009669 | X157: =IF(OR(X99=0,X99-X122=0),0,(SUMIFS(comparison!$AI:$AI,comparison!$AK:$AK,$F157,comparison!$AA:$AA,">="&X$4,comparison!$AA:$AA,"<="&EOMONTH(X$4,0),comparison!$AJ:$AJ,"<>"&0)/(1000*X99)-SUMIFS(comparison!$AJ:$AJ,comparison!$AK:$AK,$F157,comparison!$AA:$AA,">="&X$4,comparison!$AA:$AA,"<="&EOMONTH(X$4,0),comparison!$AJ:$AJ,"<>"&0)/(1000*(X99-X122)))) -> 686.7275578 | Y157: =IF(OR(Y99=0,Y99-Y122=0),0,(SUMIFS(comparison!$AI:$AI,comparison!$AK:$AK,$F157,comparison!$AA:$AA,">="&Y$4,comparison!$AA:$AA,"<="&EOMONTH(Y$4,0),comparison!$AJ:$AJ,"<>"&0)/(1000*Y99)-SUMIFS(comparison!$AJ:$AJ,comparison!$AK:$AK,$F157,comparison!$AA:$AA,">="&Y$4,comparison!$AA:$AA,"<="&EOMONTH(Y$4,0),comparison!$AJ:$AJ,"<>"&0)/(1000*(Y99-Y122)))) -> 169.8622597 | Z157: =IF(OR(Z99=0,Z99-Z122=0),0,(SUMIFS(comparison!$AI:$AI,comparison!$AK:$AK,$F157,comparison!$AA:$AA,">="&Z$4,comparison!$AA:$AA,"<="&EOMONTH(Z$4,0),comparison!$AJ:$AJ,"<>"&0)/(1000*Z99)-SUMIFS(comparison!$AJ:$AJ,comparison!$AK:$AK,$F157,comparison!$AA:$AA,">="&Z$4,comparison!$AA:$AA,"<="&EOMONTH(Z$4,0),comparison!$AJ:$AJ,"<>"&0)/(1000*(Z99-Z122)))) -> 338.409731 | AB157: =IF(OR(AB99=0,AB99-AB122=0),0,(SUMIFS(comparison!$AI:$AI,comparison!$AK:$AK,$F157,comparison!$AA:$AA,">="&O$4,comparison!$AA:$AA,"<="&EOMONTH(O$4,11),comparison!$AJ:$AJ,"<>"&0)/(1000*AB99)-SUMIFS(comparison!$AJ:$AJ,comparison!$AK:$AK,$F157,comparison!$AA:$AA,">="&O$4,comparison!$AA:$AA,"<="&EOMONTH(O$4,11),comparison!$AJ:$AJ,"<>"&0)/(1000*(AB99-AB122)))) -> 333.4951743
F158: Одеяло | M158: дни | O158: =IF(OR(O100=0,O100-O123=0),0,(SUMIFS(comparison!$AI:$AI,comparison!$AK:$AK,$F158,comparison!$AA:$AA,">="&O$4,comparison!$AA:$AA,"<="&EOMONTH(O$4,0),comparison!$AJ:$AJ,"<>"&0)/(1000*O100)-SUMIFS(comparison!$AJ:$AJ,comparison!$AK:$AK,$F158,comparison!$AA:$AA,">="&O$4,comparison!$AA:$AA,"<="&EOMONTH(O$4,0),comparison!$AJ:$AJ,"<>"&0)/(1000*(O100-O123)))) -> 0 | P158: =IF(OR(P100=0,P100-P123=0),0,(SUMIFS(comparison!$AI:$AI,comparison!$AK:$AK,$F158,comparison!$AA:$AA,">="&P$4,comparison!$AA:$AA,"<="&EOMONTH(P$4,0),comparison!$AJ:$AJ,"<>"&0)/(1000*P100)-SUMIFS(comparison!$AJ:$AJ,comparison!$AK:$AK,$F158,comparison!$AA:$AA,">="&P$4,comparison!$AA:$AA,"<="&EOMONTH(P$4,0),comparison!$AJ:$AJ,"<>"&0)/(1000*(P100-P123)))) -> 0 | Q158: =IF(OR(Q100=0,Q100-Q123=0),0,(SUMIFS(comparison!$AI:$AI,comparison!$AK:$AK,$F158,comparison!$AA:$AA,">="&Q$4,comparison!$AA:$AA,"<="&EOMONTH(Q$4,0),comparison!$AJ:$AJ,"<>"&0)/(1000*Q100)-SUMIFS(comparison!$AJ:$AJ,comparison!$AK:$AK,$F158,comparison!$AA:$AA,">="&Q$4,comparison!$AA:$AA,"<="&EOMONTH(Q$4,0),comparison!$AJ:$AJ,"<>"&0)/(1000*(Q100-Q123)))) -> 1 | R158: =IF(OR(R100=0,R100-R123=0),0,(SUMIFS(comparison!$AI:$AI,comparison!$AK:$AK,$F158,comparison!$AA:$AA,">="&R$4,comparison!$AA:$AA,"<="&EOMONTH(R$4,0),comparison!$AJ:$AJ,"<>"&0)/(1000*R100)-SUMIFS(comparison!$AJ:$AJ,comparison!$AK:$AK,$F158,comparison!$AA:$AA,">="&R$4,comparison!$AA:$AA,"<="&EOMONTH(R$4,0),comparison!$AJ:$AJ,"<>"&0)/(1000*(R100-R123)))) -> 3.114083796 | S158: =IF(OR(S100=0,S100-S123=0),0,(SUMIFS(comparison!$AI:$AI,comparison!$AK:$AK,$F158,comparison!$AA:$AA,">="&S$4,comparison!$AA:$AA,"<="&EOMONTH(S$4,0),comparison!$AJ:$AJ,"<>"&0)/(1000*S100)-SUMIFS(comparison!$AJ:$AJ,comparison!$AK:$AK,$F158,comparison!$AA:$AA,">="&S$4,comparison!$AA:$AA,"<="&EOMONTH(S$4,0),comparison!$AJ:$AJ,"<>"&0)/(1000*(S100-S123)))) -> 0 | T158: =IF(OR(T100=0,T100-T123=0),0,(SUMIFS(comparison!$AI:$AI,comparison!$AK:$AK,$F158,comparison!$AA:$AA,">="&T$4,comparison!$AA:$AA,"<="&EOMONTH(T$4,0),comparison!$AJ:$AJ,"<>"&0)/(1000*T100)-SUMIFS(comparison!$AJ:$AJ,comparison!$AK:$AK,$F158,comparison!$AA:$AA,">="&T$4,comparison!$AA:$AA,"<="&EOMONTH(T$4,0),comparison!$AJ:$AJ,"<>"&0)/(1000*(T100-T123)))) -> 0 | U158: =IF(OR(U100=0,U100-U123=0),0,(SUMIFS(comparison!$AI:$AI,comparison!$AK:$AK,$F158,comparison!$AA:$AA,">="&U$4,comparison!$AA:$AA,"<="&EOMONTH(U$4,0),comparison!$AJ:$AJ,"<>"&0)/(1000*U100)-SUMIFS(comparison!$AJ:$AJ,comparison!$AK:$AK,$F158,comparison!$AA:$AA,">="&U$4,comparison!$AA:$AA,"<="&EOMONTH(U$4,0),comparison!$AJ:$AJ,"<>"&0)/(1000*(U100-U123)))) -> 0 | V158: =IF(OR(V100=0,V100-V123=0),0,(SUMIFS(comparison!$AI:$AI,comparison!$AK:$AK,$F158,comparison!$AA:$AA,">="&V$4,comparison!$AA:$AA,"<="&EOMONTH(V$4,0),comparison!$AJ:$AJ,"<>"&0)/(1000*V100)-SUMIFS(comparison!$AJ:$AJ,comparison!$AK:$AK,$F158,comparison!$AA:$AA,">="&V$4,comparison!$AA:$AA,"<="&EOMONTH(V$4,0),comparison!$AJ:$AJ,"<>"&0)/(1000*(V100-V123)))) -> 0 | W158: =IF(OR(W100=0,W100-W123=0),0,(SUMIFS(comparison!$AI:$AI,comparison!$AK:$AK,$F158,comparison!$AA:$AA,">="&W$4,comparison!$AA:$AA,"<="&EOMONTH(W$4,0),comparison!$AJ:$AJ,"<>"&0)/(1000*W100)-SUMIFS(comparison!$AJ:$AJ,comparison!$AK:$AK,$F158,comparison!$AA:$AA,">="&W$4,comparison!$AA:$AA,"<="&EOMONTH(W$4,0),comparison!$AJ:$AJ,"<>"&0)/(1000*(W100-W123)))) -> 7.663658359 | X158: =IF(OR(X100=0,X100-X123=0),0,(SUMIFS(comparison!$AI:$AI,comparison!$AK:$AK,$F158,comparison!$AA:$AA,">="&X$4,comparison!$AA:$AA,"<="&EOMONTH(X$4,0),comparison!$AJ:$AJ,"<>"&0)/(1000*X100)-SUMIFS(comparison!$AJ:$AJ,comparison!$AK:$AK,$F158,comparison!$AA:$AA,">="&X$4,comparison!$AA:$AA,"<="&EOMONTH(X$4,0),comparison!$AJ:$AJ,"<>"&0)/(1000*(X100-X123)))) -> 0 | Y158: =IF(OR(Y100=0,Y100-Y123=0),0,(SUMIFS(comparison!$AI:$AI,comparison!$AK:$AK,$F158,comparison!$AA:$AA,">="&Y$4,comparison!$AA:$AA,"<="&EOMONTH(Y$4,0),comparison!$AJ:$AJ,"<>"&0)/(1000*Y100)-SUMIFS(comparison!$AJ:$AJ,comparison!$AK:$AK,$F158,comparison!$AA:$AA,">="&Y$4,comparison!$AA:$AA,"<="&EOMONTH(Y$4,0),comparison!$AJ:$AJ,"<>"&0)/(1000*(Y100-Y123)))) -> -4 | Z158: =IF(OR(Z100=0,Z100-Z123=0),0,(SUMIFS(comparison!$AI:$AI,comparison!$AK:$AK,$F158,comparison!$AA:$AA,">="&Z$4,comparison!$AA:$AA,"<="&EOMONTH(Z$4,0),comparison!$AJ:$AJ,"<>"&0)/(1000*Z100)-SUMIFS(comparison!$AJ:$AJ,comparison!$AK:$AK,$F158,comparison!$AA:$AA,">="&Z$4,comparison!$AA:$AA,"<="&EOMONTH(Z$4,0),comparison!$AJ:$AJ,"<>"&0)/(1000*(Z100-Z123)))) -> 15.08905109 | AB158: =IF(OR(AB100=0,AB100-AB123=0),0,(SUMIFS(comparison!$AI:$AI,comparison!$AK:$AK,$F158,comparison!$AA:$AA,">="&O$4,comparison!$AA:$AA,"<="&EOMONTH(O$4,11),comparison!$AJ:$AJ,"<>"&0)/(1000*AB100)-SUMIFS(comparison!$AJ:$AJ,comparison!$AK:$AK,$F158,comparison!$AA:$AA,">="&O$4,comparison!$AA:$AA,"<="&EOMONTH(O$4,11),comparison!$AJ:$AJ,"<>"&0)/(1000*(AB100-AB123)))) -> 8.176256345
F159: Подушка | M159: =M158 -> дни | O159: =IF(OR(O101=0,O101-O124=0),0,(SUMIFS(comparison!$AI:$AI,comparison!$AK:$AK,$F159,comparison!$AA:$AA,">="&O$4,comparison!$AA:$AA,"<="&EOMONTH(O$4,0),comparison!$AJ:$AJ,"<>"&0)/(1000*O101)-SUMIFS(comparison!$AJ:$AJ,comparison!$AK:$AK,$F159,comparison!$AA:$AA,">="&O$4,comparison!$AA:$AA,"<="&EOMONTH(O$4,0),comparison!$AJ:$AJ,"<>"&0)/(1000*(O101-O124)))) -> 0 | P159: =IF(OR(P101=0,P101-P124=0),0,(SUMIFS(comparison!$AI:$AI,comparison!$AK:$AK,$F159,comparison!$AA:$AA,">="&P$4,comparison!$AA:$AA,"<="&EOMONTH(P$4,0),comparison!$AJ:$AJ,"<>"&0)/(1000*P101)-SUMIFS(comparison!$AJ:$AJ,comparison!$AK:$AK,$F159,comparison!$AA:$AA,">="&P$4,comparison!$AA:$AA,"<="&EOMONTH(P$4,0),comparison!$AJ:$AJ,"<>"&0)/(1000*(P101-P124)))) -> 0 | Q159: =IF(OR(Q101=0,Q101-Q124=0),0,(SUMIFS(comparison!$AI:$AI,comparison!$AK:$AK,$F159,comparison!$AA:$AA,">="&Q$4,comparison!$AA:$AA,"<="&EOMONTH(Q$4,0),comparison!$AJ:$AJ,"<>"&0)/(1000*Q101)-SUMIFS(comparison!$AJ:$AJ,comparison!$AK:$AK,$F159,comparison!$AA:$AA,">="&Q$4,comparison!$AA:$AA,"<="&EOMONTH(Q$4,0),comparison!$AJ:$AJ,"<>"&0)/(1000*(Q101-Q124)))) -> 0.6553483808 | R159: =IF(OR(R101=0,R101-R124=0),0,(SUMIFS(comparison!$AI:$AI,comparison!$AK:$AK,$F159,comparison!$AA:$AA,">="&R$4,comparison!$AA:$AA,"<="&EOMONTH(R$4,0),comparison!$AJ:$AJ,"<>"&0)/(1000*R101)-SUMIFS(comparison!$AJ:$AJ,comparison!$AK:$AK,$F159,comparison!$AA:$AA,">="&R$4,comparison!$AA:$AA,"<="&EOMONTH(R$4,0),comparison!$AJ:$AJ,"<>"&0)/(1000*(R101-R124)))) -> 1.799435843 | S159: =IF(OR(S101=0,S101-S124=0),0,(SUMIFS(comparison!$AI:$AI,comparison!$AK:$AK,$F159,comparison!$AA:$AA,">="&S$4,comparison!$AA:$AA,"<="&EOMONTH(S$4,0),comparison!$AJ:$AJ,"<>"&0)/(1000*S101)-SUMIFS(comparison!$AJ:$AJ,comparison!$AK:$AK,$F159,comparison!$AA:$AA,">="&S$4,comparison!$AA:$AA,"<="&EOMONTH(S$4,0),comparison!$AJ:$AJ,"<>"&0)/(1000*(S101-S124)))) -> 2.397260274 | T159: =IF(OR(T101=0,T101-T124=0),0,(SUMIFS(comparison!$AI:$AI,comparison!$AK:$AK,$F159,comparison!$AA:$AA,">="&T$4,comparison!$AA:$AA,"<="&EOMONTH(T$4,0),comparison!$AJ:$AJ,"<>"&0)/(1000*T101)-SUMIFS(comparison!$AJ:$AJ,comparison!$AK:$AK,$F159,comparison!$AA:$AA,">="&T$4,comparison!$AA:$AA,"<="&EOMONTH(T$4,0),comparison!$AJ:$AJ,"<>"&0)/(1000*(T101-T124)))) -> 0 | U159: =IF(OR(U101=0,U101-U124=0),0,(SUMIFS(comparison!$AI:$AI,comparison!$AK:$AK,$F159,comparison!$AA:$AA,">="&U$4,comparison!$AA:$AA,"<="&EOMONTH(U$4,0),comparison!$AJ:$AJ,"<>"&0)/(1000*U101)-SUMIFS(comparison!$AJ:$AJ,comparison!$AK:$AK,$F159,comparison!$AA:$AA,">="&U$4,comparison!$AA:$AA,"<="&EOMONTH(U$4,0),comparison!$AJ:$AJ,"<>"&0)/(1000*(U101-U124)))) -> 0 | V159: =IF(OR(V101=0,V101-V124=0),0,(SUMIFS(comparison!$AI:$AI,comparison!$AK:$AK,$F159,comparison!$AA:$AA,">="&V$4,comparison!$AA:$AA,"<="&EOMONTH(V$4,0),comparison!$AJ:$AJ,"<>"&0)/(1000*V101)-SUMIFS(comparison!$AJ:$AJ,comparison!$AK:$AK,$F159,comparison!$AA:$AA,">="&V$4,comparison!$AA:$AA,"<="&EOMONTH(V$4,0),comparison!$AJ:$AJ,"<>"&0)/(1000*(V101-V124)))) -> 0 | W159: =IF(OR(W101=0,W101-W124=0),0,(SUMIFS(comparison!$AI:$AI,comparison!$AK:$AK,$F159,comparison!$AA:$AA,">="&W$4,comparison!$AA:$AA,"<="&EOMONTH(W$4,0),comparison!$AJ:$AJ,"<>"&0)/(1000*W101)-SUMIFS(comparison!$AJ:$AJ,comparison!$AK:$AK,$F159,comparison!$AA:$AA,">="&W$4,comparison!$AA:$AA,"<="&EOMONTH(W$4,0),comparison!$AJ:$AJ,"<>"&0)/(1000*(W101-W124)))) -> 9.53742995 | X159: =IF(OR(X101=0,X101-X124=0),0,(SUMIFS(comparison!$AI:$AI,comparison!$AK:$AK,$F159,comparison!$AA:$AA,">="&X$4,comparison!$AA:$AA,"<="&EOMONTH(X$4,0),comparison!$AJ:$AJ,"<>"&0)/(1000*X101)-SUMIFS(comparison!$AJ:$AJ,comparison!$AK:$AK,$F159,comparison!$AA:$AA,">="&X$4,comparison!$AA:$AA,"<="&EOMONTH(X$4,0),comparison!$AJ:$AJ,"<>"&0)/(1000*(X101-X124)))) -> 0 | Y159: =IF(OR(Y101=0,Y101-Y124=0),0,(SUMIFS(comparison!$AI:$AI,comparison!$AK:$AK,$F159,comparison!$AA:$AA,">="&Y$4,comparison!$AA:$AA,"<="&EOMONTH(Y$4,0),comparison!$AJ:$AJ,"<>"&0)/(1000*Y101)-SUMIFS(comparison!$AJ:$AJ,comparison!$AK:$AK,$F159,comparison!$AA:$AA,">="&Y$4,comparison!$AA:$AA,"<="&EOMONTH(Y$4,0),comparison!$AJ:$AJ,"<>"&0)/(1000*(Y101-Y124)))) -> 0 | Z159: =IF(OR(Z101=0,Z101-Z124=0),0,(SUMIFS(comparison!$AI:$AI,comparison!$AK:$AK,$F159,comparison!$AA:$AA,">="&Z$4,comparison!$AA:$AA,"<="&EOMONTH(Z$4,0),comparison!$AJ:$AJ,"<>"&0)/(1000*Z101)-SUMIFS(comparison!$AJ:$AJ,comparison!$AK:$AK,$F159,comparison!$AA:$AA,">="&Z$4,comparison!$AA:$AA,"<="&EOMONTH(Z$4,0),comparison!$AJ:$AJ,"<>"&0)/(1000*(Z101-Z124)))) -> 34 | AB159: =IF(OR(AB101=0,AB101-AB124=0),0,(SUMIFS(comparison!$AI:$AI,comparison!$AK:$AK,$F159,comparison!$AA:$AA,">="&O$4,comparison!$AA:$AA,"<="&EOMONTH(O$4,11),comparison!$AJ:$AJ,"<>"&0)/(1000*AB101)-SUMIFS(comparison!$AJ:$AJ,comparison!$AK:$AK,$F159,comparison!$AA:$AA,">="&O$4,comparison!$AA:$AA,"<="&EOMONTH(O$4,11),comparison!$AJ:$AJ,"<>"&0)/(1000*(AB101-AB124)))) -> 6.103126003
F160: Плед | M160: =M159 -> дни | O160: =IF(OR(O102=0,O102-O125=0),0,(SUMIFS(comparison!$AI:$AI,comparison!$AK:$AK,$F160,comparison!$AA:$AA,">="&O$4,comparison!$AA:$AA,"<="&EOMONTH(O$4,0),comparison!$AJ:$AJ,"<>"&0)/(1000*O102)-SUMIFS(comparison!$AJ:$AJ,comparison!$AK:$AK,$F160,comparison!$AA:$AA,">="&O$4,comparison!$AA:$AA,"<="&EOMONTH(O$4,0),comparison!$AJ:$AJ,"<>"&0)/(1000*(O102-O125)))) -> 0 | P160: =IF(OR(P102=0,P102-P125=0),0,(SUMIFS(comparison!$AI:$AI,comparison!$AK:$AK,$F160,comparison!$AA:$AA,">="&P$4,comparison!$AA:$AA,"<="&EOMONTH(P$4,0),comparison!$AJ:$AJ,"<>"&0)/(1000*P102)-SUMIFS(comparison!$AJ:$AJ,comparison!$AK:$AK,$F160,comparison!$AA:$AA,">="&P$4,comparison!$AA:$AA,"<="&EOMONTH(P$4,0),comparison!$AJ:$AJ,"<>"&0)/(1000*(P102-P125)))) -> 199 | Q160: =IF(OR(Q102=0,Q102-Q125=0),0,(SUMIFS(comparison!$AI:$AI,comparison!$AK:$AK,$F160,comparison!$AA:$AA,">="&Q$4,comparison!$AA:$AA,"<="&EOMONTH(Q$4,0),comparison!$AJ:$AJ,"<>"&0)/(1000*Q102)-SUMIFS(comparison!$AJ:$AJ,comparison!$AK:$AK,$F160,comparison!$AA:$AA,">="&Q$4,comparison!$AA:$AA,"<="&EOMONTH(Q$4,0),comparison!$AJ:$AJ,"<>"&0)/(1000*(Q102-Q125)))) -> 232.1629393 | R160: =IF(OR(R102=0,R102-R125=0),0,(SUMIFS(comparison!$AI:$AI,comparison!$AK:$AK,$F160,comparison!$AA:$AA,">="&R$4,comparison!$AA:$AA,"<="&EOMONTH(R$4,0),comparison!$AJ:$AJ,"<>"&0)/(1000*R102)-SUMIFS(comparison!$AJ:$AJ,comparison!$AK:$AK,$F160,comparison!$AA:$AA,">="&R$4,comparison!$AA:$AA,"<="&EOMONTH(R$4,0),comparison!$AJ:$AJ,"<>"&0)/(1000*(R102-R125)))) -> 260.3575921 | S160: =IF(OR(S102=0,S102-S125=0),0,(SUMIFS(comparison!$AI:$AI,comparison!$AK:$AK,$F160,comparison!$AA:$AA,">="&S$4,comparison!$AA:$AA,"<="&EOMONTH(S$4,0),comparison!$AJ:$AJ,"<>"&0)/(1000*S102)-SUMIFS(comparison!$AJ:$AJ,comparison!$AK:$AK,$F160,comparison!$AA:$AA,">="&S$4,comparison!$AA:$AA,"<="&EOMONTH(S$4,0),comparison!$AJ:$AJ,"<>"&0)/(1000*(S102-S125)))) -> 285.5237832 | T160: =IF(OR(T102=0,T102-T125=0),0,(SUMIFS(comparison!$AI:$AI,comparison!$AK:$AK,$F160,comparison!$AA:$AA,">="&T$4,comparison!$AA:$AA,"<="&EOMONTH(T$4,0),comparison!$AJ:$AJ,"<>"&0)/(1000*T102)-SUMIFS(comparison!$AJ:$AJ,comparison!$AK:$AK,$F160,comparison!$AA:$AA,">="&T$4,comparison!$AA:$AA,"<="&EOMONTH(T$4,0),comparison!$AJ:$AJ,"<>"&0)/(1000*(T102-T125)))) -> 321.6240873 | U160: =IF(OR(U102=0,U102-U125=0),0,(SUMIFS(comparison!$AI:$AI,comparison!$AK:$AK,$F160,comparison!$AA:$AA,">="&U$4,comparison!$AA:$AA,"<="&EOMONTH(U$4,0),comparison!$AJ:$AJ,"<>"&0)/(1000*U102)-SUMIFS(comparison!$AJ:$AJ,comparison!$AK:$AK,$F160,comparison!$AA:$AA,">="&U$4,comparison!$AA:$AA,"<="&EOMONTH(U$4,0),comparison!$AJ:$AJ,"<>"&0)/(1000*(U102-U125)))) -> 356 | V160: =IF(OR(V102=0,V102-V125=0),0,(SUMIFS(comparison!$AI:$AI,comparison!$AK:$AK,$F160,comparison!$AA:$AA,">="&V$4,comparison!$AA:$AA,"<="&EOMONTH(V$4,0),comparison!$AJ:$AJ,"<>"&0)/(1000*V102)-SUMIFS(comparison!$AJ:$AJ,comparison!$AK:$AK,$F160,comparison!$AA:$AA,">="&V$4,comparison!$AA:$AA,"<="&EOMONTH(V$4,0),comparison!$AJ:$AJ,"<>"&0)/(1000*(V102-V125)))) -> 370.4285714 | W160: =IF(OR(W102=0,W102-W125=0),0,(SUMIFS(comparison!$AI:$AI,comparison!$AK:$AK,$F160,comparison!$AA:$AA,">="&W$4,comparison!$AA:$AA,"<="&EOMONTH(W$4,0),comparison!$AJ:$AJ,"<>"&0)/(1000*W102)-SUMIFS(comparison!$AJ:$AJ,comparison!$AK:$AK,$F160,comparison!$AA:$AA,">="&W$4,comparison!$AA:$AA,"<="&EOMONTH(W$4,0),comparison!$AJ:$AJ,"<>"&0)/(1000*(W102-W125)))) -> 408 | X160: =IF(OR(X102=0,X102-X125=0),0,(SUMIFS(comparison!$AI:$AI,comparison!$AK:$AK,$F160,comparison!$AA:$AA,">="&X$4,comparison!$AA:$AA,"<="&EOMONTH(X$4,0),comparison!$AJ:$AJ,"<>"&0)/(1000*X102)-SUMIFS(comparison!$AJ:$AJ,comparison!$AK:$AK,$F160,comparison!$AA:$AA,">="&X$4,comparison!$AA:$AA,"<="&EOMONTH(X$4,0),comparison!$AJ:$AJ,"<>"&0)/(1000*(X102-X125)))) -> 0 | Y160: =IF(OR(Y102=0,Y102-Y125=0),0,(SUMIFS(comparison!$AI:$AI,comparison!$AK:$AK,$F160,comparison!$AA:$AA,">="&Y$4,comparison!$AA:$AA,"<="&EOMONTH(Y$4,0),comparison!$AJ:$AJ,"<>"&0)/(1000*Y102)-SUMIFS(comparison!$AJ:$AJ,comparison!$AK:$AK,$F160,comparison!$AA:$AA,">="&Y$4,comparison!$AA:$AA,"<="&EOMONTH(Y$4,0),comparison!$AJ:$AJ,"<>"&0)/(1000*(Y102-Y125)))) -> 0 | Z160: =IF(OR(Z102=0,Z102-Z125=0),0,(SUMIFS(comparison!$AI:$AI,comparison!$AK:$AK,$F160,comparison!$AA:$AA,">="&Z$4,comparison!$AA:$AA,"<="&EOMONTH(Z$4,0),comparison!$AJ:$AJ,"<>"&0)/(1000*Z102)-SUMIFS(comparison!$AJ:$AJ,comparison!$AK:$AK,$F160,comparison!$AA:$AA,">="&Z$4,comparison!$AA:$AA,"<="&EOMONTH(Z$4,0),comparison!$AJ:$AJ,"<>"&0)/(1000*(Z102-Z125)))) -> 0 | AB160: =IF(OR(AB102=0,AB102-AB125=0),0,(SUMIFS(comparison!$AI:$AI,comparison!$AK:$AK,$F160,comparison!$AA:$AA,">="&O$4,comparison!$AA:$AA,"<="&EOMONTH(O$4,11),comparison!$AJ:$AJ,"<>"&0)/(1000*AB102)-SUMIFS(comparison!$AJ:$AJ,comparison!$AK:$AK,$F160,comparison!$AA:$AA,">="&O$4,comparison!$AA:$AA,"<="&EOMONTH(O$4,11),comparison!$AJ:$AJ,"<>"&0)/(1000*(AB102-AB125)))) -> 299.5908055
F161: Комплект наволочек | M161: дни | O161: =IF(OR(O103=0,O103-O126=0),0,(SUMIFS(comparison!$AI:$AI,comparison!$AK:$AK,$F161,comparison!$AA:$AA,">="&O$4,comparison!$AA:$AA,"<="&EOMONTH(O$4,0),comparison!$AJ:$AJ,"<>"&0)/(1000*O103)-SUMIFS(comparison!$AJ:$AJ,comparison!$AK:$AK,$F161,comparison!$AA:$AA,">="&O$4,comparison!$AA:$AA,"<="&EOMONTH(O$4,0),comparison!$AJ:$AJ,"<>"&0)/(1000*(O103-O126)))) -> 197.2574067 | P161: =IF(OR(P103=0,P103-P126=0),0,(SUMIFS(comparison!$AI:$AI,comparison!$AK:$AK,$F161,comparison!$AA:$AA,">="&P$4,comparison!$AA:$AA,"<="&EOMONTH(P$4,0),comparison!$AJ:$AJ,"<>"&0)/(1000*P103)-SUMIFS(comparison!$AJ:$AJ,comparison!$AK:$AK,$F161,comparison!$AA:$AA,">="&P$4,comparison!$AA:$AA,"<="&EOMONTH(P$4,0),comparison!$AJ:$AJ,"<>"&0)/(1000*(P103-P126)))) -> 0 | Q161: =IF(OR(Q103=0,Q103-Q126=0),0,(SUMIFS(comparison!$AI:$AI,comparison!$AK:$AK,$F161,comparison!$AA:$AA,">="&Q$4,comparison!$AA:$AA,"<="&EOMONTH(Q$4,0),comparison!$AJ:$AJ,"<>"&0)/(1000*Q103)-SUMIFS(comparison!$AJ:$AJ,comparison!$AK:$AK,$F161,comparison!$AA:$AA,">="&Q$4,comparison!$AA:$AA,"<="&EOMONTH(Q$4,0),comparison!$AJ:$AJ,"<>"&0)/(1000*(Q103-Q126)))) -> 162.8135446 | R161: =IF(OR(R103=0,R103-R126=0),0,(SUMIFS(comparison!$AI:$AI,comparison!$AK:$AK,$F161,comparison!$AA:$AA,">="&R$4,comparison!$AA:$AA,"<="&EOMONTH(R$4,0),comparison!$AJ:$AJ,"<>"&0)/(1000*R103)-SUMIFS(comparison!$AJ:$AJ,comparison!$AK:$AK,$F161,comparison!$AA:$AA,">="&R$4,comparison!$AA:$AA,"<="&EOMONTH(R$4,0),comparison!$AJ:$AJ,"<>"&0)/(1000*(R103-R126)))) -> 85.10279132 | S161: =IF(OR(S103=0,S103-S126=0),0,(SUMIFS(comparison!$AI:$AI,comparison!$AK:$AK,$F161,comparison!$AA:$AA,">="&S$4,comparison!$AA:$AA,"<="&EOMONTH(S$4,0),comparison!$AJ:$AJ,"<>"&0)/(1000*S103)-SUMIFS(comparison!$AJ:$AJ,comparison!$AK:$AK,$F161,comparison!$AA:$AA,">="&S$4,comparison!$AA:$AA,"<="&EOMONTH(S$4,0),comparison!$AJ:$AJ,"<>"&0)/(1000*(S103-S126)))) -> 298.1050473 | T161: =IF(OR(T103=0,T103-T126=0),0,(SUMIFS(comparison!$AI:$AI,comparison!$AK:$AK,$F161,comparison!$AA:$AA,">="&T$4,comparison!$AA:$AA,"<="&EOMONTH(T$4,0),comparison!$AJ:$AJ,"<>"&0)/(1000*T103)-SUMIFS(comparison!$AJ:$AJ,comparison!$AK:$AK,$F161,comparison!$AA:$AA,">="&T$4,comparison!$AA:$AA,"<="&EOMONTH(T$4,0),comparison!$AJ:$AJ,"<>"&0)/(1000*(T103-T126)))) -> 456.871323 | U161: =IF(OR(U103=0,U103-U126=0),0,(SUMIFS(comparison!$AI:$AI,comparison!$AK:$AK,$F161,comparison!$AA:$AA,">="&U$4,comparison!$AA:$AA,"<="&EOMONTH(U$4,0),comparison!$AJ:$AJ,"<>"&0)/(1000*U103)-SUMIFS(comparison!$AJ:$AJ,comparison!$AK:$AK,$F161,comparison!$AA:$AA,">="&U$4,comparison!$AA:$AA,"<="&EOMONTH(U$4,0),comparison!$AJ:$AJ,"<>"&0)/(1000*(U103-U126)))) -> 285.7481503 | V161: =IF(OR(V103=0,V103-V126=0),0,(SUMIFS(comparison!$AI:$AI,comparison!$AK:$AK,$F161,comparison!$AA:$AA,">="&V$4,comparison!$AA:$AA,"<="&EOMONTH(V$4,0),comparison!$AJ:$AJ,"<>"&0)/(1000*V103)-SUMIFS(comparison!$AJ:$AJ,comparison!$AK:$AK,$F161,comparison!$AA:$AA,">="&V$4,comparison!$AA:$AA,"<="&EOMONTH(V$4,0),comparison!$AJ:$AJ,"<>"&0)/(1000*(V103-V126)))) -> 390.1345129 | W161: =IF(OR(W103=0,W103-W126=0),0,(SUMIFS(comparison!$AI:$AI,comparison!$AK:$AK,$F161,comparison!$AA:$AA,">="&W$4,comparison!$AA:$AA,"<="&EOMONTH(W$4,0),comparison!$AJ:$AJ,"<>"&0)/(1000*W103)-SUMIFS(comparison!$AJ:$AJ,comparison!$AK:$AK,$F161,comparison!$AA:$AA,">="&W$4,comparison!$AA:$AA,"<="&EOMONTH(W$4,0),comparison!$AJ:$AJ,"<>"&0)/(1000*(W103-W126)))) -> 372.8615063 | X161: =IF(OR(X103=0,X103-X126=0),0,(SUMIFS(comparison!$AI:$AI,comparison!$AK:$AK,$F161,comparison!$AA:$AA,">="&X$4,comparison!$AA:$AA,"<="&EOMONTH(X$4,0),comparison!$AJ:$AJ,"<>"&0)/(1000*X103)-SUMIFS(comparison!$AJ:$AJ,comparison!$AK:$AK,$F161,comparison!$AA:$AA,">="&X$4,comparison!$AA:$AA,"<="&EOMONTH(X$4,0),comparison!$AJ:$AJ,"<>"&0)/(1000*(X103-X126)))) -> 310.3084568 | Y161: =IF(OR(Y103=0,Y103-Y126=0),0,(SUMIFS(comparison!$AI:$AI,comparison!$AK:$AK,$F161,comparison!$AA:$AA,">="&Y$4,comparison!$AA:$AA,"<="&EOMONTH(Y$4,0),comparison!$AJ:$AJ,"<>"&0)/(1000*Y103)-SUMIFS(comparison!$AJ:$AJ,comparison!$AK:$AK,$F161,comparison!$AA:$AA,">="&Y$4,comparison!$AA:$AA,"<="&EOMONTH(Y$4,0),comparison!$AJ:$AJ,"<>"&0)/(1000*(Y103-Y126)))) -> 293.7162518 | Z161: =IF(OR(Z103=0,Z103-Z126=0),0,(SUMIFS(comparison!$AI:$AI,comparison!$AK:$AK,$F161,comparison!$AA:$AA,">="&Z$4,comparison!$AA:$AA,"<="&EOMONTH(Z$4,0),comparison!$AJ:$AJ,"<>"&0)/(1000*Z103)-SUMIFS(comparison!$AJ:$AJ,comparison!$AK:$AK,$F161,comparison!$AA:$AA,">="&Z$4,comparison!$AA:$AA,"<="&EOMONTH(Z$4,0),comparison!$AJ:$AJ,"<>"&0)/(1000*(Z103-Z126)))) -> 128.1176793 | AB161: =IF(OR(AB103=0,AB103-AB126=0),0,(SUMIFS(comparison!$AI:$AI,comparison!$AK:$AK,$F161,comparison!$AA:$AA,">="&O$4,comparison!$AA:$AA,"<="&EOMONTH(O$4,11),comparison!$AJ:$AJ,"<>"&0)/(1000*AB103)-SUMIFS(comparison!$AJ:$AJ,comparison!$AK:$AK,$F161,comparison!$AA:$AA,">="&O$4,comparison!$AA:$AA,"<="&EOMONTH(O$4,11),comparison!$AJ:$AJ,"<>"&0)/(1000*(AB103-AB126)))) -> 287.3725075
F162: Полотенце | M162: дни | O162: =IF(OR(O104=0,O104-O127=0),0,(SUMIFS(comparison!$AI:$AI,comparison!$AK:$AK,$F162,comparison!$AA:$AA,">="&O$4,comparison!$AA:$AA,"<="&EOMONTH(O$4,0),comparison!$AJ:$AJ,"<>"&0)/(1000*O104)-SUMIFS(comparison!$AJ:$AJ,comparison!$AK:$AK,$F162,comparison!$AA:$AA,">="&O$4,comparison!$AA:$AA,"<="&EOMONTH(O$4,0),comparison!$AJ:$AJ,"<>"&0)/(1000*(O104-O127)))) -> 231 | P162: =IF(OR(P104=0,P104-P127=0),0,(SUMIFS(comparison!$AI:$AI,comparison!$AK:$AK,$F162,comparison!$AA:$AA,">="&P$4,comparison!$AA:$AA,"<="&EOMONTH(P$4,0),comparison!$AJ:$AJ,"<>"&0)/(1000*P104)-SUMIFS(comparison!$AJ:$AJ,comparison!$AK:$AK,$F162,comparison!$AA:$AA,">="&P$4,comparison!$AA:$AA,"<="&EOMONTH(P$4,0),comparison!$AJ:$AJ,"<>"&0)/(1000*(P104-P127)))) -> 197.6390626 | Q162: =IF(OR(Q104=0,Q104-Q127=0),0,(SUMIFS(comparison!$AI:$AI,comparison!$AK:$AK,$F162,comparison!$AA:$AA,">="&Q$4,comparison!$AA:$AA,"<="&EOMONTH(Q$4,0),comparison!$AJ:$AJ,"<>"&0)/(1000*Q104)-SUMIFS(comparison!$AJ:$AJ,comparison!$AK:$AK,$F162,comparison!$AA:$AA,">="&Q$4,comparison!$AA:$AA,"<="&EOMONTH(Q$4,0),comparison!$AJ:$AJ,"<>"&0)/(1000*(Q104-Q127)))) -> 0 | R162: =IF(OR(R104=0,R104-R127=0),0,(SUMIFS(comparison!$AI:$AI,comparison!$AK:$AK,$F162,comparison!$AA:$AA,">="&R$4,comparison!$AA:$AA,"<="&EOMONTH(R$4,0),comparison!$AJ:$AJ,"<>"&0)/(1000*R104)-SUMIFS(comparison!$AJ:$AJ,comparison!$AK:$AK,$F162,comparison!$AA:$AA,">="&R$4,comparison!$AA:$AA,"<="&EOMONTH(R$4,0),comparison!$AJ:$AJ,"<>"&0)/(1000*(R104-R127)))) -> 266.1107716 | S162: =IF(OR(S104=0,S104-S127=0),0,(SUMIFS(comparison!$AI:$AI,comparison!$AK:$AK,$F162,comparison!$AA:$AA,">="&S$4,comparison!$AA:$AA,"<="&EOMONTH(S$4,0),comparison!$AJ:$AJ,"<>"&0)/(1000*S104)-SUMIFS(comparison!$AJ:$AJ,comparison!$AK:$AK,$F162,comparison!$AA:$AA,">="&S$4,comparison!$AA:$AA,"<="&EOMONTH(S$4,0),comparison!$AJ:$AJ,"<>"&0)/(1000*(S104-S127)))) -> 316.7728121 | T162: =IF(OR(T104=0,T104-T127=0),0,(SUMIFS(comparison!$AI:$AI,comparison!$AK:$AK,$F162,comparison!$AA:$AA,">="&T$4,comparison!$AA:$AA,"<="&EOMONTH(T$4,0),comparison!$AJ:$AJ,"<>"&0)/(1000*T104)-SUMIFS(comparison!$AJ:$AJ,comparison!$AK:$AK,$F162,comparison!$AA:$AA,">="&T$4,comparison!$AA:$AA,"<="&EOMONTH(T$4,0),comparison!$AJ:$AJ,"<>"&0)/(1000*(T104-T127)))) -> 347.4344874 | U162: =IF(OR(U104=0,U104-U127=0),0,(SUMIFS(comparison!$AI:$AI,comparison!$AK:$AK,$F162,comparison!$AA:$AA,">="&U$4,comparison!$AA:$AA,"<="&EOMONTH(U$4,0),comparison!$AJ:$AJ,"<>"&0)/(1000*U104)-SUMIFS(comparison!$AJ:$AJ,comparison!$AK:$AK,$F162,comparison!$AA:$AA,">="&U$4,comparison!$AA:$AA,"<="&EOMONTH(U$4,0),comparison!$AJ:$AJ,"<>"&0)/(1000*(U104-U127)))) -> 0 | V162: =IF(OR(V104=0,V104-V127=0),0,(SUMIFS(comparison!$AI:$AI,comparison!$AK:$AK,$F162,comparison!$AA:$AA,">="&V$4,comparison!$AA:$AA,"<="&EOMONTH(V$4,0),comparison!$AJ:$AJ,"<>"&0)/(1000*V104)-SUMIFS(comparison!$AJ:$AJ,comparison!$AK:$AK,$F162,comparison!$AA:$AA,">="&V$4,comparison!$AA:$AA,"<="&EOMONTH(V$4,0),comparison!$AJ:$AJ,"<>"&0)/(1000*(V104-V127)))) -> 225.8702927 | W162: =IF(OR(W104=0,W104-W127=0),0,(SUMIFS(comparison!$AI:$AI,comparison!$AK:$AK,$F162,comparison!$AA:$AA,">="&W$4,comparison!$AA:$AA,"<="&EOMONTH(W$4,0),comparison!$AJ:$AJ,"<>"&0)/(1000*W104)-SUMIFS(comparison!$AJ:$AJ,comparison!$AK:$AK,$F162,comparison!$AA:$AA,">="&W$4,comparison!$AA:$AA,"<="&EOMONTH(W$4,0),comparison!$AJ:$AJ,"<>"&0)/(1000*(W104-W127)))) -> 309.1683164 | X162: =IF(OR(X104=0,X104-X127=0),0,(SUMIFS(comparison!$AI:$AI,comparison!$AK:$AK,$F162,comparison!$AA:$AA,">="&X$4,comparison!$AA:$AA,"<="&EOMONTH(X$4,0),comparison!$AJ:$AJ,"<>"&0)/(1000*X104)-SUMIFS(comparison!$AJ:$AJ,comparison!$AK:$AK,$F162,comparison!$AA:$AA,">="&X$4,comparison!$AA:$AA,"<="&EOMONTH(X$4,0),comparison!$AJ:$AJ,"<>"&0)/(1000*(X104-X127)))) -> 360.837393 | Y162: =IF(OR(Y104=0,Y104-Y127=0),0,(SUMIFS(comparison!$AI:$AI,comparison!$AK:$AK,$F162,comparison!$AA:$AA,">="&Y$4,comparison!$AA:$AA,"<="&EOMONTH(Y$4,0),comparison!$AJ:$AJ,"<>"&0)/(1000*Y104)-SUMIFS(comparison!$AJ:$AJ,comparison!$AK:$AK,$F162,comparison!$AA:$AA,">="&Y$4,comparison!$AA:$AA,"<="&EOMONTH(Y$4,0),comparison!$AJ:$AJ,"<>"&0)/(1000*(Y104-Y127)))) -> 242.4165839 | Z162: =IF(OR(Z104=0,Z104-Z127=0),0,(SUMIFS(comparison!$AI:$AI,comparison!$AK:$AK,$F162,comparison!$AA:$AA,">="&Z$4,comparison!$AA:$AA,"<="&EOMONTH(Z$4,0),comparison!$AJ:$AJ,"<>"&0)/(1000*Z104)-SUMIFS(comparison!$AJ:$AJ,comparison!$AK:$AK,$F162,comparison!$AA:$AA,">="&Z$4,comparison!$AA:$AA,"<="&EOMONTH(Z$4,0),comparison!$AJ:$AJ,"<>"&0)/(1000*(Z104-Z127)))) -> 471.6836466 | AB162: =IF(OR(AB104=0,AB104-AB127=0),0,(SUMIFS(comparison!$AI:$AI,comparison!$AK:$AK,$F162,comparison!$AA:$AA,">="&O$4,comparison!$AA:$AA,"<="&EOMONTH(O$4,11),comparison!$AJ:$AJ,"<>"&0)/(1000*AB104)-SUMIFS(comparison!$AJ:$AJ,comparison!$AK:$AK,$F162,comparison!$AA:$AA,">="&O$4,comparison!$AA:$AA,"<="&EOMONTH(O$4,11),comparison!$AJ:$AJ,"<>"&0)/(1000*(AB104-AB127)))) -> 300.8832867
F163: Комплект семейный | M163: =M162 -> дни | O163: =IF(OR(O105=0,O105-O128=0),0,(SUMIFS(comparison!$AI:$AI,comparison!$AK:$AK,$F163,comparison!$AA:$AA,">="&O$4,comparison!$AA:$AA,"<="&EOMONTH(O$4,0),comparison!$AJ:$AJ,"<>"&0)/(1000*O105)-SUMIFS(comparison!$AJ:$AJ,comparison!$AK:$AK,$F163,comparison!$AA:$AA,">="&O$4,comparison!$AA:$AA,"<="&EOMONTH(O$4,0),comparison!$AJ:$AJ,"<>"&0)/(1000*(O105-O128)))) -> 0 | P163: =IF(OR(P105=0,P105-P128=0),0,(SUMIFS(comparison!$AI:$AI,comparison!$AK:$AK,$F163,comparison!$AA:$AA,">="&P$4,comparison!$AA:$AA,"<="&EOMONTH(P$4,0),comparison!$AJ:$AJ,"<>"&0)/(1000*P105)-SUMIFS(comparison!$AJ:$AJ,comparison!$AK:$AK,$F163,comparison!$AA:$AA,">="&P$4,comparison!$AA:$AA,"<="&EOMONTH(P$4,0),comparison!$AJ:$AJ,"<>"&0)/(1000*(P105-P128)))) -> 0 | Q163: =IF(OR(Q105=0,Q105-Q128=0),0,(SUMIFS(comparison!$AI:$AI,comparison!$AK:$AK,$F163,comparison!$AA:$AA,">="&Q$4,comparison!$AA:$AA,"<="&EOMONTH(Q$4,0),comparison!$AJ:$AJ,"<>"&0)/(1000*Q105)-SUMIFS(comparison!$AJ:$AJ,comparison!$AK:$AK,$F163,comparison!$AA:$AA,">="&Q$4,comparison!$AA:$AA,"<="&EOMONTH(Q$4,0),comparison!$AJ:$AJ,"<>"&0)/(1000*(Q105-Q128)))) -> 0 | R163: =IF(OR(R105=0,R105-R128=0),0,(SUMIFS(comparison!$AI:$AI,comparison!$AK:$AK,$F163,comparison!$AA:$AA,">="&R$4,comparison!$AA:$AA,"<="&EOMONTH(R$4,0),comparison!$AJ:$AJ,"<>"&0)/(1000*R105)-SUMIFS(comparison!$AJ:$AJ,comparison!$AK:$AK,$F163,comparison!$AA:$AA,">="&R$4,comparison!$AA:$AA,"<="&EOMONTH(R$4,0),comparison!$AJ:$AJ,"<>"&0)/(1000*(R105-R128)))) -> 150.0321185 | S163: =IF(OR(S105=0,S105-S128=0),0,(SUMIFS(comparison!$AI:$AI,comparison!$AK:$AK,$F163,comparison!$AA:$AA,">="&S$4,comparison!$AA:$AA,"<="&EOMONTH(S$4,0),comparison!$AJ:$AJ,"<>"&0)/(1000*S105)-SUMIFS(comparison!$AJ:$AJ,comparison!$AK:$AK,$F163,comparison!$AA:$AA,">="&S$4,comparison!$AA:$AA,"<="&EOMONTH(S$4,0),comparison!$AJ:$AJ,"<>"&0)/(1000*(S105-S128)))) -> 125 | T163: =IF(OR(T105=0,T105-T128=0),0,(SUMIFS(comparison!$AI:$AI,comparison!$AK:$AK,$F163,comparison!$AA:$AA,">="&T$4,comparison!$AA:$AA,"<="&EOMONTH(T$4,0),comparison!$AJ:$AJ,"<>"&0)/(1000*T105)-SUMIFS(comparison!$AJ:$AJ,comparison!$AK:$AK,$F163,comparison!$AA:$AA,">="&T$4,comparison!$AA:$AA,"<="&EOMONTH(T$4,0),comparison!$AJ:$AJ,"<>"&0)/(1000*(T105-T128)))) -> 143 | U163: =IF(OR(U105=0,U105-U128=0),0,(SUMIFS(comparison!$AI:$AI,comparison!$AK:$AK,$F163,comparison!$AA:$AA,">="&U$4,comparison!$AA:$AA,"<="&EOMONTH(U$4,0),comparison!$AJ:$AJ,"<>"&0)/(1000*U105)-SUMIFS(comparison!$AJ:$AJ,comparison!$AK:$AK,$F163,comparison!$AA:$AA,">="&U$4,comparison!$AA:$AA,"<="&EOMONTH(U$4,0),comparison!$AJ:$AJ,"<>"&0)/(1000*(U105-U128)))) -> 0 | V163: =IF(OR(V105=0,V105-V128=0),0,(SUMIFS(comparison!$AI:$AI,comparison!$AK:$AK,$F163,comparison!$AA:$AA,">="&V$4,comparison!$AA:$AA,"<="&EOMONTH(V$4,0),comparison!$AJ:$AJ,"<>"&0)/(1000*V105)-SUMIFS(comparison!$AJ:$AJ,comparison!$AK:$AK,$F163,comparison!$AA:$AA,">="&V$4,comparison!$AA:$AA,"<="&EOMONTH(V$4,0),comparison!$AJ:$AJ,"<>"&0)/(1000*(V105-V128)))) -> 309 | W163: =IF(OR(W105=0,W105-W128=0),0,(SUMIFS(comparison!$AI:$AI,comparison!$AK:$AK,$F163,comparison!$AA:$AA,">="&W$4,comparison!$AA:$AA,"<="&EOMONTH(W$4,0),comparison!$AJ:$AJ,"<>"&0)/(1000*W105)-SUMIFS(comparison!$AJ:$AJ,comparison!$AK:$AK,$F163,comparison!$AA:$AA,">="&W$4,comparison!$AA:$AA,"<="&EOMONTH(W$4,0),comparison!$AJ:$AJ,"<>"&0)/(1000*(W105-W128)))) -> 0 | X163: =IF(OR(X105=0,X105-X128=0),0,(SUMIFS(comparison!$AI:$AI,comparison!$AK:$AK,$F163,comparison!$AA:$AA,">="&X$4,comparison!$AA:$AA,"<="&EOMONTH(X$4,0),comparison!$AJ:$AJ,"<>"&0)/(1000*X105)-SUMIFS(comparison!$AJ:$AJ,comparison!$AK:$AK,$F163,comparison!$AA:$AA,">="&X$4,comparison!$AA:$AA,"<="&EOMONTH(X$4,0),comparison!$AJ:$AJ,"<>"&0)/(1000*(X105-X128)))) -> 369 | Y163: =IF(OR(Y105=0,Y105-Y128=0),0,(SUMIFS(comparison!$AI:$AI,comparison!$AK:$AK,$F163,comparison!$AA:$AA,">="&Y$4,comparison!$AA:$AA,"<="&EOMONTH(Y$4,0),comparison!$AJ:$AJ,"<>"&0)/(1000*Y105)-SUMIFS(comparison!$AJ:$AJ,comparison!$AK:$AK,$F163,comparison!$AA:$AA,">="&Y$4,comparison!$AA:$AA,"<="&EOMONTH(Y$4,0),comparison!$AJ:$AJ,"<>"&0)/(1000*(Y105-Y128)))) -> 84.74329281 | Z163: =IF(OR(Z105=0,Z105-Z128=0),0,(SUMIFS(comparison!$AI:$AI,comparison!$AK:$AK,$F163,comparison!$AA:$AA,">="&Z$4,comparison!$AA:$AA,"<="&EOMONTH(Z$4,0),comparison!$AJ:$AJ,"<>"&0)/(1000*Z105)-SUMIFS(comparison!$AJ:$AJ,comparison!$AK:$AK,$F163,comparison!$AA:$AA,">="&Z$4,comparison!$AA:$AA,"<="&EOMONTH(Z$4,0),comparison!$AJ:$AJ,"<>"&0)/(1000*(Z105-Z128)))) -> 42 | AB163: =IF(OR(AB105=0,AB105-AB128=0),0,(SUMIFS(comparison!$AI:$AI,comparison!$AK:$AK,$F163,comparison!$AA:$AA,">="&O$4,comparison!$AA:$AA,"<="&EOMONTH(O$4,11),comparison!$AJ:$AJ,"<>"&0)/(1000*AB105)-SUMIFS(comparison!$AJ:$AJ,comparison!$AK:$AK,$F163,comparison!$AA:$AA,">="&O$4,comparison!$AA:$AA,"<="&EOMONTH(O$4,11),comparison!$AJ:$AJ,"<>"&0)/(1000*(AB105-AB128)))) -> 141.5741631
F164: Покрывало | M164: =M163 -> дни | O164: =IF(OR(O106=0,O106-O129=0),0,(SUMIFS(comparison!$AI:$AI,comparison!$AK:$AK,$F164,comparison!$AA:$AA,">="&O$4,comparison!$AA:$AA,"<="&EOMONTH(O$4,0),comparison!$AJ:$AJ,"<>"&0)/(1000*O106)-SUMIFS(comparison!$AJ:$AJ,comparison!$AK:$AK,$F164,comparison!$AA:$AA,">="&O$4,comparison!$AA:$AA,"<="&EOMONTH(O$4,0),comparison!$AJ:$AJ,"<>"&0)/(1000*(O106-O129)))) -> 0 | P164: =IF(OR(P106=0,P106-P129=0),0,(SUMIFS(comparison!$AI:$AI,comparison!$AK:$AK,$F164,comparison!$AA:$AA,">="&P$4,comparison!$AA:$AA,"<="&EOMONTH(P$4,0),comparison!$AJ:$AJ,"<>"&0)/(1000*P106)-SUMIFS(comparison!$AJ:$AJ,comparison!$AK:$AK,$F164,comparison!$AA:$AA,">="&P$4,comparison!$AA:$AA,"<="&EOMONTH(P$4,0),comparison!$AJ:$AJ,"<>"&0)/(1000*(P106-P129)))) -> 0 | Q164: =IF(OR(Q106=0,Q106-Q129=0),0,(SUMIFS(comparison!$AI:$AI,comparison!$AK:$AK,$F164,comparison!$AA:$AA,">="&Q$4,comparison!$AA:$AA,"<="&EOMONTH(Q$4,0),comparison!$AJ:$AJ,"<>"&0)/(1000*Q106)-SUMIFS(comparison!$AJ:$AJ,comparison!$AK:$AK,$F164,comparison!$AA:$AA,">="&Q$4,comparison!$AA:$AA,"<="&EOMONTH(Q$4,0),comparison!$AJ:$AJ,"<>"&0)/(1000*(Q106-Q129)))) -> 807 | R164: =IF(OR(R106=0,R106-R129=0),0,(SUMIFS(comparison!$AI:$AI,comparison!$AK:$AK,$F164,comparison!$AA:$AA,">="&R$4,comparison!$AA:$AA,"<="&EOMONTH(R$4,0),comparison!$AJ:$AJ,"<>"&0)/(1000*R106)-SUMIFS(comparison!$AJ:$AJ,comparison!$AK:$AK,$F164,comparison!$AA:$AA,">="&R$4,comparison!$AA:$AA,"<="&EOMONTH(R$4,0),comparison!$AJ:$AJ,"<>"&0)/(1000*(R106-R129)))) -> 0 | S164: =IF(OR(S106=0,S106-S129=0),0,(SUMIFS(comparison!$AI:$AI,comparison!$AK:$AK,$F164,comparison!$AA:$AA,">="&S$4,comparison!$AA:$AA,"<="&EOMONTH(S$4,0),comparison!$AJ:$AJ,"<>"&0)/(1000*S106)-SUMIFS(comparison!$AJ:$AJ,comparison!$AK:$AK,$F164,comparison!$AA:$AA,">="&S$4,comparison!$AA:$AA,"<="&EOMONTH(S$4,0),comparison!$AJ:$AJ,"<>"&0)/(1000*(S106-S129)))) -> 869 | T164: =IF(OR(T106=0,T106-T129=0),0,(SUMIFS(comparison!$AI:$AI,comparison!$AK:$AK,$F164,comparison!$AA:$AA,">="&T$4,comparison!$AA:$AA,"<="&EOMONTH(T$4,0),comparison!$AJ:$AJ,"<>"&0)/(1000*T106)-SUMIFS(comparison!$AJ:$AJ,comparison!$AK:$AK,$F164,comparison!$AA:$AA,">="&T$4,comparison!$AA:$AA,"<="&EOMONTH(T$4,0),comparison!$AJ:$AJ,"<>"&0)/(1000*(T106-T129)))) -> 264 | U164: =IF(OR(U106=0,U106-U129=0),0,(SUMIFS(comparison!$AI:$AI,comparison!$AK:$AK,$F164,comparison!$AA:$AA,">="&U$4,comparison!$AA:$AA,"<="&EOMONTH(U$4,0),comparison!$AJ:$AJ,"<>"&0)/(1000*U106)-SUMIFS(comparison!$AJ:$AJ,comparison!$AK:$AK,$F164,comparison!$AA:$AA,">="&U$4,comparison!$AA:$AA,"<="&EOMONTH(U$4,0),comparison!$AJ:$AJ,"<>"&0)/(1000*(U106-U129)))) -> 518.1717877 | V164: =IF(OR(V106=0,V106-V129=0),0,(SUMIFS(comparison!$AI:$AI,comparison!$AK:$AK,$F164,comparison!$AA:$AA,">="&V$4,comparison!$AA:$AA,"<="&EOMONTH(V$4,0),comparison!$AJ:$AJ,"<>"&0)/(1000*V106)-SUMIFS(comparison!$AJ:$AJ,comparison!$AK:$AK,$F164,comparison!$AA:$AA,">="&V$4,comparison!$AA:$AA,"<="&EOMONTH(V$4,0),comparison!$AJ:$AJ,"<>"&0)/(1000*(V106-V129)))) -> 0 | W164: =IF(OR(W106=0,W106-W129=0),0,(SUMIFS(comparison!$AI:$AI,comparison!$AK:$AK,$F164,comparison!$AA:$AA,">="&W$4,comparison!$AA:$AA,"<="&EOMONTH(W$4,0),comparison!$AJ:$AJ,"<>"&0)/(1000*W106)-SUMIFS(comparison!$AJ:$AJ,comparison!$AK:$AK,$F164,comparison!$AA:$AA,">="&W$4,comparison!$AA:$AA,"<="&EOMONTH(W$4,0),comparison!$AJ:$AJ,"<>"&0)/(1000*(W106-W129)))) -> 0 | X164: =IF(OR(X106=0,X106-X129=0),0,(SUMIFS(comparison!$AI:$AI,comparison!$AK:$AK,$F164,comparison!$AA:$AA,">="&X$4,comparison!$AA:$AA,"<="&EOMONTH(X$4,0),comparison!$AJ:$AJ,"<>"&0)/(1000*X106)-SUMIFS(comparison!$AJ:$AJ,comparison!$AK:$AK,$F164,comparison!$AA:$AA,">="&X$4,comparison!$AA:$AA,"<="&EOMONTH(X$4,0),comparison!$AJ:$AJ,"<>"&0)/(1000*(X106-X129)))) -> 1001.049702 | Y164: =IF(OR(Y106=0,Y106-Y129=0),0,(SUMIFS(comparison!$AI:$AI,comparison!$AK:$AK,$F164,comparison!$AA:$AA,">="&Y$4,comparison!$AA:$AA,"<="&EOMONTH(Y$4,0),comparison!$AJ:$AJ,"<>"&0)/(1000*Y106)-SUMIFS(comparison!$AJ:$AJ,comparison!$AK:$AK,$F164,comparison!$AA:$AA,">="&Y$4,comparison!$AA:$AA,"<="&EOMONTH(Y$4,0),comparison!$AJ:$AJ,"<>"&0)/(1000*(Y106-Y129)))) -> 0 | Z164: =IF(OR(Z106=0,Z106-Z129=0),0,(SUMIFS(comparison!$AI:$AI,comparison!$AK:$AK,$F164,comparison!$AA:$AA,">="&Z$4,comparison!$AA:$AA,"<="&EOMONTH(Z$4,0),comparison!$AJ:$AJ,"<>"&0)/(1000*Z106)-SUMIFS(comparison!$AJ:$AJ,comparison!$AK:$AK,$F164,comparison!$AA:$AA,">="&Z$4,comparison!$AA:$AA,"<="&EOMONTH(Z$4,0),comparison!$AJ:$AJ,"<>"&0)/(1000*(Z106-Z129)))) -> 0 | AB164: =IF(OR(AB106=0,AB106-AB129=0),0,(SUMIFS(comparison!$AI:$AI,comparison!$AK:$AK,$F164,comparison!$AA:$AA,">="&O$4,comparison!$AA:$AA,"<="&EOMONTH(O$4,11),comparison!$AJ:$AJ,"<>"&0)/(1000*AB106)-SUMIFS(comparison!$AJ:$AJ,comparison!$AK:$AK,$F164,comparison!$AA:$AA,">="&O$4,comparison!$AA:$AA,"<="&EOMONTH(O$4,11),comparison!$AJ:$AJ,"<>"&0)/(1000*(AB106-AB129)))) -> 772.7034761
F167: IRR по группам ТОП-10 | M167: % | O167: =IFERROR(IF(IF(O154=0,0,POWER(1+O142,365/O154)-1)>1000%,">1000%",IF(O154=0,0,POWER(1+O142,365/O154)-1)),0) -> 1.478778939 | P167: =IFERROR(IF(IF(P154=0,0,POWER(1+P142,365/P154)-1)>1000%,">1000%",IF(P154=0,0,POWER(1+P142,365/P154)-1)),0) -> 1.323739927 | Q167: =IFERROR(IF(IF(Q154=0,0,POWER(1+Q142,365/Q154)-1)>1000%,">1000%",IF(Q154=0,0,POWER(1+Q142,365/Q154)-1)),0) -> >1000% | R167: 2.865735885 | S167: 1.883399933 | T167: 0.8692590072 | U167: 0.9378145847 | V167: 1.439212847 | W167: 1.676921273 | X167: 0.4830875752 | Y167: 2.196384008 | Z167: 5.477921536 | AB167: =IFERROR(IF(IF(AB154=0,0,POWER(1+AB142,365/AB154)-1)>1000%,">1000%",IF(AB154=0,0,POWER(1+AB142,365/AB154)-1)),0) -> 1.651435069
F168: =F155 -> Комплект евро | M168: % | O168: =IFERROR(IF(IF(O155=0,0,POWER(1+O143,365/O155)-1)>1000%,">1000%",IF(O155=0,0,POWER(1+O143,365/O155)-1)),0) -> 0 | P168: 3.274155174 | Q168: 2.323602337 | R168: 2.659395262 | S168: 1.983394213 | T168: 1.409962118 | U168: 1.461955118 | V168: 1.201058375 | W168: 0.9898179834 | X168: 0.963072104 | Y168: 3.049582927 | Z168: >1000% | AB168: 1.581779245
F169: =F156 -> Комплект | M169: % | O169: =IFERROR(IF(IF(O156=0,0,POWER(1+O144,365/O156)-1)>1000%,">1000%",IF(O156=0,0,POWER(1+O144,365/O156)-1)),0) -> 0.4258034372 | P169: 1.292577992 | Q169: >1000% | R169: 0.9949219345 | S169: 0.9486910645 | T169: 0.5809692268 | U169: 0.6160928793 | V169: 0.4780271903 | W169: 0.5992592032 | X169: 0.6835588596 | Y169: 0.4683543696 | Z169: 0.4544192854 | AB169: 0.7296962516
F170: Простыня | M170: % | O170: =IFERROR(IF(IF(O157=0,0,POWER(1+O145,365/O157)-1)>1000%,">1000%",IF(O157=0,0,POWER(1+O145,365/O157)-1)),0) -> 1.04201408 | P170: 0.5678083273 | Q170: 1.449077866 | R170: 1.109103291 | S170: 0.6905831062 | T170: 0.8352042732 | U170: 0.8414971253 | V170: 0.9749364982 | W170: 0.9862974288 | X170: 0.3415753578 | Y170: 2.396616833 | Z170: 0.8625748005 | AB170: 0.8313445706
F171: Одеяло | M171: % | O171: =IFERROR(IF(IF(O158=0,0,POWER(1+O146,365/O158)-1)>1000%,">1000%",IF(O158=0,0,POWER(1+O146,365/O158)-1)),0) -> 0 | P171: 0 | Q171: >1000% | R171: >1000% | S171: 0 | T171: 0 | U171: 0 | V171: 0 | W171: >1000% | X171: 0 | Y171: -0.9999999995 | Z171: >1000% | AB171: >1000%
F172: Подушка | M172: % | O172: =IFERROR(IF(IF(O159=0,0,POWER(1+O147,365/O159)-1)>1000%,">1000%",IF(O159=0,0,POWER(1+O147,365/O159)-1)),0) -> 0 | P172: 0 | Q172: >1000% | R172: >1000% | S172: >1000% | T172: 0 | U172: 0 | V172: 0 | W172: >1000% | X172: 0 | Y172: 0 | Z172: >1000% | AB172: >1000%
F173: Плед | M173: % | O173: =IFERROR(IF(IF(O160=0,0,POWER(1+O148,365/O160)-1)>1000%,">1000%",IF(O160=0,0,POWER(1+O148,365/O160)-1)),0) -> 0 | P173: 2.086025082 | Q173: 1.250694119 | R173: 1.217834656 | S173: 1.313206743 | T173: 0.9027695668 | U173: 0.8776028758 | V173: 0.8204124061 | W173: 0.4307347813 | X173: 0 | Y173: 0 | Z173: 0 | AB173: 1.049608138
F174: Комплект наволочек | M174: % | O174: =IFERROR(IF(IF(O161=0,0,POWER(1+O149,365/O161)-1)>1000%,">1000%",IF(O161=0,0,POWER(1+O149,365/O161)-1)),0) -> 2.004809836 | P174: 0 | Q174: 2.665537591 | R174: >1000% | S174: 1.004380655 | T174: 0.4066576786 | U174: 1.0599668 | V174: 0.6102703591 | W174: 0.6882737325 | X174: 0.9567025387 | Y174: 0.9398794302 | Z174: 3.97326758 | AB174: 1.001658549
F175: Полотенце | M175: % | O175: =IFERROR(IF(IF(O162=0,0,POWER(1+O150,365/O162)-1)>1000%,">1000%",IF(O162=0,0,POWER(1+O150,365/O162)-1)),0) -> 0 | P175: 1.864077949 | Q175: 0 | R175: 1.126683404 | S175: 0.8000952778 | T175: 0.7854817436 | U175: 0 | V175: 1.16105206 | W175: 0.7601769503 | X175: 0.8333991628 | Y175: 1.243531246 | Z175: 0.5464402928 | AB175: 0.9406985362
F176: Комплект семейный | M176: % | O176: =IFERROR(IF(IF(O163=0,0,POWER(1+O151,365/O163)-1)>1000%,">1000%",IF(O163=0,0,POWER(1+O151,365/O163)-1)),0) -> 0 | P176: 0 | Q176: 0 | R176: 3.026120005 | S176: 4.014837181 | T176: 2.795272486 | U176: 0 | V176: 0.9083982726 | W176: 0 | X176: 0.6140741586 | Y176: >1000% | Z176: >1000% | AB176: 3.158267125
F177: Покрывало | M177: % | O177: =IFERROR(IF(IF(O164=0,0,POWER(1+O152,365/O164)-1)>1000%,">1000%",IF(O164=0,0,POWER(1+O152,365/O164)-1)),0) -> 0 | P177: 0 | Q177: 0.3164055852 | R177: 0 | S177: 0.2949492604 | T177: 0.9533159227 | U177: 0.5252629033 | V177: 0 | W177: 0 | X177: 0.2249582834 | Y177: 0 | Z177: 0 | AB177: 0.311499021

Sheet Report
L1: ВОЗРАСТ | O1: ВОЗРАСТ | R1: Оборачиваемость
D2: Общий отчет по оборачиваемости и рентабельности продаж | L2: Складских остатков | O2: Складских остатков | R2: проданной продукции
D3: в количестве штук продукции | H3: ИТОГО | I3: в штуках | J3: ИТОГО | K3: в деньгах | L3: ПО СОСТОЯНИЮ НА | N3: в штуках | O3: ПО СОСТОЯНИЮ НА | Q3: в деньгах | R3: ИТОГО
D4: в стоимости продукции | H4: Оборачиваемость | J4: Оборачиваемость | L4: 2022-06-30 | O4: 2022-06-30 | R4: ЗА ВСЕ ВРЕМЯ | V4: в штуках | W4: в деньгах
D5: № | E5: Номенклатула | H5: Продукция, шт | I5: Оборач-ть, дни | J5: Продажи+Склад, руб. | K5: Оборач-ть, дни | L5: Остатки, шт | M5: Дата закупки | N5: Возраст, дни | O5: Остатки, руб. | P5: Дата закупки | Q5: Возраст, дни | R5: Кол-во продаж, шт | S5: Продажи, руб. | T5: COGS, руб. | U5: Маржа, % | V5: Оборач-ть, дни | W5: Оборач-ть, дни | X5: IRR, %г
E8: Итого | H8: =R8+L8 -> 24310 | I8: =IF(H8=0,0,(L8*N8+R8*V8)/H8) -> 322.3850267 | J8: =S8+O8 -> 83004694.31 | K8: =IF(J8=0,0,(O8*Q8+S8*W8)/J8) -> 269.9248779 | L8: =SUM(comparison!$O:$O) -> 12690 | M8: =IF(L8=0,0,SUM(comparison!$A:$A)/L8) -> 2021-06-22T03:44:40.851 | N8: =$L$4-M8 -> 372.8439716 | O8: =SUM(comparison!$P:$P) -> 17612927.81 | P8: =IF(O8=0,0,SUM(comparison!$B:$B)/O8) -> 2021-05-24T21:16:23.497 | Q8: =$O$4-P8 -> 401.1136169 | R8: =SUMIFS(comparison!$AB:$AB,comparison!$AG:$AG,"<>"&0) -> 11620 | S8: =SUMIFS(comparison!$AC:$AC,comparison!$AJ:$AJ,"<>"&0) -> 65391766.5 | T8: =SUMIFS(comparison!$U:$U,comparison!$AJ:$AJ,"<>"&0) -> 21080575.86 | U8: =IF(S8=0,0,(S8-T8)/S8) -> 0.6776264508 | V8: =IF(R8=0,0,(SUMIFS(comparison!$AF:$AF,comparison!$AG:$AG,"<>"&0)-SUMIFS(comparison!$AG:$AG,comparison!$AG:$AG,"<>"&0))/R8) -> 267.2796902 | W8: =IF(S8=0,0,SUMIFS(comparison!$AI:$AI,comparison!$AJ:$AJ,"<>"&0)/S8)-IF(T8=0,0,SUMIFS(comparison!$AJ:$AJ,comparison!$AJ:$AJ,"<>"&0)/T8) -> 234.5898822 | X8: =IF(W8=0,0,POWER(1+U8,365/W8)-1) -> 1.236685372
D10: 1 | E10: =IF(SUMIFS(IN!$Q:$Q,IN!$S:$S,$D10,IN!$T:$T,1)=0,0,INDEX(IN!$C:$C,SUMIFS(IN!$Q:$Q,IN!$S:$S,$D10,IN!$T:$T,1))) -> товар-1 | H10: =R10+L10 -> 20 | I10: =IF(H10=0,0,(L10*N10+R10*V10)/H10) -> 470 | J10: =S10+O10 -> 216897 | K10: =IF(J10=0,0,(O10*Q10+S10*W10)/J10) -> 438.6083487 | L10: =SUMIFS(comparison!$O:$O,comparison!$Q:$Q,$E10) -> 0 | M10: =IF(L10=0,0,SUMIFS(comparison!$A:$A,comparison!$Q:$Q,$E10)/L10) -> 00:00:00 | N10: =IF(L10=0,0,$L$4-M10) -> 0 | O10: =SUMIFS(comparison!$P:$P,comparison!$Q:$Q,$E10) -> 0 | P10: =IF(O10=0,0,SUMIFS(comparison!$B:$B,comparison!$Q:$Q,$E10)/O10) -> 00:00:00 | Q10: =IF(O10=0,0,$O$4-P10) -> 0 | R10: =SUMIFS(comparison!$AB:$AB,comparison!$AE:$AE,$E10,comparison!$AG:$AG,"<>"&0) -> 20 | S10: =SUMIFS(comparison!$AC:$AC,comparison!$AE:$AE,$E10,comparison!$AJ:$AJ,"<>"&0) -> 216897 | T10: =SUMIFS(comparison!$U:$U,comparison!$AE:$AE,$E10,comparison!$AJ:$AJ,"<>"&0) -> 63578.1 | U10: =IF(S10=0,0,(S10-T10)/S10) -> 0.7068742306 | V10: =IF(R10=0,0,(SUMIFS(comparison!$AF:$AF,comparison!$AE:$AE,$E10,comparison!$AG:$AG,"<>"&0)-SUMIFS(comparison!$AG:$AG,comparison!$AE:$AE,$E10,comparison!$AG:$AG,"<>"&0))/R10) -> 470 | W10: =IF(S10=0,0,SUMIFS(comparison!$AI:$AI,comparison!$AE:$AE,$E10,comparison!$AJ:$AJ,"<>"&0)/S10)-IF(T10=0,0,SUMIFS(comparison!$AJ:$AJ,comparison!$AE:$AE,$E10,comparison!$AJ:$AJ,"<>"&0)/T10) -> 438.6083487 | X10: =IF(W10<=0,0,POWER(1+U10,365/W10)-1) -> 0.5603890081
D11: =D10+1 -> 2 | E11: =IF(SUMIFS(IN!$Q:$Q,IN!$S:$S,$D11,IN!$T:$T,1)=0,0,INDEX(IN!$C:$C,SUMIFS(IN!$Q:$Q,IN!$S:$S,$D11,IN!$T:$T,1))) -> товар-2 | H11: =R11+L11 -> 20 | I11: 473 | J11: =S11+O11 -> 216897 | K11: =IF(J11=0,0,(O11*Q11+S11*W11)/J11) -> 440.500408 | L11: =SUMIFS(comparison!$O:$O,comparison!$Q:$Q,$E11) -> 0 | M11: =IF(L11=0,0,SUMIFS(comparison!$A:$A,comparison!$Q:$Q,$E11)/L11) -> 00:00:00 | N11: =IF(L11=0,0,$L$4-M11) -> 0 | O11: =SUMIFS(comparison!$P:$P,comparison!$Q:$Q,$E11) -> 0 | P11: =IF(O11=0,0,SUMIFS(comparison!$B:$B,comparison!$Q:$Q,$E11)/O11) -> 00:00:00 | Q11: =IF(O11=0,0,$O$4-P11) -> 0 | R11: =SUMIFS(comparison!$AB:$AB,comparison!$AE:$AE,$E11,comparison!$AG:$AG,"<>"&0) -> 20 | S11: =SUMIFS(comparison!$AC:$AC,comparison!$AE:$AE,$E11,comparison!$AJ:$AJ,"<>"&0) -> 216897 | T11: =SUMIFS(comparison!$U:$U,comparison!$AE:$AE,$E11,comparison!$AJ:$AJ,"<>"&0) -> 63751.11 | U11: =IF(S11=0,0,(S11-T11)/S11) -> 0.7060765709 | V11: =IF(R11=0,0,(SUMIFS(comparison!$AF:$AF,comparison!$AE:$AE,$E11,comparison!$AG:$AG,"<>"&0)-SUMIFS(comparison!$AG:$AG,comparison!$AE:$AE,$E11,comparison!$AG:$AG,"<>"&0))/R11) -> 473 | W11: =IF(S11=0,0,SUMIFS(comparison!$AI:$AI,comparison!$AE:$AE,$E11,comparison!$AJ:$AJ,"<>"&0)/S11)-IF(T11=0,0,SUMIFS(comparison!$AJ:$AJ,comparison!$AE:$AE,$E11,comparison!$AJ:$AJ,"<>"&0)/T11) -> 440.500408 | X11: =IF(W11<=0,0,POWER(1+U11,365/W11)-1) -> 0.5568066932
D12: =D11+1 -> 3 | E12: =IF(SUMIFS(IN!$Q:$Q,IN!$S:$S,$D12,IN!$T:$T,1)=0,0,INDEX(IN!$C:$C,SUMIFS(IN!$Q:$Q,IN!$S:$S,$D12,IN!$T:$T,1))) -> товар-3 | H12: 70 | I12: 448.8571429 | J12: 481200 | K12: 460.9719451 | L12: =SUMIFS(comparison!$O:$O,comparison!$Q:$Q,$E12) -> 0 | M12: =IF(L12=0,0,SUMIFS(comparison!$A:$A,comparison!$Q:$Q,$E12)/L12) -> 00:00:00 | N12: 0 | O12: =SUMIFS(comparison!$P:$P,comparison!$Q:$Q,$E12) -> 0 | P12: =IF(O12=0,0,SUMIFS(comparison!$B:$B,comparison!$Q:$Q,$E12)/O12) -> 00:00:00 | Q12: 0 | R12: =SUMIFS(comparison!$AB:$AB,comparison!$AE:$AE,$E12,comparison!$AG:$AG,"<>"&0) -> 70 | S12: =SUMIFS(comparison!$AC:$AC,comparison!$AE:$AE,$E12,comparison!$AJ:$AJ,"<>"&0) -> 481200 | T12: =SUMIFS(comparison!$U:$U,comparison!$AE:$AE,$E12,comparison!$AJ:$AJ,"<>"&0) -> 251398.17 | U12: 0.4775599127 | V12: =IF(R12=0,0,(SUMIFS(comparison!$AF:$AF,comparison!$AE:$AE,$E12,comparison!$AG:$AG,"<>"&0)-SUMIFS(comparison!$AG:$AG,comparison!$AE:$AE,$E12,comparison!$AG:$AG,"<>"&0))/R12) -> 448.8571429 | W12: =IF(S12=0,0,SUMIFS(comparison!$AI:$AI,comparison!$AE:$AE,$E12,comparison!$AJ:$AJ,"<>"&0)/S12)-IF(T12=0,0,SUMIFS(comparison!$AJ:$AJ,comparison!$AE:$AE,$E12,comparison!$AJ:$AJ,"<>"&0)/T12) -> 460.9719451 | X12: 0.3622182611
D13: 4 | E13: =IF(SUMIFS(IN!$Q:$Q,IN!$S:$S,$D13,IN!$T:$T,1)=0,0,INDEX(IN!$C:$C,SUMIFS(IN!$Q:$Q,IN!$S:$S,$D13,IN!$T:$T,1))) -> товар-4 | H13: 40 | I13: 477.5 | J13: 613650 | K13: 478.5299438 | L13: =SUMIFS(comparison!$O:$O,comparison!$Q:$Q,$E13) -> 0 | M13: =IF(L13=0,0,SUMIFS(comparison!$A:$A,comparison!$Q:$Q,$E13)/L13) -> 00:00:00 | N13: 0 | O13: =SUMIFS(comparison!$P:$P,comparison!$Q:$Q,$E13) -> 0 | P13: =IF(O13=0,0,SUMIFS(comparison!$B:$B,comparison!$Q:$Q,$E13)/O13) -> 00:00:00 | Q13: 0 | R13: =SUMIFS(comparison!$AB:$AB,comparison!$AE:$AE,$E13,comparison!$AG:$AG,"<>"&0) -> 40 | S13: =SUMIFS(comparison!$AC:$AC,comparison!$AE:$AE,$E13,comparison!$AJ:$AJ,"<>"&0) -> 613650 | T13: =SUMIFS(comparison!$U:$U,comparison!$AE:$AE,$E13,comparison!$AJ:$AJ,"<>"&0) -> 147526.47 | U13: 0.7595918357 | V13: =IF(R13=0,0,(SUMIFS(comparison!$AF:$AF,comparison!$AE:$AE,$E13,comparison!$AG:$AG,"<>"&0)-SUMIFS(comparison!$AG:$AG,comparison!$AE:$AE,$E13,comparison!$AG:$AG,"<>"&0))/R13) -> 477.5 | W13: =IF(S13=0,0,SUMIFS(comparison!$AI:$AI,comparison!$AE:$AE,$E13,comparison!$AJ:$AJ,"<>"&0)/S13)-IF(T13=0,0,SUMIFS(comparison!$AJ:$AJ,comparison!$AE:$AE,$E13,comparison!$AJ:$AJ,"<>"&0)/T13) -> 478.5299438 | X13: 0.5388228095
D14: 5 | E14: =IF(SUMIFS(IN!$Q:$Q,IN!$S:$S,$D14,IN!$T:$T,1)=0,0,INDEX(IN!$C:$C,SUMIFS(IN!$Q:$Q,IN!$S:$S,$D14,IN!$T:$T,1))) -> товар-5 | H14: 20 | I14: 892.5 | J14: 142487.895 | K14: 812.7119465 | L14: =SUMIFS(comparison!$O:$O,comparison!$Q:$Q,$E14) -> 10 | M14: =IF(L14=0,0,SUMIFS(comparison!$A:$A,comparison!$Q:$Q,$E14)/L14) -> 2019-07-15 | N14: 1081 | O14: =SUMIFS(comparison!$P:$P,comparison!$Q:$Q,$E14) -> 41087.895 | P14: =IF(O14=0,0,SUMIFS(comparison!$B:$B,comparison!$Q:$Q,$E14)/O14) -> 2019-07-15 | Q14: 1081 | R14: =SUMIFS(comparison!$AB:$AB,comparison!$AE:$AE,$E14,comparison!$AG:$AG,"<>"&0) -> 10 | S14: =SUMIFS(comparison!$AC:$AC,comparison!$AE:$AE,$E14,comparison!$AJ:$AJ,"<>"&0) -> 101400 | T14: =SUMIFS(comparison!$U:$U,comparison!$AE:$AE,$E14,comparison!$AJ:$AJ,"<>"&0) -> 41087.895 | U14: 0.5947939349 | V14: =IF(R14=0,0,(SUMIFS(comparison!$AF:$AF,comparison!$AE:$AE,$E14,comparison!$AG:$AG,"<>"&0)-SUMIFS(comparison!$AG:$AG,comparison!$AE:$AE,$E14,comparison!$AG:$AG,"<>"&0))/R14) -> 704 | W14: =IF(S14=0,0,SUMIFS(comparison!$AI:$AI,comparison!$AE:$AE,$E14,comparison!$AJ:$AJ,"<>"&0)/S14)-IF(T14=0,0,SUMIFS(comparison!$AJ:$AJ,comparison!$AE:$AE,$E14,comparison!$AJ:$AJ,"<>"&0)/T14) -> 704 | X14: 0.2737828929
D15: 6 | E15: =IF(SUMIFS(IN!$Q:$Q,IN!$S:$S,$D15,IN!$T:$T,1)=0,0,INDEX(IN!$C:$C,SUMIFS(IN!$Q:$Q,IN!$S:$S,$D15,IN!$T:$T,1))) -> товар-6 | H15: 20 | I15: 631 | J15: 217644 | K15: 635.2985334 | L15: =SUMIFS(comparison!$O:$O,comparison!$Q:$Q,$E15) -> 0 | M15: =IF(L15=0,0,SUMIFS(comparison!$A:$A,comparison!$Q:$Q,$E15)/L15) -> 00:00:00 | N15: 0 | O15: =SUMIFS(comparison!$P:$P,comparison!$Q:$Q,$E15) -> 0 | P15: =IF(O15=0,0,SUMIFS(comparison!$B:$B,comparison!$Q:$Q,$E15)/O15) -> 00:00:00 | Q15: 0 | R15: =SUMIFS(comparison!$AB:$AB,comparison!$AE:$AE,$E15,comparison!$AG:$AG,"<>"&0) -> 20 | S15: =SUMIFS(comparison!$AC:$AC,comparison!$AE:$AE,$E15,comparison!$AJ:$AJ,"<>"&0) -> 217644 | T15: =SUMIFS(comparison!$U:$U,comparison!$AE:$AE,$E15,comparison!$AJ:$AJ,"<>"&0) -> 82175.79 | U15: 0.6224302531 | V15: =IF(R15=0,0,(SUMIFS(comparison!$AF:$AF,comparison!$AE:$AE,$E15,comparison!$AG:$AG,"<>"&0)-SUMIFS(comparison!$AG:$AG,comparison!$AE:$AE,$E15,comparison!$AG:$AG,"<>"&0))/R15) -> 631 | W15: =IF(S15=0,0,SUMIFS(comparison!$AI:$AI,comparison!$AE:$AE,$E15,comparison!$AJ:$AJ,"<>"&0)/S15)-IF(T15=0,0,SUMIFS(comparison!$AJ:$AJ,comparison!$AE:$AE,$E15,comparison!$AJ:$AJ,"<>"&0)/T15) -> 635.2985334 | X15: 0.3205271426
D16: 7 | E16: =IF(SUMIFS(IN!$Q:$Q,IN!$S:$S,$D16,IN!$T:$T,1)=0,0,INDEX(IN!$C:$C,SUMIFS(IN!$Q:$Q,IN!$S:$S,$D16,IN!$T:$T,1))) -> товар-7 | H16: 30 | I16: 720 | J16: 89326.59 | K16: 576.1374501 | L16: =SUMIFS(comparison!$O:$O,comparison!$Q:$Q,$E16) -> 10 | M16: =IF(L16=0,0,SUMIFS(comparison!$A:$A,comparison!$Q:$Q,$E16)/L16) -> 2019-07-15 | N16: 1081 | O16: =SUMIFS(comparison!$P:$P,comparison!$Q:$Q,$E16) -> 13276.59 | P16: =IF(O16=0,0,SUMIFS(comparison!$B:$B,comparison!$Q:$Q,$E16)/O16) -> 2019-07-15 | Q16: 1081 | R16: =SUMIFS(comparison!$AB:$AB,comparison!$AE:$AE,$E16,comparison!$AG:$AG,"<>"&0) -> 20 | S16: =SUMIFS(comparison!$AC:$AC,comparison!$AE:$AE,$E16,comparison!$AJ:$AJ,"<>"&0) -> 76050 | T16: =SUMIFS(comparison!$U:$U,comparison!$AE:$AE,$E16,comparison!$AJ:$AJ,"<>"&0) -> 26467.98 | U16: 0.651966075 | V16: =IF(R16=0,0,(SUMIFS(comparison!$AF:$AF,comparison!$AE:$AE,$E16,comparison!$AG:$AG,"<>"&0)-SUMIFS(comparison!$AG:$AG,comparison!$AE:$AE,$E16,comparison!$AG:$AG,"<>"&0))/R16) -> 539.5 | W16: =IF(S16=0,0,SUMIFS(comparison!$AI:$AI,comparison!$AE:$AE,$E16,comparison!$AJ:$AJ,"<>"&0)/S16)-IF(T16=0,0,SUMIFS(comparison!$AJ:$AJ,comparison!$AE:$AE,$E16,comparison!$AJ:$AJ,"<>"&0)/T16) -> 488 | X16: 0.455640464
D17: 8 | E17: =IF(SUMIFS(IN!$Q:$Q,IN!$S:$S,$D17,IN!$T:$T,1)=0,0,INDEX(IN!$C:$C,SUMIFS(IN!$Q:$Q,IN!$S:$S,$D17,IN!$T:$T,1))) -> товар-8 | H17: 20 | I17: 1008.5 | J17: 22130.07 | K17: 981.3414811 | L17: =SUMIFS(comparison!$O:$O,comparison!$Q:$Q,$E17) -> 10 | M17: =IF(L17=0,0,SUMIFS(comparison!$A:$A,comparison!$Q:$Q,$E17)/L17) -> 2019-07-15 | N17: 1081 | O17: =SUMIFS(comparison!$P:$P,comparison!$Q:$Q,$E17) -> 6920.07 | P17: =IF(O17=0,0,SUMIFS(comparison!$B:$B,comparison!$Q:$Q,$E17)/O17) -> 2019-07-15 | Q17: 1081 | R17: =SUMIFS(comparison!$AB:$AB,comparison!$AE:$AE,$E17,comparison!$AG:$AG,"<>"&0) -> 10 | S17: =SUMIFS(comparison!$AC:$AC,comparison!$AE:$AE,$E17,comparison!$AJ:$AJ,"<>"&0) -> 15210 | T17: =SUMIFS(comparison!$U:$U,comparison!$AE:$AE,$E17,comparison!$AJ:$AJ,"<>"&0) -> 6920.07 | U17: 0.5450315582 | V17: =IF(R17=0,0,(SUMIFS(comparison!$AF:$AF,comparison!$AE:$AE,$E17,comparison!$AG:$AG,"<>"&0)-SUMIFS(comparison!$AG:$AG,comparison!$AE:$AE,$E17,comparison!$AG:$AG,"<>"&0))/R17) -> 936 | W17: =IF(S17=0,0,SUMIFS(comparison!$AI:$AI,comparison!$AE:$AE,$E17,comparison!$AJ:$AJ,"<>"&0)/S17)-IF(T17=0,0,SUMIFS(comparison!$AJ:$AJ,comparison!$AE:$AE,$E17,comparison!$AJ:$AJ,"<>"&0)/T17) -> 936 | X17: 0.1848885262
D18: 9 | E18: =IF(SUMIFS(IN!$Q:$Q,IN!$S:$S,$D18,IN!$T:$T,1)=0,0,INDEX(IN!$C:$C,SUMIFS(IN!$Q:$Q,IN!$S:$S,$D18,IN!$T:$T,1))) -> товар-9 | H18: 20 | I18: 495.5 | J18: 29400 | K18: 495.5 | L18: =SUMIFS(comparison!$O:$O,comparison!$Q:$Q,$E18) -> 0 | M18: =IF(L18=0,0,SUMIFS(comparison!$A:$A,comparison!$Q:$Q,$E18)/L18) -> 00:00:00 | N18: 0 | O18: =SUMIFS(comparison!$P:$P,comparison!$Q:$Q,$E18) -> 0 | P18: =IF(O18=0,0,SUMIFS(comparison!$B:$B,comparison!$Q:$Q,$E18)/O18) -> 00:00:00 | Q18: 0 | R18: =SUMIFS(comparison!$AB:$AB,comparison!$AE:$AE,$E18,comparison!$AG:$AG,"<>"&0) -> 20 | S18: =SUMIFS(comparison!$AC:$AC,comparison!$AE:$AE,$E18,comparison!$AJ:$AJ,"<>"&0) -> 29400 | T18: =SUMIFS(comparison!$U:$U,comparison!$AE:$AE,$E18,comparison!$AJ:$AJ,"<>"&0) -> 8678.04 | U18: 0.7048285714 | V18: =IF(R18=0,0,(SUMIFS(comparison!$AF:$AF,comparison!$AE:$AE,$E18,comparison!$AG:$AG,"<>"&0)-SUMIFS(comparison!$AG:$AG,comparison!$AE:$AE,$E18,comparison!$AG:$AG,"<>"&0))/R18) -> 495.5 | W18: =IF(S18=0,0,SUMIFS(comparison!$AI:$AI,comparison!$AE:$AE,$E18,comparison!$AJ:$AJ,"<>"&0)/S18)-IF(T18=0,0,SUMIFS(comparison!$AJ:$AJ,comparison!$AE:$AE,$E18,comparison!$AJ:$AJ,"<>"&0)/T18) -> 495.5 | X18: 0.4813677582
D19: 10 | E19: =IF(SUMIFS(IN!$Q:$Q,IN!$S:$S,$D19,IN!$T:$T,1)=0,0,INDEX(IN!$C:$C,SUMIFS(IN!$Q:$Q,IN!$S:$S,$D19,IN!$T:$T,1))) -> товар-10 | H19: 40 | I19: 605 | J19: 274365.03 | K19: 547.1418768 | L19: =SUMIFS(comparison!$O:$O,comparison!$Q:$Q,$E19) -> 10 | M19: =IF(L19=0,0,SUMIFS(comparison!$A:$A,comparison!$Q:$Q,$E19)/L19) -> 2019-07-15 | N19: 1081 | O19: =SUMIFS(comparison!$P:$P,comparison!$Q:$Q,$E19) -> 32865.03 | P19: =IF(O19=0,0,SUMIFS(comparison!$B:$B,comparison!$Q:$Q,$E19)/O19) -> 2019-07-15 | Q19: 1081 | R19: =SUMIFS(comparison!$AB:$AB,comparison!$AE:$AE,$E19,comparison!$AG:$AG,"<>"&0) -> 30 | S19: =SUMIFS(comparison!$AC:$AC,comparison!$AE:$AE,$E19,comparison!$AJ:$AJ,"<>"&0) -> 241500 | T19: =SUMIFS(comparison!$U:$U,comparison!$AE:$AE,$E19,comparison!$AJ:$AJ,"<>"&0) -> 97962.18 | U19: 0.5943595031 | V19: =IF(R19=0,0,(SUMIFS(comparison!$AF:$AF,comparison!$AE:$AE,$E19,comparison!$AG:$AG,"<>"&0)-SUMIFS(comparison!$AG:$AG,comparison!$AE:$AE,$E19,comparison!$AG:$AG,"<>"&0))/R19) -> 446.3333333 | W19: =IF(S19=0,0,SUMIFS(comparison!$AI:$AI,comparison!$AE:$AE,$E19,comparison!$AJ:$AJ,"<>"&0)/S19)-IF(T19=0,0,SUMIFS(comparison!$AJ:$AJ,comparison!$AE:$AE,$E19,comparison!$AJ:$AJ,"<>"&0)/T19) -> 474.4906832 | X19: 0.4316558771
D20: 11 | E20: =IF(SUMIFS(IN!$Q:$Q,IN!$S:$S,$D20,IN!$T:$T,1)=0,0,INDEX(IN!$C:$C,SUMIFS(IN!$Q:$Q,IN!$S:$S,$D20,IN!$T:$T,1))) -> товар-11 | H20: 30 | I20: 535.3333333 | J20: 372000 | K20: 528.4475806 | L20: =SUMIFS(comparison!$O:$O,comparison!$Q:$Q,$E20) -> 0 | M20: =IF(L20=0,0,SUMIFS(comparison!$A:$A,comparison!$Q:$Q,$E20)/L20) -> 00:00:00 | N20: 0 | O20: =SUMIFS(comparison!$P:$P,comparison!$Q:$Q,$E20) -> 0 | P20: =IF(O20=0,0,SUMIFS(comparison!$B:$B,comparison!$Q:$Q,$E20)/O20) -> 00:00:00 | Q20: 0 | R20: =SUMIFS(comparison!$AB:$AB,comparison!$AE:$AE,$E20,comparison!$AG:$AG,"<>"&0) -> 30 | S20: =SUMIFS(comparison!$AC:$AC,comparison!$AE:$AE,$E20,comparison!$AJ:$AJ,"<>"&0) -> 372000 | T20: =SUMIFS(comparison!$U:$U,comparison!$AE:$AE,$E20,comparison!$AJ:$AJ,"<>"&0) -> 110288.55 | U20: 0.7035254032 | V20: =IF(R20=0,0,(SUMIFS(comparison!$AF:$AF,comparison!$AE:$AE,$E20,comparison!$AG:$AG,"<>"&0)-SUMIFS(comparison!$AG:$AG,comparison!$AE:$AE,$E20,comparison!$AG:$AG,"<>"&0))/R20) -> 535.3333333 | W20: =IF(S20=0,0,SUMIFS(comparison!$AI:$AI,comparison!$AE:$AE,$E20,comparison!$AJ:$AJ,"<>"&0)/S20)-IF(T20=0,0,SUMIFS(comparison!$AJ:$AJ,comparison!$AE:$AE,$E20,comparison!$AJ:$AJ,"<>"&0)/T20) -> 528.4475806 | X20: 0.4447511131
D21: 12 | E21: =IF(SUMIFS(IN!$Q:$Q,IN!$S:$S,$D21,IN!$T:$T,1)=0,0,INDEX(IN!$C:$C,SUMIFS(IN!$Q:$Q,IN!$S:$S,$D21,IN!$T:$T,1))) -> товар-12 | H21: 10 | I21: 1081 | J21: 41087.91 | K21: 1081 | L21: =SUMIFS(comparison!$O:$O,comparison!$Q:$Q,$E21) -> 10 | M21: =IF(L21=0,0,SUMIFS(comparison!$A:$A,comparison!$Q:$Q,$E21)/L21) -> 2019-07-15 | N21: 1081 | O21: =SUMIFS(comparison!$P:$P,comparison!$Q:$Q,$E21) -> 41087.91 | P21: =IF(O21=0,0,SUMIFS(comparison!$B:$B,comparison!$Q:$Q,$E21)/O21) -> 2019-07-15 | Q21: 1081 | R21: =SUMIFS(comparison!$AB:$AB,comparison!$AE:$AE,$E21,comparison!$AG:$AG,"<>"&0) -> 0 | S21: =SUMIFS(comparison!$AC:$AC,comparison!$AE:$AE,$E21,comparison!$AJ:$AJ,"<>"&0) -> 0 | T21: =SUMIFS(comparison!$U:$U,comparison!$AE:$AE,$E21,comparison!$AJ:$AJ,"<>"&0) -> 0 | U21: 0 | V21: =IF(R21=0,0,(SUMIFS(comparison!$AF:$AF,comparison!$AE:$AE,$E21,comparison!$AG:$AG,"<>"&0)-SUMIFS(comparison!$AG:$AG,comparison!$AE:$AE,$E21,comparison!$AG:$AG,"<>"&0))/R21) -> 0 | W21: =IF(S21=0,0,SUMIFS(comparison!$AI:$AI,comparison!$AE:$AE,$E21,comparison!$AJ:$AJ,"<>"&0)/S21)-IF(T21=0,0,SUMIFS(comparison!$AJ:$AJ,comparison!$AE:$AE,$E21,comparison!$AJ:$AJ,"<>"&0)/T21) -> 0 | X21: 0
D22: 13 | E22: =IF(SUMIFS(IN!$Q:$Q,IN!$S:$S,$D22,IN!$T:$T,1)=0,0,INDEX(IN!$C:$C,SUMIFS(IN!$Q:$Q,IN!$S:$S,$D22,IN!$T:$T,1))) -> товар-13 | H22: 40 | I22: 827 | J22: 86190 | K22: 800.9705882 | L22: =SUMIFS(comparison!$O:$O,comparison!$Q:$Q,$E22) -> 0 | M22: =IF(L22=0,0,SUMIFS(comparison!$A:$A,comparison!$Q:$Q,$E22)/L22) -> 00:00:00 | N22: 0 | O22: =SUMIFS(comparison!$P:$P,comparison!$Q:$Q,$E22) -> 0 | P22: =IF(O22=0,0,SUMIFS(comparison!$B:$B,comparison!$Q:$Q,$E22)/O22) -> 00:00:00 | Q22: 0 | R22: =SUMIFS(comparison!$AB:$AB,comparison!$AE:$AE,$E22,comparison!$AG:$AG,"<>"&0) -> 40 | S22: =SUMIFS(comparison!$AC:$AC,comparison!$AE:$AE,$E22,comparison!$AJ:$AJ,"<>"&0) -> 86190 | T22: =SUMIFS(comparison!$U:$U,comparison!$AE:$AE,$E22,comparison!$AJ:$AJ,"<>"&0) -> 52765.5 | U22: 0.3878002088 | V22: =IF(R22=0,0,(SUMIFS(comparison!$AF:$AF,comparison!$AE:$AE,$E22,comparison!$AG:$AG,"<>"&0)-SUMIFS(comparison!$AG:$AG,comparison!$AE:$AE,$E22,comparison!$AG:$AG,"<>"&0))/R22) -> 827 | W22: =IF(S22=0,0,SUMIFS(comparison!$AI:$AI,comparison!$AE:$AE,$E22,comparison!$AJ:$AJ,"<>"&0)/S22)-IF(T22=0,0,SUMIFS(comparison!$AJ:$AJ,comparison!$AE:$AE,$E22,comparison!$AJ:$AJ,"<>"&0)/T22) -> 800.9705882 | X22: 0.161068873
D23: 14 | E23: =IF(SUMIFS(IN!$Q:$Q,IN!$S:$S,$D23,IN!$T:$T,1)=0,0,INDEX(IN!$C:$C,SUMIFS(IN!$Q:$Q,IN!$S:$S,$D23,IN!$T:$T,1))) -> товар-14 | H23: 10 | I23: 460 | J23: 29700 | K23: 460 | L23: =SUMIFS(comparison!$O:$O,comparison!$Q:$Q,$E23) -> 0 | M23: =IF(L23=0,0,SUMIFS(comparison!$A:$A,comparison!$Q:$Q,$E23)/L23) -> 00:00:00 | N23: 0 | O23: =SUMIFS(comparison!$P:$P,comparison!$Q:$Q,$E23) -> 0 | P23: =IF(O23=0,0,SUMIFS(comparison!$B:$B,comparison!$Q:$Q,$E23)/O23) -> 00:00:00 | Q23: 0 | R23: =SUMIFS(comparison!$AB:$AB,comparison!$AE:$AE,$E23,comparison!$AG:$AG,"<>"&0) -> 10 | S23: =SUMIFS(comparison!$AC:$AC,comparison!$AE:$AE,$E23,comparison!$AJ:$AJ,"<>"&0) -> 29700 | T23: =SUMIFS(comparison!$U:$U,comparison!$AE:$AE,$E23,comparison!$AJ:$AJ,"<>"&0) -> 9515.1 | U23: 0.6796262626 | V23: =IF(R23=0,0,(SUMIFS(comparison!$AF:$AF,comparison!$AE:$AE,$E23,comparison!$AG:$AG,"<>"&0)-SUMIFS(comparison!$AG:$AG,comparison!$AE:$AE,$E23,comparison!$AG:$AG,"<>"&0))/R23) -> 460 | W23: =IF(S23=0,0,SUMIFS(comparison!$AI:$AI,comparison!$AE:$AE,$E23,comparison!$AJ:$AJ,"<>"&0)/S23)-IF(T23=0,0,SUMIFS(comparison!$AJ:$AJ,comparison!$AE:$AE,$E23,comparison!$AJ:$AJ,"<>"&0)/T23) -> 460 | X23: 0.5090420688
D24: 15 | E24: =IF(SUMIFS(IN!$Q:$Q,IN!$S:$S,$D24,IN!$T:$T,1)=0,0,INDEX(IN!$C:$C,SUMIFS(IN!$Q:$Q,IN!$S:$S,$D24,IN!$T:$T,1))) -> товар-15 | H24: 10 | I24: 1081 | J24: 4973.79 | K24: 1081 | L24: =SUMIFS(comparison!$O:$O,comparison!$Q:$Q,$E24) -> 10 | M24: =IF(L24=0,0,SUMIFS(comparison!$A:$A,comparison!$Q:$Q,$E24)/L24) -> 2019-07-15 | N24: 1081 | O24: =SUMIFS(comparison!$P:$P,comparison!$Q:$Q,$E24) -> 4973.79 | P24: =IF(O24=0,0,SUMIFS(comparison!$B:$B,comparison!$Q:$Q,$E24)/O24) -> 2019-07-15 | Q24: 1081 | R24: =SUMIFS(comparison!$AB:$AB,comparison!$AE:$AE,$E24,comparison!$AG:$AG,"<>"&0) -> 0 | S24: =SUMIFS(comparison!$AC:$AC,comparison!$AE:$AE,$E24,comparison!$AJ:$AJ,"<>"&0) -> 0 | T24: =SUMIFS(comparison!$U:$U,comparison!$AE:$AE,$E24,comparison!$AJ:$AJ,"<>"&0) -> 0 | U24: 0 | V24: =IF(R24=0,0,(SUMIFS(comparison!$AF:$AF,comparison!$AE:$AE,$E24,comparison!$AG:$AG,"<>"&0)-SUMIFS(comparison!$AG:$AG,comparison!$AE:$AE,$E24,comparison!$AG:$AG,"<>"&0))/R24) -> 0 | W24: =IF(S24=0,0,SUMIFS(comparison!$AI:$AI,comparison!$AE:$AE,$E24,comparison!$AJ:$AJ,"<>"&0)/S24)-IF(T24=0,0,SUMIFS(comparison!$AJ:$AJ,comparison!$AE:$AE,$E24,comparison!$AJ:$AJ,"<>"&0)/T24) -> 0 | X24: 0
D25: 16 | E25: =IF(SUMIFS(IN!$Q:$Q,IN!$S:$S,$D25,IN!$T:$T,1)=0,0,INDEX(IN!$C:$C,SUMIFS(IN!$Q:$Q,IN!$S:$S,$D25,IN!$T:$T,1))) -> товар-16 | H25: 140 | I25: 653 | J25: 993413.304 | K25: 586.3237177 | L25: =SUMIFS(comparison!$O:$O,comparison!$Q:$Q,$E25) -> 40 | M25: =IF(L25=0,0,SUMIFS(comparison!$A:$A,comparison!$Q:$Q,$E25)/L25) -> 2019-07-15 | N25: 1081 | O25: =SUMIFS(comparison!$P:$P,comparison!$Q:$Q,$E25) -> 165413.304 | P25: =IF(O25=0,0,SUMIFS(comparison!$B:$B,comparison!$Q:$Q,$E25)/O25) -> 2019-07-15 | Q25: 1081 | R25: =SUMIFS(comparison!$AB:$AB,comparison!$AE:$AE,$E25,comparison!$AG:$AG,"<>"&0) -> 100 | S25: =SUMIFS(comparison!$AC:$AC,comparison!$AE:$AE,$E25,comparison!$AJ:$AJ,"<>"&0) -> 828000 | T25: =SUMIFS(comparison!$U:$U,comparison!$AE:$AE,$E25,comparison!$AJ:$AJ,"<>"&0) -> 385843.026 | U25: 0.5340060072 | V25: =IF(R25=0,0,(SUMIFS(comparison!$AF:$AF,comparison!$AE:$AE,$E25,comparison!$AG:$AG,"<>"&0)-SUMIFS(comparison!$AG:$AG,comparison!$AE:$AE,$E25,comparison!$AG:$AG,"<>"&0))/R25) -> 481.8 | W25: =IF(S25=0,0,SUMIFS(comparison!$AI:$AI,comparison!$AE:$AE,$E25,comparison!$AJ:$AJ,"<>"&0)/S25)-IF(T25=0,0,SUMIFS(comparison!$AJ:$AJ,comparison!$AE:$AE,$E25,comparison!$AJ:$AJ,"<>"&0)/T25) -> 487.5 | X25: 0.3776282991
D26: 17 | E26: =IF(SUMIFS(IN!$Q:$Q,IN!$S:$S,$D26,IN!$T:$T,1)=0,0,INDEX(IN!$C:$C,SUMIFS(IN!$Q:$Q,IN!$S:$S,$D26,IN!$T:$T,1))) -> товар-17 | H26: 10 | I26: 414 | J26: 111000 | K26: 414 | L26: =SUMIFS(comparison!$O:$O,comparison!$Q:$Q,$E26) -> 0 | M26: =IF(L26=0,0,SUMIFS(comparison!$A:$A,comparison!$Q:$Q,$E26)/L26) -> 00:00:00 | N26: 0 | O26: =SUMIFS(comparison!$P:$P,comparison!$Q:$Q,$E26) -> 0 | P26: =IF(O26=0,0,SUMIFS(comparison!$B:$B,comparison!$Q:$Q,$E26)/O26) -> 00:00:00 | Q26: 0 | R26: =SUMIFS(comparison!$AB:$AB,comparison!$AE:$AE,$E26,comparison!$AG:$AG,"<>"&0) -> 10 | S26: =SUMIFS(comparison!$AC:$AC,comparison!$AE:$AE,$E26,comparison!$AJ:$AJ,"<>"&0) -> 111000 | T26: =SUMIFS(comparison!$U:$U,comparison!$AE:$AE,$E26,comparison!$AJ:$AJ,"<>"&0) -> 39141.63 | U26: 0.6473727027 | V26: =IF(R26=0,0,(SUMIFS(comparison!$AF:$AF,comparison!$AE:$AE,$E26,comparison!$AG:$AG,"<>"&0)-SUMIFS(comparison!$AG:$AG,comparison!$AE:$AE,$E26,comparison!$AG:$AG,"<>"&0))/R26) -> 414 | W26: =IF(S26=0,0,SUMIFS(comparison!$AI:$AI,comparison!$AE:$AE,$E26,comparison!$AJ:$AJ,"<>"&0)/S26)-IF(T26=0,0,SUMIFS(comparison!$AJ:$AJ,comparison!$AE:$AE,$E26,comparison!$AJ:$AJ,"<>"&0)/T26) -> 414 | X26: 0.5528622227
D27: 18 | E27: =IF(SUMIFS(IN!$Q:$Q,IN!$S:$S,$D27,IN!$T:$T,1)=0,0,INDEX(IN!$C:$C,SUMIFS(IN!$Q:$Q,IN!$S:$S,$D27,IN!$T:$T,1))) -> товар-18 | H27: 40 | I27: 466.5 | J27: 682500 | K27: 454.4 | L27: =SUMIFS(comparison!$O:$O,comparison!$Q:$Q,$E27) -> 0 | M27: =IF(L27=0,0,SUMIFS(comparison!$A:$A,comparison!$Q:$Q,$E27)/L27) -> 00:00:00 | N27: 0 | O27: =SUMIFS(comparison!$P:$P,comparison!$Q:$Q,$E27) -> 0 | P27: =IF(O27=0,0,SUMIFS(comparison!$B:$B,comparison!$Q:$Q,$E27)/O27) -> 00:00:00 | Q27: 0 | R27: =SUMIFS(comparison!$AB:$AB,comparison!$AE:$AE,$E27,comparison!$AG:$AG,"<>"&0) -> 40 | S27: =SUMIFS(comparison!$AC:$AC,comparison!$AE:$AE,$E27,comparison!$AJ:$AJ,"<>"&0) -> 682500 | T27: =SUMIFS(comparison!$U:$U,comparison!$AE:$AE,$E27,comparison!$AJ:$AJ,"<>"&0) -> 192031.86 | U27: 0.7186346374 | V27: =IF(R27=0,0,(SUMIFS(comparison!$AF:$AF,comparison!$AE:$AE,$E27,comparison!$AG:$AG,"<>"&0)-SUMIFS(comparison!$AG:$AG,comparison!$AE:$AE,$E27,comparison!$AG:$AG,"<>"&0))/R27) -> 466.5 | W27: =IF(S27=0,0,SUMIFS(comparison!$AI:$AI,comparison!$AE:$AE,$E27,comparison!$AJ:$AJ,"<>"&0)/S27)-IF(T27=0,0,SUMIFS(comparison!$AJ:$AJ,comparison!$AE:$AE,$E27,comparison!$AJ:$AJ,"<>"&0)/T27) -> 454.4 | X27: 0.5449443877
D28: 19 | E28: =IF(SUMIFS(IN!$Q:$Q,IN!$S:$S,$D28,IN!$T:$T,1)=0,0,INDEX(IN!$C:$C,SUMIFS(IN!$Q:$Q,IN!$S:$S,$D28,IN!$T:$T,1))) -> товар-19 | H28: 10 | I28: 619 | J28: 236997 | K28: 619 | L28: =SUMIFS(comparison!$O:$O,comparison!$Q:$Q,$E28) -> 0 | M28: =IF(L28=0,0,SUMIFS(comparison!$A:$A,comparison!$Q:$Q,$E28)/L28) -> 00:00:00 | N28: 0 | O28: =SUMIFS(comparison!$P:$P,comparison!$Q:$Q,$E28) -> 0 | P28: =IF(O28=0,0,SUMIFS(comparison!$B:$B,comparison!$Q:$Q,$E28)/O28) -> 00:00:00 | Q28: 0 | R28: =SUMIFS(comparison!$AB:$AB,comparison!$AE:$AE,$E28,comparison!$AG:$AG,"<>"&0) -> 10 | S28: =SUMIFS(comparison!$AC:$AC,comparison!$AE:$AE,$E28,comparison!$AJ:$AJ,"<>"&0) -> 236997 | T28: =SUMIFS(comparison!$U:$U,comparison!$AE:$AE,$E28,comparison!$AJ:$AJ,"<>"&0) -> 43899.15 | U28: 0.8147691743 | V28: =IF(R28=0,0,(SUMIFS(comparison!$AF:$AF,comparison!$AE:$AE,$E28,comparison!$AG:$AG,"<>"&0)-SUMIFS(comparison!$AG:$AG,comparison!$AE:$AE,$E28,comparison!$AG:$AG,"<>"&0))/R28) -> 619 | W28: =IF(S28=0,0,SUMIFS(comparison!$AI:$AI,comparison!$AE:$AE,$E28,comparison!$AJ:$AJ,"<>"&0)/S28)-IF(T28=0,0,SUMIFS(comparison!$AJ:$AJ,comparison!$AE:$AE,$E28,comparison!$AJ:$AJ,"<>"&0)/T28) -> 619 | X28: 0.4210743982
D29: 20 | E29: =IF(SUMIFS(IN!$Q:$Q,IN!$S:$S,$D29,IN!$T:$T,1)=0,0,INDEX(IN!$C:$C,SUMIFS(IN!$Q:$Q,IN!$S:$S,$D29,IN!$T:$T,1))) -> товар-20 | H29: 40 | I29: 965.5 | J29: 93289.86 | K29: 800.2042093 | L29: =SUMIFS(comparison!$O:$O,comparison!$Q:$Q,$E29) -> 30 | M29: =IF(L29=0,0,SUMIFS(comparison!$A:$A,comparison!$Q:$Q,$E29)/L29) -> 2019-07-15 | N29: 1081 | O29: =SUMIFS(comparison!$P:$P,comparison!$Q:$Q,$E29) -> 36589.86 | P29: =IF(O29=0,0,SUMIFS(comparison!$B:$B,comparison!$Q:$Q,$E29)/O29) -> 2019-07-15 | Q29: 1081 | R29: =SUMIFS(comparison!$AB:$AB,comparison!$AE:$AE,$E29,comparison!$AG:$AG,"<>"&0) -> 10 | S29: =SUMIFS(comparison!$AC:$AC,comparison!$AE:$AE,$E29,comparison!$AJ:$AJ,"<>"&0) -> 56700 | T29: =SUMIFS(comparison!$U:$U,comparison!$AE:$AE,$E29,comparison!$AJ:$AJ,"<>"&0) -> 12196.62 | U29: 0.7848920635 | V29: =IF(R29=0,0,(SUMIFS(comparison!$AF:$AF,comparison!$AE:$AE,$E29,comparison!$AG:$AG,"<>"&0)-SUMIFS(comparison!$AG:$AG,comparison!$AE:$AE,$E29,comparison!$AG:$AG,"<>"&0))/R29) -> 619 | W29: =IF(S29=0,0,SUMIFS(comparison!$AI:$AI,comparison!$AE:$AE,$E29,comparison!$AJ:$AJ,"<>"&0)/S29)-IF(T29=0,0,SUMIFS(comparison!$AJ:$AJ,comparison!$AE:$AE,$E29,comparison!$AJ:$AJ,"<>"&0)/T29) -> 619 | X29: 0.4072319745
D30: 21 | E30: =IF(SUMIFS(IN!$Q:$Q,IN!$S:$S,$D30,IN!$T:$T,1)=0,0,INDEX(IN!$C:$C,SUMIFS(IN!$Q:$Q,IN!$S:$S,$D30,IN!$T:$T,1))) -> товар-21 | H30: 10 | I30: 385 | J30: 207000 | K30: 385 | L30: =SUMIFS(comparison!$O:$O,comparison!$Q:$Q,$E30) -> 0 | M30: =IF(L30=0,0,SUMIFS(comparison!$A:$A,comparison!$Q:$Q,$E30)/L30) -> 00:00:00 | N30: 0 | O30: =SUMIFS(comparison!$P:$P,comparison!$Q:$Q,$E30) -> 0 | P30: =IF(O30=0,0,SUMIFS(comparison!$B:$B,comparison!$Q:$Q,$E30)/O30) -> 00:00:00 | Q30: 0 | R30: =SUMIFS(comparison!$AB:$AB,comparison!$AE:$AE,$E30,comparison!$AG:$AG,"<>"&0) -> 10 | S30: =SUMIFS(comparison!$AC:$AC,comparison!$AE:$AE,$E30,comparison!$AJ:$AJ,"<>"&0) -> 207000 | T30: =SUMIFS(comparison!$U:$U,comparison!$AE:$AE,$E30,comparison!$AJ:$AJ,"<>"&0) -> 38925.36 | U30: 0.8119547826 | V30: =IF(R30=0,0,(SUMIFS(comparison!$AF:$AF,comparison!$AE:$AE,$E30,comparison!$AG:$AG,"<>"&0)-SUMIFS(comparison!$AG:$AG,comparison!$AE:$AE,$E30,comparison!$AG:$AG,"<>"&0))/R30) -> 385 | W30: =IF(S30=0,0,SUMIFS(comparison!$AI:$AI,comparison!$AE:$AE,$E30,comparison!$AJ:$AJ,"<>"&0)/S30)-IF(T30=0,0,SUMIFS(comparison!$AJ:$AJ,comparison!$AE:$AE,$E30,comparison!$AJ:$AJ,"<>"&0)/T30) -> 385 | X30: 0.7568597914
D31: 22 | E31: =IF(SUMIFS(IN!$Q:$Q,IN!$S:$S,$D31,IN!$T:$T,1)=0,0,INDEX(IN!$C:$C,SUMIFS(IN!$Q:$Q,IN!$S:$S,$D31,IN!$T:$T,1))) -> товар-22 | H31: 30 | I31: 527.6666667 | J31: 299997 | K31: 530.7692977 | L31: =SUMIFS(comparison!$O:$O,comparison!$Q:$Q,$E31) -> 0 | M31: =IF(L31=0,0,SUMIFS(comparison!$A:$A,comparison!$Q:$Q,$E31)/L31) -> 00:00:00 | N31: 0 | O31: =SUMIFS(comparison!$P:$P,comparison!$Q:$Q,$E31) -> 0 | P31: =IF(O31=0,0,SUMIFS(comparison!$B:$B,comparison!$Q:$Q,$E31)/O31) -> 00:00:00 | Q31: 0 | R31: =SUMIFS(comparison!$AB:$AB,comparison!$AE:$AE,$E31,comparison!$AG:$AG,"<>"&0) -> 30 | S31: =SUMIFS(comparison!$AC:$AC,comparison!$AE:$AE,$E31,comparison!$AJ:$AJ,"<>"&0) -> 299997 | T31: =SUMIFS(comparison!$U:$U,comparison!$AE:$AE,$E31,comparison!$AJ:$AJ,"<>"&0) -> 116776.14 | U31: 0.6107423074 | V31: =IF(R31=0,0,(SUMIFS(comparison!$AF:$AF,comparison!$AE:$AE,$E31,comparison!$AG:$AG,"<>"&0)-SUMIFS(comparison!$AG:$AG,comparison!$AE:$AE,$E31,comparison!$AG:$AG,"<>"&0))/R31) -> 527.6666667 | W31: =IF(S31=0,0,SUMIFS(comparison!$AI:$AI,comparison!$AE:$AE,$E31,comparison!$AJ:$AJ,"<>"&0)/S31)-IF(T31=0,0,SUMIFS(comparison!$AJ:$AJ,comparison!$AE:$AE,$E31,comparison!$AJ:$AJ,"<>"&0)/T31) -> 530.7692977 | X31: 0.3879310993
D32: 23 | E32: =IF(SUMIFS(IN!$Q:$Q,IN!$S:$S,$D32,IN!$T:$T,1)=0,0,INDEX(IN!$C:$C,SUMIFS(IN!$Q:$Q,IN!$S:$S,$D32,IN!$T:$T,1))) -> товар-23 | H32: 20 | I32: 628 | J32: 221997 | K32: 628.000973 | L32: =SUMIFS(comparison!$O:$O,comparison!$Q:$Q,$E32) -> 0 | M32: =IF(L32=0,0,SUMIFS(comparison!$A:$A,comparison!$Q:$Q,$E32)/L32) -> 00:00:00 | N32: 0 | O32: =SUMIFS(comparison!$P:$P,comparison!$Q:$Q,$E32) -> 0 | P32: =IF(O32=0,0,SUMIFS(comparison!$B:$B,comparison!$Q:$Q,$E32)/O32) -> 00:00:00 | Q32: 0 | R32: =SUMIFS(comparison!$AB:$AB,comparison!$AE:$AE,$E32,comparison!$AG:$AG,"<>"&0) -> 20 | S32: =SUMIFS(comparison!$AC:$AC,comparison!$AE:$AE,$E32,comparison!$AJ:$AJ,"<>"&0) -> 221997 | T32: =SUMIFS(comparison!$U:$U,comparison!$AE:$AE,$E32,comparison!$AJ:$AJ,"<>"&0) -> 79580.79 | U32: 0.6415231287 | V32: =IF(R32=0,0,(SUMIFS(comparison!$AF:$AF,comparison!$AE:$AE,$E32,comparison!$AG:$AG,"<>"&0)-SUMIFS(comparison!$AG:$AG,comparison!$AE:$AE,$E32,comparison!$AG:$AG,"<>"&0))/R32) -> 628 | W32: =IF(S32=0,0,SUMIFS(comparison!$AI:$AI,comparison!$AE:$AE,$E32,comparison!$AJ:$AJ,"<>"&0)/S32)-IF(T32=0,0,SUMIFS(comparison!$AJ:$AJ,comparison!$AE:$AE,$E32,comparison!$AJ:$AJ,"<>"&0)/T32) -> 628.000973 | X32: 0.3338394552
D33: 24 | E33: =IF(SUMIFS(IN!$Q:$Q,IN!$S:$S,$D33,IN!$T:$T,1)=0,0,INDEX(IN!$C:$C,SUMIFS(IN!$Q:$Q,IN!$S:$S,$D33,IN!$T:$T,1))) -> товар-24 | H33: 10 | I33: 1081 | J33: 44115.45 | K33: 1081 | L33: =SUMIFS(comparison!$O:$O,comparison!$Q:$Q,$E33) -> 10 | M33: =IF(L33=0,0,SUMIFS(comparison!$A:$A,comparison!$Q:$Q,$E33)/L33) -> 2019-07-15 | N33: 1081 | O33: =SUMIFS(comparison!$P:$P,comparison!$Q:$Q,$E33) -> 44115.45 | P33: =IF(O33=0,0,SUMIFS(comparison!$B:$B,comparison!$Q:$Q,$E33)/O33) -> 2019-07-15 | Q33: 1081 | R33: =SUMIFS(comparison!$AB:$AB,comparison!$AE:$AE,$E33,comparison!$AG:$AG,"<>"&0) -> 0 | S33: =SUMIFS(comparison!$AC:$AC,comparison!$AE:$AE,$E33,comparison!$AJ:$AJ,"<>"&0) -> 0 | T33: =SUMIFS(comparison!$U:$U,comparison!$AE:$AE,$E33,comparison!$AJ:$AJ,"<>"&0) -> 0 | U33: 0 | V33: =IF(R33=0,0,(SUMIFS(comparison!$AF:$AF,comparison!$AE:$AE,$E33,comparison!$AG:$AG,"<>"&0)-SUMIFS(comparison!$AG:$AG,comparison!$AE:$AE,$E33,comparison!$AG:$AG,"<>"&0))/R33) -> 0 | W33: =IF(S33=0,0,SUMIFS(comparison!$AI:$AI,comparison!$AE:$AE,$E33,comparison!$AJ:$AJ,"<>"&0)/S33)-IF(T33=0,0,SUMIFS(comparison!$AJ:$AJ,comparison!$AE:$AE,$E33,comparison!$AJ:$AJ,"<>"&0)/T33) -> 0 | X33: 0
D34: 25 | E34: =IF(SUMIFS(IN!$Q:$Q,IN!$S:$S,$D34,IN!$T:$T,1)=0,0,INDEX(IN!$C:$C,SUMIFS(IN!$Q:$Q,IN!$S:$S,$D34,IN!$T:$T,1))) -> товар-25 | H34: 50 | I34: 375.6 | J34: 222750 | K34: 381.3333333 | L34: =SUMIFS(comparison!$O:$O,comparison!$Q:$Q,$E34) -> 0 | M34: =IF(L34=0,0,SUMIFS(comparison!$A:$A,comparison!$Q:$Q,$E34)/L34) -> 00:00:00 | N34: 0 | O34: =SUMIFS(comparison!$P:$P,comparison!$Q:$Q,$E34) -> 0 | P34: =IF(O34=0,0,SUMIFS(comparison!$B:$B,comparison!$Q:$Q,$E34)/O34) -> 00:00:00 | Q34: 0 | R34: =SUMIFS(comparison!$AB:$AB,comparison!$AE:$AE,$E34,comparison!$AG:$AG,"<>"&0) -> 50 | S34: =SUMIFS(comparison!$AC:$AC,comparison!$AE:$AE,$E34,comparison!$AJ:$AJ,"<>"&0) -> 222750 | T34: =SUMIFS(comparison!$U:$U,comparison!$AE:$AE,$E34,comparison!$AJ:$AJ,"<>"&0) -> 136238.82 | U34: 0.3883779125 | V34: =IF(R34=0,0,(SUMIFS(comparison!$AF:$AF,comparison!$AE:$AE,$E34,comparison!$AG:$AG,"<>"&0)-SUMIFS(comparison!$AG:$AG,comparison!$AE:$AE,$E34,comparison!$AG:$AG,"<>"&0))/R34) -> 375.6 | W34: =IF(S34=0,0,SUMIFS(comparison!$AI:$AI,comparison!$AE:$AE,$E34,comparison!$AJ:$AJ,"<>"&0)/S34)-IF(T34=0,0,SUMIFS(comparison!$AJ:$AJ,comparison!$AE:$AE,$E34,comparison!$AJ:$AJ,"<>"&0)/T34) -> 381.3333333 | X34: 0.3690010536
D35: 26 | E35: =IF(SUMIFS(IN!$Q:$Q,IN!$S:$S,$D35,IN!$T:$T,1)=0,0,INDEX(IN!$C:$C,SUMIFS(IN!$Q:$Q,IN!$S:$S,$D35,IN!$T:$T,1))) -> товар-26 | H35: 40 | I35: 423 | J35: 490500 | K35: 426.6666667 | L35: =SUMIFS(comparison!$O:$O,comparison!$Q:$Q,$E35) -> 0 | M35: =IF(L35=0,0,SUMIFS(comparison!$A:$A,comparison!$Q:$Q,$E35)/L35) -> 00:00:00 | N35: 0 | O35: =SUMIFS(comparison!$P:$P,comparison!$Q:$Q,$E35) -> 0 | P35: =IF(O35=0,0,SUMIFS(comparison!$B:$B,comparison!$Q:$Q,$E35)/O35) -> 00:00:00 | Q35: 0 | R35: =SUMIFS(comparison!$AB:$AB,comparison!$AE:$AE,$E35,comparison!$AG:$AG,"<>"&0) -> 40 | S35: =SUMIFS(comparison!$AC:$AC,comparison!$AE:$AE,$E35,comparison!$AJ:$AJ,"<>"&0) -> 490500 | T35: =SUMIFS(comparison!$U:$U,comparison!$AE:$AE,$E35,comparison!$AJ:$AJ,"<>"&0) -> 112451.1 | U35: 0.770741896 | V35: =IF(R35=0,0,(SUMIFS(comparison!$AF:$AF,comparison!$AE:$AE,$E35,comparison!$AG:$AG,"<>"&0)-SUMIFS(comparison!$AG:$AG,comparison!$AE:$AE,$E35,comparison!$AG:$AG,"<>"&0))/R35) -> 423 | W35: =IF(S35=0,0,SUMIFS(comparison!$AI:$AI,comparison!$AE:$AE,$E35,comparison!$AJ:$AJ,"<>"&0)/S35)-IF(T35=0,0,SUMIFS(comparison!$AJ:$AJ,comparison!$AE:$AE,$E35,comparison!$AJ:$AJ,"<>"&0)/T35) -> 426.6666667 | X35: 0.6303808761
D36: 27 | E36: =IF(SUMIFS(IN!$Q:$Q,IN!$S:$S,$D36,IN!$T:$T,1)=0,0,INDEX(IN!$C:$C,SUMIFS(IN!$Q:$Q,IN!$S:$S,$D36,IN!$T:$T,1))) -> товар-27 | H36: 20 | I36: 546 | J36: 347997 | K36: 544.0855525 | L36: =SUMIFS(comparison!$O:$O,comparison!$Q:$Q,$E36) -> 0 | M36: =IF(L36=0,0,SUMIFS(comparison!$A:$A,comparison!$Q:$Q,$E36)/L36) -> 00:00:00 | N36: 0 | O36: =SUMIFS(comparison!$P:$P,comparison!$Q:$Q,$E36) -> 0 | P36: =IF(O36=0,0,SUMIFS(comparison!$B:$B,comparison!$Q:$Q,$E36)/O36) -> 00:00:00 | Q36: 0 | R36: =SUMIFS(comparison!$AB:$AB,comparison!$AE:$AE,$E36,comparison!$AG:$AG,"<>"&0) -> 20 | S36: =SUMIFS(comparison!$AC:$AC,comparison!$AE:$AE,$E36,comparison!$AJ:$AJ,"<>"&0) -> 347997 | T36: =SUMIFS(comparison!$U:$U,comparison!$AE:$AE,$E36,comparison!$AJ:$AJ,"<>"&0) -> 63578.1 | U36: 0.8173027354 | V36: =IF(R36=0,0,(SUMIFS(comparison!$AF:$AF,comparison!$AE:$AE,$E36,comparison!$AG:$AG,"<>"&0)-SUMIFS(comparison!$AG:$AG,comparison!$AE:$AE,$E36,comparison!$AG:$AG,"<>"&0))/R36) -> 546 | W36: =IF(S36=0,0,SUMIFS(comparison!$AI:$AI,comparison!$AE:$AE,$E36,comparison!$AJ:$AJ,"<>"&0)/S36)-IF(T36=0,0,SUMIFS(comparison!$AJ:$AJ,comparison!$AE:$AE,$E36,comparison!$AJ:$AJ,"<>"&0)/T36) -> 544.0855525 | X36: 0.4929212156
D37: 28 | E37: =IF(SUMIFS(IN!$Q:$Q,IN!$S:$S,$D37,IN!$T:$T,1)=0,0,INDEX(IN!$C:$C,SUMIFS(IN!$Q:$Q,IN!$S:$S,$D37,IN!$T:$T,1))) -> товар-28 | H37: 30 | I37: 450.3333333 | J37: 387000 | K37: 469.5 | L37: =SUMIFS(comparison!$O:$O,comparison!$Q:$Q,$E37) -> 0 | M37: =IF(L37=0,0,SUMIFS(comparison!$A:$A,comparison!$Q:$Q,$E37)/L37) -> 00:00:00 | N37: 0 | O37: =SUMIFS(comparison!$P:$P,comparison!$Q:$Q,$E37) -> 0 | P37: =IF(O37=0,0,SUMIFS(comparison!$B:$B,comparison!$Q:$Q,$E37)/O37) -> 00:00:00 | Q37: 0 | R37: =SUMIFS(comparison!$AB:$AB,comparison!$AE:$AE,$E37,comparison!$AG:$AG,"<>"&0) -> 30 | S37: =SUMIFS(comparison!$AC:$AC,comparison!$AE:$AE,$E37,comparison!$AJ:$AJ,"<>"&0) -> 387000 | T37: =SUMIFS(comparison!$U:$U,comparison!$AE:$AE,$E37,comparison!$AJ:$AJ,"<>"&0) -> 108342.3 | U37: 0.7200457364 | V37: =IF(R37=0,0,(SUMIFS(comparison!$AF:$AF,comparison!$AE:$AE,$E37,comparison!$AG:$AG,"<>"&0)-SUMIFS(comparison!$AG:$AG,comparison!$AE:$AE,$E37,comparison!$AG:$AG,"<>"&0))/R37) -> 450.3333333 | W37: =IF(S37=0,0,SUMIFS(comparison!$AI:$AI,comparison!$AE:$AE,$E37,comparison!$AJ:$AJ,"<>"&0)/S37)-IF(T37=0,0,SUMIFS(comparison!$AJ:$AJ,comparison!$AE:$AE,$E37,comparison!$AJ:$AJ,"<>"&0)/T37) -> 469.5 | X37: 0.5244534243
D38: 29 | E38: =IF(SUMIFS(IN!$Q:$Q,IN!$S:$S,$D38,IN!$T:$T,1)=0,0,INDEX(IN!$C:$C,SUMIFS(IN!$Q:$Q,IN!$S:$S,$D38,IN!$T:$T,1))) -> товар-29 | H38: 90 | I38: 427.6666667 | J38: 134100 | K38: 427.6666667 | L38: =SUMIFS(comparison!$O:$O,comparison!$Q:$Q,$E38) -> 0 | M38: =IF(L38=0,0,SUMIFS(comparison!$A:$A,comparison!$Q:$Q,$E38)/L38) -> 00:00:00 | N38: 0 | O38: =SUMIFS(comparison!$P:$P,comparison!$Q:$Q,$E38) -> 0 | P38: =IF(O38=0,0,SUMIFS(comparison!$B:$B,comparison!$Q:$Q,$E38)/O38) -> 00:00:00 | Q38: 0 | R38: =SUMIFS(comparison!$AB:$AB,comparison!$AE:$AE,$E38,comparison!$AG:$AG,"<>"&0) -> 90 | S38: =SUMIFS(comparison!$AC:$AC,comparison!$AE:$AE,$E38,comparison!$AJ:$AJ,"<>"&0) -> 134100 | T38: =SUMIFS(comparison!$U:$U,comparison!$AE:$AE,$E38,comparison!$AJ:$AJ,"<>"&0) -> 87582.12 | U38: 0.3468894855 | V38: =IF(R38=0,0,(SUMIFS(comparison!$AF:$AF,comparison!$AE:$AE,$E38,comparison!$AG:$AG,"<>"&0)-SUMIFS(comparison!$AG:$AG,comparison!$AE:$AE,$E38,comparison!$AG:$AG,"<>"&0))/R38) -> 427.6666667 | W38: =IF(S38=0,0,SUMIFS(comparison!$AI:$AI,comparison!$AE:$AE,$E38,comparison!$AJ:$AJ,"<>"&0)/S38)-IF(T38=0,0,SUMIFS(comparison!$AJ:$AJ,comparison!$AE:$AE,$E38,comparison!$AJ:$AJ,"<>"&0)/T38) -> 427.6666667 | X38: 0.2893794598
D39: 30 | E39: =IF(SUMIFS(IN!$Q:$Q,IN!$S:$S,$D39,IN!$T:$T,1)=0,0,INDEX(IN!$C:$C,SUMIFS(IN!$Q:$Q,IN!$S:$S,$D39,IN!$T:$T,1))) -> товар-30 | H39: 40 | I39: 938.5 | J39: 73245.255 | K39: 733.1412889 | L39: =SUMIFS(comparison!$O:$O,comparison!$Q:$Q,$E39) -> 30 | M39: =IF(L39=0,0,SUMIFS(comparison!$A:$A,comparison!$Q:$Q,$E39)/L39) -> 2019-07-15 | N39: 1081 | O39: =SUMIFS(comparison!$P:$P,comparison!$Q:$Q,$E39) -> 28545.255 | P39: =IF(O39=0,0,SUMIFS(comparison!$B:$B,comparison!$Q:$Q,$E39)/O39) -> 2019-07-15 | Q39: 1081 | R39: =SUMIFS(comparison!$AB:$AB,comparison!$AE:$AE,$E39,comparison!$AG:$AG,"<>"&0) -> 10 | S39: =SUMIFS(comparison!$AC:$AC,comparison!$AE:$AE,$E39,comparison!$AJ:$AJ,"<>"&0) -> 44700 | T39: =SUMIFS(comparison!$U:$U,comparison!$AE:$AE,$E39,comparison!$AJ:$AJ,"<>"&0) -> 9515.085 | U39: 0.7871345638 | V39: =IF(R39=0,0,(SUMIFS(comparison!$AF:$AF,comparison!$AE:$AE,$E39,comparison!$AG:$AG,"<>"&0)-SUMIFS(comparison!$AG:$AG,comparison!$AE:$AE,$E39,comparison!$AG:$AG,"<>"&0))/R39) -> 511 | W39: =IF(S39=0,0,SUMIFS(comparison!$AI:$AI,comparison!$AE:$AE,$E39,comparison!$AJ:$AJ,"<>"&0)/S39)-IF(T39=0,0,SUMIFS(comparison!$AJ:$AJ,comparison!$AE:$AE,$E39,comparison!$AJ:$AJ,"<>"&0)/T39) -> 511 | X39: 0.5139527616
D40: 31 | E40: =IF(SUMIFS(IN!$Q:$Q,IN!$S:$S,$D40,IN!$T:$T,1)=0,0,INDEX(IN!$C:$C,SUMIFS(IN!$Q:$Q,IN!$S:$S,$D40,IN!$T:$T,1))) -> товар-31 | H40: 50 | I40: 429.4 | J40: 865725 | K40: 428.1134021 | L40: =SUMIFS(comparison!$O:$O,comparison!$Q:$Q,$E40) -> 0 | M40: =IF(L40=0,0,SUMIFS(comparison!$A:$A,comparison!$Q:$Q,$E40)/L40) -> 00:00:00 | N40: 0 | O40: =SUMIFS(comparison!$P:$P,comparison!$Q:$Q,$E40) -> 0 | P40: =IF(O40=0,0,SUMIFS(comparison!$B:$B,comparison!$Q:$Q,$E40)/O40) -> 00:00:00 | Q40: 0 | R40: =SUMIFS(comparison!$AB:$AB,comparison!$AE:$AE,$E40,comparison!$AG:$AG,"<>"&0) -> 50 | S40: =SUMIFS(comparison!$AC:$AC,comparison!$AE:$AE,$E40,comparison!$AJ:$AJ,"<>"&0) -> 865725 | T40: =SUMIFS(comparison!$U:$U,comparison!$AE:$AE,$E40,comparison!$AJ:$AJ,"<>"&0) -> 160026.57 | U40: 0.8151531144 | V40: =IF(R40=0,0,(SUMIFS(comparison!$AF:$AF,comparison!$AE:$AE,$E40,comparison!$AG:$AG,"<>"&0)-SUMIFS(comparison!$AG:$AG,comparison!$AE:$AE,$E40,comparison!$AG:$AG,"<>"&0))/R40) -> 429.4 | W40: =IF(S40=0,0,SUMIFS(comparison!$AI:$AI,comparison!$AE:$AE,$E40,comparison!$AJ:$AJ,"<>"&0)/S40)-IF(T40=0,0,SUMIFS(comparison!$AJ:$AJ,comparison!$AE:$AE,$E40,comparison!$AJ:$AJ,"<>"&0)/T40) -> 428.1134021 | X40: 0.662431321
D41: 32 | E41: =IF(SUMIFS(IN!$Q:$Q,IN!$S:$S,$D41,IN!$T:$T,1)=0,0,INDEX(IN!$C:$C,SUMIFS(IN!$Q:$Q,IN!$S:$S,$D41,IN!$T:$T,1))) -> товар-32 | H41: 10 | I41: 543 | J41: 163500 | K41: 543 | L41: =SUMIFS(comparison!$O:$O,comparison!$Q:$Q,$E41) -> 0 | M41: =IF(L41=0,0,SUMIFS(comparison!$A:$A,comparison!$Q:$Q,$E41)/L41) -> 00:00:00 | N41: 0 | O41: =SUMIFS(comparison!$P:$P,comparison!$Q:$Q,$E41) -> 0 | P41: =IF(O41=0,0,SUMIFS(comparison!$B:$B,comparison!$Q:$Q,$E41)/O41) -> 00:00:00 | Q41: 0 | R41: =SUMIFS(comparison!$AB:$AB,comparison!$AE:$AE,$E41,comparison!$AG:$AG,"<>"&0) -> 10 | S41: =SUMIFS(comparison!$AC:$AC,comparison!$AE:$AE,$E41,comparison!$AJ:$AJ,"<>"&0) -> 163500 | T41: =SUMIFS(comparison!$U:$U,comparison!$AE:$AE,$E41,comparison!$AJ:$AJ,"<>"&0) -> 32870.31 | U41: 0.7989583486 | V41: =IF(R41=0,0,(SUMIFS(comparison!$AF:$AF,comparison!$AE:$AE,$E41,comparison!$AG:$AG,"<>"&0)-SUMIFS(comparison!$AG:$AG,comparison!$AE:$AE,$E41,comparison!$AG:$AG,"<>"&0))/R41) -> 543 | W41: =IF(S41=0,0,SUMIFS(comparison!$AI:$AI,comparison!$AE:$AE,$E41,comparison!$AJ:$AJ,"<>"&0)/S41)-IF(T41=0,0,SUMIFS(comparison!$AJ:$AJ,comparison!$AE:$AE,$E41,comparison!$AJ:$AJ,"<>"&0)/T41) -> 543 | X41: 0.4839628491
D42: 33 | E42: =IF(SUMIFS(IN!$Q:$Q,IN!$S:$S,$D42,IN!$T:$T,1)=0,0,INDEX(IN!$C:$C,SUMIFS(IN!$Q:$Q,IN!$S:$S,$D42,IN!$T:$T,1))) -> товар-33 | H42: 10 | I42: 1081 | J42: 36546.63 | K42: 1081 | L42: =SUMIFS(comparison!$O:$O,comparison!$Q:$Q,$E42) -> 10 | M42: =IF(L42=0,0,SUMIFS(comparison!$A:$A,comparison!$Q:$Q,$E42)/L42) -> 2019-07-15 | N42: 1081 | O42: =SUMIFS(comparison!$P:$P,comparison!$Q:$Q,$E42) -> 36546.63 | P42: =IF(O42=0,0,SUMIFS(comparison!$B:$B,comparison!$Q:$Q,$E42)/O42) -> 2019-07-15 | Q42: 1081 | R42: =SUMIFS(comparison!$AB:$AB,comparison!$AE:$AE,$E42,comparison!$AG:$AG,"<>"&0) -> 0 | S42: =SUMIFS(comparison!$AC:$AC,comparison!$AE:$AE,$E42,comparison!$AJ:$AJ,"<>"&0) -> 0 | T42: =SUMIFS(comparison!$U:$U,comparison!$AE:$AE,$E42,comparison!$AJ:$AJ,"<>"&0) -> 0 | U42: 0 | V42: =IF(R42=0,0,(SUMIFS(comparison!$AF:$AF,comparison!$AE:$AE,$E42,comparison!$AG:$AG,"<>"&0)-SUMIFS(comparison!$AG:$AG,comparison!$AE:$AE,$E42,comparison!$AG:$AG,"<>"&0))/R42) -> 0 | W42: =IF(S42=0,0,SUMIFS(comparison!$AI:$AI,comparison!$AE:$AE,$E42,comparison!$AJ:$AJ,"<>"&0)/S42)-IF(T42=0,0,SUMIFS(comparison!$AJ:$AJ,comparison!$AE:$AE,$E42,comparison!$AJ:$AJ,"<>"&0)/T42) -> 0 | X42: 0
D43: 34 | E43: =IF(SUMIFS(IN!$Q:$Q,IN!$S:$S,$D43,IN!$T:$T,1)=0,0,INDEX(IN!$C:$C,SUMIFS(IN!$Q:$Q,IN!$S:$S,$D43,IN!$T:$T,1))) -> товар-34 | H43: 20 | I43: 906.5 | J43: 180155.4 | K43: 810.7583087 | L43: =SUMIFS(comparison!$O:$O,comparison!$Q:$Q,$E43) -> 10 | M43: =IF(L43=0,0,SUMIFS(comparison!$A:$A,comparison!$Q:$Q,$E43)/L43) -> 2019-07-15 | N43: 1081 | O43: =SUMIFS(comparison!$P:$P,comparison!$Q:$Q,$E43) -> 40655.4 | P43: =IF(O43=0,0,SUMIFS(comparison!$B:$B,comparison!$Q:$Q,$E43)/O43) -> 2019-07-15 | Q43: 1081 | R43: =SUMIFS(comparison!$AB:$AB,comparison!$AE:$AE,$E43,comparison!$AG:$AG,"<>"&0) -> 10 | S43: =SUMIFS(comparison!$AC:$AC,comparison!$AE:$AE,$E43,comparison!$AJ:$AJ,"<>"&0) -> 139500 | T43: =SUMIFS(comparison!$U:$U,comparison!$AE:$AE,$E43,comparison!$AJ:$AJ,"<>"&0) -> 40655.4 | U43: 0.7085634409 | V43: =IF(R43=0,0,(SUMIFS(comparison!$AF:$AF,comparison!$AE:$AE,$E43,comparison!$AG:$AG,"<>"&0)-SUMIFS(comparison!$AG:$AG,comparison!$AE:$AE,$E43,comparison!$AG:$AG,"<>"&0))/R43) -> 732 | W43: =IF(S43=0,0,SUMIFS(comparison!$AI:$AI,comparison!$AE:$AE,$E43,comparison!$AJ:$AJ,"<>"&0)/S43)-IF(T43=0,0,SUMIFS(comparison!$AJ:$AJ,comparison!$AE:$AE,$E43,comparison!$AJ:$AJ,"<>"&0)/T43) -> 732 | X43: 0.3061641289
D44: 35 | E44: =IF(SUMIFS(IN!$Q:$Q,IN!$S:$S,$D44,IN!$T:$T,1)=0,0,INDEX(IN!$C:$C,SUMIFS(IN!$Q:$Q,IN!$S:$S,$D44,IN!$T:$T,1))) -> товар-35 | H44: 10 | I44: 732 | J44: 139500 | K44: 732 | L44: =SUMIFS(comparison!$O:$O,comparison!$Q:$Q,$E44) -> 0 | M44: =IF(L44=0,0,SUMIFS(comparison!$A:$A,comparison!$Q:$Q,$E44)/L44) -> 00:00:00 | N44: 0 | O44: =SUMIFS(comparison!$P:$P,comparison!$Q:$Q,$E44) -> 0 | P44: =IF(O44=0,0,SUMIFS(comparison!$B:$B,comparison!$Q:$Q,$E44)/O44) -> 00:00:00 | Q44: 0 | R44: =SUMIFS(comparison!$AB:$AB,comparison!$AE:$AE,$E44,comparison!$AG:$AG,"<>"&0) -> 10 | S44: =SUMIFS(comparison!$AC:$AC,comparison!$AE:$AE,$E44,comparison!$AJ:$AJ,"<>"&0) -> 139500 | T44: =SUMIFS(comparison!$U:$U,comparison!$AE:$AE,$E44,comparison!$AJ:$AJ,"<>"&0) -> 40655.4 | U44: 0.7085634409 | V44: =IF(R44=0,0,(SUMIFS(comparison!$AF:$AF,comparison!$AE:$AE,$E44,comparison!$AG:$AG,"<>"&0)-SUMIFS(comparison!$AG:$AG,comparison!$AE:$AE,$E44,comparison!$AG:$AG,"<>"&0))/R44) -> 732 | W44: =IF(S44=0,0,SUMIFS(comparison!$AI:$AI,comparison!$AE:$AE,$E44,comparison!$AJ:$AJ,"<>"&0)/S44)-IF(T44=0,0,SUMIFS(comparison!$AJ:$AJ,comparison!$AE:$AE,$E44,comparison!$AJ:$AJ,"<>"&0)/T44) -> 732 | X44: 0.3061641289
D45: 36 | E45: =IF(SUMIFS(IN!$Q:$Q,IN!$S:$S,$D45,IN!$T:$T,1)=0,0,INDEX(IN!$C:$C,SUMIFS(IN!$Q:$Q,IN!$S:$S,$D45,IN!$T:$T,1))) -> товар-36 | H45: 100 | I45: 633.8 | J45: 132088.44 | K45: 604.8985334 | L45: =SUMIFS(comparison!$O:$O,comparison!$Q:$Q,$E45) -> 20 | M45: =IF(L45=0,0,SUMIFS(comparison!$A:$A,comparison!$Q:$Q,$E45)/L45) -> 2019-07-15 | N45: 1081 | O45: =SUMIFS(comparison!$P:$P,comparison!$Q:$Q,$E45) -> 19588.44 | P45: =IF(O45=0,0,SUMIFS(comparison!$B:$B,comparison!$Q:$Q,$E45)/O45) -> 2019-07-15 | Q45: 1081 | R45: =SUMIFS(comparison!$AB:$AB,comparison!$AE:$AE,$E45,comparison!$AG:$AG,"<>"&0) -> 80 | S45: =SUMIFS(comparison!$AC:$AC,comparison!$AE:$AE,$E45,comparison!$AJ:$AJ,"<>"&0) -> 112500 | T45: =SUMIFS(comparison!$U:$U,comparison!$AE:$AE,$E45,comparison!$AJ:$AJ,"<>"&0) -> 83040.81 | U45: 0.2618594667 | V45: =IF(R45=0,0,(SUMIFS(comparison!$AF:$AF,comparison!$AE:$AE,$E45,comparison!$AG:$AG,"<>"&0)-SUMIFS(comparison!$AG:$AG,comparison!$AE:$AE,$E45,comparison!$AG:$AG,"<>"&0))/R45) -> 522 | W45: =IF(S45=0,0,SUMIFS(comparison!$AI:$AI,comparison!$AE:$AE,$E45,comparison!$AJ:$AJ,"<>"&0)/S45)-IF(T45=0,0,SUMIFS(comparison!$AJ:$AJ,comparison!$AE:$AE,$E45,comparison!$AJ:$AJ,"<>"&0)/T45) -> 522 | X45: 0.1766039176
D46: 37 | E46: =IF(SUMIFS(IN!$Q:$Q,IN!$S:$S,$D46,IN!$T:$T,1)=0,0,INDEX(IN!$C:$C,SUMIFS(IN!$Q:$Q,IN!$S:$S,$D46,IN!$T:$T,1))) -> товар-37 | H46: 20 | I46: 801.5 | J46: 47880.09 | K46: 643.1875397 | L46: =SUMIFS(comparison!$O:$O,comparison!$Q:$Q,$E46) -> 10 | M46: =IF(L46=0,0,SUMIFS(comparison!$A:$A,comparison!$Q:$Q,$E46)/L46) -> 2019-07-15 | N46: 1081 | O46: =SUMIFS(comparison!$P:$P,comparison!$Q:$Q,$E46) -> 10380.09 | P46: =IF(O46=0,0,SUMIFS(comparison!$B:$B,comparison!$Q:$Q,$E46)/O46) -> 2019-07-15 | Q46: 1081 | R46: =SUMIFS(comparison!$AB:$AB,comparison!$AE:$AE,$E46,comparison!$AG:$AG,"<>"&0) -> 10 | S46: =SUMIFS(comparison!$AC:$AC,comparison!$AE:$AE,$E46,comparison!$AJ:$AJ,"<>"&0) -> 37500 | T46: =SUMIFS(comparison!$U:$U,comparison!$AE:$AE,$E46,comparison!$AJ:$AJ,"<>"&0) -> 10380.09 | U46: 0.7231976 | V46: =IF(R46=0,0,(SUMIFS(comparison!$AF:$AF,comparison!$AE:$AE,$E46,comparison!$AG:$AG,"<>"&0)-SUMIFS(comparison!$AG:$AG,comparison!$AE:$AE,$E46,comparison!$AG:$AG,"<>"&0))/R46) -> 522 | W46: =IF(S46=0,0,SUMIFS(comparison!$AI:$AI,comparison!$AE:$AE,$E46,comparison!$AJ:$AJ,"<>"&0)/S46)-IF(T46=0,0,SUMIFS(comparison!$AJ:$AJ,comparison!$AE:$AE,$E46,comparison!$AJ:$AJ,"<>"&0)/T46) -> 522 | X46: 0.4630307596
D47: 38 | E47: =IF(SUMIFS(IN!$Q:$Q,IN!$S:$S,$D47,IN!$T:$T,1)=0,0,INDEX(IN!$C:$C,SUMIFS(IN!$Q:$Q,IN!$S:$S,$D47,IN!$T:$T,1))) -> товар-38 | H47: 40 | I47: 572.5 | J47: 452925.3825 | K47: 457.1555194 | L47: =SUMIFS(comparison!$O:$O,comparison!$Q:$Q,$E47) -> 10 | M47: =IF(L47=0,0,SUMIFS(comparison!$A:$A,comparison!$Q:$Q,$E47)/L47) -> 2019-07-15 | N47: 1081 | O47: =SUMIFS(comparison!$P:$P,comparison!$Q:$Q,$E47) -> 38925.3825 | P47: =IF(O47=0,0,SUMIFS(comparison!$B:$B,comparison!$Q:$Q,$E47)/O47) -> 2019-07-15 | Q47: 1081 | R47: =SUMIFS(comparison!$AB:$AB,comparison!$AE:$AE,$E47,comparison!$AG:$AG,"<>"&0) -> 30 | S47: =SUMIFS(comparison!$AC:$AC,comparison!$AE:$AE,$E47,comparison!$AJ:$AJ,"<>"&0) -> 414000 | T47: =SUMIFS(comparison!$U:$U,comparison!$AE:$AE,$E47,comparison!$AJ:$AJ,"<>"&0) -> 116776.1475 | U47: 0.7179320109 | V47: =IF(R47=0,0,(SUMIFS(comparison!$AF:$AF,comparison!$AE:$AE,$E47,comparison!$AG:$AG,"<>"&0)-SUMIFS(comparison!$AG:$AG,comparison!$AE:$AE,$E47,comparison!$AG:$AG,"<>"&0))/R47) -> 403 | W47: =IF(S47=0,0,SUMIFS(comparison!$AI:$AI,comparison!$AE:$AE,$E47,comparison!$AJ:$AJ,"<>"&0)/S47)-IF(T47=0,0,SUMIFS(comparison!$AJ:$AJ,comparison!$AE:$AE,$E47,comparison!$AJ:$AJ,"<>"&0)/T47) -> 398.5 | X47: 0.6415349645
D48: 39 | E48: =IF(SUMIFS(IN!$Q:$Q,IN!$S:$S,$D48,IN!$T:$T,1)=0,0,INDEX(IN!$C:$C,SUMIFS(IN!$Q:$Q,IN!$S:$S,$D48,IN!$T:$T,1))) -> товар-39 | H48: 30 | I48: 421 | J48: 315000 | K48: 419.9714286 | L48: =SUMIFS(comparison!$O:$O,comparison!$Q:$Q,$E48) -> 0 | M48: =IF(L48=0,0,SUMIFS(comparison!$A:$A,comparison!$Q:$Q,$E48)/L48) -> 00:00:00 | N48: 0 | O48: =SUMIFS(comparison!$P:$P,comparison!$Q:$Q,$E48) -> 0 | P48: =IF(O48=0,0,SUMIFS(comparison!$B:$B,comparison!$Q:$Q,$E48)/O48) -> 00:00:00 | Q48: 0 | R48: =SUMIFS(comparison!$AB:$AB,comparison!$AE:$AE,$E48,comparison!$AG:$AG,"<>"&0) -> 30 | S48: =SUMIFS(comparison!$AC:$AC,comparison!$AE:$AE,$E48,comparison!$AJ:$AJ,"<>"&0) -> 315000 | T48: =SUMIFS(comparison!$U:$U,comparison!$AE:$AE,$E48,comparison!$AJ:$AJ,"<>"&0) -> 119371.14 | U48: 0.621044 | V48: =IF(R48=0,0,(SUMIFS(comparison!$AF:$AF,comparison!$AE:$AE,$E48,comparison!$AG:$AG,"<>"&0)-SUMIFS(comparison!$AG:$AG,comparison!$AE:$AE,$E48,comparison!$AG:$AG,"<>"&0))/R48) -> 421 | W48: =IF(S48=0,0,SUMIFS(comparison!$AI:$AI,comparison!$AE:$AE,$E48,comparison!$AJ:$AJ,"<>"&0)/S48)-IF(T48=0,0,SUMIFS(comparison!$AJ:$AJ,comparison!$AE:$AE,$E48,comparison!$AJ:$AJ,"<>"&0)/T48) -> 419.9714286 | X48: 0.5217176495
D49: 40 | E49: =IF(SUMIFS(IN!$Q:$Q,IN!$S:$S,$D49,IN!$T:$T,1)=0,0,INDEX(IN!$C:$C,SUMIFS(IN!$Q:$Q,IN!$S:$S,$D49,IN!$T:$T,1))) -> товар-40 | H49: 20 | I49: 913 | J49: 204615.435 | K49: 817.4421702 | L49: =SUMIFS(comparison!$O:$O,comparison!$Q:$Q,$E49) -> 10 | M49: =IF(L49=0,0,SUMIFS(comparison!$A:$A,comparison!$Q:$Q,$E49)/L49) -> 2019-07-15 | N49: 1081 | O49: =SUMIFS(comparison!$P:$P,comparison!$Q:$Q,$E49) -> 44115.435 | P49: =IF(O49=0,0,SUMIFS(comparison!$B:$B,comparison!$Q:$Q,$E49)/O49) -> 2019-07-15 | Q49: 1081 | R49: =SUMIFS(comparison!$AB:$AB,comparison!$AE:$AE,$E49,comparison!$AG:$AG,"<>"&0) -> 10 | S49: =SUMIFS(comparison!$AC:$AC,comparison!$AE:$AE,$E49,comparison!$AJ:$AJ,"<>"&0) -> 160500 | T49: =SUMIFS(comparison!$U:$U,comparison!$AE:$AE,$E49,comparison!$AJ:$AJ,"<>"&0) -> 44115.435 | U49: 0.7251374766 | V49: =IF(R49=0,0,(SUMIFS(comparison!$AF:$AF,comparison!$AE:$AE,$E49,comparison!$AG:$AG,"<>"&0)-SUMIFS(comparison!$AG:$AG,comparison!$AE:$AE,$E49,comparison!$AG:$AG,"<>"&0))/R49) -> 745 | W49: =IF(S49=0,0,SUMIFS(comparison!$AI:$AI,comparison!$AE:$AE,$E49,comparison!$AJ:$AJ,"<>"&0)/S49)-IF(T49=0,0,SUMIFS(comparison!$AJ:$AJ,comparison!$AE:$AE,$E49,comparison!$AJ:$AJ,"<>"&0)/T49) -> 745 | X49: 0.3062542715
D50: 41 | E50: =IF(SUMIFS(IN!$Q:$Q,IN!$S:$S,$D50,IN!$T:$T,1)=0,0,INDEX(IN!$C:$C,SUMIFS(IN!$Q:$Q,IN!$S:$S,$D50,IN!$T:$T,1))) -> товар-41 | H50: 40 | I50: 1027.75 | J50: 87840.315 | K50: 943.5107389 | L50: =SUMIFS(comparison!$O:$O,comparison!$Q:$Q,$E50) -> 30 | M50: =IF(L50=0,0,SUMIFS(comparison!$A:$A,comparison!$Q:$Q,$E50)/L50) -> 2019-07-15 | N50: 1081 | O50: =SUMIFS(comparison!$P:$P,comparison!$Q:$Q,$E50) -> 31140.315 | P50: =IF(O50=0,0,SUMIFS(comparison!$B:$B,comparison!$Q:$Q,$E50)/O50) -> 2019-07-15 | Q50: 1081 | R50: =SUMIFS(comparison!$AB:$AB,comparison!$AE:$AE,$E50,comparison!$AG:$AG,"<>"&0) -> 10 | S50: =SUMIFS(comparison!$AC:$AC,comparison!$AE:$AE,$E50,comparison!$AJ:$AJ,"<>"&0) -> 56700 | T50: =SUMIFS(comparison!$U:$U,comparison!$AE:$AE,$E50,comparison!$AJ:$AJ,"<>"&0) -> 10380.105 | U50: 0.8169293651 | V50: =IF(R50=0,0,(SUMIFS(comparison!$AF:$AF,comparison!$AE:$AE,$E50,comparison!$AG:$AG,"<>"&0)-SUMIFS(comparison!$AG:$AG,comparison!$AE:$AE,$E50,comparison!$AG:$AG,"<>"&0))/R50) -> 868 | W50: =IF(S50=0,0,SUMIFS(comparison!$AI:$AI,comparison!$AE:$AE,$E50,comparison!$AJ:$AJ,"<>"&0)/S50)-IF(T50=0,0,SUMIFS(comparison!$AJ:$AJ,comparison!$AE:$AE,$E50,comparison!$AJ:$AJ,"<>"&0)/T50) -> 868 | X50: 0.2854448249
D51: 42 | E51: =IF(SUMIFS(IN!$Q:$Q,IN!$S:$S,$D51,IN!$T:$T,1)=0,0,INDEX(IN!$C:$C,SUMIFS(IN!$Q:$Q,IN!$S:$S,$D51,IN!$T:$T,1))) -> товар-42 | H51: 20 | I51: 511 | J51: 148500 | K51: 511 | L51: =SUMIFS(comparison!$O:$O,comparison!$Q:$Q,$E51) -> 0 | M51: =IF(L51=0,0,SUMIFS(comparison!$A:$A,comparison!$Q:$Q,$E51)/L51) -> 00:00:00 | N51: 0 | O51: =SUMIFS(comparison!$P:$P,comparison!$Q:$Q,$E51) -> 0 | P51: =IF(O51=0,0,SUMIFS(comparison!$B:$B,comparison!$Q:$Q,$E51)/O51) -> 00:00:00 | Q51: 0 | R51: =SUMIFS(comparison!$AB:$AB,comparison!$AE:$AE,$E51,comparison!$AG:$AG,"<>"&0) -> 20 | S51: =SUMIFS(comparison!$AC:$AC,comparison!$AE:$AE,$E51,comparison!$AJ:$AJ,"<>"&0) -> 148500 | T51: =SUMIFS(comparison!$U:$U,comparison!$AE:$AE,$E51,comparison!$AJ:$AJ,"<>"&0) -> 62713.11 | U51: 0.5776894949 | V51: =IF(R51=0,0,(SUMIFS(comparison!$AF:$AF,comparison!$AE:$AE,$E51,comparison!$AG:$AG,"<>"&0)-SUMIFS(comparison!$AG:$AG,comparison!$AE:$AE,$E51,comparison!$AG:$AG,"<>"&0))/R51) -> 511 | W51: =IF(S51=0,0,SUMIFS(comparison!$AI:$AI,comparison!$AE:$AE,$E51,comparison!$AJ:$AJ,"<>"&0)/S51)-IF(T51=0,0,SUMIFS(comparison!$AJ:$AJ,comparison!$AE:$AE,$E51,comparison!$AJ:$AJ,"<>"&0)/T51) -> 511 | X51: 0.3849814375
D52: 43 | E52: =IF(SUMIFS(IN!$Q:$Q,IN!$S:$S,$D52,IN!$T:$T,1)=0,0,INDEX(IN!$C:$C,SUMIFS(IN!$Q:$Q,IN!$S:$S,$D52,IN!$T:$T,1))) -> товар-43 | H52: 10 | I52: 415 | J52: 133500 | K52: 415 | L52: =SUMIFS(comparison!$O:$O,comparison!$Q:$Q,$E52) -> 0 | M52: =IF(L52=0,0,SUMIFS(comparison!$A:$A,comparison!$Q:$Q,$E52)/L52) -> 00:00:00 | N52: 0 | O52: =SUMIFS(comparison!$P:$P,comparison!$Q:$Q,$E52) -> 0 | P52: =IF(O52=0,0,SUMIFS(comparison!$B:$B,comparison!$Q:$Q,$E52)/O52) -> 00:00:00 | Q52: 0 | R52: =SUMIFS(comparison!$AB:$AB,comparison!$AE:$AE,$E52,comparison!$AG:$AG,"<>"&0) -> 10 | S52: =SUMIFS(comparison!$AC:$AC,comparison!$AE:$AE,$E52,comparison!$AJ:$AJ,"<>"&0) -> 133500 | T52: =SUMIFS(comparison!$U:$U,comparison!$AE:$AE,$E52,comparison!$AJ:$AJ,"<>"&0) -> 34167.84 | U52: 0.7440611236 | V52: =IF(R52=0,0,(SUMIFS(comparison!$AF:$AF,comparison!$AE:$AE,$E52,comparison!$AG:$AG,"<>"&0)-SUMIFS(comparison!$AG:$AG,comparison!$AE:$AE,$E52,comparison!$AG:$AG,"<>"&0))/R52) -> 415 | W52: =IF(S52=0,0,SUMIFS(comparison!$AI:$AI,comparison!$AE:$AE,$E52,comparison!$AJ:$AJ,"<>"&0)/S52)-IF(T52=0,0,SUMIFS(comparison!$AJ:$AJ,comparison!$AE:$AE,$E52,comparison!$AJ:$AJ,"<>"&0)/T52) -> 415 | X52: 0.6310147253
D53: 44 | E53: =IF(SUMIFS(IN!$Q:$Q,IN!$S:$S,$D53,IN!$T:$T,1)=0,0,INDEX(IN!$C:$C,SUMIFS(IN!$Q:$Q,IN!$S:$S,$D53,IN!$T:$T,1))) -> товар-44 | H53: 40 | I53: 485.75 | J53: 265197 | K53: 492.0206337 | L53: =SUMIFS(comparison!$O:$O,comparison!$Q:$Q,$E53) -> 0 | M53: =IF(L53=0,0,SUMIFS(comparison!$A:$A,comparison!$Q:$Q,$E53)/L53) -> 00:00:00 | N53: 0 | O53: =SUMIFS(comparison!$P:$P,comparison!$Q:$Q,$E53) -> 0 | P53: =IF(O53=0,0,SUMIFS(comparison!$B:$B,comparison!$Q:$Q,$E53)/O53) -> 00:00:00 | Q53: 0 | R53: =SUMIFS(comparison!$AB:$AB,comparison!$AE:$AE,$E53,comparison!$AG:$AG,"<>"&0) -> 40 | S53: =SUMIFS(comparison!$AC:$AC,comparison!$AE:$AE,$E53,comparison!$AJ:$AJ,"<>"&0) -> 265197 | T53: =SUMIFS(comparison!$U:$U,comparison!$AE:$AE,$E53,comparison!$AJ:$AJ,"<>"&0) -> 96015.93 | U53: 0.6379448863 | V53: =IF(R53=0,0,(SUMIFS(comparison!$AF:$AF,comparison!$AE:$AE,$E53,comparison!$AG:$AG,"<>"&0)-SUMIFS(comparison!$AG:$AG,comparison!$AE:$AE,$E53,comparison!$AG:$AG,"<>"&0))/R53) -> 485.75 | W53: =IF(S53=0,0,SUMIFS(comparison!$AI:$AI,comparison!$AE:$AE,$E53,comparison!$AJ:$AJ,"<>"&0)/S53)-IF(T53=0,0,SUMIFS(comparison!$AJ:$AJ,comparison!$AE:$AE,$E53,comparison!$AJ:$AJ,"<>"&0)/T53) -> 492.0206337 | X53: 0.4420340842
D54: 45 | E54: =IF(SUMIFS(IN!$Q:$Q,IN!$S:$S,$D54,IN!$T:$T,1)=0,0,INDEX(IN!$C:$C,SUMIFS(IN!$Q:$Q,IN!$S:$S,$D54,IN!$T:$T,1))) -> товар-45 | H54: 30 | I54: 450 | J54: 400500 | K54: 476.3595506 | L54: =SUMIFS(comparison!$O:$O,comparison!$Q:$Q,$E54) -> 0 | M54: =IF(L54=0,0,SUMIFS(comparison!$A:$A,comparison!$Q:$Q,$E54)/L54) -> 00:00:00 | N54: 0 | O54: =SUMIFS(comparison!$P:$P,comparison!$Q:$Q,$E54) -> 0 | P54: =IF(O54=0,0,SUMIFS(comparison!$B:$B,comparison!$Q:$Q,$E54)/O54) -> 00:00:00 | Q54: 0 | R54: =SUMIFS(comparison!$AB:$AB,comparison!$AE:$AE,$E54,comparison!$AG:$AG,"<>"&0) -> 30 | S54: =SUMIFS(comparison!$AC:$AC,comparison!$AE:$AE,$E54,comparison!$AJ:$AJ,"<>"&0) -> 400500 | T54: =SUMIFS(comparison!$U:$U,comparison!$AE:$AE,$E54,comparison!$AJ:$AJ,"<>"&0) -> 73309.44 | U54: 0.816955206 | V54: =IF(R54=0,0,(SUMIFS(comparison!$AF:$AF,comparison!$AE:$AE,$E54,comparison!$AG:$AG,"<>"&0)-SUMIFS(comparison!$AG:$AG,comparison!$AE:$AE,$E54,comparison!$AG:$AG,"<>"&0))/R54) -> 450 | W54: =IF(S54=0,0,SUMIFS(comparison!$AI:$AI,comparison!$AE:$AE,$E54,comparison!$AJ:$AJ,"<>"&0)/S54)-IF(T54=0,0,SUMIFS(comparison!$AJ:$AJ,comparison!$AE:$AE,$E54,comparison!$AJ:$AJ,"<>"&0)/T54) -> 476.3595506 | X54: 0.5802172178
D55: 46 | E55: =IF(SUMIFS(IN!$Q:$Q,IN!$S:$S,$D55,IN!$T:$T,1)=0,0,INDEX(IN!$C:$C,SUMIFS(IN!$Q:$Q,IN!$S:$S,$D55,IN!$T:$T,1))) -> товар-46 | H55: 20 | I55: 418.5 | J55: 237000 | K55: 418.5 | L55: =SUMIFS(comparison!$O:$O,comparison!$Q:$Q,$E55) -> 0 | M55: =IF(L55=0,0,SUMIFS(comparison!$A:$A,comparison!$Q:$Q,$E55)/L55) -> 00:00:00 | N55: 0 | O55: =SUMIFS(comparison!$P:$P,comparison!$Q:$Q,$E55) -> 0 | P55: =IF(O55=0,0,SUMIFS(comparison!$B:$B,comparison!$Q:$Q,$E55)/O55) -> 00:00:00 | Q55: 0 | R55: =SUMIFS(comparison!$AB:$AB,comparison!$AE:$AE,$E55,comparison!$AG:$AG,"<>"&0) -> 20 | S55: =SUMIFS(comparison!$AC:$AC,comparison!$AE:$AE,$E55,comparison!$AJ:$AJ,"<>"&0) -> 237000 | T55: =SUMIFS(comparison!$U:$U,comparison!$AE:$AE,$E55,comparison!$AJ:$AJ,"<>"&0) -> 56225.55 | U55: 0.7627613924 | V55: =IF(R55=0,0,(SUMIFS(comparison!$AF:$AF,comparison!$AE:$AE,$E55,comparison!$AG:$AG,"<>"&0)-SUMIFS(comparison!$AG:$AG,comparison!$AE:$AE,$E55,comparison!$AG:$AG,"<>"&0))/R55) -> 418.5 | W55: =IF(S55=0,0,SUMIFS(comparison!$AI:$AI,comparison!$AE:$AE,$E55,comparison!$AJ:$AJ,"<>"&0)/S55)-IF(T55=0,0,SUMIFS(comparison!$AJ:$AJ,comparison!$AE:$AE,$E55,comparison!$AJ:$AJ,"<>"&0)/T55) -> 418.5 | X55: 0.6395352598
D56: 47 | E56: =IF(SUMIFS(IN!$Q:$Q,IN!$S:$S,$D56,IN!$T:$T,1)=0,0,INDEX(IN!$C:$C,SUMIFS(IN!$Q:$Q,IN!$S:$S,$D56,IN!$T:$T,1))) -> товар-47 | H56: 10 | I56: 138 | J56: 14700 | K56: 138 | L56: =SUMIFS(comparison!$O:$O,comparison!$Q:$Q,$E56) -> 0 | M56: =IF(L56=0,0,SUMIFS(comparison!$A:$A,comparison!$Q:$Q,$E56)/L56) -> 00:00:00 | N56: 0 | O56: =SUMIFS(comparison!$P:$P,comparison!$Q:$Q,$E56) -> 0 | P56: =IF(O56=0,0,SUMIFS(comparison!$B:$B,comparison!$Q:$Q,$E56)/O56) -> 00:00:00 | Q56: 0 | R56: =SUMIFS(comparison!$AB:$AB,comparison!$AE:$AE,$E56,comparison!$AG:$AG,"<>"&0) -> 10 | S56: =SUMIFS(comparison!$AC:$AC,comparison!$AE:$AE,$E56,comparison!$AJ:$AJ,"<>"&0) -> 14700 | T56: =SUMIFS(comparison!$U:$U,comparison!$AE:$AE,$E56,comparison!$AJ:$AJ,"<>"&0) -> 2595.03 | U56: =IF(S56=0,0,(S56-T56)/S56) -> 0.8234673469 | V56: =IF(R56=0,0,(SUMIFS(comparison!$AF:$AF,comparison!$AE:$AE,$E56,comparison!$AG:$AG,"<>"&0)-SUMIFS(comparison!$AG:$AG,comparison!$AE:$AE,$E56,comparison!$AG:$AG,"<>"&0))/R56) -> 138 | W56: =IF(S56=0,0,SUMIFS(comparison!$AI:$AI,comparison!$AE:$AE,$E56,comparison!$AJ:$AJ,"<>"&0)/S56)-IF(T56=0,0,SUMIFS(comparison!$AJ:$AJ,comparison!$AE:$AE,$E56,comparison!$AJ:$AJ,"<>"&0)/T56) -> 138 | X56: 3.898422935
D57: 48 | E57: =IF(SUMIFS(IN!$Q:$Q,IN!$S:$S,$D57,IN!$T:$T,1)=0,0,INDEX(IN!$C:$C,SUMIFS(IN!$Q:$Q,IN!$S:$S,$D57,IN!$T:$T,1))) -> товар-48 | H57: 10 | I57: 1081 | J57: 192464.4 | K57: 1081 | L57: =SUMIFS(comparison!$O:$O,comparison!$Q:$Q,$E57) -> 10 | M57: =IF(L57=0,0,SUMIFS(comparison!$A:$A,comparison!$Q:$Q,$E57)/L57) -> 2019-07-15 | N57: 1081 | O57: =SUMIFS(comparison!$P:$P,comparison!$Q:$Q,$E57) -> 192464.4 | P57: =IF(O57=0,0,SUMIFS(comparison!$B:$B,comparison!$Q:$Q,$E57)/O57) -> 2019-07-15 | Q57: 1081 | R57: =SUMIFS(comparison!$AB:$AB,comparison!$AE:$AE,$E57,comparison!$AG:$AG,"<>"&0) -> 0 | S57: =SUMIFS(comparison!$AC:$AC,comparison!$AE:$AE,$E57,comparison!$AJ:$AJ,"<>"&0) -> 0 | T57: =SUMIFS(comparison!$U:$U,comparison!$AE:$AE,$E57,comparison!$AJ:$AJ,"<>"&0) -> 0 | U57: =IF(S57=0,0,(S57-T57)/S57) -> 0 | V57: =IF(R57=0,0,(SUMIFS(comparison!$AF:$AF,comparison!$AE:$AE,$E57,comparison!$AG:$AG,"<>"&0)-SUMIFS(comparison!$AG:$AG,comparison!$AE:$AE,$E57,comparison!$AG:$AG,"<>"&0))/R57) -> 0 | W57: =IF(S57=0,0,SUMIFS(comparison!$AI:$AI,comparison!$AE:$AE,$E57,comparison!$AJ:$AJ,"<>"&0)/S57)-IF(T57=0,0,SUMIFS(comparison!$AJ:$AJ,comparison!$AE:$AE,$E57,comparison!$AJ:$AJ,"<>"&0)/T57) -> 0 | X57: 0
D58: 49 | E58: =IF(SUMIFS(IN!$Q:$Q,IN!$S:$S,$D58,IN!$T:$T,1)=0,0,INDEX(IN!$C:$C,SUMIFS(IN!$Q:$Q,IN!$S:$S,$D58,IN!$T:$T,1))) -> товар-49 | H58: 70 | I58: 981.5714286 | J58: 353664.1971 | K58: 729.7176225 | L58: =SUMIFS(comparison!$O:$O,comparison!$Q:$Q,$E58) -> 60 | M58: =IF(L58=0,0,SUMIFS(comparison!$A:$A,comparison!$Q:$Q,$E58)/L58) -> 2019-07-15 | N58: 1081 | O58: =SUMIFS(comparison!$P:$P,comparison!$Q:$Q,$E58) -> 175164.1971 | P58: =IF(O58=0,0,SUMIFS(comparison!$B:$B,comparison!$Q:$Q,$E58)/O58) -> 2019-07-15 | Q58: 1081 | R58: =SUMIFS(comparison!$AB:$AB,comparison!$AE:$AE,$E58,comparison!$AG:$AG,"<>"&0) -> 10 | S58: =SUMIFS(comparison!$AC:$AC,comparison!$AE:$AE,$E58,comparison!$AJ:$AJ,"<>"&0) -> 178500 | T58: =SUMIFS(comparison!$U:$U,comparison!$AE:$AE,$E58,comparison!$AJ:$AJ,"<>"&0) -> 29194.03286 | U58: 0.8364479952 | V58: =IF(R58=0,0,(SUMIFS(comparison!$AF:$AF,comparison!$AE:$AE,$E58,comparison!$AG:$AG,"<>"&0)-SUMIFS(comparison!$AG:$AG,comparison!$AE:$AE,$E58,comparison!$AG:$AG,"<>"&0))/R58) -> 385 | W58: =IF(S58=0,0,SUMIFS(comparison!$AI:$AI,comparison!$AE:$AE,$E58,comparison!$AJ:$AJ,"<>"&0)/S58)-IF(T58=0,0,SUMIFS(comparison!$AJ:$AJ,comparison!$AE:$AE,$E58,comparison!$AJ:$AJ,"<>"&0)/T58) -> 385 | X58: 0.7793666997
D59: 50 | E59: =IF(SUMIFS(IN!$Q:$Q,IN!$S:$S,$D59,IN!$T:$T,1)=0,0,INDEX(IN!$C:$C,SUMIFS(IN!$Q:$Q,IN!$S:$S,$D59,IN!$T:$T,1))) -> товар-50 | H59: 50 | I59: 705.8 | J59: 622618.08 | K59: 515.7626397 | L59: =SUMIFS(comparison!$O:$O,comparison!$Q:$Q,$E59) -> 20 | M59: =IF(L59=0,0,SUMIFS(comparison!$A:$A,comparison!$Q:$Q,$E59)/L59) -> 2019-07-15 | N59: 1081 | O59: =SUMIFS(comparison!$P:$P,comparison!$Q:$Q,$E59) -> 60118.08 | P59: =IF(O59=0,0,SUMIFS(comparison!$B:$B,comparison!$Q:$Q,$E59)/O59) -> 2019-07-15 | Q59: 1081 | R59: =SUMIFS(comparison!$AB:$AB,comparison!$AE:$AE,$E59,comparison!$AG:$AG,"<>"&0) -> 30 | S59: =SUMIFS(comparison!$AC:$AC,comparison!$AE:$AE,$E59,comparison!$AJ:$AJ,"<>"&0) -> 562500 | T59: =SUMIFS(comparison!$U:$U,comparison!$AE:$AE,$E59,comparison!$AJ:$AJ,"<>"&0) -> 90177.12 | U59: 0.83968512 | V59: =IF(R59=0,0,(SUMIFS(comparison!$AF:$AF,comparison!$AE:$AE,$E59,comparison!$AG:$AG,"<>"&0)-SUMIFS(comparison!$AG:$AG,comparison!$AE:$AE,$E59,comparison!$AG:$AG,"<>"&0))/R59) -> 455.6666667 | W59: =IF(S59=0,0,SUMIFS(comparison!$AI:$AI,comparison!$AE:$AE,$E59,comparison!$AJ:$AJ,"<>"&0)/S59)-IF(T59=0,0,SUMIFS(comparison!$AJ:$AJ,comparison!$AE:$AE,$E59,comparison!$AJ:$AJ,"<>"&0)/T59) -> 455.352 | X59: 0.6300933555
D60: 51 | E60: =IF(SUMIFS(IN!$Q:$Q,IN!$S:$S,$D60,IN!$T:$T,1)=0,0,INDEX(IN!$C:$C,SUMIFS(IN!$Q:$Q,IN!$S:$S,$D60,IN!$T:$T,1))) -> товар-51 | H60: 20 | I60: 1081 | J60: 62280.6 | K60: 1081 | L60: =SUMIFS(comparison!$O:$O,comparison!$Q:$Q,$E60) -> 20 | M60: =IF(L60=0,0,SUMIFS(comparison!$A:$A,comparison!$Q:$Q,$E60)/L60) -> 2019-07-15 | N60: 1081 | O60: =SUMIFS(comparison!$P:$P,comparison!$Q:$Q,$E60) -> 62280.6 | P60: =IF(O60=0,0,SUMIFS(comparison!$B:$B,comparison!$Q:$Q,$E60)/O60) -> 2019-07-15 | Q60: 1081 | R60: =SUMIFS(comparison!$AB:$AB,comparison!$AE:$AE,$E60,comparison!$AG:$AG,"<>"&0) -> 0 | S60: =SUMIFS(comparison!$AC:$AC,comparison!$AE:$AE,$E60,comparison!$AJ:$AJ,"<>"&0) -> 0 | T60: =SUMIFS(comparison!$U:$U,comparison!$AE:$AE,$E60,comparison!$AJ:$AJ,"<>"&0) -> 0 | U60: 0 | V60: =IF(R60=0,0,(SUMIFS(comparison!$AF:$AF,comparison!$AE:$AE,$E60,comparison!$AG:$AG,"<>"&0)-SUMIFS(comparison!$AG:$AG,comparison!$AE:$AE,$E60,comparison!$AG:$AG,"<>"&0))/R60) -> 0 | W60: =IF(S60=0,0,SUMIFS(comparison!$AI:$AI,comparison!$AE:$AE,$E60,comparison!$AJ:$AJ,"<>"&0)/S60)-IF(T60=0,0,SUMIFS(comparison!$AJ:$AJ,comparison!$AE:$AE,$E60,comparison!$AJ:$AJ,"<>"&0)/T60) -> 0 | X60: 0
D61: 52 | E61: =IF(SUMIFS(IN!$Q:$Q,IN!$S:$S,$D61,IN!$T:$T,1)=0,0,INDEX(IN!$C:$C,SUMIFS(IN!$Q:$Q,IN!$S:$S,$D61,IN!$T:$T,1))) -> товар-52 | H61: 40 | I61: 634.25 | J61: 389126.625 | K61: 585.4729977 | L61: =SUMIFS(comparison!$O:$O,comparison!$Q:$Q,$E61) -> 10 | M61: =IF(L61=0,0,SUMIFS(comparison!$A:$A,comparison!$Q:$Q,$E61)/L61) -> 2019-07-15 | N61: 1081 | O61: =SUMIFS(comparison!$P:$P,comparison!$Q:$Q,$E61) -> 38276.625 | P61: =IF(O61=0,0,SUMIFS(comparison!$B:$B,comparison!$Q:$Q,$E61)/O61) -> 2019-07-15 | Q61: 1081 | R61: =SUMIFS(comparison!$AB:$AB,comparison!$AE:$AE,$E61,comparison!$AG:$AG,"<>"&0) -> 30 | S61: =SUMIFS(comparison!$AC:$AC,comparison!$AE:$AE,$E61,comparison!$AJ:$AJ,"<>"&0) -> 350850 | T61: =SUMIFS(comparison!$U:$U,comparison!$AE:$AE,$E61,comparison!$AJ:$AJ,"<>"&0) -> 114829.875 | U61: 0.6727094912 | V61: =IF(R61=0,0,(SUMIFS(comparison!$AF:$AF,comparison!$AE:$AE,$E61,comparison!$AG:$AG,"<>"&0)-SUMIFS(comparison!$AG:$AG,comparison!$AE:$AE,$E61,comparison!$AG:$AG,"<>"&0))/R61) -> 485.3333333 | W61: =IF(S61=0,0,SUMIFS(comparison!$AI:$AI,comparison!$AE:$AE,$E61,comparison!$AJ:$AJ,"<>"&0)/S61)-IF(T61=0,0,SUMIFS(comparison!$AJ:$AJ,comparison!$AE:$AE,$E61,comparison!$AJ:$AJ,"<>"&0)/T61) -> 531.4125695 | X61: 0.4238232516
D62: 53 | E62: =IF(SUMIFS(IN!$Q:$Q,IN!$S:$S,$D62,IN!$T:$T,1)=0,0,INDEX(IN!$C:$C,SUMIFS(IN!$Q:$Q,IN!$S:$S,$D62,IN!$T:$T,1))) -> товар-53 | H62: 60 | I62: 600.1666667 | J62: 61945.11 | K62: 608.744805 | L62: =SUMIFS(comparison!$O:$O,comparison!$Q:$Q,$E62) -> 10 | M62: =IF(L62=0,0,SUMIFS(comparison!$A:$A,comparison!$Q:$Q,$E62)/L62) -> 2019-07-15 | N62: 1081 | O62: =SUMIFS(comparison!$P:$P,comparison!$Q:$Q,$E62) -> 11245.11 | P62: =IF(O62=0,0,SUMIFS(comparison!$B:$B,comparison!$Q:$Q,$E62)/O62) -> 2019-07-15 | Q62: 1081 | R62: =SUMIFS(comparison!$AB:$AB,comparison!$AE:$AE,$E62,comparison!$AG:$AG,"<>"&0) -> 50 | S62: =SUMIFS(comparison!$AC:$AC,comparison!$AE:$AE,$E62,comparison!$AJ:$AJ,"<>"&0) -> 50700 | T62: =SUMIFS(comparison!$U:$U,comparison!$AE:$AE,$E62,comparison!$AJ:$AJ,"<>"&0) -> 56225.55 | U62: -0.1089852071 | V62: =IF(R62=0,0,(SUMIFS(comparison!$AF:$AF,comparison!$AE:$AE,$E62,comparison!$AG:$AG,"<>"&0)-SUMIFS(comparison!$AG:$AG,comparison!$AE:$AE,$E62,comparison!$AG:$AG,"<>"&0))/R62) -> 504 | W62: =IF(S62=0,0,SUMIFS(comparison!$AI:$AI,comparison!$AE:$AE,$E62,comparison!$AJ:$AJ,"<>"&0)/S62)-IF(T62=0,0,SUMIFS(comparison!$AJ:$AJ,comparison!$AE:$AE,$E62,comparison!$AJ:$AJ,"<>"&0)/T62) -> 504 | X62: -0.08017261159
D63: 54 | E63: =IF(SUMIFS(IN!$Q:$Q,IN!$S:$S,$D63,IN!$T:$T,1)=0,0,INDEX(IN!$C:$C,SUMIFS(IN!$Q:$Q,IN!$S:$S,$D63,IN!$T:$T,1))) -> товар-54 | H63: 10 | I63: 436 | J63: 44700 | K63: 436 | L63: =SUMIFS(comparison!$O:$O,comparison!$Q:$Q,$E63) -> 0 | M63: =IF(L63=0,0,SUMIFS(comparison!$A:$A,comparison!$Q:$Q,$E63)/L63) -> 00:00:00 | N63: 0 | O63: =SUMIFS(comparison!$P:$P,comparison!$Q:$Q,$E63) -> 0 | P63: =IF(O63=0,0,SUMIFS(comparison!$B:$B,comparison!$Q:$Q,$E63)/O63) -> 00:00:00 | Q63: 0 | R63: =SUMIFS(comparison!$AB:$AB,comparison!$AE:$AE,$E63,comparison!$AG:$AG,"<>"&0) -> 10 | S63: =SUMIFS(comparison!$AC:$AC,comparison!$AE:$AE,$E63,comparison!$AJ:$AJ,"<>"&0) -> 44700 | T63: =SUMIFS(comparison!$U:$U,comparison!$AE:$AE,$E63,comparison!$AJ:$AJ,"<>"&0) -> 8650.11 | U63: 0.8064852349 | V63: =IF(R63=0,0,(SUMIFS(comparison!$AF:$AF,comparison!$AE:$AE,$E63,comparison!$AG:$AG,"<>"&0)-SUMIFS(comparison!$AG:$AG,comparison!$AE:$AE,$E63,comparison!$AG:$AG,"<>"&0))/R63) -> 436 | W63: =IF(S63=0,0,SUMIFS(comparison!$AI:$AI,comparison!$AE:$AE,$E63,comparison!$AJ:$AJ,"<>"&0)/S63)-IF(T63=0,0,SUMIFS(comparison!$AJ:$AJ,comparison!$AE:$AE,$E63,comparison!$AJ:$AJ,"<>"&0)/T63) -> 436 | X63: 0.6406292993
D64: 55 | E64: =IF(SUMIFS(IN!$Q:$Q,IN!$S:$S,$D64,IN!$T:$T,1)=0,0,INDEX(IN!$C:$C,SUMIFS(IN!$Q:$Q,IN!$S:$S,$D64,IN!$T:$T,1))) -> товар-55 | H64: 10 | I64: 1081 | J64: 4541.31 | K64: 1081 | L64: =SUMIFS(comparison!$O:$O,comparison!$Q:$Q,$E64) -> 10 | M64: =IF(L64=0,0,SUMIFS(comparison!$A:$A,comparison!$Q:$Q,$E64)/L64) -> 2019-07-15 | N64: 1081 | O64: =SUMIFS(comparison!$P:$P,comparison!$Q:$Q,$E64) -> 4541.31 | P64: =IF(O64=0,0,SUMIFS(comparison!$B:$B,comparison!$Q:$Q,$E64)/O64) -> 2019-07-15 | Q64: 1081 | R64: =SUMIFS(comparison!$AB:$AB,comparison!$AE:$AE,$E64,comparison!$AG:$AG,"<>"&0) -> 0 | S64: =SUMIFS(comparison!$AC:$AC,comparison!$AE:$AE,$E64,comparison!$AJ:$AJ,"<>"&0) -> 0 | T64: =SUMIFS(comparison!$U:$U,comparison!$AE:$AE,$E64,comparison!$AJ:$AJ,"<>"&0) -> 0 | U64: 0 | V64: =IF(R64=0,0,(SUMIFS(comparison!$AF:$AF,comparison!$AE:$AE,$E64,comparison!$AG:$AG,"<>"&0)-SUMIFS(comparison!$AG:$AG,comparison!$AE:$AE,$E64,comparison!$AG:$AG,"<>"&0))/R64) -> 0 | W64: =IF(S64=0,0,SUMIFS(comparison!$AI:$AI,comparison!$AE:$AE,$E64,comparison!$AJ:$AJ,"<>"&0)/S64)-IF(T64=0,0,SUMIFS(comparison!$AJ:$AJ,comparison!$AE:$AE,$E64,comparison!$AJ:$AJ,"<>"&0)/T64) -> 0 | X64: 0
D65: 56 | E65: =IF(SUMIFS(IN!$Q:$Q,IN!$S:$S,$D65,IN!$T:$T,1)=0,0,INDEX(IN!$C:$C,SUMIFS(IN!$Q:$Q,IN!$S:$S,$D65,IN!$T:$T,1))) -> товар-56 | H65: 10 | I65: 453 | J65: 360000 | K65: 453 | L65: =SUMIFS(comparison!$O:$O,comparison!$Q:$Q,$E65) -> 0 | M65: =IF(L65=0,0,SUMIFS(comparison!$A:$A,comparison!$Q:$Q,$E65)/L65) -> 00:00:00 | N65: 0 | O65: =SUMIFS(comparison!$P:$P,comparison!$Q:$Q,$E65) -> 0 | P65: =IF(O65=0,0,SUMIFS(comparison!$B:$B,comparison!$Q:$Q,$E65)/O65) -> 00:00:00 | Q65: 0 | R65: =SUMIFS(comparison!$AB:$AB,comparison!$AE:$AE,$E65,comparison!$AG:$AG,"<>"&0) -> 10 | S65: =SUMIFS(comparison!$AC:$AC,comparison!$AE:$AE,$E65,comparison!$AJ:$AJ,"<>"&0) -> 360000 | T65: =SUMIFS(comparison!$U:$U,comparison!$AE:$AE,$E65,comparison!$AJ:$AJ,"<>"&0) -> 103801.02 | U65: 0.7116638333 | V65: =IF(R65=0,0,(SUMIFS(comparison!$AF:$AF,comparison!$AE:$AE,$E65,comparison!$AG:$AG,"<>"&0)-SUMIFS(comparison!$AG:$AG,comparison!$AE:$AE,$E65,comparison!$AG:$AG,"<>"&0))/R65) -> 453 | W65: =IF(S65=0,0,SUMIFS(comparison!$AI:$AI,comparison!$AE:$AE,$E65,comparison!$AJ:$AJ,"<>"&0)/S65)-IF(T65=0,0,SUMIFS(comparison!$AJ:$AJ,comparison!$AE:$AE,$E65,comparison!$AJ:$AJ,"<>"&0)/T65) -> 453 | X65: 0.5419649008
D66: 57 | E66: =IF(SUMIFS(IN!$Q:$Q,IN!$S:$S,$D66,IN!$T:$T,1)=0,0,INDEX(IN!$C:$C,SUMIFS(IN!$Q:$Q,IN!$S:$S,$D66,IN!$T:$T,1))) -> товар-57 | H66: 340 | I66: 672.6176471 | J66: 680415.1816 | K66: 727.6257633 | L66: =SUMIFS(comparison!$O:$O,comparison!$Q:$Q,$E66) -> 170 | M66: =IF(L66=0,0,SUMIFS(comparison!$A:$A,comparison!$Q:$Q,$E66)/L66) -> 2020-10-10T12:42:21.176 | N66: 627.4705882 | O66: =SUMIFS(comparison!$P:$P,comparison!$Q:$Q,$E66) -> 156915.1816 | P66: =IF(O66=0,0,SUMIFS(comparison!$B:$B,comparison!$Q:$Q,$E66)/O66) -> 2020-10-19T23:56:28.756 | Q66: 618.002445 | R66: =SUMIFS(comparison!$AB:$AB,comparison!$AE:$AE,$E66,comparison!$AG:$AG,"<>"&0) -> 170 | S66: =SUMIFS(comparison!$AC:$AC,comparison!$AE:$AE,$E66,comparison!$AJ:$AJ,"<>"&0) -> 523500 | T66: =SUMIFS(comparison!$U:$U,comparison!$AE:$AE,$E66,comparison!$AJ:$AJ,"<>"&0) -> 132346.2884 | U66: 0.7471895159 | V66: =IF(R66=0,0,(SUMIFS(comparison!$AF:$AF,comparison!$AE:$AE,$E66,comparison!$AG:$AG,"<>"&0)-SUMIFS(comparison!$AG:$AG,comparison!$AE:$AE,$E66,comparison!$AG:$AG,"<>"&0))/R66) -> 717.7647059 | W66: =IF(S66=0,0,SUMIFS(comparison!$AI:$AI,comparison!$AE:$AE,$E66,comparison!$AJ:$AJ,"<>"&0)/S66)-IF(T66=0,0,SUMIFS(comparison!$AJ:$AJ,comparison!$AE:$AE,$E66,comparison!$AJ:$AJ,"<>"&0)/T66) -> 760.4845272 | X66: 0.307112077
D67: 58 | E67: =IF(SUMIFS(IN!$Q:$Q,IN!$S:$S,$D67,IN!$T:$T,1)=0,0,INDEX(IN!$C:$C,SUMIFS(IN!$Q:$Q,IN!$S:$S,$D67,IN!$T:$T,1))) -> товар-58 | H67: 30 | I67: 423 | J67: 70470 | K67: 428.844189 | L67: =SUMIFS(comparison!$O:$O,comparison!$Q:$Q,$E67) -> 0 | M67: =IF(L67=0,0,SUMIFS(comparison!$A:$A,comparison!$Q:$Q,$E67)/L67) -> 00:00:00 | N67: 0 | O67: =SUMIFS(comparison!$P:$P,comparison!$Q:$Q,$E67) -> 0 | P67: =IF(O67=0,0,SUMIFS(comparison!$B:$B,comparison!$Q:$Q,$E67)/O67) -> 00:00:00 | Q67: 0 | R67: =SUMIFS(comparison!$AB:$AB,comparison!$AE:$AE,$E67,comparison!$AG:$AG,"<>"&0) -> 30 | S67: =SUMIFS(comparison!$AC:$AC,comparison!$AE:$AE,$E67,comparison!$AJ:$AJ,"<>"&0) -> 70470 | T67: =SUMIFS(comparison!$U:$U,comparison!$AE:$AE,$E67,comparison!$AJ:$AJ,"<>"&0) -> 23355.21 | U67: 0.6685793955 | V67: =IF(R67=0,0,(SUMIFS(comparison!$AF:$AF,comparison!$AE:$AE,$E67,comparison!$AG:$AG,"<>"&0)-SUMIFS(comparison!$AG:$AG,comparison!$AE:$AE,$E67,comparison!$AG:$AG,"<>"&0))/R67) -> 423 | W67: =IF(S67=0,0,SUMIFS(comparison!$AI:$AI,comparison!$AE:$AE,$E67,comparison!$AJ:$AJ,"<>"&0)/S67)-IF(T67=0,0,SUMIFS(comparison!$AJ:$AJ,comparison!$AE:$AE,$E67,comparison!$AJ:$AJ,"<>"&0)/T67) -> 428.844189 | X67: 0.546126343
D68: 59 | E68: =IF(SUMIFS(IN!$Q:$Q,IN!$S:$S,$D68,IN!$T:$T,1)=0,0,INDEX(IN!$C:$C,SUMIFS(IN!$Q:$Q,IN!$S:$S,$D68,IN!$T:$T,1))) -> товар-59 | H68: 270 | I68: 478.8148148 | J68: 708569.0325 | K68: 611.5396278 | L68: =SUMIFS(comparison!$O:$O,comparison!$Q:$Q,$E68) -> 70 | M68: =IF(L68=0,0,SUMIFS(comparison!$A:$A,comparison!$Q:$Q,$E68)/L68) -> 2022-05-09 | N68: 52 | O68: =SUMIFS(comparison!$P:$P,comparison!$Q:$Q,$E68) -> 58220.0325 | P68: =IF(O68=0,0,SUMIFS(comparison!$B:$B,comparison!$Q:$Q,$E68)/O68) -> 2022-05-09 | Q68: 52 | R68: =SUMIFS(comparison!$AB:$AB,comparison!$AE:$AE,$E68,comparison!$AG:$AG,"<>"&0) -> 200 | S68: =SUMIFS(comparison!$AC:$AC,comparison!$AE:$AE,$E68,comparison!$AJ:$AJ,"<>"&0) -> 650349 | T68: =SUMIFS(comparison!$U:$U,comparison!$AE:$AE,$E68,comparison!$AJ:$AJ,"<>"&0) -> 156233.5875 | U68: 0.7597696199 | V68: =IF(R68=0,0,(SUMIFS(comparison!$AF:$AF,comparison!$AE:$AE,$E68,comparison!$AG:$AG,"<>"&0)-SUMIFS(comparison!$AG:$AG,comparison!$AE:$AE,$E68,comparison!$AG:$AG,"<>"&0))/R68) -> 628.2 | W68: =IF(S68=0,0,SUMIFS(comparison!$AI:$AI,comparison!$AE:$AE,$E68,comparison!$AJ:$AJ,"<>"&0)/S68)-IF(T68=0,0,SUMIFS(comparison!$AJ:$AJ,comparison!$AE:$AE,$E68,comparison!$AJ:$AJ,"<>"&0)/T68) -> 661.630295 | X68: 0.3658720623
D69: 60 | E69: =IF(SUMIFS(IN!$Q:$Q,IN!$S:$S,$D69,IN!$T:$T,1)=0,0,INDEX(IN!$C:$C,SUMIFS(IN!$Q:$Q,IN!$S:$S,$D69,IN!$T:$T,1))) -> товар-60 | H69: 30 | I69: 445 | J69: 82470 | K69: 462.3823208 | L69: =SUMIFS(comparison!$O:$O,comparison!$Q:$Q,$E69) -> 0 | M69: =IF(L69=0,0,SUMIFS(comparison!$A:$A,comparison!$Q:$Q,$E69)/L69) -> 00:00:00 | N69: 0 | O69: =SUMIFS(comparison!$P:$P,comparison!$Q:$Q,$E69) -> 0 | P69: =IF(O69=0,0,SUMIFS(comparison!$B:$B,comparison!$Q:$Q,$E69)/O69) -> 00:00:00 | Q69: 0 | R69: =SUMIFS(comparison!$AB:$AB,comparison!$AE:$AE,$E69,comparison!$AG:$AG,"<>"&0) -> 30 | S69: =SUMIFS(comparison!$AC:$AC,comparison!$AE:$AE,$E69,comparison!$AJ:$AJ,"<>"&0) -> 82470 | T69: =SUMIFS(comparison!$U:$U,comparison!$AE:$AE,$E69,comparison!$AJ:$AJ,"<>"&0) -> 23355.21 | U69: 0.7168035649 | V69: =IF(R69=0,0,(SUMIFS(comparison!$AF:$AF,comparison!$AE:$AE,$E69,comparison!$AG:$AG,"<>"&0)-SUMIFS(comparison!$AG:$AG,comparison!$AE:$AE,$E69,comparison!$AG:$AG,"<>"&0))/R69) -> 445 | W69: =IF(S69=0,0,SUMIFS(comparison!$AI:$AI,comparison!$AE:$AE,$E69,comparison!$AJ:$AJ,"<>"&0)/S69)-IF(T69=0,0,SUMIFS(comparison!$AJ:$AJ,comparison!$AE:$AE,$E69,comparison!$AJ:$AJ,"<>"&0)/T69) -> 462.3823208 | X69: 0.5320964615
D70: 61 | E70: =IF(SUMIFS(IN!$Q:$Q,IN!$S:$S,$D70,IN!$T:$T,1)=0,0,INDEX(IN!$C:$C,SUMIFS(IN!$Q:$Q,IN!$S:$S,$D70,IN!$T:$T,1))) -> товар-61 | H70: 50 | I70: 1081 | J70: 288696.57 | K70: 1081 | L70: =SUMIFS(comparison!$O:$O,comparison!$Q:$Q,$E70) -> 50 | M70: =IF(L70=0,0,SUMIFS(comparison!$A:$A,comparison!$Q:$Q,$E70)/L70) -> 2019-07-15 | N70: 1081 | O70: =SUMIFS(comparison!$P:$P,comparison!$Q:$Q,$E70) -> 288696.57 | P70: =IF(O70=0,0,SUMIFS(comparison!$B:$B,comparison!$Q:$Q,$E70)/O70) -> 2019-07-15 | Q70: 1081 | R70: =SUMIFS(comparison!$AB:$AB,comparison!$AE:$AE,$E70,comparison!$AG:$AG,"<>"&0) -> 0 | S70: =SUMIFS(comparison!$AC:$AC,comparison!$AE:$AE,$E70,comparison!$AJ:$AJ,"<>"&0) -> 0 | T70: =SUMIFS(comparison!$U:$U,comparison!$AE:$AE,$E70,comparison!$AJ:$AJ,"<>"&0) -> 0 | U70: 0 | V70: =IF(R70=0,0,(SUMIFS(comparison!$AF:$AF,comparison!$AE:$AE,$E70,comparison!$AG:$AG,"<>"&0)-SUMIFS(comparison!$AG:$AG,comparison!$AE:$AE,$E70,comparison!$AG:$AG,"<>"&0))/R70) -> 0 | W70: =IF(S70=0,0,SUMIFS(comparison!$AI:$AI,comparison!$AE:$AE,$E70,comparison!$AJ:$AJ,"<>"&0)/S70)-IF(T70=0,0,SUMIFS(comparison!$AJ:$AJ,comparison!$AE:$AE,$E70,comparison!$AJ:$AJ,"<>"&0)/T70) -> 0 | X70: 0
D71: 62 | E71: =IF(SUMIFS(IN!$Q:$Q,IN!$S:$S,$D71,IN!$T:$T,1)=0,0,INDEX(IN!$C:$C,SUMIFS(IN!$Q:$Q,IN!$S:$S,$D71,IN!$T:$T,1))) -> товар-62 | H71: 20 | I71: 1038 | J71: 240913.11 | K71: 1017.387024 | L71: =SUMIFS(comparison!$O:$O,comparison!$Q:$Q,$E71) -> 10 | M71: =IF(L71=0,0,SUMIFS(comparison!$A:$A,comparison!$Q:$Q,$E71)/L71) -> 2019-07-15 | N71: 1081 | O71: =SUMIFS(comparison!$P:$P,comparison!$Q:$Q,$E71) -> 62713.11 | P71: =IF(O71=0,0,SUMIFS(comparison!$B:$B,comparison!$Q:$Q,$E71)/O71) -> 2019-07-15 | Q71: 1081 | R71: =SUMIFS(comparison!$AB:$AB,comparison!$AE:$AE,$E71,comparison!$AG:$AG,"<>"&0) -> 10 | S71: =SUMIFS(comparison!$AC:$AC,comparison!$AE:$AE,$E71,comparison!$AJ:$AJ,"<>"&0) -> 178200 | T71: =SUMIFS(comparison!$U:$U,comparison!$AE:$AE,$E71,comparison!$AJ:$AJ,"<>"&0) -> 62713.11 | U71: 0.6480745791 | V71: =IF(R71=0,0,(SUMIFS(comparison!$AF:$AF,comparison!$AE:$AE,$E71,comparison!$AG:$AG,"<>"&0)-SUMIFS(comparison!$AG:$AG,comparison!$AE:$AE,$E71,comparison!$AG:$AG,"<>"&0))/R71) -> 995 | W71: =IF(S71=0,0,SUMIFS(comparison!$AI:$AI,comparison!$AE:$AE,$E71,comparison!$AJ:$AJ,"<>"&0)/S71)-IF(T71=0,0,SUMIFS(comparison!$AJ:$AJ,comparison!$AE:$AE,$E71,comparison!$AJ:$AJ,"<>"&0)/T71) -> 995 | X71: 0.2011424803
D72: 63 | E72: =IF(SUMIFS(IN!$Q:$Q,IN!$S:$S,$D72,IN!$T:$T,1)=0,0,INDEX(IN!$C:$C,SUMIFS(IN!$Q:$Q,IN!$S:$S,$D72,IN!$T:$T,1))) -> товар-63 | H72: 40 | I72: 760 | J72: 493947 | K72: 772.7307606 | L72: =SUMIFS(comparison!$O:$O,comparison!$Q:$Q,$E72) -> 0 | M72: =IF(L72=0,0,SUMIFS(comparison!$A:$A,comparison!$Q:$Q,$E72)/L72) -> 00:00:00 | N72: 0 | O72: =SUMIFS(comparison!$P:$P,comparison!$Q:$Q,$E72) -> 0 | P72: =IF(O72=0,0,SUMIFS(comparison!$B:$B,comparison!$Q:$Q,$E72)/O72) -> 00:00:00 | Q72: 0 | R72: =SUMIFS(comparison!$AB:$AB,comparison!$AE:$AE,$E72,comparison!$AG:$AG,"<>"&0) -> 40 | S72: =SUMIFS(comparison!$AC:$AC,comparison!$AE:$AE,$E72,comparison!$AJ:$AJ,"<>"&0) -> 493947 | T72: =SUMIFS(comparison!$U:$U,comparison!$AE:$AE,$E72,comparison!$AJ:$AJ,"<>"&0) -> 87365.85 | U72: 0.8231270764 | V72: =IF(R72=0,0,(SUMIFS(comparison!$AF:$AF,comparison!$AE:$AE,$E72,comparison!$AG:$AG,"<>"&0)-SUMIFS(comparison!$AG:$AG,comparison!$AE:$AE,$E72,comparison!$AG:$AG,"<>"&0))/R72) -> 760 | W72: =IF(S72=0,0,SUMIFS(comparison!$AI:$AI,comparison!$AE:$AE,$E72,comparison!$AJ:$AJ,"<>"&0)/S72)-IF(T72=0,0,SUMIFS(comparison!$AJ:$AJ,comparison!$AE:$AE,$E72,comparison!$AJ:$AJ,"<>"&0)/T72) -> 772.7307606 | X72: 0.3279969976
D73: 64 | E73: =IF(SUMIFS(IN!$Q:$Q,IN!$S:$S,$D73,IN!$T:$T,1)=0,0,INDEX(IN!$C:$C,SUMIFS(IN!$Q:$Q,IN!$S:$S,$D73,IN!$T:$T,1))) -> товар-64 | H73: 30 | I73: 1055.333333 | J73: 150482.92 | K73: 1026.351938 | L73: =SUMIFS(comparison!$O:$O,comparison!$Q:$Q,$E73) -> 20 | M73: =IF(L73=0,0,SUMIFS(comparison!$A:$A,comparison!$Q:$Q,$E73)/L73) -> 2019-07-15 | N73: 1081 | O73: =SUMIFS(comparison!$P:$P,comparison!$Q:$Q,$E73) -> 43682.92 | P73: =IF(O73=0,0,SUMIFS(comparison!$B:$B,comparison!$Q:$Q,$E73)/O73) -> 2019-07-15 | Q73: 1081 | R73: =SUMIFS(comparison!$AB:$AB,comparison!$AE:$AE,$E73,comparison!$AG:$AG,"<>"&0) -> 10 | S73: =SUMIFS(comparison!$AC:$AC,comparison!$AE:$AE,$E73,comparison!$AJ:$AJ,"<>"&0) -> 106800 | T73: =SUMIFS(comparison!$U:$U,comparison!$AE:$AE,$E73,comparison!$AJ:$AJ,"<>"&0) -> 21841.46 | U73: 0.7954919476 | V73: =IF(R73=0,0,(SUMIFS(comparison!$AF:$AF,comparison!$AE:$AE,$E73,comparison!$AG:$AG,"<>"&0)-SUMIFS(comparison!$AG:$AG,comparison!$AE:$AE,$E73,comparison!$AG:$AG,"<>"&0))/R73) -> 1004 | W73: =IF(S73=0,0,SUMIFS(comparison!$AI:$AI,comparison!$AE:$AE,$E73,comparison!$AJ:$AJ,"<>"&0)/S73)-IF(T73=0,0,SUMIFS(comparison!$AJ:$AJ,comparison!$AE:$AE,$E73,comparison!$AJ:$AJ,"<>"&0)/T73) -> 1004 | X73: 0.2371071991
D74: 65 | E74: =IF(SUMIFS(IN!$Q:$Q,IN!$S:$S,$D74,IN!$T:$T,1)=0,0,INDEX(IN!$C:$C,SUMIFS(IN!$Q:$Q,IN!$S:$S,$D74,IN!$T:$T,1))) -> товар-65 | H74: 40 | I74: =IF(H74=0,0,(L74*N74+R74*V74)/H74) -> 1028 | J74: 211474.3875 | K74: 934.6872462 | L74: =SUMIFS(comparison!$O:$O,comparison!$Q:$Q,$E74) -> 30 | M74: =IF(L74=0,0,SUMIFS(comparison!$A:$A,comparison!$Q:$Q,$E74)/L74) -> 2019-07-15 | N74: 1081 | O74: =SUMIFS(comparison!$P:$P,comparison!$Q:$Q,$E74) -> 65524.3875 | P74: =IF(O74=0,0,SUMIFS(comparison!$B:$B,comparison!$Q:$Q,$E74)/O74) -> 2019-07-15 | Q74: 1081 | R74: =SUMIFS(comparison!$AB:$AB,comparison!$AE:$AE,$E74,comparison!$AG:$AG,"<>"&0) -> 10 | S74: =SUMIFS(comparison!$AC:$AC,comparison!$AE:$AE,$E74,comparison!$AJ:$AJ,"<>"&0) -> 145950 | T74: =SUMIFS(comparison!$U:$U,comparison!$AE:$AE,$E74,comparison!$AJ:$AJ,"<>"&0) -> 21841.4625 | U74: 0.8503496917 | V74: =IF(R74=0,0,(SUMIFS(comparison!$AF:$AF,comparison!$AE:$AE,$E74,comparison!$AG:$AG,"<>"&0)-SUMIFS(comparison!$AG:$AG,comparison!$AE:$AE,$E74,comparison!$AG:$AG,"<>"&0))/R74) -> 869 | W74: =IF(S74=0,0,SUMIFS(comparison!$AI:$AI,comparison!$AE:$AE,$E74,comparison!$AJ:$AJ,"<>"&0)/S74)-IF(T74=0,0,SUMIFS(comparison!$AJ:$AJ,comparison!$AE:$AE,$E74,comparison!$AJ:$AJ,"<>"&0)/T74) -> 869 | X74: 0.2949492604
D75: 66 | E75: =IF(SUMIFS(IN!$Q:$Q,IN!$S:$S,$D75,IN!$T:$T,1)=0,0,INDEX(IN!$C:$C,SUMIFS(IN!$Q:$Q,IN!$S:$S,$D75,IN!$T:$T,1))) -> товар-66 | H75: =R75+L75 -> 40 | I75: 507.75 | J75: =S75+O75 -> 1589114.19 | K75: =IF(J75=0,0,(O75*Q75+S75*W75)/J75) -> 532.2817339 | L75: =SUMIFS(comparison!$O:$O,comparison!$Q:$Q,$E75) -> 20 | M75: =IF(L75=0,0,SUMIFS(comparison!$A:$A,comparison!$Q:$Q,$E75)/L75) -> 2021-04-01 | N75: =IF(L75=0,0,$L$4-M75) -> 455 | O75: =SUMIFS(comparison!$P:$P,comparison!$Q:$Q,$E75) -> 460814.19 | P75: =IF(O75=0,0,SUMIFS(comparison!$B:$B,comparison!$Q:$Q,$E75)/O75) -> 2021-04-01 | Q75: =IF(O75=0,0,$O$4-P75) -> 455 | R75: =SUMIFS(comparison!$AB:$AB,comparison!$AE:$AE,$E75,comparison!$AG:$AG,"<>"&0) -> 20 | S75: =SUMIFS(comparison!$AC:$AC,comparison!$AE:$AE,$E75,comparison!$AJ:$AJ,"<>"&0) -> 1128300 | T75: =SUMIFS(comparison!$U:$U,comparison!$AE:$AE,$E75,comparison!$AJ:$AJ,"<>"&0) -> 284587.77 | U75: 0.7477729593 | V75: =IF(R75=0,0,(SUMIFS(comparison!$AF:$AF,comparison!$AE:$AE,$E75,comparison!$AG:$AG,"<>"&0)-SUMIFS(comparison!$AG:$AG,comparison!$AE:$AE,$E75,comparison!$AG:$AG,"<>"&0))/R75) -> 560.5 | W75: =IF(S75=0,0,SUMIFS(comparison!$AI:$AI,comparison!$AE:$AE,$E75,comparison!$AJ:$AJ,"<>"&0)/S75)-IF(T75=0,0,SUMIFS(comparison!$AJ:$AJ,comparison!$AE:$AE,$E75,comparison!$AJ:$AJ,"<>"&0)/T75) -> 563.8447221 | X75: =IF(W75<=0,0,POWER(1+U75,365/W75)-1) -> 0.4353921803
D76: =D75+1 -> 67 | E76: =IF(SUMIFS(IN!$Q:$Q,IN!$S:$S,$D76,IN!$T:$T,1)=0,0,INDEX(IN!$C:$C,SUMIFS(IN!$Q:$Q,IN!$S:$S,$D76,IN!$T:$T,1))) -> товар-67 | H76: 30 | I76: 964 | J76: 354206.68 | K76: 811.9579255 | L76: =SUMIFS(comparison!$O:$O,comparison!$Q:$Q,$E76) -> 20 | M76: =IF(L76=0,0,SUMIFS(comparison!$A:$A,comparison!$Q:$Q,$E76)/L76) -> 2019-07-15 | N76: 1081 | O76: =SUMIFS(comparison!$P:$P,comparison!$Q:$Q,$E76) -> 82706.68 | P76: =IF(O76=0,0,SUMIFS(comparison!$B:$B,comparison!$Q:$Q,$E76)/O76) -> 2019-07-15 | Q76: 1081 | R76: =SUMIFS(comparison!$AB:$AB,comparison!$AE:$AE,$E76,comparison!$AG:$AG,"<>"&0) -> 10 | S76: =SUMIFS(comparison!$AC:$AC,comparison!$AE:$AE,$E76,comparison!$AJ:$AJ,"<>"&0) -> 271500 | T76: =SUMIFS(comparison!$U:$U,comparison!$AE:$AE,$E76,comparison!$AJ:$AJ,"<>"&0) -> 41353.34 | U76: 0.8476856722 | V76: =IF(R76=0,0,(SUMIFS(comparison!$AF:$AF,comparison!$AE:$AE,$E76,comparison!$AG:$AG,"<>"&0)-SUMIFS(comparison!$AG:$AG,comparison!$AE:$AE,$E76,comparison!$AG:$AG,"<>"&0))/R76) -> 730 | W76: =IF(S76=0,0,SUMIFS(comparison!$AI:$AI,comparison!$AE:$AE,$E76,comparison!$AJ:$AJ,"<>"&0)/S76)-IF(T76=0,0,SUMIFS(comparison!$AJ:$AJ,comparison!$AE:$AE,$E76,comparison!$AJ:$AJ,"<>"&0)/T76) -> 730 | X76: 0.3592960208
D77: 68 | E77: =IF(SUMIFS(IN!$Q:$Q,IN!$S:$S,$D77,IN!$T:$T,1)=0,0,INDEX(IN!$C:$C,SUMIFS(IN!$Q:$Q,IN!$S:$S,$D77,IN!$T:$T,1))) -> товар-68 | H77: 40 | I77: 873.75 | J77: 43839.54 | K77: 801.2682784 | L77: =SUMIFS(comparison!$O:$O,comparison!$Q:$Q,$E77) -> 20 | M77: =IF(L77=0,0,SUMIFS(comparison!$A:$A,comparison!$Q:$Q,$E77)/L77) -> 2019-07-15 | N77: 1081 | O77: =SUMIFS(comparison!$P:$P,comparison!$Q:$Q,$E77) -> 13929.54 | P77: =IF(O77=0,0,SUMIFS(comparison!$B:$B,comparison!$Q:$Q,$E77)/O77) -> 2019-07-15 | Q77: 1081 | R77: =SUMIFS(comparison!$AB:$AB,comparison!$AE:$AE,$E77,comparison!$AG:$AG,"<>"&0) -> 20 | S77: =SUMIFS(comparison!$AC:$AC,comparison!$AE:$AE,$E77,comparison!$AJ:$AJ,"<>"&0) -> 29910 | T77: =SUMIFS(comparison!$U:$U,comparison!$AE:$AE,$E77,comparison!$AJ:$AJ,"<>"&0) -> 13929.54 | U77: 0.5342848546 | V77: =IF(R77=0,0,(SUMIFS(comparison!$AF:$AF,comparison!$AE:$AE,$E77,comparison!$AG:$AG,"<>"&0)-SUMIFS(comparison!$AG:$AG,comparison!$AE:$AE,$E77,comparison!$AG:$AG,"<>"&0))/R77) -> 666.5 | W77: =IF(S77=0,0,SUMIFS(comparison!$AI:$AI,comparison!$AE:$AE,$E77,comparison!$AJ:$AJ,"<>"&0)/S77)-IF(T77=0,0,SUMIFS(comparison!$AJ:$AJ,comparison!$AE:$AE,$E77,comparison!$AJ:$AJ,"<>"&0)/T77) -> 670.9929789 | X77: 0.2621973722
D78: 69 | E78: =IF(SUMIFS(IN!$Q:$Q,IN!$S:$S,$D78,IN!$T:$T,1)=0,0,INDEX(IN!$C:$C,SUMIFS(IN!$Q:$Q,IN!$S:$S,$D78,IN!$T:$T,1))) -> товар-69 | H78: 20 | I78: 985 | J78: 31021.59 | K78: 971.1719738 | L78: =SUMIFS(comparison!$O:$O,comparison!$Q:$Q,$E78) -> 10 | M78: =IF(L78=0,0,SUMIFS(comparison!$A:$A,comparison!$Q:$Q,$E78)/L78) -> 2019-07-15 | N78: 1081 | O78: =SUMIFS(comparison!$P:$P,comparison!$Q:$Q,$E78) -> 13276.59 | P78: =IF(O78=0,0,SUMIFS(comparison!$B:$B,comparison!$Q:$Q,$E78)/O78) -> 2019-07-15 | Q78: 1081 | R78: =SUMIFS(comparison!$AB:$AB,comparison!$AE:$AE,$E78,comparison!$AG:$AG,"<>"&0) -> 10 | S78: =SUMIFS(comparison!$AC:$AC,comparison!$AE:$AE,$E78,comparison!$AJ:$AJ,"<>"&0) -> 17745 | T78: =SUMIFS(comparison!$U:$U,comparison!$AE:$AE,$E78,comparison!$AJ:$AJ,"<>"&0) -> 13276.59 | U78: 0.2518123415 | V78: =IF(R78=0,0,(SUMIFS(comparison!$AF:$AF,comparison!$AE:$AE,$E78,comparison!$AG:$AG,"<>"&0)-SUMIFS(comparison!$AG:$AG,comparison!$AE:$AE,$E78,comparison!$AG:$AG,"<>"&0))/R78) -> 889 | W78: =IF(S78=0,0,SUMIFS(comparison!$AI:$AI,comparison!$AE:$AE,$E78,comparison!$AJ:$AJ,"<>"&0)/S78)-IF(T78=0,0,SUMIFS(comparison!$AJ:$AJ,comparison!$AE:$AE,$E78,comparison!$AJ:$AJ,"<>"&0)/T78) -> 889 | X78: 0.09659696606
D79: 70 | E79: =IF(SUMIFS(IN!$Q:$Q,IN!$S:$S,$D79,IN!$T:$T,1)=0,0,INDEX(IN!$C:$C,SUMIFS(IN!$Q:$Q,IN!$S:$S,$D79,IN!$T:$T,1))) -> товар-70 | H79: 60 | I79: 468.5 | J79: 858300 | K79: 457.3537225 | L79: =SUMIFS(comparison!$O:$O,comparison!$Q:$Q,$E79) -> 0 | M79: =IF(L79=0,0,SUMIFS(comparison!$A:$A,comparison!$Q:$Q,$E79)/L79) -> 00:00:00 | N79: 0 | O79: =SUMIFS(comparison!$P:$P,comparison!$Q:$Q,$E79) -> 0 | P79: =IF(O79=0,0,SUMIFS(comparison!$B:$B,comparison!$Q:$Q,$E79)/O79) -> 00:00:00 | Q79: 0 | R79: =SUMIFS(comparison!$AB:$AB,comparison!$AE:$AE,$E79,comparison!$AG:$AG,"<>"&0) -> 60 | S79: =SUMIFS(comparison!$AC:$AC,comparison!$AE:$AE,$E79,comparison!$AJ:$AJ,"<>"&0) -> 858300 | T79: =SUMIFS(comparison!$U:$U,comparison!$AE:$AE,$E79,comparison!$AJ:$AJ,"<>"&0) -> 499538.0829 | U79: 0.4179912818 | V79: =IF(R79=0,0,(SUMIFS(comparison!$AF:$AF,comparison!$AE:$AE,$E79,comparison!$AG:$AG,"<>"&0)-SUMIFS(comparison!$AG:$AG,comparison!$AE:$AE,$E79,comparison!$AG:$AG,"<>"&0))/R79) -> 468.5 | W79: =IF(S79=0,0,SUMIFS(comparison!$AI:$AI,comparison!$AE:$AE,$E79,comparison!$AJ:$AJ,"<>"&0)/S79)-IF(T79=0,0,SUMIFS(comparison!$AJ:$AJ,comparison!$AE:$AE,$E79,comparison!$AJ:$AJ,"<>"&0)/T79) -> 457.3537225 | X79: 0.3214356647
D80: 71 | E80: =IF(SUMIFS(IN!$Q:$Q,IN!$S:$S,$D80,IN!$T:$T,1)=0,0,INDEX(IN!$C:$C,SUMIFS(IN!$Q:$Q,IN!$S:$S,$D80,IN!$T:$T,1))) -> товар-71 | H80: 50 | I80: 1050 | J80: 423059.04 | K80: 1022.593968 | L80: =SUMIFS(comparison!$O:$O,comparison!$Q:$Q,$E80) -> 30 | M80: =IF(L80=0,0,SUMIFS(comparison!$A:$A,comparison!$Q:$Q,$E80)/L80) -> 2019-07-15 | N80: 1081 | O80: =SUMIFS(comparison!$P:$P,comparison!$Q:$Q,$E80) -> 104459.04 | P80: =IF(O80=0,0,SUMIFS(comparison!$B:$B,comparison!$Q:$Q,$E80)/O80) -> 2019-07-15 | Q80: 1081 | R80: =SUMIFS(comparison!$AB:$AB,comparison!$AE:$AE,$E80,comparison!$AG:$AG,"<>"&0) -> 20 | S80: =SUMIFS(comparison!$AC:$AC,comparison!$AE:$AE,$E80,comparison!$AJ:$AJ,"<>"&0) -> 318600 | T80: =SUMIFS(comparison!$U:$U,comparison!$AE:$AE,$E80,comparison!$AJ:$AJ,"<>"&0) -> 69639.36 | U80: 0.7814207156 | V80: =IF(R80=0,0,(SUMIFS(comparison!$AF:$AF,comparison!$AE:$AE,$E80,comparison!$AG:$AG,"<>"&0)-SUMIFS(comparison!$AG:$AG,comparison!$AE:$AE,$E80,comparison!$AG:$AG,"<>"&0))/R80) -> 1003.5 | W80: =IF(S80=0,0,SUMIFS(comparison!$AI:$AI,comparison!$AE:$AE,$E80,comparison!$AJ:$AJ,"<>"&0)/S80)-IF(T80=0,0,SUMIFS(comparison!$AJ:$AJ,comparison!$AE:$AE,$E80,comparison!$AJ:$AJ,"<>"&0)/T80) -> 1003.444444 | X80: 0.2337171015
D81: 72 | E81: =IF(SUMIFS(IN!$Q:$Q,IN!$S:$S,$D81,IN!$T:$T,1)=0,0,INDEX(IN!$C:$C,SUMIFS(IN!$Q:$Q,IN!$S:$S,$D81,IN!$T:$T,1))) -> товар-72 | H81: 40 | I81: 1081 | J81: 65286.9 | K81: 1081 | L81: =SUMIFS(comparison!$O:$O,comparison!$Q:$Q,$E81) -> 40 | M81: =IF(L81=0,0,SUMIFS(comparison!$A:$A,comparison!$Q:$Q,$E81)/L81) -> 2019-07-15 | N81: 1081 | O81: =SUMIFS(comparison!$P:$P,comparison!$Q:$Q,$E81) -> 65286.9 | P81: =IF(O81=0,0,SUMIFS(comparison!$B:$B,comparison!$Q:$Q,$E81)/O81) -> 2019-07-15 | Q81: 1081 | R81: =SUMIFS(comparison!$AB:$AB,comparison!$AE:$AE,$E81,comparison!$AG:$AG,"<>"&0) -> 0 | S81: =SUMIFS(comparison!$AC:$AC,comparison!$AE:$AE,$E81,comparison!$AJ:$AJ,"<>"&0) -> 0 | T81: =SUMIFS(comparison!$U:$U,comparison!$AE:$AE,$E81,comparison!$AJ:$AJ,"<>"&0) -> 0 | U81: 0 | V81: =IF(R81=0,0,(SUMIFS(comparison!$AF:$AF,comparison!$AE:$AE,$E81,comparison!$AG:$AG,"<>"&0)-SUMIFS(comparison!$AG:$AG,comparison!$AE:$AE,$E81,comparison!$AG:$AG,"<>"&0))/R81) -> 0 | W81: =IF(S81=0,0,SUMIFS(comparison!$AI:$AI,comparison!$AE:$AE,$E81,comparison!$AJ:$AJ,"<>"&0)/S81)-IF(T81=0,0,SUMIFS(comparison!$AJ:$AJ,comparison!$AE:$AE,$E81,comparison!$AJ:$AJ,"<>"&0)/T81) -> 0 | X81: 0
D82: 73 | E82: =IF(SUMIFS(IN!$Q:$Q,IN!$S:$S,$D82,IN!$T:$T,1)=0,0,INDEX(IN!$C:$C,SUMIFS(IN!$Q:$Q,IN!$S:$S,$D82,IN!$T:$T,1))) -> товар-73 | H82: 20 | I82: 1081 | J82: 20456.55 | K82: 1081 | L82: =SUMIFS(comparison!$O:$O,comparison!$Q:$Q,$E82) -> 20 | M82: =IF(L82=0,0,SUMIFS(comparison!$A:$A,comparison!$Q:$Q,$E82)/L82) -> 2019-07-15 | N82: 1081 | O82: =SUMIFS(comparison!$P:$P,comparison!$Q:$Q,$E82) -> 20456.55 | P82: =IF(O82=0,0,SUMIFS(comparison!$B:$B,comparison!$Q:$Q,$E82)/O82) -> 2019-07-15 | Q82: 1081 | R82: =SUMIFS(comparison!$AB:$AB,comparison!$AE:$AE,$E82,comparison!$AG:$AG,"<>"&0) -> 0 | S82: =SUMIFS(comparison!$AC:$AC,comparison!$AE:$AE,$E82,comparison!$AJ:$AJ,"<>"&0) -> 0 | T82: =SUMIFS(comparison!$U:$U,comparison!$AE:$AE,$E82,comparison!$AJ:$AJ,"<>"&0) -> 0 | U82: 0 | V82: =IF(R82=0,0,(SUMIFS(comparison!$AF:$AF,comparison!$AE:$AE,$E82,comparison!$AG:$AG,"<>"&0)-SUMIFS(comparison!$AG:$AG,comparison!$AE:$AE,$E82,comparison!$AG:$AG,"<>"&0))/R82) -> 0 | W82: =IF(S82=0,0,SUMIFS(comparison!$AI:$AI,comparison!$AE:$AE,$E82,comparison!$AJ:$AJ,"<>"&0)/S82)-IF(T82=0,0,SUMIFS(comparison!$AJ:$AJ,comparison!$AE:$AE,$E82,comparison!$AJ:$AJ,"<>"&0)/T82) -> 0 | X82: 0
D83: 74 | E83: =IF(SUMIFS(IN!$Q:$Q,IN!$S:$S,$D83,IN!$T:$T,1)=0,0,INDEX(IN!$C:$C,SUMIFS(IN!$Q:$Q,IN!$S:$S,$D83,IN!$T:$T,1))) -> товар-74 | H83: 20 | I83: 1081 | J83: 15233.61 | K83: 1081 | L83: =SUMIFS(comparison!$O:$O,comparison!$Q:$Q,$E83) -> 20 | M83: =IF(L83=0,0,SUMIFS(comparison!$A:$A,comparison!$Q:$Q,$E83)/L83) -> 2019-07-15 | N83: 1081 | O83: =SUMIFS(comparison!$P:$P,comparison!$Q:$Q,$E83) -> 15233.61 | P83: =IF(O83=0,0,SUMIFS(comparison!$B:$B,comparison!$Q:$Q,$E83)/O83) -> 2019-07-15 | Q83: 1081 | R83: =SUMIFS(comparison!$AB:$AB,comparison!$AE:$AE,$E83,comparison!$AG:$AG,"<>"&0) -> 0 | S83: =SUMIFS(comparison!$AC:$AC,comparison!$AE:$AE,$E83,comparison!$AJ:$AJ,"<>"&0) -> 0 | T83: =SUMIFS(comparison!$U:$U,comparison!$AE:$AE,$E83,comparison!$AJ:$AJ,"<>"&0) -> 0 | U83: 0 | V83: =IF(R83=0,0,(SUMIFS(comparison!$AF:$AF,comparison!$AE:$AE,$E83,comparison!$AG:$AG,"<>"&0)-SUMIFS(comparison!$AG:$AG,comparison!$AE:$AE,$E83,comparison!$AG:$AG,"<>"&0))/R83) -> 0 | W83: =IF(S83=0,0,SUMIFS(comparison!$AI:$AI,comparison!$AE:$AE,$E83,comparison!$AJ:$AJ,"<>"&0)/S83)-IF(T83=0,0,SUMIFS(comparison!$AJ:$AJ,comparison!$AE:$AE,$E83,comparison!$AJ:$AJ,"<>"&0)/T83) -> 0 | X83: 0
D84: 75 | E84: =IF(SUMIFS(IN!$Q:$Q,IN!$S:$S,$D84,IN!$T:$T,1)=0,0,INDEX(IN!$C:$C,SUMIFS(IN!$Q:$Q,IN!$S:$S,$D84,IN!$T:$T,1))) -> товар-75 | H84: 30 | I84: 662.3333333 | J84: 78363.93 | K84: 508.8081765 | L84: =SUMIFS(comparison!$O:$O,comparison!$Q:$Q,$E84) -> 10 | M84: =IF(L84=0,0,SUMIFS(comparison!$A:$A,comparison!$Q:$Q,$E84)/L84) -> 2019-07-15 | N84: 1081 | O84: =SUMIFS(comparison!$P:$P,comparison!$Q:$Q,$E84) -> 6963.93 | P84: =IF(O84=0,0,SUMIFS(comparison!$B:$B,comparison!$Q:$Q,$E84)/O84) -> 2019-07-15 | Q84: 1081 | R84: =SUMIFS(comparison!$AB:$AB,comparison!$AE:$AE,$E84,comparison!$AG:$AG,"<>"&0) -> 20 | S84: =SUMIFS(comparison!$AC:$AC,comparison!$AE:$AE,$E84,comparison!$AJ:$AJ,"<>"&0) -> 71400 | T84: =SUMIFS(comparison!$U:$U,comparison!$AE:$AE,$E84,comparison!$AJ:$AJ,"<>"&0) -> 13927.86 | U84: 0.8049319328 | V84: =IF(R84=0,0,(SUMIFS(comparison!$AF:$AF,comparison!$AE:$AE,$E84,comparison!$AG:$AG,"<>"&0)-SUMIFS(comparison!$AG:$AG,comparison!$AE:$AE,$E84,comparison!$AG:$AG,"<>"&0))/R84) -> 453 | W84: =IF(S84=0,0,SUMIFS(comparison!$AI:$AI,comparison!$AE:$AE,$E84,comparison!$AJ:$AJ,"<>"&0)/S84)-IF(T84=0,0,SUMIFS(comparison!$AJ:$AJ,comparison!$AE:$AE,$E84,comparison!$AJ:$AJ,"<>"&0)/T84) -> 453 | X84: 0.609313385
D85: 76 | E85: =IF(SUMIFS(IN!$Q:$Q,IN!$S:$S,$D85,IN!$T:$T,1)=0,0,INDEX(IN!$C:$C,SUMIFS(IN!$Q:$Q,IN!$S:$S,$D85,IN!$T:$T,1))) -> товар-76 | H85: 30 | I85: 1081 | J85: 27420.51 | K85: 1081 | L85: =SUMIFS(comparison!$O:$O,comparison!$Q:$Q,$E85) -> 30 | M85: =IF(L85=0,0,SUMIFS(comparison!$A:$A,comparison!$Q:$Q,$E85)/L85) -> 2019-07-15 | N85: 1081 | O85: =SUMIFS(comparison!$P:$P,comparison!$Q:$Q,$E85) -> 27420.51 | P85: =IF(O85=0,0,SUMIFS(comparison!$B:$B,comparison!$Q:$Q,$E85)/O85) -> 2019-07-15 | Q85: 1081 | R85: =SUMIFS(comparison!$AB:$AB,comparison!$AE:$AE,$E85,comparison!$AG:$AG,"<>"&0) -> 0 | S85: =SUMIFS(comparison!$AC:$AC,comparison!$AE:$AE,$E85,comparison!$AJ:$AJ,"<>"&0) -> 0 | T85: =SUMIFS(comparison!$U:$U,comparison!$AE:$AE,$E85,comparison!$AJ:$AJ,"<>"&0) -> 0 | U85: 0 | V85: =IF(R85=0,0,(SUMIFS(comparison!$AF:$AF,comparison!$AE:$AE,$E85,comparison!$AG:$AG,"<>"&0)-SUMIFS(comparison!$AG:$AG,comparison!$AE:$AE,$E85,comparison!$AG:$AG,"<>"&0))/R85) -> 0 | W85: =IF(S85=0,0,SUMIFS(comparison!$AI:$AI,comparison!$AE:$AE,$E85,comparison!$AJ:$AJ,"<>"&0)/S85)-IF(T85=0,0,SUMIFS(comparison!$AJ:$AJ,comparison!$AE:$AE,$E85,comparison!$AJ:$AJ,"<>"&0)/T85) -> 0 | X85: 0
D86: 77 | E86: =IF(SUMIFS(IN!$Q:$Q,IN!$S:$S,$D86,IN!$T:$T,1)=0,0,INDEX(IN!$C:$C,SUMIFS(IN!$Q:$Q,IN!$S:$S,$D86,IN!$T:$T,1))) -> товар-77 | H86: 10 | I86: 366 | J86: 2700 | K86: 366 | L86: =SUMIFS(comparison!$O:$O,comparison!$Q:$Q,$E86) -> 0 | M86: =IF(L86=0,0,SUMIFS(comparison!$A:$A,comparison!$Q:$Q,$E86)/L86) -> 00:00:00 | N86: 0 | O86: =SUMIFS(comparison!$P:$P,comparison!$Q:$Q,$E86) -> 0 | P86: =IF(O86=0,0,SUMIFS(comparison!$B:$B,comparison!$Q:$Q,$E86)/O86) -> 00:00:00 | Q86: 0 | R86: =SUMIFS(comparison!$AB:$AB,comparison!$AE:$AE,$E86,comparison!$AG:$AG,"<>"&0) -> 10 | S86: =SUMIFS(comparison!$AC:$AC,comparison!$AE:$AE,$E86,comparison!$AJ:$AJ,"<>"&0) -> 2700 | T86: =SUMIFS(comparison!$U:$U,comparison!$AE:$AE,$E86,comparison!$AJ:$AJ,"<>"&0) -> 3 | U86: 0.9988888889 | V86: =IF(R86=0,0,(SUMIFS(comparison!$AF:$AF,comparison!$AE:$AE,$E86,comparison!$AG:$AG,"<>"&0)-SUMIFS(comparison!$AG:$AG,comparison!$AE:$AE,$E86,comparison!$AG:$AG,"<>"&0))/R86) -> 366 | W86: =IF(S86=0,0,SUMIFS(comparison!$AI:$AI,comparison!$AE:$AE,$E86,comparison!$AJ:$AJ,"<>"&0)/S86)-IF(T86=0,0,SUMIFS(comparison!$AJ:$AJ,comparison!$AE:$AE,$E86,comparison!$AJ:$AJ,"<>"&0)/T86) -> 366 | X86: 0.9951099153
D87: 78 | E87: =IF(SUMIFS(IN!$Q:$Q,IN!$S:$S,$D87,IN!$T:$T,1)=0,0,INDEX(IN!$C:$C,SUMIFS(IN!$Q:$Q,IN!$S:$S,$D87,IN!$T:$T,1))) -> товар-78 | H87: 60 | I87: 438 | J87: 401460.72 | K87: 280.6980176 | L87: =SUMIFS(comparison!$O:$O,comparison!$Q:$Q,$E87) -> 40 | M87: =IF(L87=0,0,SUMIFS(comparison!$A:$A,comparison!$Q:$Q,$E87)/L87) -> 2020-12-10 | N87: 567 | O87: =SUMIFS(comparison!$P:$P,comparison!$Q:$Q,$E87) -> 104460.72 | P87: =IF(O87=0,0,SUMIFS(comparison!$B:$B,comparison!$Q:$Q,$E87)/O87) -> 2020-12-10 | Q87: 567 | R87: =SUMIFS(comparison!$AB:$AB,comparison!$AE:$AE,$E87,comparison!$AG:$AG,"<>"&0) -> 20 | S87: =SUMIFS(comparison!$AC:$AC,comparison!$AE:$AE,$E87,comparison!$AJ:$AJ,"<>"&0) -> 297000 | T87: =SUMIFS(comparison!$U:$U,comparison!$AE:$AE,$E87,comparison!$AJ:$AJ,"<>"&0) -> 52230.36 | U87: 0.824140202 | V87: =IF(R87=0,0,(SUMIFS(comparison!$AF:$AF,comparison!$AE:$AE,$E87,comparison!$AG:$AG,"<>"&0)-SUMIFS(comparison!$AG:$AG,comparison!$AE:$AE,$E87,comparison!$AG:$AG,"<>"&0))/R87) -> 180 | W87: =IF(S87=0,0,SUMIFS(comparison!$AI:$AI,comparison!$AE:$AE,$E87,comparison!$AJ:$AJ,"<>"&0)/S87)-IF(T87=0,0,SUMIFS(comparison!$AJ:$AJ,comparison!$AE:$AE,$E87,comparison!$AJ:$AJ,"<>"&0)/T87) -> 180 | X87: 2.383514537
D88: 79 | E88: =IF(SUMIFS(IN!$Q:$Q,IN!$S:$S,$D88,IN!$T:$T,1)=0,0,INDEX(IN!$C:$C,SUMIFS(IN!$Q:$Q,IN!$S:$S,$D88,IN!$T:$T,1))) -> товар-79 | H88: 20 | I88: 345 | J88: 213750 | K88: 313 | L88: =SUMIFS(comparison!$O:$O,comparison!$Q:$Q,$E88) -> 0 | M88: =IF(L88=0,0,SUMIFS(comparison!$A:$A,comparison!$Q:$Q,$E88)/L88) -> 00:00:00 | N88: 0 | O88: =SUMIFS(comparison!$P:$P,comparison!$Q:$Q,$E88) -> 0 | P88: =IF(O88=0,0,SUMIFS(comparison!$B:$B,comparison!$Q:$Q,$E88)/O88) -> 00:00:00 | Q88: 0 | R88: =SUMIFS(comparison!$AB:$AB,comparison!$AE:$AE,$E88,comparison!$AG:$AG,"<>"&0) -> 20 | S88: =SUMIFS(comparison!$AC:$AC,comparison!$AE:$AE,$E88,comparison!$AJ:$AJ,"<>"&0) -> 213750 | T88: =SUMIFS(comparison!$U:$U,comparison!$AE:$AE,$E88,comparison!$AJ:$AJ,"<>"&0) -> 50076.51 | U88: 0.7657239298 | V88: =IF(R88=0,0,(SUMIFS(comparison!$AF:$AF,comparison!$AE:$AE,$E88,comparison!$AG:$AG,"<>"&0)-SUMIFS(comparison!$AG:$AG,comparison!$AE:$AE,$E88,comparison!$AG:$AG,"<>"&0))/R88) -> 345 | W88: =IF(S88=0,0,SUMIFS(comparison!$AI:$AI,comparison!$AE:$AE,$E88,comparison!$AJ:$AJ,"<>"&0)/S88)-IF(T88=0,0,SUMIFS(comparison!$AJ:$AJ,comparison!$AE:$AE,$E88,comparison!$AJ:$AJ,"<>"&0)/T88) -> 313 | X88: 0.9406406379
D89: 80 | E89: =IF(SUMIFS(IN!$Q:$Q,IN!$S:$S,$D89,IN!$T:$T,1)=0,0,INDEX(IN!$C:$C,SUMIFS(IN!$Q:$Q,IN!$S:$S,$D89,IN!$T:$T,1))) -> товар-80 | H89: 60 | I89: 461.1666667 | J89: 263953.04 | K89: 358.541897 | L89: =SUMIFS(comparison!$O:$O,comparison!$Q:$Q,$E89) -> 40 | M89: =IF(L89=0,0,SUMIFS(comparison!$A:$A,comparison!$Q:$Q,$E89)/L89) -> 2020-12-10 | N89: 567 | O89: =SUMIFS(comparison!$P:$P,comparison!$Q:$Q,$E89) -> 100153.04 | P89: =IF(O89=0,0,SUMIFS(comparison!$B:$B,comparison!$Q:$Q,$E89)/O89) -> 2020-12-10 | Q89: 567 | R89: =SUMIFS(comparison!$AB:$AB,comparison!$AE:$AE,$E89,comparison!$AG:$AG,"<>"&0) -> 20 | S89: =SUMIFS(comparison!$AC:$AC,comparison!$AE:$AE,$E89,comparison!$AJ:$AJ,"<>"&0) -> 163800 | T89: =SUMIFS(comparison!$U:$U,comparison!$AE:$AE,$E89,comparison!$AJ:$AJ,"<>"&0) -> 50076.52 | U89: 0.6942825397 | V89: =IF(R89=0,0,(SUMIFS(comparison!$AF:$AF,comparison!$AE:$AE,$E89,comparison!$AG:$AG,"<>"&0)-SUMIFS(comparison!$AG:$AG,comparison!$AE:$AE,$E89,comparison!$AG:$AG,"<>"&0))/R89) -> 249.5 | W89: =IF(S89=0,0,SUMIFS(comparison!$AI:$AI,comparison!$AE:$AE,$E89,comparison!$AJ:$AJ,"<>"&0)/S89)-IF(T89=0,0,SUMIFS(comparison!$AJ:$AJ,comparison!$AE:$AE,$E89,comparison!$AJ:$AJ,"<>"&0)/T89) -> 231.0833333 | X89: 1.299783568
D90: 81 | E90: =IF(SUMIFS(IN!$Q:$Q,IN!$S:$S,$D90,IN!$T:$T,1)=0,0,INDEX(IN!$C:$C,SUMIFS(IN!$Q:$Q,IN!$S:$S,$D90,IN!$T:$T,1))) -> товар-81 | H90: 30 | I90: 524.3333333 | J90: 149014.82 | K90: 500.5153376 | L90: =SUMIFS(comparison!$O:$O,comparison!$Q:$Q,$E90) -> 20 | M90: =IF(L90=0,0,SUMIFS(comparison!$A:$A,comparison!$Q:$Q,$E90)/L90) -> 2020-12-10 | N90: 567 | O90: =SUMIFS(comparison!$P:$P,comparison!$Q:$Q,$E90) -> 71614.82 | P90: =IF(O90=0,0,SUMIFS(comparison!$B:$B,comparison!$Q:$Q,$E90)/O90) -> 2020-12-10 | Q90: 567 | R90: =SUMIFS(comparison!$AB:$AB,comparison!$AE:$AE,$E90,comparison!$AG:$AG,"<>"&0) -> 10 | S90: =SUMIFS(comparison!$AC:$AC,comparison!$AE:$AE,$E90,comparison!$AJ:$AJ,"<>"&0) -> 77400 | T90: =SUMIFS(comparison!$U:$U,comparison!$AE:$AE,$E90,comparison!$AJ:$AJ,"<>"&0) -> 35807.41 | U90: 0.5373719638 | V90: =IF(R90=0,0,(SUMIFS(comparison!$AF:$AF,comparison!$AE:$AE,$E90,comparison!$AG:$AG,"<>"&0)-SUMIFS(comparison!$AG:$AG,comparison!$AE:$AE,$E90,comparison!$AG:$AG,"<>"&0))/R90) -> 439 | W90: =IF(S90=0,0,SUMIFS(comparison!$AI:$AI,comparison!$AE:$AE,$E90,comparison!$AJ:$AJ,"<>"&0)/S90)-IF(T90=0,0,SUMIFS(comparison!$AJ:$AJ,comparison!$AE:$AE,$E90,comparison!$AJ:$AJ,"<>"&0)/T90) -> 439 | X90: 0.4298634893
D91: 82 | E91: =IF(SUMIFS(IN!$Q:$Q,IN!$S:$S,$D91,IN!$T:$T,1)=0,0,INDEX(IN!$C:$C,SUMIFS(IN!$Q:$Q,IN!$S:$S,$D91,IN!$T:$T,1))) -> товар-82 | H91: 60 | I91: 495.6666667 | J91: 99588 | K91: 381.983733 | L91: =SUMIFS(comparison!$O:$O,comparison!$Q:$Q,$E91) -> 50 | M91: =IF(L91=0,0,SUMIFS(comparison!$A:$A,comparison!$Q:$Q,$E91)/L91) -> 2020-12-10 | N91: 567 | O91: =SUMIFS(comparison!$P:$P,comparison!$Q:$Q,$E91) -> 56538 | P91: =IF(O91=0,0,SUMIFS(comparison!$B:$B,comparison!$Q:$Q,$E91)/O91) -> 2020-12-10 | Q91: 567 | R91: =SUMIFS(comparison!$AB:$AB,comparison!$AE:$AE,$E91,comparison!$AG:$AG,"<>"&0) -> 10 | S91: =SUMIFS(comparison!$AC:$AC,comparison!$AE:$AE,$E91,comparison!$AJ:$AJ,"<>"&0) -> 43050 | T91: =SUMIFS(comparison!$U:$U,comparison!$AE:$AE,$E91,comparison!$AJ:$AJ,"<>"&0) -> 11307.6 | U91: 0.7373379791 | V91: =IF(R91=0,0,(SUMIFS(comparison!$AF:$AF,comparison!$AE:$AE,$E91,comparison!$AG:$AG,"<>"&0)-SUMIFS(comparison!$AG:$AG,comparison!$AE:$AE,$E91,comparison!$AG:$AG,"<>"&0))/R91) -> 139 | W91: =IF(S91=0,0,SUMIFS(comparison!$AI:$AI,comparison!$AE:$AE,$E91,comparison!$AJ:$AJ,"<>"&0)/S91)-IF(T91=0,0,SUMIFS(comparison!$AJ:$AJ,comparison!$AE:$AE,$E91,comparison!$AJ:$AJ,"<>"&0)/T91) -> 139 | X91: 3.264931366
D92: 83 | E92: =IF(SUMIFS(IN!$Q:$Q,IN!$S:$S,$D92,IN!$T:$T,1)=0,0,INDEX(IN!$C:$C,SUMIFS(IN!$Q:$Q,IN!$S:$S,$D92,IN!$T:$T,1))) -> товар-83 | H92: 30 | I92: 498 | J92: 35326.8 | K92: 448.3436258 | L92: =SUMIFS(comparison!$O:$O,comparison!$Q:$Q,$E92) -> 20 | M92: =IF(L92=0,0,SUMIFS(comparison!$A:$A,comparison!$Q:$Q,$E92)/L92) -> 2020-12-10 | N92: 567 | O92: =SUMIFS(comparison!$P:$P,comparison!$Q:$Q,$E92) -> 15076.8 | P92: =IF(O92=0,0,SUMIFS(comparison!$B:$B,comparison!$Q:$Q,$E92)/O92) -> 2020-12-10 | Q92: 567 | R92: =SUMIFS(comparison!$AB:$AB,comparison!$AE:$AE,$E92,comparison!$AG:$AG,"<>"&0) -> 10 | S92: =SUMIFS(comparison!$AC:$AC,comparison!$AE:$AE,$E92,comparison!$AJ:$AJ,"<>"&0) -> 20250 | T92: =SUMIFS(comparison!$U:$U,comparison!$AE:$AE,$E92,comparison!$AJ:$AJ,"<>"&0) -> 7538.4 | U92: 0.6277333333 | V92: =IF(R92=0,0,(SUMIFS(comparison!$AF:$AF,comparison!$AE:$AE,$E92,comparison!$AG:$AG,"<>"&0)-SUMIFS(comparison!$AG:$AG,comparison!$AE:$AE,$E92,comparison!$AG:$AG,"<>"&0))/R92) -> 360 | W92: =IF(S92=0,0,SUMIFS(comparison!$AI:$AI,comparison!$AE:$AE,$E92,comparison!$AJ:$AJ,"<>"&0)/S92)-IF(T92=0,0,SUMIFS(comparison!$AJ:$AJ,comparison!$AE:$AE,$E92,comparison!$AJ:$AJ,"<>"&0)/T92) -> 360 | X92: 0.6387847488
D93: 84 | E93: =IF(SUMIFS(IN!$Q:$Q,IN!$S:$S,$D93,IN!$T:$T,1)=0,0,INDEX(IN!$C:$C,SUMIFS(IN!$Q:$Q,IN!$S:$S,$D93,IN!$T:$T,1))) -> товар-84 | H93: 10 | I93: 567 | J93: 7538.4 | K93: 567 | L93: =SUMIFS(comparison!$O:$O,comparison!$Q:$Q,$E93) -> 10 | M93: =IF(L93=0,0,SUMIFS(comparison!$A:$A,comparison!$Q:$Q,$E93)/L93) -> 2020-12-10 | N93: 567 | O93: =SUMIFS(comparison!$P:$P,comparison!$Q:$Q,$E93) -> 7538.4 | P93: =IF(O93=0,0,SUMIFS(comparison!$B:$B,comparison!$Q:$Q,$E93)/O93) -> 2020-12-10 | Q93: 567 | R93: =SUMIFS(comparison!$AB:$AB,comparison!$AE:$AE,$E93,comparison!$AG:$AG,"<>"&0) -> 0 | S93: =SUMIFS(comparison!$AC:$AC,comparison!$AE:$AE,$E93,comparison!$AJ:$AJ,"<>"&0) -> 0 | T93: =SUMIFS(comparison!$U:$U,comparison!$AE:$AE,$E93,comparison!$AJ:$AJ,"<>"&0) -> 0 | U93: 0 | V93: =IF(R93=0,0,(SUMIFS(comparison!$AF:$AF,comparison!$AE:$AE,$E93,comparison!$AG:$AG,"<>"&0)-SUMIFS(comparison!$AG:$AG,comparison!$AE:$AE,$E93,comparison!$AG:$AG,"<>"&0))/R93) -> 0 | W93: =IF(S93=0,0,SUMIFS(comparison!$AI:$AI,comparison!$AE:$AE,$E93,comparison!$AJ:$AJ,"<>"&0)/S93)-IF(T93=0,0,SUMIFS(comparison!$AJ:$AJ,comparison!$AE:$AE,$E93,comparison!$AJ:$AJ,"<>"&0)/T93) -> 0 | X93: 0
D94: 85 | E94: =IF(SUMIFS(IN!$Q:$Q,IN!$S:$S,$D94,IN!$T:$T,1)=0,0,INDEX(IN!$C:$C,SUMIFS(IN!$Q:$Q,IN!$S:$S,$D94,IN!$T:$T,1))) -> товар-85 | H94: 20 | I94: 567 | J94: 7538.4 | K94: 567 | L94: =SUMIFS(comparison!$O:$O,comparison!$Q:$Q,$E94) -> 20 | M94: =IF(L94=0,0,SUMIFS(comparison!$A:$A,comparison!$Q:$Q,$E94)/L94) -> 2020-12-10 | N94: 567 | O94: =SUMIFS(comparison!$P:$P,comparison!$Q:$Q,$E94) -> 7538.4 | P94: =IF(O94=0,0,SUMIFS(comparison!$B:$B,comparison!$Q:$Q,$E94)/O94) -> 2020-12-10 | Q94: 567 | R94: =SUMIFS(comparison!$AB:$AB,comparison!$AE:$AE,$E94,comparison!$AG:$AG,"<>"&0) -> 0 | S94: =SUMIFS(comparison!$AC:$AC,comparison!$AE:$AE,$E94,comparison!$AJ:$AJ,"<>"&0) -> 0 | T94: =SUMIFS(comparison!$U:$U,comparison!$AE:$AE,$E94,comparison!$AJ:$AJ,"<>"&0) -> 0 | U94: 0 | V94: =IF(R94=0,0,(SUMIFS(comparison!$AF:$AF,comparison!$AE:$AE,$E94,comparison!$AG:$AG,"<>"&0)-SUMIFS(comparison!$AG:$AG,comparison!$AE:$AE,$E94,comparison!$AG:$AG,"<>"&0))/R94) -> 0 | W94: =IF(S94=0,0,SUMIFS(comparison!$AI:$AI,comparison!$AE:$AE,$E94,comparison!$AJ:$AJ,"<>"&0)/S94)-IF(T94=0,0,SUMIFS(comparison!$AJ:$AJ,comparison!$AE:$AE,$E94,comparison!$AJ:$AJ,"<>"&0)/T94) -> 0 | X94: 0
D95: 86 | E95: =IF(SUMIFS(IN!$Q:$Q,IN!$S:$S,$D95,IN!$T:$T,1)=0,0,INDEX(IN!$C:$C,SUMIFS(IN!$Q:$Q,IN!$S:$S,$D95,IN!$T:$T,1))) -> товар-86 | H95: 10 | I95: 567 | J95: 16961.4 | K95: 567 | L95: =SUMIFS(comparison!$O:$O,comparison!$Q:$Q,$E95) -> 10 | M95: =IF(L95=0,0,SUMIFS(comparison!$A:$A,comparison!$Q:$Q,$E95)/L95) -> 2020-12-10 | N95: 567 | O95: =SUMIFS(comparison!$P:$P,comparison!$Q:$Q,$E95) -> 16961.4 | P95: =IF(O95=0,0,SUMIFS(comparison!$B:$B,comparison!$Q:$Q,$E95)/O95) -> 2020-12-10 | Q95: 567 | R95: =SUMIFS(comparison!$AB:$AB,comparison!$AE:$AE,$E95,comparison!$AG:$AG,"<>"&0) -> 0 | S95: =SUMIFS(comparison!$AC:$AC,comparison!$AE:$AE,$E95,comparison!$AJ:$AJ,"<>"&0) -> 0 | T95: =SUMIFS(comparison!$U:$U,comparison!$AE:$AE,$E95,comparison!$AJ:$AJ,"<>"&0) -> 0 | U95: 0 | V95: =IF(R95=0,0,(SUMIFS(comparison!$AF:$AF,comparison!$AE:$AE,$E95,comparison!$AG:$AG,"<>"&0)-SUMIFS(comparison!$AG:$AG,comparison!$AE:$AE,$E95,comparison!$AG:$AG,"<>"&0))/R95) -> 0 | W95: =IF(S95=0,0,SUMIFS(comparison!$AI:$AI,comparison!$AE:$AE,$E95,comparison!$AJ:$AJ,"<>"&0)/S95)-IF(T95=0,0,SUMIFS(comparison!$AJ:$AJ,comparison!$AE:$AE,$E95,comparison!$AJ:$AJ,"<>"&0)/T95) -> 0 | X95: 0
D96: 87 | E96: =IF(SUMIFS(IN!$Q:$Q,IN!$S:$S,$D96,IN!$T:$T,1)=0,0,INDEX(IN!$C:$C,SUMIFS(IN!$Q:$Q,IN!$S:$S,$D96,IN!$T:$T,1))) -> товар-87 | H96: 100 | I96: 369.6 | J96: 991560.36 | K96: 308.1965874 | L96: =SUMIFS(comparison!$O:$O,comparison!$Q:$Q,$E96) -> 20 | M96: =IF(L96=0,0,SUMIFS(comparison!$A:$A,comparison!$Q:$Q,$E96)/L96) -> 2020-12-10 | N96: 567 | O96: =SUMIFS(comparison!$P:$P,comparison!$Q:$Q,$E96) -> 52230.36 | P96: =IF(O96=0,0,SUMIFS(comparison!$B:$B,comparison!$Q:$Q,$E96)/O96) -> 2020-12-10 | Q96: 567 | R96: =SUMIFS(comparison!$AB:$AB,comparison!$AE:$AE,$E96,comparison!$AG:$AG,"<>"&0) -> 80 | S96: =SUMIFS(comparison!$AC:$AC,comparison!$AE:$AE,$E96,comparison!$AJ:$AJ,"<>"&0) -> 939330 | T96: =SUMIFS(comparison!$U:$U,comparison!$AE:$AE,$E96,comparison!$AJ:$AJ,"<>"&0) -> 208921.44 | U96: 0.7775846188 | V96: =IF(R96=0,0,(SUMIFS(comparison!$AF:$AF,comparison!$AE:$AE,$E96,comparison!$AG:$AG,"<>"&0)-SUMIFS(comparison!$AG:$AG,comparison!$AE:$AE,$E96,comparison!$AG:$AG,"<>"&0))/R96) -> 320.25 | W96: =IF(S96=0,0,SUMIFS(comparison!$AI:$AI,comparison!$AE:$AE,$E96,comparison!$AJ:$AJ,"<>"&0)/S96)-IF(T96=0,0,SUMIFS(comparison!$AJ:$AJ,comparison!$AE:$AE,$E96,comparison!$AJ:$AJ,"<>"&0)/T96) -> 293.8061224 | X96: 1.043469307
D97: 88 | E97: =IF(SUMIFS(IN!$Q:$Q,IN!$S:$S,$D97,IN!$T:$T,1)=0,0,INDEX(IN!$C:$C,SUMIFS(IN!$Q:$Q,IN!$S:$S,$D97,IN!$T:$T,1))) -> товар-88 | H97: 40 | I97: 293.25 | J97: 477447 | K97: 346.7569322 | L97: =SUMIFS(comparison!$O:$O,comparison!$Q:$Q,$E97) -> 0 | M97: =IF(L97=0,0,SUMIFS(comparison!$A:$A,comparison!$Q:$Q,$E97)/L97) -> 00:00:00 | N97: 0 | O97: =SUMIFS(comparison!$P:$P,comparison!$Q:$Q,$E97) -> 0 | P97: =IF(O97=0,0,SUMIFS(comparison!$B:$B,comparison!$Q:$Q,$E97)/O97) -> 00:00:00 | Q97: 0 | R97: =SUMIFS(comparison!$AB:$AB,comparison!$AE:$AE,$E97,comparison!$AG:$AG,"<>"&0) -> 40 | S97: =SUMIFS(comparison!$AC:$AC,comparison!$AE:$AE,$E97,comparison!$AJ:$AJ,"<>"&0) -> 477447 | T97: =SUMIFS(comparison!$U:$U,comparison!$AE:$AE,$E97,comparison!$AJ:$AJ,"<>"&0) -> 100153.05 | U97: 0.7902321095 | V97: =IF(R97=0,0,(SUMIFS(comparison!$AF:$AF,comparison!$AE:$AE,$E97,comparison!$AG:$AG,"<>"&0)-SUMIFS(comparison!$AG:$AG,comparison!$AE:$AE,$E97,comparison!$AG:$AG,"<>"&0))/R97) -> 293.25 | W97: =IF(S97=0,0,SUMIFS(comparison!$AI:$AI,comparison!$AE:$AE,$E97,comparison!$AJ:$AJ,"<>"&0)/S97)-IF(T97=0,0,SUMIFS(comparison!$AJ:$AJ,comparison!$AE:$AE,$E97,comparison!$AJ:$AJ,"<>"&0)/T97) -> 346.7569322 | X97: 0.8459291934
D98: 89 | E98: =IF(SUMIFS(IN!$Q:$Q,IN!$S:$S,$D98,IN!$T:$T,1)=0,0,INDEX(IN!$C:$C,SUMIFS(IN!$Q:$Q,IN!$S:$S,$D98,IN!$T:$T,1))) -> товар-89 | H98: 100 | I98: 372.2 | J98: 715161.783 | K98: 286.972696 | L98: =SUMIFS(comparison!$O:$O,comparison!$Q:$Q,$E98) -> 30 | M98: =IF(L98=0,0,SUMIFS(comparison!$A:$A,comparison!$Q:$Q,$E98)/L98) -> 2020-12-10 | N98: 567 | O98: =SUMIFS(comparison!$P:$P,comparison!$Q:$Q,$E98) -> 75114.783 | P98: =IF(O98=0,0,SUMIFS(comparison!$B:$B,comparison!$Q:$Q,$E98)/O98) -> 2020-12-10 | Q98: 567 | R98: =SUMIFS(comparison!$AB:$AB,comparison!$AE:$AE,$E98,comparison!$AG:$AG,"<>"&0) -> 70 | S98: =SUMIFS(comparison!$AC:$AC,comparison!$AE:$AE,$E98,comparison!$AJ:$AJ,"<>"&0) -> 640047 | T98: =SUMIFS(comparison!$U:$U,comparison!$AE:$AE,$E98,comparison!$AJ:$AJ,"<>"&0) -> 175267.827 | U98: 0.7261641301 | V98: =IF(R98=0,0,(SUMIFS(comparison!$AF:$AF,comparison!$AE:$AE,$E98,comparison!$AG:$AG,"<>"&0)-SUMIFS(comparison!$AG:$AG,comparison!$AE:$AE,$E98,comparison!$AG:$AG,"<>"&0))/R98) -> 288.7142857 | W98: =IF(S98=0,0,SUMIFS(comparison!$AI:$AI,comparison!$AE:$AE,$E98,comparison!$AJ:$AJ,"<>"&0)/S98)-IF(T98=0,0,SUMIFS(comparison!$AJ:$AJ,comparison!$AE:$AE,$E98,comparison!$AJ:$AJ,"<>"&0)/T98) -> 254.1091873 | X98: 1.190495863
D99: 90 | E99: =IF(SUMIFS(IN!$Q:$Q,IN!$S:$S,$D99,IN!$T:$T,1)=0,0,INDEX(IN!$C:$C,SUMIFS(IN!$Q:$Q,IN!$S:$S,$D99,IN!$T:$T,1))) -> товар-90 | H99: 50 | I99: 413.6 | J99: 584389.824 | K99: 314.1940066 | L99: =SUMIFS(comparison!$O:$O,comparison!$Q:$Q,$E99) -> 20 | M99: =IF(L99=0,0,SUMIFS(comparison!$A:$A,comparison!$Q:$Q,$E99)/L99) -> 2020-12-10 | N99: 567 | O99: =SUMIFS(comparison!$P:$P,comparison!$Q:$Q,$E99) -> 71614.824 | P99: =IF(O99=0,0,SUMIFS(comparison!$B:$B,comparison!$Q:$Q,$E99)/O99) -> 2020-12-10 | Q99: 567 | R99: =SUMIFS(comparison!$AB:$AB,comparison!$AE:$AE,$E99,comparison!$AG:$AG,"<>"&0) -> 30 | S99: =SUMIFS(comparison!$AC:$AC,comparison!$AE:$AE,$E99,comparison!$AJ:$AJ,"<>"&0) -> 512775 | T99: =SUMIFS(comparison!$U:$U,comparison!$AE:$AE,$E99,comparison!$AJ:$AJ,"<>"&0) -> 107422.236 | U99: 0.7905080474 | V99: =IF(R99=0,0,(SUMIFS(comparison!$AF:$AF,comparison!$AE:$AE,$E99,comparison!$AG:$AG,"<>"&0)-SUMIFS(comparison!$AG:$AG,comparison!$AE:$AE,$E99,comparison!$AG:$AG,"<>"&0))/R99) -> 311.3333333 | W99: =IF(S99=0,0,SUMIFS(comparison!$AI:$AI,comparison!$AE:$AE,$E99,comparison!$AJ:$AJ,"<>"&0)/S99)-IF(T99=0,0,SUMIFS(comparison!$AJ:$AJ,comparison!$AE:$AE,$E99,comparison!$AJ:$AJ,"<>"&0)/T99) -> 278.8867925 | X99: 1.143329647
D100: 91 | E100: =IF(SUMIFS(IN!$Q:$Q,IN!$S:$S,$D100,IN!$T:$T,1)=0,0,INDEX(IN!$C:$C,SUMIFS(IN!$Q:$Q,IN!$S:$S,$D100,IN!$T:$T,1))) -> товар-91 | H100: 100 | I100: 501 | J100: 198058.221 | K100: 381.9538817 | L100: =SUMIFS(comparison!$O:$O,comparison!$Q:$Q,$E100) -> 70 | M100: =IF(L100=0,0,SUMIFS(comparison!$A:$A,comparison!$Q:$Q,$E100)/L100) -> 2020-12-10 | N100: 567 | O100: =SUMIFS(comparison!$P:$P,comparison!$Q:$Q,$E100) -> 79153.221 | P100: =IF(O100=0,0,SUMIFS(comparison!$B:$B,comparison!$Q:$Q,$E100)/O100) -> 2020-12-10 | Q100: 567 | R100: =SUMIFS(comparison!$AB:$AB,comparison!$AE:$AE,$E100,comparison!$AG:$AG,"<>"&0) -> 30 | S100: =SUMIFS(comparison!$AC:$AC,comparison!$AE:$AE,$E100,comparison!$AJ:$AJ,"<>"&0) -> 118905 | T100: =SUMIFS(comparison!$U:$U,comparison!$AE:$AE,$E100,comparison!$AJ:$AJ,"<>"&0) -> 33922.809 | U100: 0.7147066229 | V100: =IF(R100=0,0,(SUMIFS(comparison!$AF:$AF,comparison!$AE:$AE,$E100,comparison!$AG:$AG,"<>"&0)-SUMIFS(comparison!$AG:$AG,comparison!$AE:$AE,$E100,comparison!$AG:$AG,"<>"&0))/R100) -> 347 | W100: =IF(S100=0,0,SUMIFS(comparison!$AI:$AI,comparison!$AE:$AE,$E100,comparison!$AJ:$AJ,"<>"&0)/S100)-IF(T100=0,0,SUMIFS(comparison!$AJ:$AJ,comparison!$AE:$AE,$E100,comparison!$AJ:$AJ,"<>"&0)/T100) -> 258.7715403 | X100: 1.1395736
D101: 92 | E101: =IF(SUMIFS(IN!$Q:$Q,IN!$S:$S,$D101,IN!$T:$T,1)=0,0,INDEX(IN!$C:$C,SUMIFS(IN!$Q:$Q,IN!$S:$S,$D101,IN!$T:$T,1))) -> товар-92 | H101: 30 | I101: 273.3333333 | J101: 99645 | K101: 252.4908927 | L101: =SUMIFS(comparison!$O:$O,comparison!$Q:$Q,$E101) -> 0 | M101: =IF(L101=0,0,SUMIFS(comparison!$A:$A,comparison!$Q:$Q,$E101)/L101) -> 00:00:00 | N101: 0 | O101: =SUMIFS(comparison!$P:$P,comparison!$Q:$Q,$E101) -> 0 | P101: =IF(O101=0,0,SUMIFS(comparison!$B:$B,comparison!$Q:$Q,$E101)/O101) -> 00:00:00 | Q101: 0 | R101: =SUMIFS(comparison!$AB:$AB,comparison!$AE:$AE,$E101,comparison!$AG:$AG,"<>"&0) -> 30 | S101: =SUMIFS(comparison!$AC:$AC,comparison!$AE:$AE,$E101,comparison!$AJ:$AJ,"<>"&0) -> 99645 | T101: =SUMIFS(comparison!$U:$U,comparison!$AE:$AE,$E101,comparison!$AJ:$AJ,"<>"&0) -> 22615.2 | U101: 0.7730423002 | V101: =IF(R101=0,0,(SUMIFS(comparison!$AF:$AF,comparison!$AE:$AE,$E101,comparison!$AG:$AG,"<>"&0)-SUMIFS(comparison!$AG:$AG,comparison!$AE:$AE,$E101,comparison!$AG:$AG,"<>"&0))/R101) -> 273.3333333 | W101: =IF(S101=0,0,SUMIFS(comparison!$AI:$AI,comparison!$AE:$AE,$E101,comparison!$AJ:$AJ,"<>"&0)/S101)-IF(T101=0,0,SUMIFS(comparison!$AJ:$AJ,comparison!$AE:$AE,$E101,comparison!$AJ:$AJ,"<>"&0)/T101) -> 252.4908927 | X101: 1.288482019
D102: 93 | E102: =IF(SUMIFS(IN!$Q:$Q,IN!$S:$S,$D102,IN!$T:$T,1)=0,0,INDEX(IN!$C:$C,SUMIFS(IN!$Q:$Q,IN!$S:$S,$D102,IN!$T:$T,1))) -> товар-93 | H102: 10 | I102: 567 | J102: 7538.4 | K102: 567 | L102: =SUMIFS(comparison!$O:$O,comparison!$Q:$Q,$E102) -> 10 | M102: =IF(L102=0,0,SUMIFS(comparison!$A:$A,comparison!$Q:$Q,$E102)/L102) -> 2020-12-10 | N102: 567 | O102: =SUMIFS(comparison!$P:$P,comparison!$Q:$Q,$E102) -> 7538.4 | P102: =IF(O102=0,0,SUMIFS(comparison!$B:$B,comparison!$Q:$Q,$E102)/O102) -> 2020-12-10 | Q102: 567 | R102: =SUMIFS(comparison!$AB:$AB,comparison!$AE:$AE,$E102,comparison!$AG:$AG,"<>"&0) -> 0 | S102: =SUMIFS(comparison!$AC:$AC,comparison!$AE:$AE,$E102,comparison!$AJ:$AJ,"<>"&0) -> 0 | T102: =SUMIFS(comparison!$U:$U,comparison!$AE:$AE,$E102,comparison!$AJ:$AJ,"<>"&0) -> 0 | U102: 0 | V102: =IF(R102=0,0,(SUMIFS(comparison!$AF:$AF,comparison!$AE:$AE,$E102,comparison!$AG:$AG,"<>"&0)-SUMIFS(comparison!$AG:$AG,comparison!$AE:$AE,$E102,comparison!$AG:$AG,"<>"&0))/R102) -> 0 | W102: =IF(S102=0,0,SUMIFS(comparison!$AI:$AI,comparison!$AE:$AE,$E102,comparison!$AJ:$AJ,"<>"&0)/S102)-IF(T102=0,0,SUMIFS(comparison!$AJ:$AJ,comparison!$AE:$AE,$E102,comparison!$AJ:$AJ,"<>"&0)/T102) -> 0 | X102: 0
D103: 94 | E103: =IF(SUMIFS(IN!$Q:$Q,IN!$S:$S,$D103,IN!$T:$T,1)=0,0,INDEX(IN!$C:$C,SUMIFS(IN!$Q:$Q,IN!$S:$S,$D103,IN!$T:$T,1))) -> товар-94 | H103: 20 | I103: 290.5 | J103: 27769.2 | K103: 89.06041226 | L103: =SUMIFS(comparison!$O:$O,comparison!$Q:$Q,$E103) -> 10 | M103: =IF(L103=0,0,SUMIFS(comparison!$A:$A,comparison!$Q:$Q,$E103)/L103) -> 2020-12-10 | N103: 567 | O103: =SUMIFS(comparison!$P:$P,comparison!$Q:$Q,$E103) -> 3769.2 | P103: =IF(O103=0,0,SUMIFS(comparison!$B:$B,comparison!$Q:$Q,$E103)/O103) -> 2020-12-10 | Q103: 567 | R103: =SUMIFS(comparison!$AB:$AB,comparison!$AE:$AE,$E103,comparison!$AG:$AG,"<>"&0) -> 10 | S103: =SUMIFS(comparison!$AC:$AC,comparison!$AE:$AE,$E103,comparison!$AJ:$AJ,"<>"&0) -> 24000 | T103: =SUMIFS(comparison!$U:$U,comparison!$AE:$AE,$E103,comparison!$AJ:$AJ,"<>"&0) -> 3769.2 | U103: 0.84295 | V103: =IF(R103=0,0,(SUMIFS(comparison!$AF:$AF,comparison!$AE:$AE,$E103,comparison!$AG:$AG,"<>"&0)-SUMIFS(comparison!$AG:$AG,comparison!$AE:$AE,$E103,comparison!$AG:$AG,"<>"&0))/R103) -> 14 | W103: =IF(S103=0,0,SUMIFS(comparison!$AI:$AI,comparison!$AE:$AE,$E103,comparison!$AJ:$AJ,"<>"&0)/S103)-IF(T103=0,0,SUMIFS(comparison!$AJ:$AJ,comparison!$AE:$AE,$E103,comparison!$AJ:$AJ,"<>"&0)/T103) -> 14 | X103: 8362142.697
D104: 95 | E104: =IF(SUMIFS(IN!$Q:$Q,IN!$S:$S,$D104,IN!$T:$T,1)=0,0,INDEX(IN!$C:$C,SUMIFS(IN!$Q:$Q,IN!$S:$S,$D104,IN!$T:$T,1))) -> товар-95 | H104: 10 | I104: 567 | J104: 16961.4 | K104: 567 | L104: =SUMIFS(comparison!$O:$O,comparison!$Q:$Q,$E104) -> 10 | M104: =IF(L104=0,0,SUMIFS(comparison!$A:$A,comparison!$Q:$Q,$E104)/L104) -> 2020-12-10 | N104: 567 | O104: =SUMIFS(comparison!$P:$P,comparison!$Q:$Q,$E104) -> 16961.4 | P104: =IF(O104=0,0,SUMIFS(comparison!$B:$B,comparison!$Q:$Q,$E104)/O104) -> 2020-12-10 | Q104: 567 | R104: =SUMIFS(comparison!$AB:$AB,comparison!$AE:$AE,$E104,comparison!$AG:$AG,"<>"&0) -> 0 | S104: =SUMIFS(comparison!$AC:$AC,comparison!$AE:$AE,$E104,comparison!$AJ:$AJ,"<>"&0) -> 0 | T104: =SUMIFS(comparison!$U:$U,comparison!$AE:$AE,$E104,comparison!$AJ:$AJ,"<>"&0) -> 0 | U104: 0 | V104: =IF(R104=0,0,(SUMIFS(comparison!$AF:$AF,comparison!$AE:$AE,$E104,comparison!$AG:$AG,"<>"&0)-SUMIFS(comparison!$AG:$AG,comparison!$AE:$AE,$E104,comparison!$AG:$AG,"<>"&0))/R104) -> 0 | W104: =IF(S104=0,0,SUMIFS(comparison!$AI:$AI,comparison!$AE:$AE,$E104,comparison!$AJ:$AJ,"<>"&0)/S104)-IF(T104=0,0,SUMIFS(comparison!$AJ:$AJ,comparison!$AE:$AE,$E104,comparison!$AJ:$AJ,"<>"&0)/T104) -> 0 | X104: 0
D105: 96 | E105: =IF(SUMIFS(IN!$Q:$Q,IN!$S:$S,$D105,IN!$T:$T,1)=0,0,INDEX(IN!$C:$C,SUMIFS(IN!$Q:$Q,IN!$S:$S,$D105,IN!$T:$T,1))) -> товар-96 | H105: 100 | I105: 556.4 | J105: 84045.6 | K105: 546.5682344 | L105: =SUMIFS(comparison!$O:$O,comparison!$Q:$Q,$E105) -> 90 | M105: =IF(L105=0,0,SUMIFS(comparison!$A:$A,comparison!$Q:$Q,$E105)/L105) -> 2020-12-10 | N105: 567 | O105: =SUMIFS(comparison!$P:$P,comparison!$Q:$Q,$E105) -> 67845.6 | P105: =IF(O105=0,0,SUMIFS(comparison!$B:$B,comparison!$Q:$Q,$E105)/O105) -> 2020-12-10 | Q105: 567 | R105: =SUMIFS(comparison!$AB:$AB,comparison!$AE:$AE,$E105,comparison!$AG:$AG,"<>"&0) -> 10 | S105: =SUMIFS(comparison!$AC:$AC,comparison!$AE:$AE,$E105,comparison!$AJ:$AJ,"<>"&0) -> 16200 | T105: =SUMIFS(comparison!$U:$U,comparison!$AE:$AE,$E105,comparison!$AJ:$AJ,"<>"&0) -> 7538.4 | U105: 0.5346666667 | V105: =IF(R105=0,0,(SUMIFS(comparison!$AF:$AF,comparison!$AE:$AE,$E105,comparison!$AG:$AG,"<>"&0)-SUMIFS(comparison!$AG:$AG,comparison!$AE:$AE,$E105,comparison!$AG:$AG,"<>"&0))/R105) -> 461 | W105: =IF(S105=0,0,SUMIFS(comparison!$AI:$AI,comparison!$AE:$AE,$E105,comparison!$AJ:$AJ,"<>"&0)/S105)-IF(T105=0,0,SUMIFS(comparison!$AJ:$AJ,comparison!$AE:$AE,$E105,comparison!$AJ:$AJ,"<>"&0)/T105) -> 461 | X105: 0.4037117769
D106: 97 | E106: =IF(SUMIFS(IN!$Q:$Q,IN!$S:$S,$D106,IN!$T:$T,1)=0,0,INDEX(IN!$C:$C,SUMIFS(IN!$Q:$Q,IN!$S:$S,$D106,IN!$T:$T,1))) -> товар-97 | H106: 20 | I106: 567 | J106: 6461.49 | K106: 567 | L106: =SUMIFS(comparison!$O:$O,comparison!$Q:$Q,$E106) -> 20 | M106: =IF(L106=0,0,SUMIFS(comparison!$A:$A,comparison!$Q:$Q,$E106)/L106) -> 2020-12-10 | N106: 567 | O106: =SUMIFS(comparison!$P:$P,comparison!$Q:$Q,$E106) -> 6461.49 | P106: =IF(O106=0,0,SUMIFS(comparison!$B:$B,comparison!$Q:$Q,$E106)/O106) -> 2020-12-10 | Q106: 567 | R106: =SUMIFS(comparison!$AB:$AB,comparison!$AE:$AE,$E106,comparison!$AG:$AG,"<>"&0) -> 0 | S106: =SUMIFS(comparison!$AC:$AC,comparison!$AE:$AE,$E106,comparison!$AJ:$AJ,"<>"&0) -> 0 | T106: =SUMIFS(comparison!$U:$U,comparison!$AE:$AE,$E106,comparison!$AJ:$AJ,"<>"&0) -> 0 | U106: 0 | V106: =IF(R106=0,0,(SUMIFS(comparison!$AF:$AF,comparison!$AE:$AE,$E106,comparison!$AG:$AG,"<>"&0)-SUMIFS(comparison!$AG:$AG,comparison!$AE:$AE,$E106,comparison!$AG:$AG,"<>"&0))/R106) -> 0 | W106: =IF(S106=0,0,SUMIFS(comparison!$AI:$AI,comparison!$AE:$AE,$E106,comparison!$AJ:$AJ,"<>"&0)/S106)-IF(T106=0,0,SUMIFS(comparison!$AJ:$AJ,comparison!$AE:$AE,$E106,comparison!$AJ:$AJ,"<>"&0)/T106) -> 0 | X106: 0
D107: 98 | E107: =IF(SUMIFS(IN!$Q:$Q,IN!$S:$S,$D107,IN!$T:$T,1)=0,0,INDEX(IN!$C:$C,SUMIFS(IN!$Q:$Q,IN!$S:$S,$D107,IN!$T:$T,1))) -> товар-98 | H107: 50 | I107: 502.8 | J107: 61909.47 | K107: 465.5692334 | L107: =SUMIFS(comparison!$O:$O,comparison!$Q:$Q,$E107) -> 30 | M107: =IF(L107=0,0,SUMIFS(comparison!$A:$A,comparison!$Q:$Q,$E107)/L107) -> 2020-12-10 | N107: 567 | O107: =SUMIFS(comparison!$P:$P,comparison!$Q:$Q,$E107) -> 19384.47 | P107: =IF(O107=0,0,SUMIFS(comparison!$B:$B,comparison!$Q:$Q,$E107)/O107) -> 2020-12-10 | Q107: 567 | R107: =SUMIFS(comparison!$AB:$AB,comparison!$AE:$AE,$E107,comparison!$AG:$AG,"<>"&0) -> 20 | S107: =SUMIFS(comparison!$AC:$AC,comparison!$AE:$AE,$E107,comparison!$AJ:$AJ,"<>"&0) -> 42525 | T107: =SUMIFS(comparison!$U:$U,comparison!$AE:$AE,$E107,comparison!$AJ:$AJ,"<>"&0) -> 12922.98 | U107: 0.696108642 | V107: =IF(R107=0,0,(SUMIFS(comparison!$AF:$AF,comparison!$AE:$AE,$E107,comparison!$AG:$AG,"<>"&0)-SUMIFS(comparison!$AG:$AG,comparison!$AE:$AE,$E107,comparison!$AG:$AG,"<>"&0))/R107) -> 406.5 | W107: =IF(S107=0,0,SUMIFS(comparison!$AI:$AI,comparison!$AE:$AE,$E107,comparison!$AJ:$AJ,"<>"&0)/S107)-IF(T107=0,0,SUMIFS(comparison!$AJ:$AJ,comparison!$AE:$AE,$E107,comparison!$AJ:$AJ,"<>"&0)/T107) -> 419.3333333 | X107: 0.5838833151
D108: 99 | E108: =IF(SUMIFS(IN!$Q:$Q,IN!$S:$S,$D108,IN!$T:$T,1)=0,0,INDEX(IN!$C:$C,SUMIFS(IN!$Q:$Q,IN!$S:$S,$D108,IN!$T:$T,1))) -> товар-99 | H108: 30 | I108: 504.3333333 | J108: 32821.8 | K108: 465.3584081 | L108: =SUMIFS(comparison!$O:$O,comparison!$Q:$Q,$E108) -> 20 | M108: =IF(L108=0,0,SUMIFS(comparison!$A:$A,comparison!$Q:$Q,$E108)/L108) -> 2020-12-10 | N108: 567 | O108: =SUMIFS(comparison!$P:$P,comparison!$Q:$Q,$E108) -> 15076.8 | P108: =IF(O108=0,0,SUMIFS(comparison!$B:$B,comparison!$Q:$Q,$E108)/O108) -> 2020-12-10 | Q108: 567 | R108: =SUMIFS(comparison!$AB:$AB,comparison!$AE:$AE,$E108,comparison!$AG:$AG,"<>"&0) -> 10 | S108: =SUMIFS(comparison!$AC:$AC,comparison!$AE:$AE,$E108,comparison!$AJ:$AJ,"<>"&0) -> 17745 | T108: =SUMIFS(comparison!$U:$U,comparison!$AE:$AE,$E108,comparison!$AJ:$AJ,"<>"&0) -> 7538.4 | U108: 0.5751817413 | V108: =IF(R108=0,0,(SUMIFS(comparison!$AF:$AF,comparison!$AE:$AE,$E108,comparison!$AG:$AG,"<>"&0)-SUMIFS(comparison!$AG:$AG,comparison!$AE:$AE,$E108,comparison!$AG:$AG,"<>"&0))/R108) -> 379 | W108: =IF(S108=0,0,SUMIFS(comparison!$AI:$AI,comparison!$AE:$AE,$E108,comparison!$AJ:$AJ,"<>"&0)/S108)-IF(T108=0,0,SUMIFS(comparison!$AJ:$AJ,comparison!$AE:$AE,$E108,comparison!$AJ:$AJ,"<>"&0)/T108) -> 379 | X108: 0.5489643039
D109: 100 | E109: =IF(SUMIFS(IN!$Q:$Q,IN!$S:$S,$D109,IN!$T:$T,1)=0,0,INDEX(IN!$C:$C,SUMIFS(IN!$Q:$Q,IN!$S:$S,$D109,IN!$T:$T,1))) -> товар-100 | H109: 250 | I109: 520.2 | J109: 531347.208 | K109: 410.2731917 | L109: =SUMIFS(comparison!$O:$O,comparison!$Q:$Q,$E109) -> 200 | M109: =IF(L109=0,0,SUMIFS(comparison!$A:$A,comparison!$Q:$Q,$E109)/L109) -> 2020-12-10 | N109: 567 | O109: =SUMIFS(comparison!$P:$P,comparison!$Q:$Q,$E109) -> 312305.208 | P109: =IF(O109=0,0,SUMIFS(comparison!$B:$B,comparison!$Q:$Q,$E109)/O109) -> 2020-12-10 | Q109: 567 | R109: =SUMIFS(comparison!$AB:$AB,comparison!$AE:$AE,$E109,comparison!$AG:$AG,"<>"&0) -> 50 | S109: =SUMIFS(comparison!$AC:$AC,comparison!$AE:$AE,$E109,comparison!$AJ:$AJ,"<>"&0) -> 219042 | T109: =SUMIFS(comparison!$U:$U,comparison!$AE:$AE,$E109,comparison!$AJ:$AJ,"<>"&0) -> 78076.302 | U109: 0.6435555647 | V109: =IF(R109=0,0,(SUMIFS(comparison!$AF:$AF,comparison!$AE:$AE,$E109,comparison!$AG:$AG,"<>"&0)-SUMIFS(comparison!$AG:$AG,comparison!$AE:$AE,$E109,comparison!$AG:$AG,"<>"&0))/R109) -> 333 | W109: =IF(S109=0,0,SUMIFS(comparison!$AI:$AI,comparison!$AE:$AE,$E109,comparison!$AJ:$AJ,"<>"&0)/S109)-IF(T109=0,0,SUMIFS(comparison!$AJ:$AJ,comparison!$AE:$AE,$E109,comparison!$AJ:$AJ,"<>"&0)/T109) -> 186.815597 | X109: 1.639971153
D110: 101 | E110: =IF(SUMIFS(IN!$Q:$Q,IN!$S:$S,$D110,IN!$T:$T,1)=0,0,INDEX(IN!$C:$C,SUMIFS(IN!$Q:$Q,IN!$S:$S,$D110,IN!$T:$T,1))) -> товар-101 | H110: 10 | I110: 567 | J110: 96653.1 | K110: 567 | L110: =SUMIFS(comparison!$O:$O,comparison!$Q:$Q,$E110) -> 10 | M110: =IF(L110=0,0,SUMIFS(comparison!$A:$A,comparison!$Q:$Q,$E110)/L110) -> 2020-12-10 | N110: 567 | O110: =SUMIFS(comparison!$P:$P,comparison!$Q:$Q,$E110) -> 96653.1 | P110: =IF(O110=0,0,SUMIFS(comparison!$B:$B,comparison!$Q:$Q,$E110)/O110) -> 2020-12-10 | Q110: 567 | R110: =SUMIFS(comparison!$AB:$AB,comparison!$AE:$AE,$E110,comparison!$AG:$AG,"<>"&0) -> 0 | S110: =SUMIFS(comparison!$AC:$AC,comparison!$AE:$AE,$E110,comparison!$AJ:$AJ,"<>"&0) -> 0 | T110: =SUMIFS(comparison!$U:$U,comparison!$AE:$AE,$E110,comparison!$AJ:$AJ,"<>"&0) -> 0 | U110: 0 | V110: =IF(R110=0,0,(SUMIFS(comparison!$AF:$AF,comparison!$AE:$AE,$E110,comparison!$AG:$AG,"<>"&0)-SUMIFS(comparison!$AG:$AG,comparison!$AE:$AE,$E110,comparison!$AG:$AG,"<>"&0))/R110) -> 0 | W110: =IF(S110=0,0,SUMIFS(comparison!$AI:$AI,comparison!$AE:$AE,$E110,comparison!$AJ:$AJ,"<>"&0)/S110)-IF(T110=0,0,SUMIFS(comparison!$AJ:$AJ,comparison!$AE:$AE,$E110,comparison!$AJ:$AJ,"<>"&0)/T110) -> 0 | X110: 0
D111: 102 | E111: =IF(SUMIFS(IN!$Q:$Q,IN!$S:$S,$D111,IN!$T:$T,1)=0,0,INDEX(IN!$C:$C,SUMIFS(IN!$Q:$Q,IN!$S:$S,$D111,IN!$T:$T,1))) -> товар-102 | H111: 10 | I111: 461 | J111: 204000 | K111: 461 | L111: =SUMIFS(comparison!$O:$O,comparison!$Q:$Q,$E111) -> 0 | M111: =IF(L111=0,0,SUMIFS(comparison!$A:$A,comparison!$Q:$Q,$E111)/L111) -> 00:00:00 | N111: 0 | O111: =SUMIFS(comparison!$P:$P,comparison!$Q:$Q,$E111) -> 0 | P111: =IF(O111=0,0,SUMIFS(comparison!$B:$B,comparison!$Q:$Q,$E111)/O111) -> 00:00:00 | Q111: 0 | R111: =SUMIFS(comparison!$AB:$AB,comparison!$AE:$AE,$E111,comparison!$AG:$AG,"<>"&0) -> 10 | S111: =SUMIFS(comparison!$AC:$AC,comparison!$AE:$AE,$E111,comparison!$AJ:$AJ,"<>"&0) -> 204000 | T111: =SUMIFS(comparison!$U:$U,comparison!$AE:$AE,$E111,comparison!$AJ:$AJ,"<>"&0) -> 95576.16 | U111: 0.5314894118 | V111: =IF(R111=0,0,(SUMIFS(comparison!$AF:$AF,comparison!$AE:$AE,$E111,comparison!$AG:$AG,"<>"&0)-SUMIFS(comparison!$AG:$AG,comparison!$AE:$AE,$E111,comparison!$AG:$AG,"<>"&0))/R111) -> 461 | W111: =IF(S111=0,0,SUMIFS(comparison!$AI:$AI,comparison!$AE:$AE,$E111,comparison!$AJ:$AJ,"<>"&0)/S111)-IF(T111=0,0,SUMIFS(comparison!$AJ:$AJ,comparison!$AE:$AE,$E111,comparison!$AJ:$AJ,"<>"&0)/T111) -> 461 | X111: 0.4014103267
D112: 103 | E112: =IF(SUMIFS(IN!$Q:$Q,IN!$S:$S,$D112,IN!$T:$T,1)=0,0,INDEX(IN!$C:$C,SUMIFS(IN!$Q:$Q,IN!$S:$S,$D112,IN!$T:$T,1))) -> товар-103 | H112: 80 | I112: 322.625 | J112: 558034.725 | K112: 157.5684848 | L112: =SUMIFS(comparison!$O:$O,comparison!$Q:$Q,$E112) -> 40 | M112: =IF(L112=0,0,SUMIFS(comparison!$A:$A,comparison!$Q:$Q,$E112)/L112) -> 2020-12-10 | N112: 567 | O112: =SUMIFS(comparison!$P:$P,comparison!$Q:$Q,$E112) -> 91537.725 | P112: =IF(O112=0,0,SUMIFS(comparison!$B:$B,comparison!$Q:$Q,$E112)/O112) -> 2020-12-10 | Q112: 567 | R112: =SUMIFS(comparison!$AB:$AB,comparison!$AE:$AE,$E112,comparison!$AG:$AG,"<>"&0) -> 40 | S112: =SUMIFS(comparison!$AC:$AC,comparison!$AE:$AE,$E112,comparison!$AJ:$AJ,"<>"&0) -> 466497 | T112: =SUMIFS(comparison!$U:$U,comparison!$AE:$AE,$E112,comparison!$AJ:$AJ,"<>"&0) -> 91537.725 | U112: 0.8037763908 | V112: =IF(R112=0,0,(SUMIFS(comparison!$AF:$AF,comparison!$AE:$AE,$E112,comparison!$AG:$AG,"<>"&0)-SUMIFS(comparison!$AG:$AG,comparison!$AE:$AE,$E112,comparison!$AG:$AG,"<>"&0))/R112) -> 78.25 | W112: =IF(S112=0,0,SUMIFS(comparison!$AI:$AI,comparison!$AE:$AE,$E112,comparison!$AJ:$AJ,"<>"&0)/S112)-IF(T112=0,0,SUMIFS(comparison!$AJ:$AJ,comparison!$AE:$AE,$E112,comparison!$AJ:$AJ,"<>"&0)/T112) -> 77.22835517 | X112: 15.24732148
D113: 104 | E113: =IF(SUMIFS(IN!$Q:$Q,IN!$S:$S,$D113,IN!$T:$T,1)=0,0,INDEX(IN!$C:$C,SUMIFS(IN!$Q:$Q,IN!$S:$S,$D113,IN!$T:$T,1))) -> товар-104 | H113: 40 | I113: 337.25 | J113: 278610 | K113: 321.8172715 | L113: =SUMIFS(comparison!$O:$O,comparison!$Q:$Q,$E113) -> 0 | M113: =IF(L113=0,0,SUMIFS(comparison!$A:$A,comparison!$Q:$Q,$E113)/L113) -> 00:00:00 | N113: 0 | O113: =SUMIFS(comparison!$P:$P,comparison!$Q:$Q,$E113) -> 0 | P113: =IF(O113=0,0,SUMIFS(comparison!$B:$B,comparison!$Q:$Q,$E113)/O113) -> 00:00:00 | Q113: 0 | R113: =SUMIFS(comparison!$AB:$AB,comparison!$AE:$AE,$E113,comparison!$AG:$AG,"<>"&0) -> 40 | S113: =SUMIFS(comparison!$AC:$AC,comparison!$AE:$AE,$E113,comparison!$AJ:$AJ,"<>"&0) -> 278610 | T113: =SUMIFS(comparison!$U:$U,comparison!$AE:$AE,$E113,comparison!$AJ:$AJ,"<>"&0) -> 86153.19 | U113: 0.6907749542 | V113: =IF(R113=0,0,(SUMIFS(comparison!$AF:$AF,comparison!$AE:$AE,$E113,comparison!$AG:$AG,"<>"&0)-SUMIFS(comparison!$AG:$AG,comparison!$AE:$AE,$E113,comparison!$AG:$AG,"<>"&0))/R113) -> 337.25 | W113: =IF(S113=0,0,SUMIFS(comparison!$AI:$AI,comparison!$AE:$AE,$E113,comparison!$AJ:$AJ,"<>"&0)/S113)-IF(T113=0,0,SUMIFS(comparison!$AJ:$AJ,comparison!$AE:$AE,$E113,comparison!$AJ:$AJ,"<>"&0)/T113) -> 321.8172715 | X113: 0.8142255194
D114: 105 | E114: =IF(SUMIFS(IN!$Q:$Q,IN!$S:$S,$D114,IN!$T:$T,1)=0,0,INDEX(IN!$C:$C,SUMIFS(IN!$Q:$Q,IN!$S:$S,$D114,IN!$T:$T,1))) -> товар-105 | H114: 80 | I114: 388.375 | J114: 410687.16 | K114: 273.5106564 | L114: =SUMIFS(comparison!$O:$O,comparison!$Q:$Q,$E114) -> 40 | M114: =IF(L114=0,0,SUMIFS(comparison!$A:$A,comparison!$Q:$Q,$E114)/L114) -> 2020-12-10 | N114: 567 | O114: =SUMIFS(comparison!$P:$P,comparison!$Q:$Q,$E114) -> 86153.16 | P114: =IF(O114=0,0,SUMIFS(comparison!$B:$B,comparison!$Q:$Q,$E114)/O114) -> 2020-12-10 | Q114: 567 | R114: =SUMIFS(comparison!$AB:$AB,comparison!$AE:$AE,$E114,comparison!$AG:$AG,"<>"&0) -> 40 | S114: =SUMIFS(comparison!$AC:$AC,comparison!$AE:$AE,$E114,comparison!$AJ:$AJ,"<>"&0) -> 324534 | T114: =SUMIFS(comparison!$U:$U,comparison!$AE:$AE,$E114,comparison!$AJ:$AJ,"<>"&0) -> 86153.16 | U114: 0.7345327146 | V114: =IF(R114=0,0,(SUMIFS(comparison!$AF:$AF,comparison!$AE:$AE,$E114,comparison!$AG:$AG,"<>"&0)-SUMIFS(comparison!$AG:$AG,comparison!$AE:$AE,$E114,comparison!$AG:$AG,"<>"&0))/R114) -> 209.75 | W114: =IF(S114=0,0,SUMIFS(comparison!$AI:$AI,comparison!$AE:$AE,$E114,comparison!$AJ:$AJ,"<>"&0)/S114)-IF(T114=0,0,SUMIFS(comparison!$AJ:$AJ,comparison!$AE:$AE,$E114,comparison!$AJ:$AJ,"<>"&0)/T114) -> 195.5988371 | X114: 1.794665974
D115: 106 | E115: =IF(SUMIFS(IN!$Q:$Q,IN!$S:$S,$D115,IN!$T:$T,1)=0,0,INDEX(IN!$C:$C,SUMIFS(IN!$Q:$Q,IN!$S:$S,$D115,IN!$T:$T,1))) -> товар-106 | H115: 30 | I115: 370.6666667 | J115: 212521.29 | K115: 275.2493712 | L115: =SUMIFS(comparison!$O:$O,comparison!$Q:$Q,$E115) -> 10 | M115: =IF(L115=0,0,SUMIFS(comparison!$A:$A,comparison!$Q:$Q,$E115)/L115) -> 2020-12-10 | N115: 567 | O115: =SUMIFS(comparison!$P:$P,comparison!$Q:$Q,$E115) -> 30961.29 | P115: =IF(O115=0,0,SUMIFS(comparison!$B:$B,comparison!$Q:$Q,$E115)/O115) -> 2020-12-10 | Q115: 567 | R115: =SUMIFS(comparison!$AB:$AB,comparison!$AE:$AE,$E115,comparison!$AG:$AG,"<>"&0) -> 20 | S115: =SUMIFS(comparison!$AC:$AC,comparison!$AE:$AE,$E115,comparison!$AJ:$AJ,"<>"&0) -> 181560 | T115: =SUMIFS(comparison!$U:$U,comparison!$AE:$AE,$E115,comparison!$AJ:$AJ,"<>"&0) -> 61922.58 | U115: 0.6589415069 | V115: =IF(R115=0,0,(SUMIFS(comparison!$AF:$AF,comparison!$AE:$AE,$E115,comparison!$AG:$AG,"<>"&0)-SUMIFS(comparison!$AG:$AG,comparison!$AE:$AE,$E115,comparison!$AG:$AG,"<>"&0))/R115) -> 272.5 | W115: =IF(S115=0,0,SUMIFS(comparison!$AI:$AI,comparison!$AE:$AE,$E115,comparison!$AJ:$AJ,"<>"&0)/S115)-IF(T115=0,0,SUMIFS(comparison!$AJ:$AJ,comparison!$AE:$AE,$E115,comparison!$AJ:$AJ,"<>"&0)/T115) -> 225.4973562 | X115: 1.268967649
D116: 107 | E116: =IF(SUMIFS(IN!$Q:$Q,IN!$S:$S,$D116,IN!$T:$T,1)=0,0,INDEX(IN!$C:$C,SUMIFS(IN!$Q:$Q,IN!$S:$S,$D116,IN!$T:$T,1))) -> товар-107 | H116: 10 | I116: 21 | J116: 58500 | K116: 21 | L116: =SUMIFS(comparison!$O:$O,comparison!$Q:$Q,$E116) -> 0 | M116: =IF(L116=0,0,SUMIFS(comparison!$A:$A,comparison!$Q:$Q,$E116)/L116) -> 00:00:00 | N116: 0 | O116: =SUMIFS(comparison!$P:$P,comparison!$Q:$Q,$E116) -> 0 | P116: =IF(O116=0,0,SUMIFS(comparison!$B:$B,comparison!$Q:$Q,$E116)/O116) -> 00:00:00 | Q116: 0 | R116: =SUMIFS(comparison!$AB:$AB,comparison!$AE:$AE,$E116,comparison!$AG:$AG,"<>"&0) -> 10 | S116: =SUMIFS(comparison!$AC:$AC,comparison!$AE:$AE,$E116,comparison!$AJ:$AJ,"<>"&0) -> 58500 | T116: =SUMIFS(comparison!$U:$U,comparison!$AE:$AE,$E116,comparison!$AJ:$AJ,"<>"&0) -> 24230.58 | U116: 0.5858020513 | V116: =IF(R116=0,0,(SUMIFS(comparison!$AF:$AF,comparison!$AE:$AE,$E116,comparison!$AG:$AG,"<>"&0)-SUMIFS(comparison!$AG:$AG,comparison!$AE:$AE,$E116,comparison!$AG:$AG,"<>"&0))/R116) -> 21 | W116: =IF(S116=0,0,SUMIFS(comparison!$AI:$AI,comparison!$AE:$AE,$E116,comparison!$AJ:$AJ,"<>"&0)/S116)-IF(T116=0,0,SUMIFS(comparison!$AJ:$AJ,comparison!$AE:$AE,$E116,comparison!$AJ:$AJ,"<>"&0)/T116) -> 21 | X116: 3022.555214
D117: 108 | E117: =IF(SUMIFS(IN!$Q:$Q,IN!$S:$S,$D117,IN!$T:$T,1)=0,0,INDEX(IN!$C:$C,SUMIFS(IN!$Q:$Q,IN!$S:$S,$D117,IN!$T:$T,1))) -> товар-108 | H117: 170 | I117: 294.1176471 | J117: 461022.0071 | K117: 215.6697218 | L117: =SUMIFS(comparison!$O:$O,comparison!$Q:$Q,$E117) -> 40 | M117: =IF(L117=0,0,SUMIFS(comparison!$A:$A,comparison!$Q:$Q,$E117)/L117) -> 2020-12-10 | N117: 567 | O117: =SUMIFS(comparison!$P:$P,comparison!$Q:$Q,$E117) -> 37692.00706 | P117: =IF(O117=0,0,SUMIFS(comparison!$B:$B,comparison!$Q:$Q,$E117)/O117) -> 2020-12-10 | Q117: 567 | R117: =SUMIFS(comparison!$AB:$AB,comparison!$AE:$AE,$E117,comparison!$AG:$AG,"<>"&0) -> 130 | S117: =SUMIFS(comparison!$AC:$AC,comparison!$AE:$AE,$E117,comparison!$AJ:$AJ,"<>"&0) -> 423330 | T117: =SUMIFS(comparison!$U:$U,comparison!$AE:$AE,$E117,comparison!$AJ:$AJ,"<>"&0) -> 122499.0229 | U117: 0.7106299508 | V117: =IF(R117=0,0,(SUMIFS(comparison!$AF:$AF,comparison!$AE:$AE,$E117,comparison!$AG:$AG,"<>"&0)-SUMIFS(comparison!$AG:$AG,comparison!$AE:$AE,$E117,comparison!$AG:$AG,"<>"&0))/R117) -> 210.1538462 | W117: =IF(S117=0,0,SUMIFS(comparison!$AI:$AI,comparison!$AE:$AE,$E117,comparison!$AJ:$AJ,"<>"&0)/S117)-IF(T117=0,0,SUMIFS(comparison!$AJ:$AJ,comparison!$AE:$AE,$E117,comparison!$AJ:$AJ,"<>"&0)/T117) -> 184.3883495 | X117: 1.894253511
D118: 109 | E118: =IF(SUMIFS(IN!$Q:$Q,IN!$S:$S,$D118,IN!$T:$T,1)=0,0,INDEX(IN!$C:$C,SUMIFS(IN!$Q:$Q,IN!$S:$S,$D118,IN!$T:$T,1))) -> товар-109 | H118: 140 | I118: 431 | J118: 131439 | K118: 257.4556867 | L118: =SUMIFS(comparison!$O:$O,comparison!$Q:$Q,$E118) -> 100 | M118: =IF(L118=0,0,SUMIFS(comparison!$A:$A,comparison!$Q:$Q,$E118)/L118) -> 2020-12-10 | N118: 567 | O118: =SUMIFS(comparison!$P:$P,comparison!$Q:$Q,$E118) -> 37692 | P118: =IF(O118=0,0,SUMIFS(comparison!$B:$B,comparison!$Q:$Q,$E118)/O118) -> 2020-12-10 | Q118: 567 | R118: =SUMIFS(comparison!$AB:$AB,comparison!$AE:$AE,$E118,comparison!$AG:$AG,"<>"&0) -> 40 | S118: =SUMIFS(comparison!$AC:$AC,comparison!$AE:$AE,$E118,comparison!$AJ:$AJ,"<>"&0) -> 93747 | T118: =SUMIFS(comparison!$U:$U,comparison!$AE:$AE,$E118,comparison!$AJ:$AJ,"<>"&0) -> 15076.8 | U118: 0.8391756536 | V118: =IF(R118=0,0,(SUMIFS(comparison!$AF:$AF,comparison!$AE:$AE,$E118,comparison!$AG:$AG,"<>"&0)-SUMIFS(comparison!$AG:$AG,comparison!$AE:$AE,$E118,comparison!$AG:$AG,"<>"&0))/R118) -> 91 | W118: =IF(S118=0,0,SUMIFS(comparison!$AI:$AI,comparison!$AE:$AE,$E118,comparison!$AJ:$AJ,"<>"&0)/S118)-IF(T118=0,0,SUMIFS(comparison!$AJ:$AJ,comparison!$AE:$AE,$E118,comparison!$AJ:$AJ,"<>"&0)/T118) -> 133.000032 | X118: 4.32379611
D119: 110 | E119: =IF(SUMIFS(IN!$Q:$Q,IN!$S:$S,$D119,IN!$T:$T,1)=0,0,INDEX(IN!$C:$C,SUMIFS(IN!$Q:$Q,IN!$S:$S,$D119,IN!$T:$T,1))) -> товар-110 | H119: 50 | I119: 391.6 | J119: 77411.064 | K119: 279.3655347 | L119: =SUMIFS(comparison!$O:$O,comparison!$Q:$Q,$E119) -> 20 | M119: =IF(L119=0,0,SUMIFS(comparison!$A:$A,comparison!$Q:$Q,$E119)/L119) -> 2020-12-10 | N119: 567 | O119: =SUMIFS(comparison!$P:$P,comparison!$Q:$Q,$E119) -> 11846.064 | P119: =IF(O119=0,0,SUMIFS(comparison!$B:$B,comparison!$Q:$Q,$E119)/O119) -> 2020-12-10 | Q119: 567 | R119: =SUMIFS(comparison!$AB:$AB,comparison!$AE:$AE,$E119,comparison!$AG:$AG,"<>"&0) -> 30 | S119: =SUMIFS(comparison!$AC:$AC,comparison!$AE:$AE,$E119,comparison!$AJ:$AJ,"<>"&0) -> 65565 | T119: =SUMIFS(comparison!$U:$U,comparison!$AE:$AE,$E119,comparison!$AJ:$AJ,"<>"&0) -> 17769.096 | U119: 0.7289850377 | V119: =IF(R119=0,0,(SUMIFS(comparison!$AF:$AF,comparison!$AE:$AE,$E119,comparison!$AG:$AG,"<>"&0)-SUMIFS(comparison!$AG:$AG,comparison!$AE:$AE,$E119,comparison!$AG:$AG,"<>"&0))/R119) -> 274.6666667 | W119: =IF(S119=0,0,SUMIFS(comparison!$AI:$AI,comparison!$AE:$AE,$E119,comparison!$AJ:$AJ,"<>"&0)/S119)-IF(T119=0,0,SUMIFS(comparison!$AJ:$AJ,comparison!$AE:$AE,$E119,comparison!$AJ:$AJ,"<>"&0)/T119) -> 227.3967056 | X119: 1.408155422
D120: 111 | E120: =IF(SUMIFS(IN!$Q:$Q,IN!$S:$S,$D120,IN!$T:$T,1)=0,0,INDEX(IN!$C:$C,SUMIFS(IN!$Q:$Q,IN!$S:$S,$D120,IN!$T:$T,1))) -> товар-111 | H120: 10 | I120: 21 | J120: 31500 | K120: 21 | L120: =SUMIFS(comparison!$O:$O,comparison!$Q:$Q,$E120) -> 0 | M120: =IF(L120=0,0,SUMIFS(comparison!$A:$A,comparison!$Q:$Q,$E120)/L120) -> 00:00:00 | N120: 0 | O120: =SUMIFS(comparison!$P:$P,comparison!$Q:$Q,$E120) -> 0 | P120: =IF(O120=0,0,SUMIFS(comparison!$B:$B,comparison!$Q:$Q,$E120)/O120) -> 00:00:00 | Q120: 0 | R120: =SUMIFS(comparison!$AB:$AB,comparison!$AE:$AE,$E120,comparison!$AG:$AG,"<>"&0) -> 10 | S120: =SUMIFS(comparison!$AC:$AC,comparison!$AE:$AE,$E120,comparison!$AJ:$AJ,"<>"&0) -> 31500 | T120: =SUMIFS(comparison!$U:$U,comparison!$AE:$AE,$E120,comparison!$AJ:$AJ,"<>"&0) -> 6461.49 | U120: 0.7948733333 | V120: =IF(R120=0,0,(SUMIFS(comparison!$AF:$AF,comparison!$AE:$AE,$E120,comparison!$AG:$AG,"<>"&0)-SUMIFS(comparison!$AG:$AG,comparison!$AE:$AE,$E120,comparison!$AG:$AG,"<>"&0))/R120) -> 21 | W120: =IF(S120=0,0,SUMIFS(comparison!$AI:$AI,comparison!$AE:$AE,$E120,comparison!$AJ:$AJ,"<>"&0)/S120)-IF(T120=0,0,SUMIFS(comparison!$AJ:$AJ,comparison!$AE:$AE,$E120,comparison!$AJ:$AJ,"<>"&0)/T120) -> 21 | X120: 26021.52725
D121: 112 | E121: =IF(SUMIFS(IN!$Q:$Q,IN!$S:$S,$D121,IN!$T:$T,1)=0,0,INDEX(IN!$C:$C,SUMIFS(IN!$Q:$Q,IN!$S:$S,$D121,IN!$T:$T,1))) -> товар-112 | H121: 60 | I121: 476 | J121: 31611.425 | K121: 253.5089125 | L121: =SUMIFS(comparison!$O:$O,comparison!$Q:$Q,$E121) -> 50 | M121: =IF(L121=0,0,SUMIFS(comparison!$A:$A,comparison!$Q:$Q,$E121)/L121) -> 2020-12-10 | N121: 567 | O121: =SUMIFS(comparison!$P:$P,comparison!$Q:$Q,$E121) -> 13461.425 | P121: =IF(O121=0,0,SUMIFS(comparison!$B:$B,comparison!$Q:$Q,$E121)/O121) -> 2020-12-10 | Q121: 567 | R121: =SUMIFS(comparison!$AB:$AB,comparison!$AE:$AE,$E121,comparison!$AG:$AG,"<>"&0) -> 10 | S121: =SUMIFS(comparison!$AC:$AC,comparison!$AE:$AE,$E121,comparison!$AJ:$AJ,"<>"&0) -> 18150 | T121: =SUMIFS(comparison!$U:$U,comparison!$AE:$AE,$E121,comparison!$AJ:$AJ,"<>"&0) -> 2692.285 | U121: =IF(S121=0,0,(S121-T121)/S121) -> 0.8516647383 | V121: =IF(R121=0,0,(SUMIFS(comparison!$AF:$AF,comparison!$AE:$AE,$E121,comparison!$AG:$AG,"<>"&0)-SUMIFS(comparison!$AG:$AG,comparison!$AE:$AE,$E121,comparison!$AG:$AG,"<>"&0))/R121) -> 21 | W121: =IF(S121=0,0,SUMIFS(comparison!$AI:$AI,comparison!$AE:$AE,$E121,comparison!$AJ:$AJ,"<>"&0)/S121)-IF(T121=0,0,SUMIFS(comparison!$AJ:$AJ,comparison!$AE:$AE,$E121,comparison!$AJ:$AJ,"<>"&0)/T121) -> 21 | X121: 44717.63857
D122: 113 | E122: =IF(SUMIFS(IN!$Q:$Q,IN!$S:$S,$D122,IN!$T:$T,1)=0,0,INDEX(IN!$C:$C,SUMIFS(IN!$Q:$Q,IN!$S:$S,$D122,IN!$T:$T,1))) -> товар-113 | H122: 70 | I122: 250.4285714 | J122: 244773 | K122: 226.5954211 | L122: =SUMIFS(comparison!$O:$O,comparison!$Q:$Q,$E122) -> 0 | M122: =IF(L122=0,0,SUMIFS(comparison!$A:$A,comparison!$Q:$Q,$E122)/L122) -> 00:00:00 | N122: 0 | O122: =SUMIFS(comparison!$P:$P,comparison!$Q:$Q,$E122) -> 0 | P122: =IF(O122=0,0,SUMIFS(comparison!$B:$B,comparison!$Q:$Q,$E122)/O122) -> 00:00:00 | Q122: 0 | R122: =SUMIFS(comparison!$AB:$AB,comparison!$AE:$AE,$E122,comparison!$AG:$AG,"<>"&0) -> 70 | S122: =SUMIFS(comparison!$AC:$AC,comparison!$AE:$AE,$E122,comparison!$AJ:$AJ,"<>"&0) -> 244773 | T122: =SUMIFS(comparison!$U:$U,comparison!$AE:$AE,$E122,comparison!$AJ:$AJ,"<>"&0) -> 65961 | U122: 0.7305217487 | V122: =IF(R122=0,0,(SUMIFS(comparison!$AF:$AF,comparison!$AE:$AE,$E122,comparison!$AG:$AG,"<>"&0)-SUMIFS(comparison!$AG:$AG,comparison!$AE:$AE,$E122,comparison!$AG:$AG,"<>"&0))/R122) -> 250.4285714 | W122: =IF(S122=0,0,SUMIFS(comparison!$AI:$AI,comparison!$AE:$AE,$E122,comparison!$AJ:$AJ,"<>"&0)/S122)-IF(T122=0,0,SUMIFS(comparison!$AJ:$AJ,comparison!$AE:$AE,$E122,comparison!$AJ:$AJ,"<>"&0)/T122) -> 226.5954211 | X122: 1.419110529
D123: 114 | E123: =IF(SUMIFS(IN!$Q:$Q,IN!$S:$S,$D123,IN!$T:$T,1)=0,0,INDEX(IN!$C:$C,SUMIFS(IN!$Q:$Q,IN!$S:$S,$D123,IN!$T:$T,1))) -> товар-114 | H123: 80 | I123: 328 | J123: 585375 | K123: 292.3264574 | L123: =SUMIFS(comparison!$O:$O,comparison!$Q:$Q,$E123) -> 0 | M123: =IF(L123=0,0,SUMIFS(comparison!$A:$A,comparison!$Q:$Q,$E123)/L123) -> 00:00:00 | N123: 0 | O123: =SUMIFS(comparison!$P:$P,comparison!$Q:$Q,$E123) -> 0 | P123: =IF(O123=0,0,SUMIFS(comparison!$B:$B,comparison!$Q:$Q,$E123)/O123) -> 00:00:00 | Q123: 0 | R123: =SUMIFS(comparison!$AB:$AB,comparison!$AE:$AE,$E123,comparison!$AG:$AG,"<>"&0) -> 80 | S123: =SUMIFS(comparison!$AC:$AC,comparison!$AE:$AE,$E123,comparison!$AJ:$AJ,"<>"&0) -> 585375 | T123: =SUMIFS(comparison!$U:$U,comparison!$AE:$AE,$E123,comparison!$AJ:$AJ,"<>"&0) -> 183075.45 | U123: 0.687250993 | V123: =IF(R123=0,0,(SUMIFS(comparison!$AF:$AF,comparison!$AE:$AE,$E123,comparison!$AG:$AG,"<>"&0)-SUMIFS(comparison!$AG:$AG,comparison!$AE:$AE,$E123,comparison!$AG:$AG,"<>"&0))/R123) -> 328 | W123: =IF(S123=0,0,SUMIFS(comparison!$AI:$AI,comparison!$AE:$AE,$E123,comparison!$AJ:$AJ,"<>"&0)/S123)-IF(T123=0,0,SUMIFS(comparison!$AJ:$AJ,comparison!$AE:$AE,$E123,comparison!$AJ:$AJ,"<>"&0)/T123) -> 292.3264574 | X123: 0.9215756425
D124: 115 | E124: =IF(SUMIFS(IN!$Q:$Q,IN!$S:$S,$D124,IN!$T:$T,1)=0,0,INDEX(IN!$C:$C,SUMIFS(IN!$Q:$Q,IN!$S:$S,$D124,IN!$T:$T,1))) -> товар-115 | H124: 40 | I124: 248.25 | J124: 279000 | K124: 239.7333333 | L124: =SUMIFS(comparison!$O:$O,comparison!$Q:$Q,$E124) -> 0 | M124: =IF(L124=0,0,SUMIFS(comparison!$A:$A,comparison!$Q:$Q,$E124)/L124) -> 00:00:00 | N124: 0 | O124: =SUMIFS(comparison!$P:$P,comparison!$Q:$Q,$E124) -> 0 | P124: =IF(O124=0,0,SUMIFS(comparison!$B:$B,comparison!$Q:$Q,$E124)/O124) -> 00:00:00 | Q124: 0 | R124: =SUMIFS(comparison!$AB:$AB,comparison!$AE:$AE,$E124,comparison!$AG:$AG,"<>"&0) -> 40 | S124: =SUMIFS(comparison!$AC:$AC,comparison!$AE:$AE,$E124,comparison!$AJ:$AJ,"<>"&0) -> 279000 | T124: =SUMIFS(comparison!$U:$U,comparison!$AE:$AE,$E124,comparison!$AJ:$AJ,"<>"&0) -> 86153.19 | U124: 0.6912072043 | V124: =IF(R124=0,0,(SUMIFS(comparison!$AF:$AF,comparison!$AE:$AE,$E124,comparison!$AG:$AG,"<>"&0)-SUMIFS(comparison!$AG:$AG,comparison!$AE:$AE,$E124,comparison!$AG:$AG,"<>"&0))/R124) -> 248.25 | W124: =IF(S124=0,0,SUMIFS(comparison!$AI:$AI,comparison!$AE:$AE,$E124,comparison!$AJ:$AJ,"<>"&0)/S124)-IF(T124=0,0,SUMIFS(comparison!$AJ:$AJ,comparison!$AE:$AE,$E124,comparison!$AJ:$AJ,"<>"&0)/T124) -> 239.7333333 | X124: 1.225539823
D125: 116 | E125: =IF(SUMIFS(IN!$Q:$Q,IN!$S:$S,$D125,IN!$T:$T,1)=0,0,INDEX(IN!$C:$C,SUMIFS(IN!$Q:$Q,IN!$S:$S,$D125,IN!$T:$T,1))) -> товар-116 | H125: 80 | I125: 436.125 | J125: 300384.87 | K125: 411.6554915 | L125: =SUMIFS(comparison!$O:$O,comparison!$Q:$Q,$E125) -> 30 | M125: =IF(L125=0,0,SUMIFS(comparison!$A:$A,comparison!$Q:$Q,$E125)/L125) -> 2020-12-10 | N125: 567 | O125: =SUMIFS(comparison!$P:$P,comparison!$Q:$Q,$E125) -> 64614.87 | P125: =IF(O125=0,0,SUMIFS(comparison!$B:$B,comparison!$Q:$Q,$E125)/O125) -> 2020-12-10 | Q125: 567 | R125: =SUMIFS(comparison!$AB:$AB,comparison!$AE:$AE,$E125,comparison!$AG:$AG,"<>"&0) -> 50 | S125: =SUMIFS(comparison!$AC:$AC,comparison!$AE:$AE,$E125,comparison!$AJ:$AJ,"<>"&0) -> 235770 | T125: =SUMIFS(comparison!$U:$U,comparison!$AE:$AE,$E125,comparison!$AJ:$AJ,"<>"&0) -> 107691.45 | U125: 0.5432351444 | V125: =IF(R125=0,0,(SUMIFS(comparison!$AF:$AF,comparison!$AE:$AE,$E125,comparison!$AG:$AG,"<>"&0)-SUMIFS(comparison!$AG:$AG,comparison!$AE:$AE,$E125,comparison!$AG:$AG,"<>"&0))/R125) -> 357.6 | W125: =IF(S125=0,0,SUMIFS(comparison!$AI:$AI,comparison!$AE:$AE,$E125,comparison!$AJ:$AJ,"<>"&0)/S125)-IF(T125=0,0,SUMIFS(comparison!$AJ:$AJ,comparison!$AE:$AE,$E125,comparison!$AJ:$AJ,"<>"&0)/T125) -> 369.0819443 | X125: 0.5358475103
D126: 117 | E126: =IF(SUMIFS(IN!$Q:$Q,IN!$S:$S,$D126,IN!$T:$T,1)=0,0,INDEX(IN!$C:$C,SUMIFS(IN!$Q:$Q,IN!$S:$S,$D126,IN!$T:$T,1))) -> товар-117 | H126: 60 | I126: 344.5 | J126: 447810 | K126: 330.8648757 | L126: =SUMIFS(comparison!$O:$O,comparison!$Q:$Q,$E126) -> 0 | M126: =IF(L126=0,0,SUMIFS(comparison!$A:$A,comparison!$Q:$Q,$E126)/L126) -> 00:00:00 | N126: 0 | O126: =SUMIFS(comparison!$P:$P,comparison!$Q:$Q,$E126) -> 0 | P126: =IF(O126=0,0,SUMIFS(comparison!$B:$B,comparison!$Q:$Q,$E126)/O126) -> 00:00:00 | Q126: 0 | R126: =SUMIFS(comparison!$AB:$AB,comparison!$AE:$AE,$E126,comparison!$AG:$AG,"<>"&0) -> 60 | S126: =SUMIFS(comparison!$AC:$AC,comparison!$AE:$AE,$E126,comparison!$AJ:$AJ,"<>"&0) -> 447810 | T126: =SUMIFS(comparison!$U:$U,comparison!$AE:$AE,$E126,comparison!$AJ:$AJ,"<>"&0) -> 185767.74 | U126: 0.5851639311 | V126: =IF(R126=0,0,(SUMIFS(comparison!$AF:$AF,comparison!$AE:$AE,$E126,comparison!$AG:$AG,"<>"&0)-SUMIFS(comparison!$AG:$AG,comparison!$AE:$AE,$E126,comparison!$AG:$AG,"<>"&0))/R126) -> 344.5 | W126: =IF(S126=0,0,SUMIFS(comparison!$AI:$AI,comparison!$AE:$AE,$E126,comparison!$AJ:$AJ,"<>"&0)/S126)-IF(T126=0,0,SUMIFS(comparison!$AJ:$AJ,comparison!$AE:$AE,$E126,comparison!$AJ:$AJ,"<>"&0)/T126) -> 330.8648757 | X126: 0.6623241383
D127: 118 | E127: =IF(SUMIFS(IN!$Q:$Q,IN!$S:$S,$D127,IN!$T:$T,1)=0,0,INDEX(IN!$C:$C,SUMIFS(IN!$Q:$Q,IN!$S:$S,$D127,IN!$T:$T,1))) -> товар-118 | H127: 150 | I127: 300.5333333 | J127: 406857.002 | K127: 270.1543825 | L127: =SUMIFS(comparison!$O:$O,comparison!$Q:$Q,$E127) -> 10 | M127: =IF(L127=0,0,SUMIFS(comparison!$A:$A,comparison!$Q:$Q,$E127)/L127) -> 2020-12-10 | N127: 567 | O127: =SUMIFS(comparison!$P:$P,comparison!$Q:$Q,$E127) -> 9423.002 | P127: =IF(O127=0,0,SUMIFS(comparison!$B:$B,comparison!$Q:$Q,$E127)/O127) -> 2020-12-10 | Q127: 567 | R127: =SUMIFS(comparison!$AB:$AB,comparison!$AE:$AE,$E127,comparison!$AG:$AG,"<>"&0) -> 140 | S127: =SUMIFS(comparison!$AC:$AC,comparison!$AE:$AE,$E127,comparison!$AJ:$AJ,"<>"&0) -> 397434 | T127: =SUMIFS(comparison!$U:$U,comparison!$AE:$AE,$E127,comparison!$AJ:$AJ,"<>"&0) -> 131922.028 | U127: 0.6680655706 | V127: =IF(R127=0,0,(SUMIFS(comparison!$AF:$AF,comparison!$AE:$AE,$E127,comparison!$AG:$AG,"<>"&0)-SUMIFS(comparison!$AG:$AG,comparison!$AE:$AE,$E127,comparison!$AG:$AG,"<>"&0))/R127) -> 281.5 | W127: =IF(S127=0,0,SUMIFS(comparison!$AI:$AI,comparison!$AE:$AE,$E127,comparison!$AJ:$AJ,"<>"&0)/S127)-IF(T127=0,0,SUMIFS(comparison!$AJ:$AJ,comparison!$AE:$AE,$E127,comparison!$AJ:$AJ,"<>"&0)/T127) -> 263.116291 | X127: 1.033566267
D128: 119 | E128: =IF(SUMIFS(IN!$Q:$Q,IN!$S:$S,$D128,IN!$T:$T,1)=0,0,INDEX(IN!$C:$C,SUMIFS(IN!$Q:$Q,IN!$S:$S,$D128,IN!$T:$T,1))) -> товар-119 | H128: 200 | I128: 558.55 | J128: 84964.8 | K128: 540.4460624 | L128: =SUMIFS(comparison!$O:$O,comparison!$Q:$Q,$E128) -> 190 | M128: =IF(L128=0,0,SUMIFS(comparison!$A:$A,comparison!$Q:$Q,$E128)/L128) -> 2020-12-10 | N128: 567 | O128: =SUMIFS(comparison!$P:$P,comparison!$Q:$Q,$E128) -> 71614.8 | P128: =IF(O128=0,0,SUMIFS(comparison!$B:$B,comparison!$Q:$Q,$E128)/O128) -> 2020-12-10 | Q128: 567 | R128: =SUMIFS(comparison!$AB:$AB,comparison!$AE:$AE,$E128,comparison!$AG:$AG,"<>"&0) -> 10 | S128: =SUMIFS(comparison!$AC:$AC,comparison!$AE:$AE,$E128,comparison!$AJ:$AJ,"<>"&0) -> 13350 | T128: =SUMIFS(comparison!$U:$U,comparison!$AE:$AE,$E128,comparison!$AJ:$AJ,"<>"&0) -> 3769.2 | U128: 0.7176629213 | V128: =IF(R128=0,0,(SUMIFS(comparison!$AF:$AF,comparison!$AE:$AE,$E128,comparison!$AG:$AG,"<>"&0)-SUMIFS(comparison!$AG:$AG,comparison!$AE:$AE,$E128,comparison!$AG:$AG,"<>"&0))/R128) -> 398 | W128: =IF(S128=0,0,SUMIFS(comparison!$AI:$AI,comparison!$AE:$AE,$E128,comparison!$AJ:$AJ,"<>"&0)/S128)-IF(T128=0,0,SUMIFS(comparison!$AJ:$AJ,comparison!$AE:$AE,$E128,comparison!$AJ:$AJ,"<>"&0)/T128) -> 398 | X128: 0.6423214372
D129: 120 | E129: =IF(SUMIFS(IN!$Q:$Q,IN!$S:$S,$D129,IN!$T:$T,1)=0,0,INDEX(IN!$C:$C,SUMIFS(IN!$Q:$Q,IN!$S:$S,$D129,IN!$T:$T,1))) -> товар-120 | H129: 40 | I129: 202 | J129: 118125 | K129: 193 | L129: =SUMIFS(comparison!$O:$O,comparison!$Q:$Q,$E129) -> 0 | M129: =IF(L129=0,0,SUMIFS(comparison!$A:$A,comparison!$Q:$Q,$E129)/L129) -> 00:00:00 | N129: 0 | O129: =SUMIFS(comparison!$P:$P,comparison!$Q:$Q,$E129) -> 0 | P129: =IF(O129=0,0,SUMIFS(comparison!$B:$B,comparison!$Q:$Q,$E129)/O129) -> 00:00:00 | Q129: 0 | R129: =SUMIFS(comparison!$AB:$AB,comparison!$AE:$AE,$E129,comparison!$AG:$AG,"<>"&0) -> 40 | S129: =SUMIFS(comparison!$AC:$AC,comparison!$AE:$AE,$E129,comparison!$AJ:$AJ,"<>"&0) -> 118125 | T129: =SUMIFS(comparison!$U:$U,comparison!$AE:$AE,$E129,comparison!$AJ:$AJ,"<>"&0) -> 23692.11 | U129: 0.799431873 | V129: =IF(R129=0,0,(SUMIFS(comparison!$AF:$AF,comparison!$AE:$AE,$E129,comparison!$AG:$AG,"<>"&0)-SUMIFS(comparison!$AG:$AG,comparison!$AE:$AE,$E129,comparison!$AG:$AG,"<>"&0))/R129) -> 202 | W129: =IF(S129=0,0,SUMIFS(comparison!$AI:$AI,comparison!$AE:$AE,$E129,comparison!$AJ:$AJ,"<>"&0)/S129)-IF(T129=0,0,SUMIFS(comparison!$AJ:$AJ,comparison!$AE:$AE,$E129,comparison!$AJ:$AJ,"<>"&0)/T129) -> 193 | X129: 2.037455821
D130: 121 | E130: =IF(SUMIFS(IN!$Q:$Q,IN!$S:$S,$D130,IN!$T:$T,1)=0,0,INDEX(IN!$C:$C,SUMIFS(IN!$Q:$Q,IN!$S:$S,$D130,IN!$T:$T,1))) -> товар-121 | H130: 10 | I130: 567 | J130: 6461.49 | K130: 567 | L130: =SUMIFS(comparison!$O:$O,comparison!$Q:$Q,$E130) -> 10 | M130: =IF(L130=0,0,SUMIFS(comparison!$A:$A,comparison!$Q:$Q,$E130)/L130) -> 2020-12-10 | N130: 567 | O130: =SUMIFS(comparison!$P:$P,comparison!$Q:$Q,$E130) -> 6461.49 | P130: =IF(O130=0,0,SUMIFS(comparison!$B:$B,comparison!$Q:$Q,$E130)/O130) -> 2020-12-10 | Q130: 567 | R130: =SUMIFS(comparison!$AB:$AB,comparison!$AE:$AE,$E130,comparison!$AG:$AG,"<>"&0) -> 0 | S130: =SUMIFS(comparison!$AC:$AC,comparison!$AE:$AE,$E130,comparison!$AJ:$AJ,"<>"&0) -> 0 | T130: =SUMIFS(comparison!$U:$U,comparison!$AE:$AE,$E130,comparison!$AJ:$AJ,"<>"&0) -> 0 | U130: 0 | V130: =IF(R130=0,0,(SUMIFS(comparison!$AF:$AF,comparison!$AE:$AE,$E130,comparison!$AG:$AG,"<>"&0)-SUMIFS(comparison!$AG:$AG,comparison!$AE:$AE,$E130,comparison!$AG:$AG,"<>"&0))/R130) -> 0 | W130: =IF(S130=0,0,SUMIFS(comparison!$AI:$AI,comparison!$AE:$AE,$E130,comparison!$AJ:$AJ,"<>"&0)/S130)-IF(T130=0,0,SUMIFS(comparison!$AJ:$AJ,comparison!$AE:$AE,$E130,comparison!$AJ:$AJ,"<>"&0)/T130) -> 0 | X130: 0
D131: 122 | E131: =IF(SUMIFS(IN!$Q:$Q,IN!$S:$S,$D131,IN!$T:$T,1)=0,0,INDEX(IN!$C:$C,SUMIFS(IN!$Q:$Q,IN!$S:$S,$D131,IN!$T:$T,1))) -> товар-122 | H131: 20 | I131: 567 | J131: 5384.58 | K131: 567 | L131: =SUMIFS(comparison!$O:$O,comparison!$Q:$Q,$E131) -> 20 | M131: =IF(L131=0,0,SUMIFS(comparison!$A:$A,comparison!$Q:$Q,$E131)/L131) -> 2020-12-10 | N131: 567 | O131: =SUMIFS(comparison!$P:$P,comparison!$Q:$Q,$E131) -> 5384.58 | P131: =IF(O131=0,0,SUMIFS(comparison!$B:$B,comparison!$Q:$Q,$E131)/O131) -> 2020-12-10 | Q131: 567 | R131: =SUMIFS(comparison!$AB:$AB,comparison!$AE:$AE,$E131,comparison!$AG:$AG,"<>"&0) -> 0 | S131: =SUMIFS(comparison!$AC:$AC,comparison!$AE:$AE,$E131,comparison!$AJ:$AJ,"<>"&0) -> 0 | T131: =SUMIFS(comparison!$U:$U,comparison!$AE:$AE,$E131,comparison!$AJ:$AJ,"<>"&0) -> 0 | U131: 0 | V131: =IF(R131=0,0,(SUMIFS(comparison!$AF:$AF,comparison!$AE:$AE,$E131,comparison!$AG:$AG,"<>"&0)-SUMIFS(comparison!$AG:$AG,comparison!$AE:$AE,$E131,comparison!$AG:$AG,"<>"&0))/R131) -> 0 | W131: =IF(S131=0,0,SUMIFS(comparison!$AI:$AI,comparison!$AE:$AE,$E131,comparison!$AJ:$AJ,"<>"&0)/S131)-IF(T131=0,0,SUMIFS(comparison!$AJ:$AJ,comparison!$AE:$AE,$E131,comparison!$AJ:$AJ,"<>"&0)/T131) -> 0 | X131: 0
